{"text_format":"1","workbook":"xlsx","n_sheets":3,"sheets":["入力シート","入力例","入力チェック後"],"not_rendered":{"charts":0,"images":0,"macros":1,"external_links":0,"defined_names":1,"comments":0,"pivot_tables":0},"unopened":[],"bounds":{"document_bytes":16777216,"sheet_cells":100000,"rows_first":2000,"rows_last":500,"rows_between":2000,"halvings":0,"cell_chars":16384,"cell_head_chars":4096},"cells_cut":0,"cells_raw":0,"read":"whole","date_system":"1900"}

{"sheet":"入力シート","index":0,"n_rows":60000,"n_cols":20,"rows_kept":4500,"cut":true,"hidden":false,"merged":[],"bounds":{"rows_first":2000,"rows_last":500,"rows_between":2000,"halvings":0}}
[null,null,null,{"$f":"IF(ISNA(O1),\"入力エラー\",\"\")","v":""},null,null,null,{"$f":"IF(ISNA(P1),\"入力エラー\",\"\")","v":""},null,null,null,null,null,null,{"$f":"SUM(O3:O50000)","v":0},{"$f":"SUM(P3:P50000)","v":0},null,null,"食品名","有害物質名"]
["自治体名","分析年度\n西暦","試料番号 ","食品名","食品名\n（その他の場合）","国産・輸入","輸出国名","有害物質名","有害物質名（その他の場合）","分析法の妥当性\n未確認-空白\n確認-1","ND-空白　　検出-1","検出限界\n(ppm)","分析値  (ppm)\n検出した時","違反-1","食品名","有害物質名",null,null,"玄米","ＢＨＣ"]
[null,2024,null,null,null,null,null,null,null,null,null,null,null,null,{"$f":"IF(D3=\"\",\"\",MATCH(D3,$S$2:$S$2488,0))","v":""},{"$f":"IF(H3=\"\",\"\",MATCH(H3,$T$2:$T$2472,0))","v":""},null,null,"小麦","α－ＢＨＣ"]
[null,null,null,null,null,null,null,null,null,null,null,null,null,null,"","",null,null,"大麦","β－ＢＨＣ"]
[null,null,null,null,null,null,null,null,null,null,null,null,null,null,"","",null,null,"ライ麦","γ－ＢＨＣ"]
[null,null,null,null,null,null,null,null,null,null,null,null,null,null,"","",null,null,"スイートコーン","δ－ＢＨＣ"]
[null,null,null,null,null,null,null,null,null,null,null,null,null,null,"","",null,null,"スイートコーン（冷凍）","２，４－Ｄ"]
[null,null,null,null,null,null,null,null,null,null,null,null,null,null,"","",null,null,"ジャイアントコーン","２，４－ジクロロフェノキシ酢酸"]
[null,null,null,null,null,null,null,null,null,null,null,null,null,null,"","",null,null,"テオシント","２，４，５－Ｔ"]
[null,null,null,null,null,null,null,null,null,null,null,null,null,null,"","",null,null,"とうもろこし","２，４，５－ＴＢ"]
[null,null,null,null,null,null,null,null,null,null,null,null,null,null,"","",null,null,"ポップコーン","２，４，５－Ｔイソプロピル"]
[null,null,null,null,null,null,null,null,null,null,null,null,null,null,"","",null,null,"未成熟とうもろこし","２，４－ＤＢ"]
[null,null,null,null,null,null,null,null,null,null,null,null,null,null,"","",null,null,"そば","ＣＭＰＴ"]
[null,null,null,null,null,null,null,null,null,null,null,null,null,null,"","",null,null,"その他の穀類","ＣＯＣＮＱ"]
[null,null,null,null,null,null,null,null,null,null,null,null,null,null,"","",null,null,"ジュズダマ","ＣＯＮＱ"]
[null,null,null,null,null,null,null,null,null,null,null,null,null,null,"","",null,null,"アマランサス","ＤＢＥＤＣ"]
[null,null,null,null,null,null,null,null,null,null,null,null,null,null,"","",null,null,"アメリカマコモ","ＤＣＩＰ"]
[null,null,null,null,null,null,null,null,null,null,null,null,null,null,"","",null,null,"あわ","ＤＤＴ"]
[null,null,null,null,null,null,null,null,null,null,null,null,null,null,"","",null,null,"オート麦","ｏ，ｐ’－ＤＤＤ"]
[null,null,null,null,null,null,null,null,null,null,null,null,null,null,"","",null,null,"エン麦","ｏ，ｐ’－ＤＤＥ"]
[null,null,null,null,null,null,null,null,null,null,null,null,null,null,"","",null,null,"カラス麦","ｏ，ｐ’－ＤＤＴ"]
[null,null,null,null,null,null,null,null,null,null,null,null,null,null,"","",null,null,"カニューア","２，２－ＤＰＡ"]
[null,null,null,null,null,null,null,null,null,null,null,null,null,null,"","",null,null,"きび","ＤＳＰ"]
[null,null,null,null,null,null,null,null,null,null,null,null,null,null,"","",null,null,"砂糖もろこし","ＥＰＢＰ"]
[null,null,null,null,null,null,null,null,null,null,null,null,null,null,"","",null,null,"ソルガム","ＥＰＮ"]
[null,null,null,null,null,null,null,null,null,null,null,null,null,null,"","",null,null,"こうりゃん","ＥＰＮオキソン"]
[null,null,null,null,null,null,null,null,null,null,null,null,null,null,"","",null,null,"はとむぎ","ＥＰＴＣ"]
[null,null,null,null,null,null,null,null,null,null,null,null,null,null,"","",null,null,"ヨクイニン","ＥＳＢＰ"]
[null,null,null,null,null,null,null,null,null,null,null,null,null,null,"","",null,null,"ひえ","ＥＳＴＰ"]
[null,null,null,null,null,null,null,null,null,null,null,null,null,null,"","",null,null,"モロコシ","ＥＴＭ"]
[null,null,null,null,null,null,null,null,null,null,null,null,null,null,"","",null,null,"キノア","ＦＡＢＡ"]
[null,null,null,null,null,null,null,null,null,null,null,null,null,null,"","",null,null,"ワイルドライス","ＦＡＢＢ"]
[null,null,null,null,null,null,null,null,null,null,null,null,null,null,"","",null,null,"乾燥大豆","ＩＰＳＰ"]
[null,null,null,null,null,null,null,null,null,null,null,null,null,null,"","",null,null,"黒大豆","ＭＡＬＳ"]
[null,null,null,null,null,null,null,null,null,null,null,null,null,null,"","",null,null,"茶大豆","ＭＣＰＡ"]
[null,null,null,null,null,null,null,null,null,null,null,null,null,null,"","",null,null,"緑大豆","ＭＣＰＡエチル"]
[null,null,null,null,null,null,null,null,null,null,null,null,null,null,"","",null,null,"大豆","ＭＣＰＡメチル"]
[null,null,null,null,null,null,null,null,null,null,null,null,null,null,"","",null,null,"小豆類","ＭＣＰＡＮ"]
[null,null,null,null,null,null,null,null,null,null,null,null,null,null,"","",null,null,"小豆","ＭＣＰＢ"]
[null,null,null,null,null,null,null,null,null,null,null,null,null,null,"","",null,null,"いんげん","ＭＣＰＢエチル"]
[null,null,null,null,null,null,null,null,null,null,null,null,null,null,"","",null,null,"大手亡豆","ＭＣＰＣＡ"]
[null,null,null,null,null,null,null,null,null,null,null,null,null,null,"","",null,null,"手亡豆","ＭＣＰＥ"]
[null,null,null,null,null,null,null,null,null,null,null,null,null,null,"","",null,null,"金時豆","ＭＣＰＦＡ"]
[null,null,null,null,null,null,null,null,null,null,null,null,null,null,"","",null,null,"ささげ","ＭＮＦＡ"]
[null,null,null,null,null,null,null,null,null,null,null,null,null,null,"","",null,null,"白いんげん","ＭＰＭＣ"]
[null,null,null,null,null,null,null,null,null,null,null,null,null,null,"","",null,null,"黒いんげん","ＭＴＭＣ"]
[null,null,null,null,null,null,null,null,null,null,null,null,null,null,"","",null,null,"赤いんげん","ＴＣＭＴＢ"]
[null,null,null,null,null,null,null,null,null,null,null,null,null,null,"","",null,null,"竹小豆","ＸＭＣ"]
[null,null,null,null,null,null,null,null,null,null,null,null,null,null,"","",null,null,"バター豆","ＺＭ"]
[null,null,null,null,null,null,null,null,null,null,null,null,null,null,"","",null,null,"ふじ豆","アイオキシニル"]
[null,null,null,null,null,null,null,null,null,null,null,null,null,null,"","",null,null,"べにばないんげん","アイオキシニルオクタノエート"]
[null,null,null,null,null,null,null,null,null,null,null,null,null,null,"","",null,null,"ベビーライマ豆","アクリナトリン"]
[null,null,null,null,null,null,null,null,null,null,null,null,null,null,"","",null,null,"ライマ豆","アクロミド"]
[null,null,null,null,null,null,null,null,null,null,null,null,null,null,"","",null,null,"緑豆","アザコナゾール"]
[null,null,null,null,null,null,null,null,null,null,null,null,null,null,"","",null,null,"レンズ豆","アザフェニジン"]
[null,null,null,null,null,null,null,null,null,null,null,null,null,null,"","",null,null,"えんどう","アザペロン"]
[null,null,null,null,null,null,null,null,null,null,null,null,null,null,"","",null,null,"そら豆","アザメチホス"]
[null,null,null,null,null,null,null,null,null,null,null,null,null,null,"","",null,null,"らっかせい","アシノナピル"]
[null,null,null,null,null,null,null,null,null,null,null,null,null,null,"","",null,null,"その他の豆類","アシフルオルフェン"]
[null,null,null,null,null,null,null,null,null,null,null,null,null,null,"","",null,null,"カリオカビーンズ","アジプロトリン"]
[null,null,null,null,null,null,null,null,null,null,null,null,null,null,"","",null,null,"補骨脂","アシベンゾラルＳ－メチル"]
[null,null,null,null,null,null,null,null,null,null,null,null,null,null,"","",null,null,"たちなた豆","アジムスルフロン"]
[null,null,null,null,null,null,null,null,null,null,null,null,null,null,"","",null,null,"なた豆","アシュラム"]
[null,null,null,null,null,null,null,null,null,null,null,null,null,null,"","",null,null,"ルピン豆","アジンホスエチル"]
[null,null,null,null,null,null,null,null,null,null,null,null,null,null,"","",null,null,"キマメ","アジンホスメチル"]
[null,null,null,null,null,null,null,null,null,null,null,null,null,null,"","",null,null,"アラハル豆","アスポキシシリン"]
[null,null,null,null,null,null,null,null,null,null,null,null,null,null,{"$f":"IF(D67=\"\",\"\",MATCH(D67,$S$2:$S$2488,0))","v":""},{"$f":"IF(H67=\"\",\"\",MATCH(H67,$T$2:$T$2472,0))","v":""},null,null,"ひよこ豆","アセキノシル"]
[null,null,null,null,null,null,null,null,null,null,null,null,null,null,"","",null,null,"トラッパーピース","アセタミプリド"]
[null,null,null,null,null,null,null,null,null,null,null,null,null,null,"","",null,null,"ばれいしょ","２－アセチルアミノ－５－ニトロチアゾール"]
[null,null,null,null,null,null,null,null,null,null,null,null,null,null,"","",null,null,"ばれいしょ（冷凍）","アセトアミノフェン"]
[null,null,null,null,null,null,null,null,null,null,null,null,null,null,"","",null,null,"さといも類","アセトクロール"]
[null,null,null,null,null,null,null,null,null,null,null,null,null,null,"","",null,null,"さといも","アセフェート"]
[null,null,null,null,null,null,null,null,null,null,null,null,null,null,"","",null,null,"京芋","アゾキシストロビン"]
[null,null,null,null,null,null,null,null,null,null,null,null,null,null,"","",null,null,"えびいも","アゾシクロチン"]
[null,null,null,null,null,null,null,null,null,null,null,null,null,null,"","",null,null,"はすいも","アゾシクロチン及びシヘキサチン"]
[null,null,null,null,null,null,null,null,null,null,null,null,null,null,"","",null,null,"クワズイモ","アトラジン"]
[null,null,null,null,null,null,null,null,null,null,null,null,null,null,"","",null,null,"タロイモ","アニラジン"]
[null,null,null,null,null,null,null,null,null,null,null,null,null,null,"","",null,null,"みずいも","アニロホス"]
[null,null,null,null,null,null,null,null,null,null,null,null,null,null,"","",null,null,"さといも類（冷凍）","アバメクチン"]
[null,null,null,null,null,null,null,null,null,null,null,null,null,null,"","",null,null,"さといも（冷凍）","アビラマイシン"]
[null,null,null,null,null,null,null,null,null,null,null,null,null,null,"","",null,null,"かんしょ","アフィドピロペン"]
[null,null,null,null,null,null,null,null,null,null,null,null,null,null,"","",null,null,"かんしょ（冷凍）","アプラマイシン"]
[null,null,null,null,null,null,null,null,null,null,null,null,null,null,"","",null,null,"ながいも","アベルメクチン"]
[null,null,null,null,null,null,null,null,null,null,null,null,null,null,"","",null,null,"まるいも","アベルメクチンＢ１ａ"]
[null,null,null,null,null,null,null,null,null,null,null,null,null,null,"","",null,null,"やまといも","アベルメクチンＢ１ｂ"]
[null,null,null,null,null,null,null,null,null,null,null,null,null,null,"","",null,null,"やまいも","８，９－Ｚ－アベルメクチンＢ１ａ"]
[null,null,null,null,null,null,null,null,null,null,null,null,null,null,"","",null,null,"やまのいも","アボパルシン"]
[null,null,null,null,null,null,null,null,null,null,null,null,null,null,"","",null,null,"ヤムイモ","アマンタジン"]
[null,null,null,null,null,null,null,null,null,null,null,null,null,null,"","",null,null,"つくねいも","アミスルブロム"]
[null,null,null,null,null,null,null,null,null,null,null,null,null,null,"","",null,null,"じねんじょ","アミトラズ"]
[null,null,null,null,null,null,null,null,null,null,null,null,null,null,"","",null,null,"やまいも（冷凍）","アミトロール"]
[null,null,null,null,null,null,null,null,null,null,null,null,null,null,"","",null,null,"こんにゃくいも","アミノエトキシビニルグリシン"]
[null,null,null,null,null,null,null,null,null,null,null,null,null,null,"","",null,null,"こんにゃくいも（冷凍）","アミノカルブ"]
[null,null,null,null,null,null,null,null,null,null,null,null,null,null,"","",null,null,"その他のいも類","アミノシクロピラクロル"]
[null,null,null,null,null,null,null,null,null,null,null,null,null,null,"","",null,null,"アメリカホドイモ","１－アミノヒダントイン"]
[null,null,null,null,null,null,null,null,null,null,null,null,null,null,"","",null,null,"アピオス","３－アミノ－２－オキサゾリドン"]
[null,null,null,null,null,null,null,null,null,null,null,null,null,null,"","",null,null,"きくいも","３－アミノ－５－モルフォリノメチル－２－オキサゾリドン"]
[null,null,null,null,null,null,null,null,null,null,null,null,null,null,"","",null,null,"ヤーコン","アミノピラリド"]
[null,null,null,null,null,null,null,null,null,null,null,null,null,null,"","",null,null,"キャッサバ","４－アミノピリジン"]
[null,null,null,null,null,null,null,null,null,null,null,null,null,null,"","",null,null,"クズウコン","アミプロホスメチル"]
[null,null,null,null,null,null,null,null,null,null,null,null,null,null,"","",null,null,"キャッサバ（冷凍）","アミホス"]
[null,null,null,null,null,null,null,null,null,null,null,null,null,null,"","",null,null,"その他のいも類（冷凍）","アメトクトラジン"]
[null,null,null,null,null,null,null,null,null,null,null,null,null,null,"","",null,null,"てんさい","アメトリン"]
[null,null,null,null,null,null,null,null,null,null,null,null,null,null,"","",null,null,"てんさい（冷凍）","アモキシシリン"]
[null,null,null,null,null,null,null,null,null,null,null,null,null,null,"","",null,null,"さとうきび","アラクロール"]
[null,null,null,null,null,null,null,null,null,null,null,null,null,null,"","",null,null,"さとうきび（冷凍）","アラニカルブ"]
[null,null,null,null,null,null,null,null,null,null,null,null,null,null,"","",null,null,"だいこんの根","アラマイト"]
[null,null,null,null,null,null,null,null,null,null,null,null,null,null,"","",null,null,"ラディッシュの根","アリキシカルブ"]
[null,null,null,null,null,null,null,null,null,null,null,null,null,null,"","",null,null,"はつかだいこんの根","アリドクロール"]
[null,null,null,null,null,null,null,null,null,null,null,null,null,null,"","",null,null,"だいこんの根（冷凍）","アルジカルブ"]
[null,null,null,null,null,null,null,null,null,null,null,null,null,null,"","",null,null,"だいこんの葉","アルジカルブ及びアルドキシカルブ"]
[null,null,null,null,null,null,null,null,null,null,null,null,null,null,"","",null,null,"ラディッシュの葉","アルドキシカルブ"]
[null,null,null,null,null,null,null,null,null,null,null,null,null,null,"","",null,null,"はつかだいこんの葉","アルドリン"]
[null,null,null,null,null,null,null,null,null,null,null,null,null,null,"","",null,null,"だいこんの葉（冷凍）","アルドリン及びディルドリン"]
[null,null,null,null,null,null,null,null,null,null,null,null,null,null,"","",null,null,"かぶの根","アルトレノゲスト"]
[null,null,null,null,null,null,null,null,null,null,null,null,null,null,"","",null,null,"ルタバガの根","アルベンダゾール"]
[null,null,null,null,null,null,null,null,null,null,null,null,null,null,"","",null,null,"ルタバガの葉","アレスリン"]
[null,null,null,null,null,null,null,null,null,null,null,null,null,null,"","",null,null,"かぶの根（冷凍）","アロキシジム"]
[null,null,null,null,null,null,null,null,null,null,null,null,null,null,"","",null,null,"ルタバガの根（冷凍）","アンシミドール"]
[null,null,null,null,null,null,null,null,null,null,null,null,null,null,"","",null,null,"かぶの葉","アンバム"]
[null,null,null,null,null,null,null,null,null,null,null,null,null,null,"","",null,null,"ホースラディッシュ","アンピシリン"]
[null,null,null,null,null,null,null,null,null,null,null,null,null,null,"","",null,null,"かぶの葉（冷凍）","アンプロリウム"]
[null,null,null,null,null,null,null,null,null,null,null,null,null,null,"","",null,null,"西洋わさび","イオドスルフロンメチル"]
[null,null,null,null,null,null,null,null,null,null,null,null,null,null,"","",null,null,"西洋わさび（冷凍）","イサゾホス"]
[null,null,null,null,null,null,null,null,null,null,null,null,null,null,"","",null,null,"クレソン","イソウロン"]
[null,null,null,null,null,null,null,null,null,null,null,null,null,null,"","",null,null,"クレソン（冷凍）","イソオイゲノール"]
[null,null,null,null,null,null,null,null,null,null,null,null,null,null,"","",null,null,"はくさい","イソカルボホス"]
[null,null,null,null,null,null,null,null,null,null,null,null,null,null,"","",null,null,"はくさい（冷凍）","イソキサジフェンエチル"]
[null,null,null,null,null,null,null,null,null,null,null,null,null,null,"","",null,null,"キャベツ","イソキサチオン"]
[null,null,null,null,null,null,null,null,null,null,null,null,null,null,"","",null,null,"グリーンボール","イソキサチオンオキソン"]
[null,null,null,null,null,null,null,null,null,null,null,null,null,null,{"$f":"IF(D131=\"\",\"\",MATCH(D131,$S$2:$S$2488,0))","v":""},{"$f":"IF(H131=\"\",\"\",MATCH(H131,$T$2:$T$2472,0))","v":""},null,null,"チリメンキャベツ","イソキサフルトール"]
[null,null,null,null,null,null,null,null,null,null,null,null,null,null,"","",null,null,"サボイキャベツ","イソキサベン"]
[null,null,null,null,null,null,null,null,null,null,null,null,null,null,"","",null,null,"レッドキャベツ","イソシンコメロン酸二プロピル"]
[null,null,null,null,null,null,null,null,null,null,null,null,null,null,"","",null,null,"キャベツ（冷凍）","イソチアニル"]
[null,null,null,null,null,null,null,null,null,null,null,null,null,null,"","",null,null,"芽キャベツ","イソチオエート"]
[null,null,null,null,null,null,null,null,null,null,null,null,null,null,"","",null,null,"芽キャベツ（冷凍）","イソドリン"]
[null,null,null,null,null,null,null,null,null,null,null,null,null,null,"","",null,null,"ケール","イソピラザム"]
[null,null,null,null,null,null,null,null,null,null,null,null,null,null,"","",null,null,"葉キャベツ","イソフェタミド"]
[null,null,null,null,null,null,null,null,null,null,null,null,null,null,"","",null,null,"コラード","イソフェンホス"]
[null,null,null,null,null,null,null,null,null,null,null,null,null,null,"","",null,null,"ケール（冷凍）","イソフェンホスオキソン"]
[null,null,null,null,null,null,null,null,null,null,null,null,null,null,"","",null,null,"コラード（冷凍）","イソフェンホスメチル"]
[null,null,null,null,null,null,null,null,null,null,null,null,null,null,"","",null,null,"こまつな","イソプロカルブ"]
[null,null,null,null,null,null,null,null,null,null,null,null,null,null,"","",null,null,"こまつな（冷凍）","イソプロチオラン"]
[null,null,null,null,null,null,null,null,null,null,null,null,null,null,"","",null,null,"みずな","イソプロチオランスルホキシド"]
[null,null,null,null,null,null,null,null,null,null,null,null,null,null,"","",null,null,"みぶな","イソプロツロン"]
[null,null,null,null,null,null,null,null,null,null,null,null,null,null,"","",null,null,"きょうな","イソプロパリン"]
[null,null,null,null,null,null,null,null,null,null,null,null,null,null,"","",null,null,"きょうな（冷凍）","イソベンザン"]
[null,null,null,null,null,null,null,null,null,null,null,null,null,null,"","",null,null,"チンゲンサイ","イソメタミジウム"]
[null,null,null,null,null,null,null,null,null,null,null,null,null,null,"","",null,null,"チンゲンサイ（冷凍）","イナベンフィド"]
[null,null,null,null,null,null,null,null,null,null,null,null,null,null,"","",null,null,"カリフラワー","イプコナゾール"]
[null,null,null,null,null,null,null,null,null,null,null,null,null,null,"","",null,null,"カリフラワー（冷凍）","イプフェンカルバゾン"]
[null,null,null,null,null,null,null,null,null,null,null,null,null,null,"","",null,null,"ブロッコリー","イプフルフェノキン"]
[null,null,null,null,null,null,null,null,null,null,null,null,null,null,"","",null,null,"ブロッコリー（冷凍）","イプロジオン"]
[null,null,null,null,null,null,null,null,null,null,null,null,null,null,"","",null,null,"朝熊小菜","イプロニダゾール"]
[null,null,null,null,null,null,null,null,null,null,null,null,null,null,"","",null,null,"あざみな","イプロバリカルブ"]
[null,null,null,null,null,null,null,null,null,null,null,null,null,null,"","",null,null,"あじみな","イプロベンホス"]
[null,null,null,null,null,null,null,null,null,null,null,null,null,null,"","",null,null,"アスパラ菜","イベルメクチン"]
[null,null,null,null,null,null,null,null,null,null,null,null,null,null,"","",null,null,"あぶらなの葉","イマザキン"]
[null,null,null,null,null,null,null,null,null,null,null,null,null,null,"","",null,null,"エイ菜","イマザピック"]
[null,null,null,null,null,null,null,null,null,null,null,null,null,null,"","",null,null,"おおさきな","イマザピル"]
[null,null,null,null,null,null,null,null,null,null,null,null,null,null,"","",null,null,"オータムポエム","イマザメタベンズ"]
[null,null,null,null,null,null,null,null,null,null,null,null,null,null,"","",null,null,"かいわれだいこん","イマザメタベンズメチルエステル"]
[null,null,null,null,null,null,null,null,null,null,null,null,null,null,"","",null,null,"かきな","イマザモックスアンモニウム塩"]
[null,null,null,null,null,null,null,null,null,null,null,null,null,null,"","",null,null,"空心菜","イマザリル"]
[null,null,null,null,null,null,null,null,null,null,null,null,null,null,"","",null,null,"くきたちな","イマゼタピル"]
[null,null,null,null,null,null,null,null,null,null,null,null,null,null,"","",null,null,"茎ブロッコリー","イマゼタピルアンモニウム塩"]
[null,null,null,null,null,null,null,null,null,null,null,null,null,null,"","",null,null,"こうさいたい","イマゾスルフロン"]
[null,null,null,null,null,null,null,null,null,null,null,null,null,null,"","",null,null,"コールラビ","イミシアホス"]
[null,null,null,null,null,null,null,null,null,null,null,null,null,null,"","",null,null,"さいしん","イミダクロプリド"]
[null,null,null,null,null,null,null,null,null,null,null,null,null,null,"","",null,null,"さぬきな","イミドカルブ"]
[null,null,null,null,null,null,null,null,null,null,null,null,null,null,"","",null,null,"山東菜","イミノクタジン"]
[null,null,null,null,null,null,null,null,null,null,null,null,null,null,"","",null,null,"しろな","イミプロトリン"]
[null,null,null,null,null,null,null,null,null,null,null,null,null,null,"","",null,null,"スティックセニョール","イミベンコナゾール"]
[null,null,null,null,null,null,null,null,null,null,null,null,null,null,"","",null,null,"せいさい","インダノファン"]
[null,null,null,null,null,null,null,null,null,null,null,null,null,null,"","",null,null,"仙台芭蕉菜","インドール酪酸"]
[null,null,null,null,null,null,null,null,null,null,null,null,null,null,"","",null,null,"仙台雪菜","インドキサカルブ"]
[null,null,null,null,null,null,null,null,null,null,null,null,null,null,"","",null,null,"その他のあぶらな科野菜","インピルフルキサム"]
[null,null,null,null,null,null,null,null,null,null,null,null,null,null,"","",null,null,"タアサイ","ウニコナゾール－Ｐ"]
[null,null,null,null,null,null,null,null,null,null,null,null,null,null,"","",null,null,"たいさい","ウルバジッド"]
[null,null,null,null,null,null,null,null,null,null,null,null,null,null,"","",null,null,"たかな","エクロメゾール"]
[null,null,null,null,null,null,null,null,null,null,null,null,null,null,"","",null,null,"ちぢみな","１７－α－エストラジオール"]
[null,null,null,null,null,null,null,null,null,null,null,null,null,null,"","",null,null,"とうな","１７－β－エストラジオール"]
[null,null,null,null,null,null,null,null,null,null,null,null,null,null,"","",null,null,"長崎はくさい","エースフェノン"]
[null,null,null,null,null,null,null,null,null,null,null,null,null,null,"","",null,null,"なずな","エスプロカルブ"]
[null,null,null,null,null,null,null,null,null,null,null,null,null,null,"","",null,null,"菜の花","エタボキサム"]
[null,null,null,null,null,null,null,null,null,null,null,null,null,null,"","",null,null,"のざわな","エタメツルフロンメチル"]
[null,null,null,null,null,null,null,null,null,null,null,null,null,null,"","",null,null,"はくさいな","エタルフルラリン"]
[null,null,null,null,null,null,null,null,null,null,null,null,null,null,"","",null,null,"花チンゲンサイ","エチオフェンカルブ"]
[null,null,null,null,null,null,null,null,null,null,null,null,null,null,"","",null,null,"はなっこりー","エチオフェンカルブスルホキシド"]
[null,null,null,null,null,null,null,null,null,null,null,null,null,null,"","",null,null,"花菜","エチオフェンカルブスルホン"]
[null,null,null,null,null,null,null,null,null,null,null,null,null,null,"","",null,null,"非結球メキャベツ","エチオレート"]
[null,null,null,null,null,null,null,null,null,null,null,null,null,null,"","",null,null,"広島菜","エチオン"]
[null,null,null,null,null,null,null,null,null,null,null,null,null,null,"","",null,null,"プチベール","エチクロゼート"]
[null,null,null,null,null,null,null,null,null,null,null,null,null,null,"","",null,null,"マカ","エチプロール"]
[null,null,null,null,null,null,null,null,null,null,null,null,null,null,{"$f":"IF(D195=\"\",\"\",MATCH(D195,$S$2:$S$2488,0))","v":""},{"$f":"IF(H195=\"\",\"\",MATCH(H195,$T$2:$T$2472,0))","v":""},null,null,"マスタードスプラウト","エチプロストントロメタミン"]
[null,null,null,null,null,null,null,null,null,null,null,null,null,null,"","",null,null,"大和まな","４－エチルチオフェニルメチルカルバメート"]
[null,null,null,null,null,null,null,null,null,null,null,null,null,null,"","",null,null,"ルッコラ","Ｎ－（２－エチルヘキシル）－８，９，１０－トリノルボルン－５－エン－２，３－ジカルボキシイミド"]
[null,null,null,null,null,null,null,null,null,null,null,null,null,null,"","",null,null,"わさびの根茎","エチレンチオウレア"]
[null,null,null,null,null,null,null,null,null,null,null,null,null,null,"","",null,null,"さいしん（冷凍）","エディフェンホス"]
[null,null,null,null,null,null,null,null,null,null,null,null,null,null,"","",null,null,"ルッコラ（冷凍）","エテホン"]
[null,null,null,null,null,null,null,null,null,null,null,null,null,null,"","",null,null,"菜の花（冷凍）","エトキサゾール"]
[null,null,null,null,null,null,null,null,null,null,null,null,null,null,"","",null,null,"その他のあぶらな科野菜（冷凍）","エトキシキン"]
[null,null,null,null,null,null,null,null,null,null,null,null,null,null,"","",null,null,"ごぼう","エトキシスルフロン"]
[null,null,null,null,null,null,null,null,null,null,null,null,null,null,"","",null,null,"ごぼう（冷凍）","エトパベート"]
[null,null,null,null,null,null,null,null,null,null,null,null,null,null,"","",null,null,"サルシフィー","エトフェンプロックス"]
[null,null,null,null,null,null,null,null,null,null,null,null,null,null,"","",null,null,"サルシフィー（冷凍）","エトフメセート"]
[null,null,null,null,null,null,null,null,null,null,null,null,null,null,"","",null,null,"アーティチョーク","エトプロホス"]
[null,null,null,null,null,null,null,null,null,null,null,null,null,null,"","",null,null,"アーティチョーク（冷凍）","エトベンザニド"]
[null,null,null,null,null,null,null,null,null,null,null,null,null,null,"","",null,null,"チコリ","エトリジアゾール"]
[null,null,null,null,null,null,null,null,null,null,null,null,null,null,"","",null,null,"チコリ（冷凍）","エトリムホス"]
[null,null,null,null,null,null,null,null,null,null,null,null,null,null,"","",null,null,"エンダイブ","エノキサシン"]
[null,null,null,null,null,null,null,null,null,null,null,null,null,null,"","",null,null,"エンダイブ（冷凍）","エプリノメクチン"]
[null,null,null,null,null,null,null,null,null,null,null,null,null,null,"","",null,null,"しゅんぎく","エフロトマイシン"]
[null,null,null,null,null,null,null,null,null,null,null,null,null,null,"","",null,null,"しゅんぎく（冷凍）","エポキシコナゾール"]
[null,null,null,null,null,null,null,null,null,null,null,null,null,null,"","",null,null,"かきちしゃ","エマメクチン安息香酸塩"]
[null,null,null,null,null,null,null,null,null,null,null,null,null,null,"","",null,null,"グリーンリーフ","エリスロマイシン"]
[null,null,null,null,null,null,null,null,null,null,null,null,null,null,"","",null,null,"サンチュ","塩化ジデシルジメチルアンモニウム"]
[null,null,null,null,null,null,null,null,null,null,null,null,null,null,"","",null,null,"サニーレタス","塩酸ホルメタネート"]
[null,null,null,null,null,null,null,null,null,null,null,null,null,null,"","",null,null,"サラダ菜","塩酸メトセルペイト"]
[null,null,null,null,null,null,null,null,null,null,null,null,null,null,"","",null,null,"ちしゃ","エンドスルファン"]
[null,null,null,null,null,null,null,null,null,null,null,null,null,null,"","",null,null,"リーフレタス","エンドスルファンサルフェート"]
[null,null,null,null,null,null,null,null,null,null,null,null,null,null,"","",null,null,"レタス","エンドタール"]
[null,null,null,null,null,null,null,null,null,null,null,null,null,null,"","",null,null,"ロメインレタス","エンドチオン"]
[null,null,null,null,null,null,null,null,null,null,null,null,null,null,"","",null,null,"かきちしゃ（冷凍）","エンドリン"]
[null,null,null,null,null,null,null,null,null,null,null,null,null,null,"","",null,null,"サラダ菜（冷凍）","エンラマイシン"]
[null,null,null,null,null,null,null,null,null,null,null,null,null,null,"","",null,null,"ちしゃ（冷凍）","エンロフロキサシン"]
[null,null,null,null,null,null,null,null,null,null,null,null,null,null,"","",null,null,"レタス（冷凍）","オイゲノール"]
[null,null,null,null,null,null,null,null,null,null,null,null,null,null,"","",null,null,"その他のきく科野菜","オキサジアゾン"]
[null,null,null,null,null,null,null,null,null,null,null,null,null,null,"","",null,null,"やまごぼう","オキサジアルギル"]
[null,null,null,null,null,null,null,null,null,null,null,null,null,null,"","",null,null,"ごぼうの葉","オキサジキシル"]
[null,null,null,null,null,null,null,null,null,null,null,null,null,null,"","",null,null,"葉ごぼう","オキサジクロメホン"]
[null,null,null,null,null,null,null,null,null,null,null,null,null,null,"","",null,null,"サルシフィーの葉","オキサシリン"]
[null,null,null,null,null,null,null,null,null,null,null,null,null,null,"","",null,null,"チコリの根","オキサゾスルフィル"]
[null,null,null,null,null,null,null,null,null,null,null,null,null,null,"","",null,null,"トレビス","オキサチアピプロリン"]
[null,null,null,null,null,null,null,null,null,null,null,null,null,null,"","",null,null,"きくの葉","オキサベトリニル"]
[null,null,null,null,null,null,null,null,null,null,null,null,null,null,"","",null,null,"食用菊","オキサミル"]
[null,null,null,null,null,null,null,null,null,null,null,null,null,null,"","",null,null,"金時草","オキシエチレンドコサノール"]
[null,null,null,null,null,null,null,null,null,null,null,null,null,null,"","",null,null,"ふき","オキシカルボキシン"]
[null,null,null,null,null,null,null,null,null,null,null,null,null,null,"","",null,null,"ふきのとう","オキシクロザニド"]
[null,null,null,null,null,null,null,null,null,null,null,null,null,null,"","",null,null,"よめな","オキシテトラサイクリン"]
[null,null,null,null,null,null,null,null,null,null,null,null,null,null,"","",null,null,"その他のきく科野菜（冷凍）","オキシテトラサイクリン、クロルテトラサイクリン及びテトラサイクリン"]
[null,null,null,null,null,null,null,null,null,null,null,null,null,null,"","",null,null,"たまねぎ","オキシデプロホス"]
[null,null,null,null,null,null,null,null,null,null,null,null,null,null,"","",null,null,"ペコロス","オキシデメトンメチル"]
[null,null,null,null,null,null,null,null,null,null,null,null,null,null,"","",null,null,"たまねぎ（冷凍）","オキシフルオルフェン"]
[null,null,null,null,null,null,null,null,null,null,null,null,null,null,"","",null,null,"ねぎ","オキシベンダゾール"]
[null,null,null,null,null,null,null,null,null,null,null,null,null,null,"","",null,null,"リーキ","オキシン銅"]
[null,null,null,null,null,null,null,null,null,null,null,null,null,null,"","",null,null,"リーキ（冷凍）","オキシ塩化銅"]
[null,null,null,null,null,null,null,null,null,null,null,null,null,null,"","",null,null,"ねぎ（冷凍）","オキスポコナゾールフマル酸塩"]
[null,null,null,null,null,null,null,null,null,null,null,null,null,null,"","",null,null,"にんにく","オキスポコナゾールホルミル体"]
[null,null,null,null,null,null,null,null,null,null,null,null,null,null,"","",null,null,"にんにく（冷凍）","４，４’－ジメチル－２－オキサゾリジノン"]
[null,null,null,null,null,null,null,null,null,null,null,null,null,null,"","",null,null,"にら","オキソリニック酸"]
[null,null,null,null,null,null,null,null,null,null,null,null,null,null,"","",null,null,"にら（冷凍）","オクスフェンダゾール"]
[null,null,null,null,null,null,null,null,null,null,null,null,null,null,"","",null,null,"アスパラガス","オクスフェンダゾール、フェバンテル及びフェンベンダゾール"]
[null,null,null,null,null,null,null,null,null,null,null,null,null,null,"","",null,null,"グリーンアスパラガス","オクタクロロジプロピルエーテル"]
[null,null,null,null,null,null,null,null,null,null,null,null,null,null,"","",null,null,"ホワイトアスパラガス","オフレース"]
[null,null,null,null,null,null,null,null,null,null,null,null,null,null,"","",null,null,"グリーンアスパラガス（冷凍）","オフロキサシン"]
[null,null,null,null,null,null,null,null,null,null,null,null,null,null,"","",null,null,"ホワイトアスパラガス（冷凍）","オメトエート"]
[null,null,null,null,null,null,null,null,null,null,null,null,null,null,"","",null,null,"わけぎ","オラキンドックス"]
[null,null,null,null,null,null,null,null,null,null,null,null,null,null,{"$f":"IF(D259=\"\",\"\",MATCH(D259,$S$2:$S$2488,0))","v":""},{"$f":"IF(H259=\"\",\"\",MATCH(H259,$T$2:$T$2472,0))","v":""},null,null,"わけぎ（冷凍）","オリサストロビン"]
[null,null,null,null,null,null,null,null,null,null,null,null,null,null,"","",null,null,"その他のゆり科野菜","オリザリン"]
[null,null,null,null,null,null,null,null,null,null,null,null,null,null,"","",null,null,"アロエ","オルトジクロロベンゼン"]
[null,null,null,null,null,null,null,null,null,null,null,null,null,null,"","",null,null,"うるい","オルトフェニルフェノール"]
[null,null,null,null,null,null,null,null,null,null,null,null,null,null,"","",null,null,"ぎょうじゃにんにく","オルビフロキサシン"]
[null,null,null,null,null,null,null,null,null,null,null,null,null,null,"","",null,null,"ニラの花","オルベンカルブ"]
[null,null,null,null,null,null,null,null,null,null,null,null,null,null,"","",null,null,"にんにくの茎","オルメトプリム"]
[null,null,null,null,null,null,null,null,null,null,null,null,null,null,"","",null,null,"のびる","オレアンドマイシン"]
[null,null,null,null,null,null,null,null,null,null,null,null,null,null,"","",null,null,"葉たまねぎ","カスガマイシン"]
[null,null,null,null,null,null,null,null,null,null,null,null,null,null,"","",null,null,"葉にんにく","カズサホス"]
[null,null,null,null,null,null,null,null,null,null,null,null,null,null,"","",null,null,"ホンカンゾウ","カナマイシン"]
[null,null,null,null,null,null,null,null,null,null,null,null,null,null,"","",null,null,"ヤブカンゾウ","カフェンストロール"]
[null,null,null,null,null,null,null,null,null,null,null,null,null,null,"","",null,null,"ゆり根","カプタホール"]
[null,null,null,null,null,null,null,null,null,null,null,null,null,null,"","",null,null,"らっきょう","カプリロヒドロキサム酸"]
[null,null,null,null,null,null,null,null,null,null,null,null,null,null,"","",null,null,"食用ゆり","ガミスロマイシン"]
[null,null,null,null,null,null,null,null,null,null,null,null,null,null,"","",null,null,"にんにくの茎（冷凍）","カラゾロール"]
[null,null,null,null,null,null,null,null,null,null,null,null,null,null,"","",null,null,"その他のゆり科野菜（冷凍）","カルタップ"]
[null,null,null,null,null,null,null,null,null,null,null,null,null,null,"","",null,null,"葉たまねぎ（冷凍）","カルタップ、チオシクラム及びベンスルタップ"]
[null,null,null,null,null,null,null,null,null,null,null,null,null,null,"","",null,null,"にんじん","カルバドックス"]
[null,null,null,null,null,null,null,null,null,null,null,null,null,null,"","",null,null,"ミニキャロット","カルバドックス代謝物"]
[null,null,null,null,null,null,null,null,null,null,null,null,null,null,"","",null,null,"にんじん（冷凍）","カルバリル"]
[null,null,null,null,null,null,null,null,null,null,null,null,null,null,"","",null,null,"パースニップ","カルビンホス"]
[null,null,null,null,null,null,null,null,null,null,null,null,null,null,"","",null,null,"オランダボウフウ","カルフェントラゾン"]
[null,null,null,null,null,null,null,null,null,null,null,null,null,null,"","",null,null,"パースニップ（冷凍）","カルフェントラゾンエチル"]
[null,null,null,null,null,null,null,null,null,null,null,null,null,null,"","",null,null,"パセリの茎・葉","カルブチレート"]
[null,null,null,null,null,null,null,null,null,null,null,null,null,null,"","",null,null,"パセリの茎・葉（冷凍）","カルプロパミド"]
[null,null,null,null,null,null,null,null,null,null,null,null,null,null,"","",null,null,"パセリの種子","カルプロフェン"]
[null,null,null,null,null,null,null,null,null,null,null,null,null,null,"","",null,null,"セロリの茎・葉","カルベタミド"]
[null,null,null,null,null,null,null,null,null,null,null,null,null,null,"","",null,null,"セロリの茎・葉（冷凍）","カルベトシン"]
[null,null,null,null,null,null,null,null,null,null,null,null,null,null,"","",null,null,"みつば","カルベンダジム"]
[null,null,null,null,null,null,null,null,null,null,null,null,null,null,"","",null,null,"みつば（冷凍）","カルベンダジム、チオファネート、チオファネートメチル及びベノミル"]
[null,null,null,null,null,null,null,null,null,null,null,null,null,null,"","",null,null,"その他のせり科野菜","カルボキシン"]
[null,null,null,null,null,null,null,null,null,null,null,null,null,null,"","",null,null,"あしたば","カルボスルファン"]
[null,null,null,null,null,null,null,null,null,null,null,null,null,null,"","",null,null,"オオバコエンドロ","カルボフェノチオン"]
[null,null,null,null,null,null,null,null,null,null,null,null,null,null,"","",null,null,"せり","カルボフラン"]
[null,null,null,null,null,null,null,null,null,null,null,null,null,null,"","",null,null,"セルリアック","カンタキサンチン"]
[null,null,null,null,null,null,null,null,null,null,null,null,null,null,"","",null,null,"にんじんの葉","カンフェクロル"]
[null,null,null,null,null,null,null,null,null,null,null,null,null,null,"","",null,null,"ぼうふう","キザロホップＰテフリル"]
[null,null,null,null,null,null,null,null,null,null,null,null,null,null,"","",null,null,"その他のせり科野菜（冷凍）","キザロホップエチル"]
[null,null,null,null,null,null,null,null,null,null,null,null,null,null,"","",null,null,"オオバコエンドロ（冷凍）","キザロホップエチル及びキザロホップＰテフリル"]
[null,null,null,null,null,null,null,null,null,null,null,null,null,null,"","",null,null,"セルリアック（冷凍）","キシラジン"]
[null,null,null,null,null,null,null,null,null,null,null,null,null,null,"","",null,null,"せり（冷凍）","キシリルカルブ"]
[null,null,null,null,null,null,null,null,null,null,null,null,null,null,"","",null,null,"トマト","キタサマイシン"]
[null,null,null,null,null,null,null,null,null,null,null,null,null,null,"","",null,null,"ミニトマト","キナルホス"]
[null,null,null,null,null,null,null,null,null,null,null,null,null,null,"","",null,null,"トマト（冷凍）","キノキシフェン"]
[null,null,null,null,null,null,null,null,null,null,null,null,null,null,"","",null,null,"ミニトマト（冷凍）","キノクラミン"]
[null,null,null,null,null,null,null,null,null,null,null,null,null,null,"","",null,null,"ジャンボピーマン","キノフメリン"]
[null,null,null,null,null,null,null,null,null,null,null,null,null,null,"","",null,null,"ピーマン","キノメチオナート"]
[null,null,null,null,null,null,null,null,null,null,null,null,null,null,"","",null,null,"パプリカ","キャプタン"]
[null,null,null,null,null,null,null,null,null,null,null,null,null,null,"","",null,null,"パプリカ（冷凍）","キュウルア"]
[null,null,null,null,null,null,null,null,null,null,null,null,null,null,"","",null,null,"カラーピーマン","キンクロラック"]
[null,null,null,null,null,null,null,null,null,null,null,null,null,null,"","",null,null,"ピーマン（冷凍）","キントゼン"]
[null,null,null,null,null,null,null,null,null,null,null,null,null,null,"","",null,null,"なす","クマクロール"]
[null,null,null,null,null,null,null,null,null,null,null,null,null,null,"","",null,null,"なす（冷凍）","クマテトラリル"]
[null,null,null,null,null,null,null,null,null,null,null,null,null,null,"","",null,null,"その他のなす科野菜","クマホス"]
[null,null,null,null,null,null,null,null,null,null,null,null,null,null,"","",null,null,"青とうがらし","クミルロン"]
[null,null,null,null,null,null,null,null,null,null,null,null,null,null,"","",null,null,"甘長とうがらし","クラブラン酸"]
[null,null,null,null,null,null,null,null,null,null,null,null,null,null,"","",null,null,"かぐらなんばん","グリオジン"]
[null,null,null,null,null,null,null,null,null,null,null,null,null,null,"","",null,null,"きだちとうがらし","グリカルピラミド"]
[null,null,null,null,null,null,null,null,null,null,null,null,null,null,"","",null,null,"クコ","クリスタルバイオレット"]
[null,null,null,null,null,null,null,null,null,null,null,null,null,null,"","",null,null,"ししとう","グリセオフルビン"]
[null,null,null,null,null,null,null,null,null,null,null,null,null,null,"","",null,null,"とうがらし","グリチルリチン酸"]
[null,null,null,null,null,null,null,null,null,null,null,null,null,null,"","",null,null,"とうがらしの葉","グリホサート"]
[null,null,null,null,null,null,null,null,null,null,null,null,null,null,"","",null,null,"なんばん","グリホシン"]
[null,null,null,null,null,null,null,null,null,null,null,null,null,null,{"$f":"IF(D323=\"\",\"\",MATCH(D323,$S$2:$S$2488,0))","v":""},{"$f":"IF(H323=\"\",\"\",MATCH(H323,$T$2:$T$2472,0))","v":""},null,null,"ハバネロ","クリミジン"]
[null,null,null,null,null,null,null,null,null,null,null,null,null,null,"","",null,null,"パプリカ（香辛料として用いられるもの）","グルホシネート"]
[null,null,null,null,null,null,null,null,null,null,null,null,null,null,"","",null,null,"ハラペーニョ","クルホメート"]
[null,null,null,null,null,null,null,null,null,null,null,null,null,null,"","",null,null,"食用ほおずき","クレソキシムメチル"]
[null,null,null,null,null,null,null,null,null,null,null,null,null,null,"","",null,null,"青とうがらし（冷凍）","クレダジン"]
[null,null,null,null,null,null,null,null,null,null,null,null,null,null,"","",null,null,"とうがらし（冷凍）","クレトジム"]
[null,null,null,null,null,null,null,null,null,null,null,null,null,null,"","",null,null,"ししとう（冷凍）","クレンブテロール"]
[null,null,null,null,null,null,null,null,null,null,null,null,null,null,"","",null,null,"その他のなす科野菜（冷凍）","クロキサシリン"]
[null,null,null,null,null,null,null,null,null,null,null,null,null,null,"","",null,null,"ガーキン","クロキシホナック"]
[null,null,null,null,null,null,null,null,null,null,null,null,null,null,"","",null,null,"きゅうり","クロキントセット"]
[null,null,null,null,null,null,null,null,null,null,null,null,null,null,"","",null,null,"きゅうり（冷凍）","クロキントセットメキシル"]
[null,null,null,null,null,null,null,null,null,null,null,null,null,null,"","",null,null,"ウインタースカッシュ","クロサンテル"]
[null,null,null,null,null,null,null,null,null,null,null,null,null,null,"","",null,null,"かぼちゃ","クロジナホップ酸"]
[null,null,null,null,null,null,null,null,null,null,null,null,null,null,"","",null,null,"サマ－スカッシュ","クロジナホッププロパルギル"]
[null,null,null,null,null,null,null,null,null,null,null,null,null,null,"","",null,null,"スカッシュ","クロステボル"]
[null,null,null,null,null,null,null,null,null,null,null,null,null,null,"","",null,null,"ズッキーニ","クロゾリネート"]
[null,null,null,null,null,null,null,null,null,null,null,null,null,null,"","",null,null,"そうめんかぼちゃ","クロチアニジン"]
[null,null,null,null,null,null,null,null,null,null,null,null,null,null,"","",null,null,"金糸瓜","クロチゾール"]
[null,null,null,null,null,null,null,null,null,null,null,null,null,null,"","",null,null,"かぼちゃ（冷凍）","クロピドール"]
[null,null,null,null,null,null,null,null,null,null,null,null,null,null,"","",null,null,"あおうり","クロピラリド"]
[null,null,null,null,null,null,null,null,null,null,null,null,null,null,"","",null,null,"しろうり","クロフェンセット"]
[null,null,null,null,null,null,null,null,null,null,null,null,null,null,"","",null,null,"しろうり（冷凍）","クロフェンテジン"]
[null,null,null,null,null,null,null,null,null,null,null,null,null,null,"","",null,null,"すいか","クロフェンテジン代謝物"]
[null,null,null,null,null,null,null,null,null,null,null,null,null,null,"","",null,null,"すいかの種","クロプロップ"]
[null,null,null,null,null,null,null,null,null,null,null,null,null,null,"","",null,null,"すいか（冷凍）","クロマゾン"]
[null,null,null,null,null,null,null,null,null,null,null,null,null,null,"","",null,null,"すいかの種（冷凍）","クロマフェノジド"]
[null,null,null,null,null,null,null,null,null,null,null,null,null,null,"","",null,null,"カンタロープ","クロメトキシニル"]
[null,null,null,null,null,null,null,null,null,null,null,null,null,null,"","",null,null,"ハミウリ","クロメトキシフェン"]
[null,null,null,null,null,null,null,null,null,null,null,null,null,null,"","",null,null,"マスクメロン","クロメプロップ"]
[null,null,null,null,null,null,null,null,null,null,null,null,null,null,"","",null,null,"メロン","クロメプロップ酸"]
[null,null,null,null,null,null,null,null,null,null,null,null,null,null,"","",null,null,"ハネジューメロン","クロラニル"]
[null,null,null,null,null,null,null,null,null,null,null,null,null,null,"","",null,null,"メロン類果実","クロラムフェニコール"]
[null,null,null,null,null,null,null,null,null,null,null,null,null,null,"","",null,null,"メロン類果実（冷凍）","クロラムベン"]
[null,null,null,null,null,null,null,null,null,null,null,null,null,null,"","",null,null,"まくわうり","クロランスラム"]
[null,null,null,null,null,null,null,null,null,null,null,null,null,null,"","",null,null,"まくわうり（冷凍）","クロランスラムメチル"]
[null,null,null,null,null,null,null,null,null,null,null,null,null,null,"","",null,null,"その他のうり科野菜","クロラントラニリプロール"]
[null,null,null,null,null,null,null,null,null,null,null,null,null,null,"","",null,null,"ゴーヤ","クロリダゾン"]
[null,null,null,null,null,null,null,null,null,null,null,null,null,null,"","",null,null,"すいかの皮","クロリムロンエチル"]
[null,null,null,null,null,null,null,null,null,null,null,null,null,null,"","",null,null,"ズッキーニの花","クロルエトキシホス"]
[null,null,null,null,null,null,null,null,null,null,null,null,null,null,"","",null,null,"とうがん","クロルジメホルム"]
[null,null,null,null,null,null,null,null,null,null,null,null,null,null,"","",null,null,"はやとうり","クロルスルフロン"]
[null,null,null,null,null,null,null,null,null,null,null,null,null,null,"","",null,null,"ひょうたん","クロルスロン"]
[null,null,null,null,null,null,null,null,null,null,null,null,null,null,"","",null,null,"へちま","クロルタールジメチル"]
[null,null,null,null,null,null,null,null,null,null,null,null,null,null,"","",null,null,"未成熟すいか","クロルチアミド"]
[null,null,null,null,null,null,null,null,null,null,null,null,null,null,"","",null,null,"ゆうがお","クロルチオホス"]
[null,null,null,null,null,null,null,null,null,null,null,null,null,null,"","",null,null,"ゴーヤ（冷凍）","クロルデコン"]
[null,null,null,null,null,null,null,null,null,null,null,null,null,null,"","",null,null,"その他のうり科野菜（冷凍）","クロルテトラサイクリン"]
[null,null,null,null,null,null,null,null,null,null,null,null,null,null,"","",null,null,"ほうれんそう","クロルデン"]
[null,null,null,null,null,null,null,null,null,null,null,null,null,null,"","",null,null,"ほうれんそう（冷凍）","クロルニトロフェン"]
[null,null,null,null,null,null,null,null,null,null,null,null,null,null,"","",null,null,"たけのこ","クロルニトロフェンアミノ体"]
[null,null,null,null,null,null,null,null,null,null,null,null,null,null,"","",null,null,"たけのこ（冷凍）","クロルピクリン"]
[null,null,null,null,null,null,null,null,null,null,null,null,null,null,"","",null,null,"オクラ","クロルビシクレン"]
[null,null,null,null,null,null,null,null,null,null,null,null,null,null,"","",null,null,"オクラ（冷凍）","クロルピリホス"]
[null,null,null,null,null,null,null,null,null,null,null,null,null,null,"","",null,null,"しょうが","クロルピリホスオキソン"]
[null,null,null,null,null,null,null,null,null,null,null,null,null,null,"","",null,null,"葉しょうが","クロルピリホスメチル"]
[null,null,null,null,null,null,null,null,null,null,null,null,null,null,"","",null,null,"しょうが（冷凍）","クロルフェナック"]
[null,null,null,null,null,null,null,null,null,null,null,null,null,null,"","",null,null,"未成熟えんどう","クロルフェナピル"]
[null,null,null,null,null,null,null,null,null,null,null,null,null,null,"","",null,null,"グリーンピース","クロルフェネトール"]
[null,null,null,null,null,null,null,null,null,null,null,null,null,null,"","",null,null,"さやえんどう","４－クロルフェノキシ酢酸"]
[null,null,null,null,null,null,null,null,null,null,null,null,null,null,"","",null,null,"きぬさや","クロルフェンスルヒド"]
[null,null,null,null,null,null,null,null,null,null,null,null,null,null,"","",null,null,"未成熟えんどう（冷凍）","クロルフェンソン"]
[null,null,null,null,null,null,null,null,null,null,null,null,null,null,"","",null,null,"グリーンピース（冷凍）","クロルフェンビンホス"]
[null,null,null,null,null,null,null,null,null,null,null,null,null,null,"","",null,null,"未成熟いんげん","クロルフタリム"]
[null,null,null,null,null,null,null,null,null,null,null,null,null,null,"","",null,null,"モロッコインゲン","クロルブファム"]
[null,null,null,null,null,null,null,null,null,null,null,null,null,null,{"$f":"IF(D387=\"\",\"\",MATCH(D387,$S$2:$S$2488,0))","v":""},{"$f":"IF(H387=\"\",\"\",MATCH(H387,$T$2:$T$2472,0))","v":""},null,null,"未成熟いんげん（冷凍）","クロルフルアズロン"]
[null,null,null,null,null,null,null,null,null,null,null,null,null,null,"","",null,null,"えだまめ","クロルプロピレート"]
[null,null,null,null,null,null,null,null,null,null,null,null,null,null,"","",null,null,"えだまめ（冷凍）","クロルプロファム"]
[null,null,null,null,null,null,null,null,null,null,null,null,null,null,"","",null,null,"マッシュルーム","クロルプロマジン"]
[null,null,null,null,null,null,null,null,null,null,null,null,null,null,"","",null,null,"マッシュルーム（冷凍）","クロルブロムロン"]
[null,null,null,null,null,null,null,null,null,null,null,null,null,null,"","",null,null,"しいたけ","クロルヘキシジン"]
[null,null,null,null,null,null,null,null,null,null,null,null,null,null,"","",null,null,"しいたけ（冷凍）","クロルベンシド"]
[null,null,null,null,null,null,null,null,null,null,null,null,null,null,"","",null,null,"その他のきのこ類","クロルマジノン"]
[null,null,null,null,null,null,null,null,null,null,null,null,null,null,"","",null,null,"アガリクス","クロルメコート"]
[null,null,null,null,null,null,null,null,null,null,null,null,null,null,"","",null,null,"あわびたけ","クロルメタンスルホンアミド"]
[null,null,null,null,null,null,null,null,null,null,null,null,null,null,"","",null,null,"あんずたけ","クロルメホス"]
[null,null,null,null,null,null,null,null,null,null,null,null,null,null,"","",null,null,"えのきだけ","クロロクスロン"]
[null,null,null,null,null,null,null,null,null,null,null,null,null,null,"","",null,null,"エリンギ","クロロタロニル"]
[null,null,null,null,null,null,null,null,null,null,null,null,null,null,"","",null,null,"きくらげ","クロロトルロン"]
[null,null,null,null,null,null,null,null,null,null,null,null,null,null,"","",null,null,"サルノコシカケ","クロロネブ"]
[null,null,null,null,null,null,null,null,null,null,null,null,null,null,"","",null,null,"しめじ","クロロピクリン"]
[null,null,null,null,null,null,null,null,null,null,null,null,null,null,"","",null,null,"冬虫夏草","クロロファシノン"]
[null,null,null,null,null,null,null,null,null,null,null,null,null,null,"","",null,null,"トリュフ","クロロベンジレート"]
[null,null,null,null,null,null,null,null,null,null,null,null,null,null,"","",null,null,"なめこ","ケトトリクラベンダゾール"]
[null,null,null,null,null,null,null,null,null,null,null,null,null,null,"","",null,null,"はなびらたけ","ケトプロフェン"]
[null,null,null,null,null,null,null,null,null,null,null,null,null,null,"","",null,null,"ひらたけ","ケベマイシン"]
[null,null,null,null,null,null,null,null,null,null,null,null,null,null,"","",null,null,"ぶなしめじ","ゲンタマイシン"]
[null,null,null,null,null,null,null,null,null,null,null,null,null,null,"","",null,null,"ぶなはりたけ","ゲンチアナバイオレット"]
[null,null,null,null,null,null,null,null,null,null,null,null,null,null,"","",null,null,"まいたけ","コドレルア"]
[null,null,null,null,null,null,null,null,null,null,null,null,null,null,"","",null,null,"まつたけ","コリスチン"]
[null,null,null,null,null,null,null,null,null,null,null,null,null,null,"","",null,null,"まんねんたけ","コルチコステロン"]
[null,null,null,null,null,null,null,null,null,null,null,null,null,null,"","",null,null,"めしまこぶ","コロキソン"]
[null,null,null,null,null,null,null,null,null,null,null,null,null,null,"","",null,null,"やまどりたけ","サイネピリン"]
[null,null,null,null,null,null,null,null,null,null,null,null,null,null,"","",null,null,"やまぶしたけ","酢酸ジノセブ"]
[null,null,null,null,null,null,null,null,null,null,null,null,null,null,"","",null,null,"霊芝","酢酸イソ吉草酸タイロシン"]
[null,null,null,null,null,null,null,null,null,null,null,null,null,null,"","",null,null,"まつたけ（冷凍）","酢酸ジノテルブ"]
[null,null,null,null,null,null,null,null,null,null,null,null,null,null,"","",null,null,"その他のきのこ類（冷凍）","酢酸トレンボロン"]
[null,null,null,null,null,null,null,null,null,null,null,null,null,null,"","",null,null,"エリンギ（冷凍）","酢酸メレンゲステロール"]
[null,null,null,null,null,null,null,null,null,null,null,null,null,null,"","",null,null,"しめじ（冷凍）","サフルフェナシル"]
[null,null,null,null,null,null,null,null,null,null,null,null,null,null,"","",null,null,"その他の野菜","サラフロキサシン"]
[null,null,null,null,null,null,null,null,null,null,null,null,null,null,"","",null,null,"あけび(若芽)","サリチオン"]
[null,null,null,null,null,null,null,null,null,null,null,null,null,null,"","",null,null,"あまちゃ（コウキ）","サリノマイシン"]
[null,null,null,null,null,null,null,null,null,null,null,null,null,null,"","",null,null,"アマメシバ","酸化アルベンダゾール"]
[null,null,null,null,null,null,null,null,null,null,null,null,null,null,"","",null,null,"うこぎ","酸化フェンブタスズ"]
[null,null,null,null,null,null,null,null,null,null,null,null,null,null,"","",null,null,"うど","酸化プロピレン"]
[null,null,null,null,null,null,null,null,null,null,null,null,null,null,"","",null,null,"梅の花","シアゾファミド"]
[null,null,null,null,null,null,null,null,null,null,null,null,null,null,"","",null,null,"ウラジロガシの葉","シアナジン"]
[null,null,null,null,null,null,null,null,null,null,null,null,null,null,"","",null,null,"エケベリア","シアノフェンホス"]
[null,null,null,null,null,null,null,null,null,null,null,null,null,null,"","",null,null,"えごま","シアノホス"]
[null,null,null,null,null,null,null,null,null,null,null,null,null,null,"","",null,null,"エンジュの葉","ジアフェンチウロン"]
[null,null,null,null,null,null,null,null,null,null,null,null,null,null,"","",null,null,"おうぎ","ジアベリジン"]
[null,null,null,null,null,null,null,null,null,null,null,null,null,null,"","",null,null,"おかひじき","ジアリホール"]
[null,null,null,null,null,null,null,null,null,null,null,null,null,null,"","",null,null,"オタネニンジン","シアン化ナトリウム"]
[null,null,null,null,null,null,null,null,null,null,null,null,null,null,"","",null,null,"オリーブの葉","シアン化水素"]
[null,null,null,null,null,null,null,null,null,null,null,null,null,null,"","",null,null,"ギムネマ","シアントラニリプロール"]
[null,null,null,null,null,null,null,null,null,null,null,null,null,null,"","",null,null,"くさそてつ","２，６－ジイソプロピルナフタレン"]
[null,null,null,null,null,null,null,null,null,null,null,null,null,null,"","",null,null,"クズ","ジウロン"]
[null,null,null,null,null,null,null,null,null,null,null,null,null,null,"","",null,null,"クズイモ","ジエチルスチルベストロール"]
[null,null,null,null,null,null,null,null,null,null,null,null,null,null,"","",null,null,"くわい","ジエチルトルアミド"]
[null,null,null,null,null,null,null,null,null,null,null,null,null,null,"","",null,null,"高麗人参","ジエトフェンカルブ"]
[null,null,null,null,null,null,null,null,null,null,null,null,null,null,"","",null,null,"こごみ","ジエノクロル"]
[null,null,null,null,null,null,null,null,null,null,null,null,null,null,"","",null,null,"コンフリー","シエノピラフェン"]
[null,null,null,null,null,null,null,null,null,null,null,null,null,null,"","",null,null,"桜の花","ジオキサカルブ"]
[null,null,null,null,null,null,null,null,null,null,null,null,null,null,"","",null,null,"桜葉（さくらば）","ジオキサチオン"]
[null,null,null,null,null,null,null,null,null,null,null,null,null,null,"","",null,null,"さといも(葉柄）","ジオキサベンゾフォス"]
[null,null,null,null,null,null,null,null,null,null,null,null,null,null,"","",null,null,"さといもの葉","ジオフェノラン"]
[null,null,null,null,null,null,null,null,null,null,null,null,null,null,"","",null,null,"サフランのおしべ","ジカンバ"]
[null,null,null,null,null,null,null,null,null,null,null,null,null,null,"","",null,null,"サボテンの果肉","ジクラズリル"]
[null,null,null,null,null,null,null,null,null,null,null,null,null,null,"","",null,null,"シャクヤク","シクラニリド"]
[null,null,null,null,null,null,null,null,null,null,null,null,null,null,{"$f":"IF(D451=\"\",\"\",MATCH(D451,$S$2:$S$2488,0))","v":""},{"$f":"IF(H451=\"\",\"\",MATCH(H451,$T$2:$T$2472,0))","v":""},null,null,"じゅんさい","シクラニリプロール"]
[null,null,null,null,null,null,null,null,null,null,null,null,null,null,"","",null,null,"ずいき","シクロエート"]
[null,null,null,null,null,null,null,null,null,null,null,null,null,null,"","",null,null,"ぜんまい","ジクロキサシリン"]
[null,null,null,null,null,null,null,null,null,null,null,null,null,null,"","",null,null,"たらの芽","シクロキシジム"]
[null,null,null,null,null,null,null,null,null,null,null,null,null,null,"","",null,null,"チョロギ","ジクロシメット"]
[null,null,null,null,null,null,null,null,null,null,null,null,null,null,"","",null,null,"つるむらさき","ジクロスラム"]
[null,null,null,null,null,null,null,null,null,null,null,null,null,null,"","",null,null,"甜茶","シクロスルファムロン"]
[null,null,null,null,null,null,null,null,null,null,null,null,null,null,"","",null,null,"豆苗","ジクロゾリン"]
[null,null,null,null,null,null,null,null,null,null,null,null,null,null,"","",null,null,"杜仲の葉","ジクロトホス"]
[null,null,null,null,null,null,null,null,null,null,null,null,null,null,"","",null,null,"ビート","シクロピリモレート"]
[null,null,null,null,null,null,null,null,null,null,null,null,null,null,"","",null,null,"フェネグリークの葉","ジクロフェンチオン"]
[null,null,null,null,null,null,null,null,null,null,null,null,null,null,"","",null,null,"フェネグリークの種子","ジクロブトラゾール"]
[null,null,null,null,null,null,null,null,null,null,null,null,null,null,"","",null,null,"ふだんそう","ジクロフルアニド"]
[null,null,null,null,null,null,null,null,null,null,null,null,null,null,"","",null,null,"ブドウの葉","シクロプロトリン"]
[null,null,null,null,null,null,null,null,null,null,null,null,null,null,"","",null,null,"フユアオイの葉","シクロヘキシミド"]
[null,null,null,null,null,null,null,null,null,null,null,null,null,null,"","",null,null,"朴の葉","ジクロベニル"]
[null,null,null,null,null,null,null,null,null,null,null,null,null,null,"","",null,null,"マコモの葉・茎（まこもたけ）","ジクロベンチアゾクス"]
[null,null,null,null,null,null,null,null,null,null,null,null,null,null,"","",null,null,"松の葉","ジクロホップエチル"]
[null,null,null,null,null,null,null,null,null,null,null,null,null,null,"","",null,null,"マッペ","ジクロホップメチル"]
[null,null,null,null,null,null,null,null,null,null,null,null,null,null,"","",null,null,"みかんの葉","ジクロメジン"]
[null,null,null,null,null,null,null,null,null,null,null,null,null,null,"","",null,null,"未成熟ささげ","ジクロラン"]
[null,null,null,null,null,null,null,null,null,null,null,null,null,null,"","",null,null,"未成熟そら豆","ジクロルプロップ"]
[null,null,null,null,null,null,null,null,null,null,null,null,null,null,"","",null,null,"未成熟そら豆（冷凍）","ジクロルボス"]
[null,null,null,null,null,null,null,null,null,null,null,null,null,null,"","",null,null,"未成熟ふじ豆","ジクロルボス及びナレド"]
[null,null,null,null,null,null,null,null,null,null,null,null,null,null,"","",null,null,"未成熟なた豆","ジクロルミド"]
[null,null,null,null,null,null,null,null,null,null,null,null,null,null,"","",null,null,"むかご（やまのいものむかご）","ジクロロイソエバニニック酸"]
[null,null,null,null,null,null,null,null,null,null,null,null,null,null,"","",null,null,"もやし","ジクロロイソシアヌル酸"]
[null,null,null,null,null,null,null,null,null,null,null,null,null,null,"","",null,null,"モロヘイヤ","１，１－ジクロロ－２，２－ビス（４－エチルフェニル）エタン"]
[null,null,null,null,null,null,null,null,null,null,null,null,null,null,"","",null,null,"ヤングコーン","１－（２，４－ジクロロフェニル）－２－（１Ｈ－イミダゾール－１－イル）－１－エタノール"]
[null,null,null,null,null,null,null,null,null,null,null,null,null,null,"","",null,null,"ルイボス","１，２－ジクロロプロパン"]
[null,null,null,null,null,null,null,null,null,null,null,null,null,null,"","",null,null,"れんこん","１，３－ジクロロプロペン"]
[null,null,null,null,null,null,null,null,null,null,null,null,null,null,"","",null,null,"レンズ豆（若さや付き）","４，４’－ジクロロベンゾフェノン"]
[null,null,null,null,null,null,null,null,null,null,null,null,null,null,"","",null,null,"わらび","ジクロロメゾチアズ"]
[null,null,null,null,null,null,null,null,null,null,null,null,null,null,"","",null,null,"くわい（冷凍）","ジクロン"]
[null,null,null,null,null,null,null,null,null,null,null,null,null,null,"","",null,null,"その他の野菜（冷凍）","ジクワット"]
[null,null,null,null,null,null,null,null,null,null,null,null,null,null,"","",null,null,"モロヘイヤ（冷凍）","ジクワットジブロミド"]
[null,null,null,null,null,null,null,null,null,null,null,null,null,null,"","",null,null,"れんこん（冷凍）","ジコホール"]
[null,null,null,null,null,null,null,null,null,null,null,null,null,null,"","",null,null,"えごま（冷凍）","ジコホール分解物"]
[null,null,null,null,null,null,null,null,null,null,null,null,null,null,"","",null,null,"豆苗（冷凍）","ジシクラニル"]
[null,null,null,null,null,null,null,null,null,null,null,null,null,null,"","",null,null,"もやし（冷凍）","シスノナクロル"]
[null,null,null,null,null,null,null,null,null,null,null,null,null,null,"","",null,null,"たらの芽（冷凍）","ジスルホトン"]
[null,null,null,null,null,null,null,null,null,null,null,null,null,null,"","",null,null,"未成熟ささげ（冷凍）","ジタリムホス"]
[null,null,null,null,null,null,null,null,null,null,null,null,null,null,"","",null,null,"ビート（冷凍）","ジチアノン"]
[null,null,null,null,null,null,null,null,null,null,null,null,null,null,"","",null,null,"つるむらさき（冷凍）","ジチオカルバメート"]
[null,null,null,null,null,null,null,null,null,null,null,null,null,null,"","",null,null,"みかん","ジチオピル"]
[null,null,null,null,null,null,null,null,null,null,null,null,null,null,"","",null,null,"みかん（冷凍）","シデュロン"]
[null,null,null,null,null,null,null,null,null,null,null,null,null,null,"","",null,null,"あまなつ","ジニコナゾール"]
[null,null,null,null,null,null,null,null,null,null,null,null,null,null,"","",null,null,"なつみかん","ジニトルミド"]
[null,null,null,null,null,null,null,null,null,null,null,null,null,null,"","",null,null,"なつみかん（冷凍）","４，６－ジニトロ－ｏ－クレゾール"]
[null,null,null,null,null,null,null,null,null,null,null,null,null,null,"","",null,null,"なつみかんの外果皮","シニドンエチル"]
[null,null,null,null,null,null,null,null,null,null,null,null,null,null,"","",null,null,"なつみかんの果実全体","ジネブ"]
[null,null,null,null,null,null,null,null,null,null,null,null,null,null,"","",null,null,"レモン","ジノカップ"]
[null,null,null,null,null,null,null,null,null,null,null,null,null,null,"","",null,null,"レモンの果皮","シノスルフロン"]
[null,null,null,null,null,null,null,null,null,null,null,null,null,null,"","",null,null,"レモン（冷凍）","ジノセブ"]
[null,null,null,null,null,null,null,null,null,null,null,null,null,null,"","",null,null,"オレンジ","ジノテフラン"]
[null,null,null,null,null,null,null,null,null,null,null,null,null,null,"","",null,null,"オレンジの果皮","ジノテルブ"]
[null,null,null,null,null,null,null,null,null,null,null,null,null,null,"","",null,null,"ネーブルオレンジ","ジノプロスト"]
[null,null,null,null,null,null,null,null,null,null,null,null,null,null,"","",null,null,"オレンジ（冷凍）","ジノホス"]
[null,null,null,null,null,null,null,null,null,null,null,null,null,null,"","",null,null,"グレープフルーツ","シハロトリン"]
[null,null,null,null,null,null,null,null,null,null,null,null,null,null,"","",null,null,"グレープフルーツ（冷凍）","シハロホップブチル"]
[null,null,null,null,null,null,null,null,null,null,null,null,null,null,"","",null,null,"ライム","ジヒドロストレプトマイシン"]
[null,null,null,null,null,null,null,null,null,null,null,null,null,null,"","",null,null,"ライム（冷凍）","ジヒドロストレプトマイシン及びストレプトマイシン"]
[null,null,null,null,null,null,null,null,null,null,null,null,null,null,"","",null,null,"その他のかんきつ類果実","ジフェナミド"]
[null,null,null,null,null,null,null,null,null,null,null,null,null,null,"","",null,null,"いよかん","ジフェニル"]
[null,null,null,null,null,null,null,null,null,null,null,null,null,null,{"$f":"IF(D515=\"\",\"\",MATCH(D515,$S$2:$S$2488,0))","v":""},{"$f":"IF(H515=\"\",\"\",MATCH(H515,$T$2:$T$2472,0))","v":""},null,null,"オロブロンコ","ジフェニルアミン"]
[null,null,null,null,null,null,null,null,null,null,null,null,null,null,"","",null,null,"カクテルフルーツ","ジフェノコナゾール"]
[null,null,null,null,null,null,null,null,null,null,null,null,null,null,"","",null,null,"かぼす","シフェノトリン"]
[null,null,null,null,null,null,null,null,null,null,null,null,null,null,"","",null,null,"カラマンシー","ジフェンゾコート"]
[null,null,null,null,null,null,null,null,null,null,null,null,null,null,"","",null,null,"カラマンダリン","ジブチルサクシネート"]
[null,null,null,null,null,null,null,null,null,null,null,null,null,null,"","",null,null,"カラ","ジブチルヒドロキシトルエン"]
[null,null,null,null,null,null,null,null,null,null,null,null,null,null,"","",null,null,"きんかん","ジフラゾン"]
[null,null,null,null,null,null,null,null,null,null,null,null,null,null,"","",null,null,"クレメンタイン","シフルトリン"]
[null,null,null,null,null,null,null,null,null,null,null,null,null,null,"","",null,null,"小夏","シフルフェナミド"]
[null,null,null,null,null,null,null,null,null,null,null,null,null,null,"","",null,null,"サガマンダリン","ジフルフェニカン"]
[null,null,null,null,null,null,null,null,null,null,null,null,null,null,"","",null,null,"ザボン","ジフルフェンゾピル"]
[null,null,null,null,null,null,null,null,null,null,null,null,null,null,"","",null,null,"サマーフレッシュ","ジフルベンズロン"]
[null,null,null,null,null,null,null,null,null,null,null,null,null,null,"","",null,null,"サンフルーツ","シフルメトフェン"]
[null,null,null,null,null,null,null,null,null,null,null,null,null,null,"","",null,null,"さんぼうかん（三宝柑）","ジフロキサシン"]
[null,null,null,null,null,null,null,null,null,null,null,null,null,null,"","",null,null,"シークァーサー","シプロコナゾール"]
[null,null,null,null,null,null,null,null,null,null,null,null,null,null,"","",null,null,"シトロン","シプロジニル"]
[null,null,null,null,null,null,null,null,null,null,null,null,null,null,"","",null,null,"スィーティー","ジプロペトリン"]
[null,null,null,null,null,null,null,null,null,null,null,null,null,null,"","",null,null,"すだち","１，２－ジブロモ－３－クロロプロパン"]
[null,null,null,null,null,null,null,null,null,null,null,null,null,null,"","",null,null,"セミノール","１，２－ジブロモエタン"]
[null,null,null,null,null,null,null,null,null,null,null,null,null,null,"","",null,null,"ダイダイ","シヘキサチン"]
[null,null,null,null,null,null,null,null,null,null,null,null,null,null,"","",null,null,"たんかん","シペルメトリン"]
[null,null,null,null,null,null,null,null,null,null,null,null,null,null,"","",null,null,"タンジェリン","ジベレリン"]
[null,null,null,null,null,null,null,null,null,null,null,null,null,null,"","",null,null,"でこぽん","脂肪族アルコールエトキシレート"]
[null,null,null,null,null,null,null,null,null,null,null,null,null,null,"","",null,null,"はっさく","シマジン"]
[null,null,null,null,null,null,null,null,null,null,null,null,null,null,"","",null,null,"はるみみかん","ジミナゼン"]
[null,null,null,null,null,null,null,null,null,null,null,null,null,null,"","",null,null,"ぶんたん","シメコナゾール"]
[null,null,null,null,null,null,null,null,null,null,null,null,null,null,"","",null,null,"平兵衛酢（へべす）","ジメスルファゼット"]
[null,null,null,null,null,null,null,null,null,null,null,null,null,null,"","",null,null,"ぽんかん","ジメタメトリン"]
[null,null,null,null,null,null,null,null,null,null,null,null,null,null,"","",null,null,"ぼんたん","ジメチピン"]
[null,null,null,null,null,null,null,null,null,null,null,null,null,null,"","",null,null,"マーコット","１，４－ジメチルナフタレン"]
[null,null,null,null,null,null,null,null,null,null,null,null,null,null,"","",null,null,"マンダリン","ジメチリモール"]
[null,null,null,null,null,null,null,null,null,null,null,null,null,null,"","",null,null,"メローゴールド","ジメチルアンバム"]
[null,null,null,null,null,null,null,null,null,null,null,null,null,null,"","",null,null,"ミネオラ","ジメチルビンホス"]
[null,null,null,null,null,null,null,null,null,null,null,null,null,null,"","",null,null,"ゆず","ジメテナミド"]
[null,null,null,null,null,null,null,null,null,null,null,null,null,null,"","",null,null,"ゆずの果皮","ジメトエート"]
[null,null,null,null,null,null,null,null,null,null,null,null,null,null,"","",null,null,"伊予柑","ジメトモルフ"]
[null,null,null,null,null,null,null,null,null,null,null,null,null,null,"","",null,null,"河内晩柑","ジメトリダゾール"]
[null,null,null,null,null,null,null,null,null,null,null,null,null,null,"","",null,null,"清見","シメトリン"]
[null,null,null,null,null,null,null,null,null,null,null,null,null,null,"","",null,null,"天草","ジメピペレート"]
[null,null,null,null,null,null,null,null,null,null,null,null,null,null,"","",null,null,"日向夏","シモキサニル"]
[null,null,null,null,null,null,null,null,null,null,null,null,null,null,"","",null,null,"不知火","臭化メチル"]
[null,null,null,null,null,null,null,null,null,null,null,null,null,null,"","",null,null,"たんかん（冷凍）","臭化プロパルギル"]
[null,null,null,null,null,null,null,null,null,null,null,null,null,null,"","",null,null,"ぽんかん（冷凍）","臭素"]
[null,null,null,null,null,null,null,null,null,null,null,null,null,null,"","",null,null,"きんかん（冷凍）","ジョサマイシン"]
[null,null,null,null,null,null,null,null,null,null,null,null,null,null,"","",null,null,"その他のかんきつ類果実（冷凍）","シラフルオフェン"]
[null,null,null,null,null,null,null,null,null,null,null,null,null,null,"","",null,null,"クラブアップル","ジラム"]
[null,null,null,null,null,null,null,null,null,null,null,null,null,null,"","",null,null,"りんご","シリロシド"]
[null,null,null,null,null,null,null,null,null,null,null,null,null,null,"","",null,null,"りんご（冷凍）","ジルパテロール"]
[null,null,null,null,null,null,null,null,null,null,null,null,null,null,"","",null,null,"中国なし","シロマジン"]
[null,null,null,null,null,null,null,null,null,null,null,null,null,null,"","",null,null,"日本なし","シンメチリン"]
[null,null,null,null,null,null,null,null,null,null,null,null,null,null,"","",null,null,"日本なし（冷凍）","スエップ"]
[null,null,null,null,null,null,null,null,null,null,null,null,null,null,"","",null,null,"西洋なし","ストレプトマイシン"]
[null,null,null,null,null,null,null,null,null,null,null,null,null,null,"","",null,null,"西洋なし（冷凍）","スパルフロキサシン"]
[null,null,null,null,null,null,null,null,null,null,null,null,null,null,"","",null,null,"マルメロ","スピネトラム"]
[null,null,null,null,null,null,null,null,null,null,null,null,null,null,"","",null,null,"マルメロ（冷凍）","スピノサド"]
[null,null,null,null,null,null,null,null,null,null,null,null,null,null,"","",null,null,"びわ","スピノシンＡ"]
[null,null,null,null,null,null,null,null,null,null,null,null,null,null,"","",null,null,"びわ（冷凍）","スピノシンＤ"]
[null,null,null,null,null,null,null,null,null,null,null,null,null,null,"","",null,null,"もも","スピラマイシン"]
[null,null,null,null,null,null,null,null,null,null,null,null,null,null,"","",null,null,"もも（冷凍）","スピロキサミン"]
[null,null,null,null,null,null,null,null,null,null,null,null,null,null,"","",null,null,"ネクタリン","スピロジクロフェン"]
[null,null,null,null,null,null,null,null,null,null,null,null,null,null,"","",null,null,"ネクタリン（冷凍）","スピロテトラマト"]
[null,null,null,null,null,null,null,null,null,null,null,null,null,null,"","",null,null,"アプリコット","スピロメシフェン"]
[null,null,null,null,null,null,null,null,null,null,null,null,null,null,"","",null,null,"あんず","スペクチノマイシン"]
[null,null,null,null,null,null,null,null,null,null,null,null,null,null,"","",null,null,"あんず（冷凍）","スルファエトキシピリダジン"]
[null,null,null,null,null,null,null,null,null,null,null,null,null,null,{"$f":"IF(D579=\"\",\"\",MATCH(D579,$S$2:$S$2488,0))","v":""},{"$f":"IF(H579=\"\",\"\",MATCH(H579,$T$2:$T$2472,0))","v":""},null,null,"すもも","スルファキノキサリン"]
[null,null,null,null,null,null,null,null,null,null,null,null,null,null,"","",null,null,"プラム","スルファグアニジン"]
[null,null,null,null,null,null,null,null,null,null,null,null,null,null,"","",null,null,"プルーン","スルファクロルピリダジン"]
[null,null,null,null,null,null,null,null,null,null,null,null,null,null,"","",null,null,"すもも（冷凍）","スルファジアジン"]
[null,null,null,null,null,null,null,null,null,null,null,null,null,null,"","",null,null,"うめ","スルファジミジン"]
[null,null,null,null,null,null,null,null,null,null,null,null,null,null,"","",null,null,"うめ（冷凍）","スルファジメトキシン"]
[null,null,null,null,null,null,null,null,null,null,null,null,null,null,"","",null,null,"おうとう","スルファセタミド"]
[null,null,null,null,null,null,null,null,null,null,null,null,null,null,"","",null,null,"チェリー","スルファチアゾール"]
[null,null,null,null,null,null,null,null,null,null,null,null,null,null,"","",null,null,"おうとう（冷凍）","スルファドキシン"]
[null,null,null,null,null,null,null,null,null,null,null,null,null,null,"","",null,null,"いちご","スルファトロキサゾール"]
[null,null,null,null,null,null,null,null,null,null,null,null,null,null,"","",null,null,"野苺","スルファニトラン"]
[null,null,null,null,null,null,null,null,null,null,null,null,null,null,"","",null,null,"いちご（冷凍）","スルファニルアミド"]
[null,null,null,null,null,null,null,null,null,null,null,null,null,null,"","",null,null,"ラズベリー","スルファピリジン"]
[null,null,null,null,null,null,null,null,null,null,null,null,null,null,"","",null,null,"ラズベリー（冷凍）","スルファブロモメタジンナトリウム"]
[null,null,null,null,null,null,null,null,null,null,null,null,null,null,"","",null,null,"ブラックベリー","スルファベンズアミド"]
[null,null,null,null,null,null,null,null,null,null,null,null,null,null,"","",null,null,"ブラックベリー（冷凍）","スルファメチゾール"]
[null,null,null,null,null,null,null,null,null,null,null,null,null,null,"","",null,null,"ブルーベリー","スルファメトキサゾール"]
[null,null,null,null,null,null,null,null,null,null,null,null,null,null,"","",null,null,"ブルーベリー（冷凍）","スルファメトキシジアジン"]
[null,null,null,null,null,null,null,null,null,null,null,null,null,null,"","",null,null,"クランベリー","スルファメトキシピリダジン"]
[null,null,null,null,null,null,null,null,null,null,null,null,null,null,"","",null,null,"クランベリー（冷凍）","スルファメラジン"]
[null,null,null,null,null,null,null,null,null,null,null,null,null,null,"","",null,null,"ハックルベリー","スルファモイルダプソン"]
[null,null,null,null,null,null,null,null,null,null,null,null,null,null,"","",null,null,"ハックルベリー（冷凍）","スルファモノメトキシン"]
[null,null,null,null,null,null,null,null,null,null,null,null,null,null,"","",null,null,"その他のベリー類果実","スルファレート"]
[null,null,null,null,null,null,null,null,null,null,null,null,null,null,"","",null,null,"赤フサスグリ","スルフイソキサゾール"]
[null,null,null,null,null,null,null,null,null,null,null,null,null,null,"","",null,null,"白フサスグリ","スルフイソゾール"]
[null,null,null,null,null,null,null,null,null,null,null,null,null,null,"","",null,null,"グーズベリー","スルフイソミジン"]
[null,null,null,null,null,null,null,null,null,null,null,null,null,null,"","",null,null,"黒フサスグリ","スルフェノン"]
[null,null,null,null,null,null,null,null,null,null,null,null,null,null,"","",null,null,"黒スグリ","スルフェントラゾン"]
[null,null,null,null,null,null,null,null,null,null,null,null,null,null,"","",null,null,"カシス","スルプロホス"]
[null,null,null,null,null,null,null,null,null,null,null,null,null,null,"","",null,null,"クワ属の実","スルプロホスオキソン"]
[null,null,null,null,null,null,null,null,null,null,null,null,null,null,"","",null,null,"コケモモの実","スルホキサフロル"]
[null,null,null,null,null,null,null,null,null,null,null,null,null,null,"","",null,null,"すぐり","スルホスルフロン"]
[null,null,null,null,null,null,null,null,null,null,null,null,null,null,"","",null,null,"ハスカップ","スルホテップ"]
[null,null,null,null,null,null,null,null,null,null,null,null,null,null,"","",null,null,"フサスグリ","セクブメトン"]
[null,null,null,null,null,null,null,null,null,null,null,null,null,null,"","",null,null,"ブラックカラント","セダキサン"]
[null,null,null,null,null,null,null,null,null,null,null,null,null,null,"","",null,null,"やまもも","セデカマイシン"]
[null,null,null,null,null,null,null,null,null,null,null,null,null,null,"","",null,null,"レッドカラント","セトキシジム"]
[null,null,null,null,null,null,null,null,null,null,null,null,null,null,"","",null,null,"その他のベリー類果実（冷凍）","セファセトリル"]
[null,null,null,null,null,null,null,null,null,null,null,null,null,null,"","",null,null,"レッドカラント（冷凍）","セファゾリン"]
[null,null,null,null,null,null,null,null,null,null,null,null,null,null,"","",null,null,"ブラックカラント（冷凍）","セファピリン"]
[null,null,null,null,null,null,null,null,null,null,null,null,null,null,"","",null,null,"ぶどう","セファレキシン"]
[null,null,null,null,null,null,null,null,null,null,null,null,null,null,"","",null,null,"ぶどうの種","セファロニウム"]
[null,null,null,null,null,null,null,null,null,null,null,null,null,null,"","",null,null,"山ぶどう","セフォペラゾン"]
[null,null,null,null,null,null,null,null,null,null,null,null,null,null,"","",null,null,"ワイン用ぶどう","セフキノム"]
[null,null,null,null,null,null,null,null,null,null,null,null,null,null,"","",null,null,"ぶどう（冷凍）","セフチオフル"]
[null,null,null,null,null,null,null,null,null,null,null,null,null,null,"","",null,null,"かき","セフロキシム"]
[null,null,null,null,null,null,null,null,null,null,null,null,null,null,"","",null,null,"かき（冷凍）","セミカルバジド"]
[null,null,null,null,null,null,null,null,null,null,null,null,null,null,"","",null,null,"バナナ","ゼラノール"]
[null,null,null,null,null,null,null,null,null,null,null,null,null,null,"","",null,null,"バナナ（冷凍）","セロサイジン"]
[null,null,null,null,null,null,null,null,null,null,null,null,null,null,"","",null,null,"キウィー","センデュラマイシン"]
[null,null,null,null,null,null,null,null,null,null,null,null,null,null,"","",null,null,"キウィー（冷凍）","ゾキサミド"]
[null,null,null,null,null,null,null,null,null,null,null,null,null,null,"","",null,null,"パパイヤ","ターバシル"]
[null,null,null,null,null,null,null,null,null,null,null,null,null,null,"","",null,null,"パパイヤ（冷凍）","ターバム"]
[null,null,null,null,null,null,null,null,null,null,null,null,null,null,"","",null,null,"アボカド","ダイアジノン"]
[null,null,null,null,null,null,null,null,null,null,null,null,null,null,"","",null,null,"アボカド（冷凍）","ダイアジノンオキソン"]
[null,null,null,null,null,null,null,null,null,null,null,null,null,null,"","",null,null,"パイナップル","ダイアレート"]
[null,null,null,null,null,null,null,null,null,null,null,null,null,null,"","",null,null,"パイナップル（冷凍）","ダイムロン"]
[null,null,null,null,null,null,null,null,null,null,null,null,null,null,"","",null,null,"グアバ","タイロシン"]
[null,null,null,null,null,null,null,null,null,null,null,null,null,null,"","",null,null,"グアバ（冷凍）","ダゾメット"]
[null,null,null,null,null,null,null,null,null,null,null,null,null,null,"","",null,null,"マンゴー","ダゾメット、メタム及びメチルイソチオシアネート"]
[null,null,null,null,null,null,null,null,null,null,null,null,null,null,"","",null,null,"マンゴー（冷凍）","ダノフロキサシン"]
[null,null,null,null,null,null,null,null,null,null,null,null,null,null,"","",null,null,"パッションフルーツ","ダミノジッド"]
[null,null,null,null,null,null,null,null,null,null,null,null,null,null,"","",null,null,"パッションフルーツ（冷凍）","チアクロプリド"]
[null,null,null,null,null,null,null,null,null,null,null,null,null,null,"","",null,null,"なつめやし","チアクロプリドアミド"]
[null,null,null,null,null,null,null,null,null,null,null,null,null,null,{"$f":"IF(D643=\"\",\"\",MATCH(D643,$S$2:$S$2488,0))","v":""},{"$f":"IF(H643=\"\",\"\",MATCH(H643,$T$2:$T$2472,0))","v":""},null,null,"なつめやし（冷凍）","チアジアジン"]
[null,null,null,null,null,null,null,null,null,null,null,null,null,null,"","",null,null,"その他の果実","チアジニル"]
[null,null,null,null,null,null,null,null,null,null,null,null,null,null,"","",null,null,"あけび","チアゾピル"]
[null,null,null,null,null,null,null,null,null,null,null,null,null,null,"","",null,null,"アセロラ","チアベンダゾール"]
[null,null,null,null,null,null,null,null,null,null,null,null,null,null,"","",null,null,"アテモヤ","チアムリン"]
[null,null,null,null,null,null,null,null,null,null,null,null,null,null,"","",null,null,"アブラヤシ（パーム油の原料）","チアメツロンメチル"]
[null,null,null,null,null,null,null,null,null,null,null,null,null,null,"","",null,null,"アブラヤシの外果皮","チアメトキサム"]
[null,null,null,null,null,null,null,null,null,null,null,null,null,null,"","",null,null,"アブラヤシの果実","チアンフェニコール"]
[null,null,null,null,null,null,null,null,null,null,null,null,null,null,"","",null,null,"いちじく","チウラム"]
[null,null,null,null,null,null,null,null,null,null,null,null,null,null,"","",null,null,"オリーブ","チエンカルバゾンメチル"]
[null,null,null,null,null,null,null,null,null,null,null,null,null,null,"","",null,null,"かりん","チオキサザフェン"]
[null,null,null,null,null,null,null,null,null,null,null,null,null,null,"","",null,null,"ココナッツ","チオキノックス"]
[null,null,null,null,null,null,null,null,null,null,null,null,null,null,"","",null,null,"ココヤシ","チオジカルブ"]
[null,null,null,null,null,null,null,null,null,null,null,null,null,null,"","",null,null,"スターフルーツ","チオジカルブ及びメソミル"]
[null,null,null,null,null,null,null,null,null,null,null,null,null,null,"","",null,null,"ざくろ","チオシクラム"]
[null,null,null,null,null,null,null,null,null,null,null,null,null,null,"","",null,null,"さるなし","チオセミカルバジド"]
[null,null,null,null,null,null,null,null,null,null,null,null,null,null,"","",null,null,"チェリモヤ","チオファネート"]
[null,null,null,null,null,null,null,null,null,null,null,null,null,null,"","",null,null,"中国ナツメ（タイソウ）","チオファネートメチル"]
[null,null,null,null,null,null,null,null,null,null,null,null,null,null,"","",null,null,"ドラゴンフルーツ","チオファノックス"]
[null,null,null,null,null,null,null,null,null,null,null,null,null,null,"","",null,null,"ドリアン","チオプロニン"]
[null,null,null,null,null,null,null,null,null,null,null,null,null,null,"","",null,null,"なつめ（棗）","チオペプチン"]
[null,null,null,null,null,null,null,null,null,null,null,null,null,null,"","",null,null,"ハスの果実","チオベンカルブ"]
[null,null,null,null,null,null,null,null,null,null,null,null,null,null,"","",null,null,"フェイジョア","チオメトン"]
[null,null,null,null,null,null,null,null,null,null,null,null,null,null,"","",null,null,"フトモモ","チジアズロン"]
[null,null,null,null,null,null,null,null,null,null,null,null,null,null,"","",null,null,"マンゴスチン","チフェンスルフロン"]
[null,null,null,null,null,null,null,null,null,null,null,null,null,null,"","",null,null,"ライチ","チフェンスルフロンメチル"]
[null,null,null,null,null,null,null,null,null,null,null,null,null,null,"","",null,null,"羅漢果","チフルザミド"]
[null,null,null,null,null,null,null,null,null,null,null,null,null,null,"","",null,null,"ランブータンの実","チモール"]
[null,null,null,null,null,null,null,null,null,null,null,null,null,null,"","",null,null,"リュウガンの実（リュウガンニク、龍眼肉）","チラム"]
[null,null,null,null,null,null,null,null,null,null,null,null,null,null,"","",null,null,"スターフルーツ（冷凍）","チルジピロシン"]
[null,null,null,null,null,null,null,null,null,null,null,null,null,null,"","",null,null,"マンゴスチン（冷凍）","チルミコシン"]
[null,null,null,null,null,null,null,null,null,null,null,null,null,null,"","",null,null,"ココナッツ（冷凍）","ツラスロマイシン"]
[null,null,null,null,null,null,null,null,null,null,null,null,null,null,"","",null,null,"ざくろ（冷凍）","ディルドリン"]
[null,null,null,null,null,null,null,null,null,null,null,null,null,null,"","",null,null,"ライチ（冷凍）","デキサメタゾン"]
[null,null,null,null,null,null,null,null,null,null,null,null,null,null,"","",null,null,"なつめ（棗）（冷凍）","テクナゼン"]
[null,null,null,null,null,null,null,null,null,null,null,null,null,null,"","",null,null,"その他の果実（冷凍）","テクロフタラム"]
[null,null,null,null,null,null,null,null,null,null,null,null,null,null,"","",null,null,"ひまわりの種子","デコキネート"]
[null,null,null,null,null,null,null,null,null,null,null,null,null,null,"","",null,null,"ひまわりの種子（冷凍）","テストステロン"]
[null,null,null,null,null,null,null,null,null,null,null,null,null,null,"","",null,null,"ごまの種子","デストマイシンＡ"]
[null,null,null,null,null,null,null,null,null,null,null,null,null,null,"","",null,null,"ごまの種子（冷凍）","デスメディファム"]
[null,null,null,null,null,null,null,null,null,null,null,null,null,null,"","",null,null,"べにばなの種子","デスメトリン"]
[null,null,null,null,null,null,null,null,null,null,null,null,null,null,"","",null,null,"べにばなの種子（冷凍）","テトラクロルビンホス"]
[null,null,null,null,null,null,null,null,null,null,null,null,null,null,"","",null,null,"綿実","テトラコナゾール"]
[null,null,null,null,null,null,null,null,null,null,null,null,null,null,"","",null,null,"綿実（冷凍）","テトラサイクリン"]
[null,null,null,null,null,null,null,null,null,null,null,null,null,null,"","",null,null,"なたね","テトラジホン"]
[null,null,null,null,null,null,null,null,null,null,null,null,null,null,"","",null,null,"なたね（冷凍）","テトラニリプロール"]
[null,null,null,null,null,null,null,null,null,null,null,null,null,null,"","",null,null,"その他のオイルシード","テトラピオン"]
[null,null,null,null,null,null,null,null,null,null,null,null,null,null,"","",null,null,"エゴマ（種子）","cis-１，２，３，６－テトラヒドロフタルイミド"]
[null,null,null,null,null,null,null,null,null,null,null,null,null,null,"","",null,null,"あまに（亜麻仁）","テトラメトリン"]
[null,null,null,null,null,null,null,null,null,null,null,null,null,null,"","",null,null,"かぼちゃの種子","テニルクロール"]
[null,null,null,null,null,null,null,null,null,null,null,null,null,null,"","",null,null,"ヒマシ","テブコナゾール"]
[null,null,null,null,null,null,null,null,null,null,null,null,null,null,"","",null,null,"あまに（亜麻仁）（冷凍）","テブチウロン"]
[null,null,null,null,null,null,null,null,null,null,null,null,null,null,"","",null,null,"その他のオイルシード（冷凍）","テブピリムホス"]
[null,null,null,null,null,null,null,null,null,null,null,null,null,null,"","",null,null,"かぼちゃの種子（冷凍）","テブフェノジド"]
[null,null,null,null,null,null,null,null,null,null,null,null,null,null,"","",null,null,"ぎんなん","テブフェンピラド"]
[null,null,null,null,null,null,null,null,null,null,null,null,null,null,"","",null,null,"ぎんなん（冷凍）","テブフロキン"]
[null,null,null,null,null,null,null,null,null,null,null,null,null,null,"","",null,null,"くり","テプラロキシジム"]
[null,null,null,null,null,null,null,null,null,null,null,null,null,null,"","",null,null,"くり（冷凍）","テフリルトリオン"]
[null,null,null,null,null,null,null,null,null,null,null,null,null,null,"","",null,null,"ペカン","テフルトリン"]
[null,null,null,null,null,null,null,null,null,null,null,null,null,null,"","",null,null,"ペカン（冷凍）","テフルベンズロン"]
[null,null,null,null,null,null,null,null,null,null,null,null,null,null,"","",null,null,"アーモンド","デメトンO"]
[null,null,null,null,null,null,null,null,null,null,null,null,null,null,"","",null,null,"アーモンド（冷凍）","デメトン－Ｏ－メチル"]
[null,null,null,null,null,null,null,null,null,null,null,null,null,null,"","",null,null,"くるみ","デメトンS"]
[null,null,null,null,null,null,null,null,null,null,null,null,null,null,"","",null,null,"くるみ（冷凍）","デメトン－Ｓ－メチル"]
[null,null,null,null,null,null,null,null,null,null,null,null,null,null,{"$f":"IF(D707=\"\",\"\",MATCH(D707,$S$2:$S$2488,0))","v":""},{"$f":"IF(H707=\"\",\"\",MATCH(H707,$T$2:$T$2472,0))","v":""},null,null,"その他のナッツ類","デメトン－Ｓ－メチルスルホン"]
[null,null,null,null,null,null,null,null,null,null,null,null,null,null,"","",null,null,"カシューナッツ","テメホス"]
[null,null,null,null,null,null,null,null,null,null,null,null,null,null,"","",null,null,"トチの実","デルタメトリン"]
[null,null,null,null,null,null,null,null,null,null,null,null,null,null,"","",null,null,"ピスタチオ","デルタメトリン及びトラロメトリン"]
[null,null,null,null,null,null,null,null,null,null,null,null,null,null,"","",null,null,"ヒッコリーナッツ","テルデカマイシン"]
[null,null,null,null,null,null,null,null,null,null,null,null,null,null,"","",null,null,"ブラジルナッツ","テルブカルブ"]
[null,null,null,null,null,null,null,null,null,null,null,null,null,null,"","",null,null,"ヘーゼルナッツ","テルブチラジン"]
[null,null,null,null,null,null,null,null,null,null,null,null,null,null,"","",null,null,"マカダミアナッツ","テルブトリン"]
[null,null,null,null,null,null,null,null,null,null,null,null,null,null,"","",null,null,"松の実","テルブホス"]
[null,null,null,null,null,null,null,null,null,null,null,null,null,null,"","",null,null,"ヤシの実","テルブメトン"]
[null,null,null,null,null,null,null,null,null,null,null,null,null,null,"","",null,null,"カシューナッツ（冷凍）","テレフタル酸銅"]
[null,null,null,null,null,null,null,null,null,null,null,null,null,null,"","",null,null,"ピスタチオ（冷凍）","ドキシサイクリン"]
[null,null,null,null,null,null,null,null,null,null,null,null,null,null,"","",null,null,"ブラジルナッツ（冷凍）","ドジン"]
[null,null,null,null,null,null,null,null,null,null,null,null,null,null,"","",null,null,"ヘーゼルナッツ（冷凍）","ドラゾキソロン"]
[null,null,null,null,null,null,null,null,null,null,null,null,null,null,"","",null,null,"マカダミアナッツ（冷凍）","ドラメクチン"]
[null,null,null,null,null,null,null,null,null,null,null,null,null,null,"","",null,null,"その他のナッツ類（冷凍）","トラルコキシジム"]
[null,null,null,null,null,null,null,null,null,null,null,null,null,null,"","",null,null,"茶","トラロメトリン"]
[null,null,null,null,null,null,null,null,null,null,null,null,null,null,"","",null,null,"緑茶","トランスノナクロル"]
[null,null,null,null,null,null,null,null,null,null,null,null,null,null,"","",null,null,"紅茶","トリアザメート"]
[null,null,null,null,null,null,null,null,null,null,null,null,null,null,"","",null,null,"コーヒー豆","トリアジメノール"]
[null,null,null,null,null,null,null,null,null,null,null,null,null,null,"","",null,null,"コーヒー豆（冷凍）","トリアジメホン"]
[null,null,null,null,null,null,null,null,null,null,null,null,null,null,"","",null,null,"カカオ豆","トリアスルフロン"]
[null,null,null,null,null,null,null,null,null,null,null,null,null,null,"","",null,null,"カカオ豆（冷凍）","トリアゾホス"]
[null,null,null,null,null,null,null,null,null,null,null,null,null,null,"","",null,null,"ホップ","トリアファモン"]
[null,null,null,null,null,null,null,null,null,null,null,null,null,null,"","",null,null,"サンショウの果実","トリアレート"]
[null,null,null,null,null,null,null,null,null,null,null,null,null,null,"","",null,null,"みかんの果皮（チンピ）","トリエタジン"]
[null,null,null,null,null,null,null,null,null,null,null,null,null,null,"","",null,null,"その他のスパイス","トリクラベンダゾール"]
[null,null,null,null,null,null,null,null,null,null,null,null,null,null,"","",null,null,"アニスの種子","トリクラミド"]
[null,null,null,null,null,null,null,null,null,null,null,null,null,null,"","",null,null,"ウイキョウ（フェンネル）の種子","トリクロピル"]
[null,null,null,null,null,null,null,null,null,null,null,null,null,null,"","",null,null,"ターメリック","トリクロルホン"]
[null,null,null,null,null,null,null,null,null,null,null,null,null,null,"","",null,null,"ウコン","トリクロロ酢酸ナトリウム塩"]
[null,null,null,null,null,null,null,null,null,null,null,null,null,null,"","",null,null,"オールスパイス","トリシクラゾール"]
[null,null,null,null,null,null,null,null,null,null,null,null,null,null,"","",null,null,"カルダモンの果実","トリジファン"]
[null,null,null,null,null,null,null,null,null,null,null,null,null,null,"","",null,null,"カルダモンの種子","トリチコナゾール"]
[null,null,null,null,null,null,null,null,null,null,null,null,null,null,"","",null,null,"カンゾウ","トリデモルフ"]
[null,null,null,null,null,null,null,null,null,null,null,null,null,null,"","",null,null,"リコリス","トリネキサパックエチル"]
[null,null,null,null,null,null,null,null,null,null,null,null,null,null,"","",null,null,"キャラウェイ（ヒメウイキョウ）の種子","トリブホス"]
[null,null,null,null,null,null,null,null,null,null,null,null,null,null,"","",null,null,"クチナシの果実","トリフルスルフロンメチル"]
[null,null,null,null,null,null,null,null,null,null,null,null,null,null,"","",null,null,"クミン","トリフルミゾール"]
[null,null,null,null,null,null,null,null,null,null,null,null,null,null,"","",null,null,"黒コショウ＜コショウの果実＞","トリフルムロン"]
[null,null,null,null,null,null,null,null,null,null,null,null,null,null,"","",null,null,"クローブ","トリフルメゾピリム"]
[null,null,null,null,null,null,null,null,null,null,null,null,null,null,"","",null,null,"ケイヒ（桂皮）","トリフルラリン"]
[null,null,null,null,null,null,null,null,null,null,null,null,null,null,"","",null,null,"ケシの種子","トリフロキシストロビン"]
[null,null,null,null,null,null,null,null,null,null,null,null,null,null,"","",null,null,"ケーパー","トリフロキシスルフロン"]
[null,null,null,null,null,null,null,null,null,null,null,null,null,null,"","",null,null,"コリアンダーの種子","トリブロムサラン"]
[null,null,null,null,null,null,null,null,null,null,null,null,null,null,"","",null,null,"コエンドロの種子","トリベヌロンメチル"]
[null,null,null,null,null,null,null,null,null,null,null,null,null,null,"","",null,null,"サフランのめしべ（花柱及び柱頭を含む）","トリペレナミン"]
[null,null,null,null,null,null,null,null,null,null,null,null,null,null,"","",null,null,"シソの種子","トリホリン"]
[null,null,null,null,null,null,null,null,null,null,null,null,null,null,"","",null,null,"シナモン","トリメタカルブ"]
[null,null,null,null,null,null,null,null,null,null,null,null,null,null,"","",null,null,"白コショウ＜コショウの果実＞","トリメトプリム"]
[null,null,null,null,null,null,null,null,null,null,null,null,null,null,"","",null,null,"スターアニス","トリメドルア"]
[null,null,null,null,null,null,null,null,null,null,null,null,null,null,"","",null,null,"セロリの種子","トリルフルアニド"]
[null,null,null,null,null,null,null,null,null,null,null,null,null,null,"","",null,null,"ディルの種子","トリルフルアニド代謝物"]
[null,null,null,null,null,null,null,null,null,null,null,null,null,null,"","",null,null,"ナツメグ","トルクロホスメチル"]
[null,null,null,null,null,null,null,null,null,null,null,null,null,null,"","",null,null,"メース","トルトラズリル"]
[null,null,null,null,null,null,null,null,null,null,null,null,null,null,"","",null,null,"バジルの種子","トルピラレート"]
[null,null,null,null,null,null,null,null,null,null,null,null,null,null,"","",null,null,"メボウキの種子","トルフェナム酸"]
[null,null,null,null,null,null,null,null,null,null,null,null,null,null,"","",null,null,"バニラ豆","トルフェンピラド"]
[null,null,null,null,null,null,null,null,null,null,null,null,null,null,"","",null,null,"ヤングペッパー","トルプロカルブ"]
[null,null,null,null,null,null,null,null,null,null,null,null,null,null,"","",null,null,"カラシナ（マスタード）の種子","ナイカルバジン"]
[null,null,null,null,null,null,null,null,null,null,null,null,null,null,"","",null,null,"スペアミント","ナナフロシン"]
[null,null,null,null,null,null,null,null,null,null,null,null,null,null,"","",null,null,"スペアミント（冷凍）","ナフシリン"]
[null,null,null,null,null,null,null,null,null,null,null,null,null,null,"","",null,null,"ペパーミント","ナプタラム"]
[null,null,null,null,null,null,null,null,null,null,null,null,null,null,"","",null,null,"ペパーミント（冷凍）","１－ナフタレン酢酸"]
[null,null,null,null,null,null,null,null,null,null,null,null,null,null,{"$f":"IF(D771=\"\",\"\",MATCH(D771,$S$2:$S$2488,0))","v":""},{"$f":"IF(H771=\"\",\"\",MATCH(H771,$T$2:$T$2472,0))","v":""},null,null,"その他のハーブ","ナフタロホス"]
[null,null,null,null,null,null,null,null,null,null,null,null,null,null,"","",null,null,"その他のハーブ（冷凍）","２－（１－ナフチル）アセタミド"]
[null,null,null,null,null,null,null,null,null,null,null,null,null,null,"","",null,null,"あさつき","ナプロアニリド"]
[null,null,null,null,null,null,null,null,null,null,null,null,null,null,"","",null,null,"アニスの茎","ナプロパミド"]
[null,null,null,null,null,null,null,null,null,null,null,null,null,null,"","",null,null,"アニスの葉","鉛"]
[null,null,null,null,null,null,null,null,null,null,null,null,null,null,"","",null,null,"ウイキョウ（フェンネル）の茎・葉","ナラシン"]
[null,null,null,null,null,null,null,null,null,null,null,null,null,null,"","",null,null,"ウイキョウ（フェンネル）の茎・葉（冷凍）","ナリジクス酸"]
[null,null,null,null,null,null,null,null,null,null,null,null,null,null,"","",null,null,"エシャロット","ナレド"]
[null,null,null,null,null,null,null,null,null,null,null,null,null,null,"","",null,null,"エシャロット（冷凍）","二塩化エチレン"]
[null,null,null,null,null,null,null,null,null,null,null,null,null,null,"","",null,null,"オレガノ","ニコスルフロン"]
[null,null,null,null,null,null,null,null,null,null,null,null,null,null,"","",null,null,"カモミール","ニコチン"]
[null,null,null,null,null,null,null,null,null,null,null,null,null,null,"","",null,null,"カミツレ","二臭化エチレン"]
[null,null,null,null,null,null,null,null,null,null,null,null,null,null,"","",null,null,"カラシナ（マスタード）の茎・葉","ニタルソン"]
[null,null,null,null,null,null,null,null,null,null,null,null,null,null,"","",null,null,"コリアンダーの茎・葉","ニテンピラム"]
[null,null,null,null,null,null,null,null,null,null,null,null,null,null,"","",null,null,"コリアンダーの茎・葉（冷凍）","ニトラピリン"]
[null,null,null,null,null,null,null,null,null,null,null,null,null,null,"","",null,null,"コエンドロの茎・葉","ニトラリン"]
[null,null,null,null,null,null,null,null,null,null,null,null,null,null,"","",null,null,"コエンドロの茎・葉（冷凍）","３－ニトロオキシプロパノール"]
[null,null,null,null,null,null,null,null,null,null,null,null,null,null,"","",null,null,"パクチーの茎・葉","ニトロキシニル"]
[null,null,null,null,null,null,null,null,null,null,null,null,null,null,"","",null,null,"パクチーの茎・葉（冷凍）","ニトロタールイソプロピル"]
[null,null,null,null,null,null,null,null,null,null,null,null,null,null,"","",null,null,"ザーサイ＜マスタードの葉・茎＞","ニトロフェン"]
[null,null,null,null,null,null,null,null,null,null,null,null,null,null,"","",null,null,"サボリー","ニトロフラゾン"]
[null,null,null,null,null,null,null,null,null,null,null,null,null,null,"","",null,null,"セイボリー","ニトロフラントイン"]
[null,null,null,null,null,null,null,null,null,null,null,null,null,null,"","",null,null,"サンショウの葉","ニトロフラン類"]
[null,null,null,null,null,null,null,null,null,null,null,null,null,null,"","",null,null,"しその葉","ニフルスチレン酸ナトリウム"]
[null,null,null,null,null,null,null,null,null,null,null,null,null,null,"","",null,null,"シソの花穂","ニフルピリノール"]
[null,null,null,null,null,null,null,null,null,null,null,null,null,null,"","",null,null,"ジャスミンの葉","ヌアリモル"]
[null,null,null,null,null,null,null,null,null,null,null,null,null,null,"","",null,null,"ジャスミンの花","ネオマイシン"]
[null,null,null,null,null,null,null,null,null,null,null,null,null,null,"","",null,null,"食用ミニバラ","ネクイネート"]
[null,null,null,null,null,null,null,null,null,null,null,null,null,null,"","",null,null,"ステビア","ノシヘプタイド"]
[null,null,null,null,null,null,null,null,null,null,null,null,null,null,"","",null,null,"セージ","ノナクロル"]
[null,null,null,null,null,null,null,null,null,null,null,null,null,null,"","",null,null,"タイム","ノニルフェノールスルホン酸銅"]
[null,null,null,null,null,null,null,null,null,null,null,null,null,null,"","",null,null,"たで","ノバルロン"]
[null,null,null,null,null,null,null,null,null,null,null,null,null,null,"","",null,null,"タラゴン","ノボビオシン"]
[null,null,null,null,null,null,null,null,null,null,null,null,null,null,"","",null,null,"エストラゴン","ノルジェストメット"]
[null,null,null,null,null,null,null,null,null,null,null,null,null,null,"","",null,null,"チャイブ","ノルフルラゾン"]
[null,null,null,null,null,null,null,null,null,null,null,null,null,null,"","",null,null,"ディルの葉・茎","ノルフロキサシン"]
[null,null,null,null,null,null,null,null,null,null,null,null,null,null,"","",null,null,"ディルの葉・茎（冷凍）","ノルロン"]
[null,null,null,null,null,null,null,null,null,null,null,null,null,null,"","",null,null,"バジルの茎・葉","バージニアマイシン"]
[null,null,null,null,null,null,null,null,null,null,null,null,null,null,"","",null,null,"バジルの茎・葉（冷凍）","バーナレート"]
[null,null,null,null,null,null,null,null,null,null,null,null,null,null,"","",null,null,"メボウキの茎・葉","バーバン"]
[null,null,null,null,null,null,null,null,null,null,null,null,null,null,"","",null,null,"メボウキの茎・葉（冷凍）","パーベンダゾール"]
[null,null,null,null,null,null,null,null,null,null,null,null,null,null,"","",null,null,"ハッカ","ハイグロマイシン"]
[null,null,null,null,null,null,null,null,null,null,null,null,null,null,"","",null,null,"ミント","バクイノレート"]
[null,null,null,null,null,null,null,null,null,null,null,null,null,null,"","",null,null,"マジョラム","バクイロプリム"]
[null,null,null,null,null,null,null,null,null,null,null,null,null,null,"","",null,null,"からしなの茎","パクロブトラゾール"]
[null,null,null,null,null,null,null,null,null,null,null,null,null,null,"","",null,null,"からしなの葉","バシトラシン"]
[null,null,null,null,null,null,null,null,null,null,null,null,null,null,"","",null,null,"みょうが","バミドチオン"]
[null,null,null,null,null,null,null,null,null,null,null,null,null,null,"","",null,null,"みょうがたけ","バミドチオンスルホン"]
[null,null,null,null,null,null,null,null,null,null,null,null,null,null,"","",null,null,"ラベンダー","パラオキソンメチル"]
[null,null,null,null,null,null,null,null,null,null,null,null,null,null,"","",null,null,"レモングラス","パラコート"]
[null,null,null,null,null,null,null,null,null,null,null,null,null,null,"","",null,null,"ローズマリー","パラチオン"]
[null,null,null,null,null,null,null,null,null,null,null,null,null,null,"","",null,null,"マンネンロウ","パラチオンメチル"]
[null,null,null,null,null,null,null,null,null,null,null,null,null,null,"","",null,null,"ローレル","パラチオンメチルオキソン"]
[null,null,null,null,null,null,null,null,null,null,null,null,null,null,"","",null,null,"わさびの葉","バリダマイシン"]
[null,null,null,null,null,null,null,null,null,null,null,null,null,null,"","",null,null,"わさびの花","バルネムリン"]
[null,null,null,null,null,null,null,null,null,null,null,null,null,null,"","",null,null,"わさびの葉柄","バルバン"]
[null,null,null,null,null,null,null,null,null,null,null,null,null,null,"","",null,null,"ハッカ（冷凍）","ハルフェンプロックス"]
[null,null,null,null,null,null,null,null,null,null,null,null,null,null,"","",null,null,"レモングラス（冷凍）","パルベンダゾール"]
[null,null,null,null,null,null,null,null,null,null,null,null,null,null,"","",null,null,"しその葉（冷凍）","ハロキシホップ"]
[null,null,null,null,null,null,null,null,null,null,null,null,null,null,"","",null,null,"その他の農産物","ハロクソン"]
[null,null,null,null,null,null,null,null,null,null,null,null,null,null,"","",null,null,"牛の筋肉","ハロスルフロンメチル"]
[null,null,null,null,null,null,null,null,null,null,null,null,null,null,"","",null,null,"牛肉","ハロフジノン"]
[null,null,null,null,null,null,null,null,null,null,null,null,null,null,"","",null,null,"牛の筋肉（冷凍）","パロモマイシン"]
[null,null,null,null,null,null,null,null,null,null,null,null,null,null,"","",null,null,"豚の筋肉","ビアラホス"]
[null,null,null,null,null,null,null,null,null,null,null,null,null,null,{"$f":"IF(D835=\"\",\"\",MATCH(D835,$S$2:$S$2488,0))","v":""},{"$f":"IF(H835=\"\",\"\",MATCH(H835,$T$2:$T$2472,0))","v":""},null,null,"豚肉","ピーチフルア"]
[null,null,null,null,null,null,null,null,null,null,null,null,null,null,"","",null,null,"豚の筋肉（冷凍）","ビオアレスリン"]
[null,null,null,null,null,null,null,null,null,null,null,null,null,null,"","",null,null,"羊の筋肉","ビオレスメトリン"]
[null,null,null,null,null,null,null,null,null,null,null,null,null,null,"","",null,null,"羊肉","ピカルブトラゾクス"]
[null,null,null,null,null,null,null,null,null,null,null,null,null,null,"","",null,null,"羊の筋肉（冷凍）","ビキサフェン"]
[null,null,null,null,null,null,null,null,null,null,null,null,null,null,"","",null,null,"馬の筋肉","ピクロラム"]
[null,null,null,null,null,null,null,null,null,null,null,null,null,null,"","",null,null,"馬肉","ピコキシストロビン"]
[null,null,null,null,null,null,null,null,null,null,null,null,null,null,"","",null,null,"馬の筋肉（冷凍）","ビコザマイシン"]
[null,null,null,null,null,null,null,null,null,null,null,null,null,null,"","",null,null,"鹿の筋肉","ピコリナフェン"]
[null,null,null,null,null,null,null,null,null,null,null,null,null,null,"","",null,null,"鹿肉","ビシクロピロン"]
[null,null,null,null,null,null,null,null,null,null,null,null,null,null,"","",null,null,"シカ肉","ピジフルメトフェン"]
[null,null,null,null,null,null,null,null,null,null,null,null,null,null,"","",null,null,"鹿の筋肉（冷凍）","ビス（２－クロルイソプロピル）エーテル"]
[null,null,null,null,null,null,null,null,null,null,null,null,null,null,"","",null,null,"山羊の筋肉","ビス（４－クロロフェノキシ）メタン"]
[null,null,null,null,null,null,null,null,null,null,null,null,null,null,"","",null,null,"山羊肉","ビスピリバックナトリウム塩"]
[null,null,null,null,null,null,null,null,null,null,null,null,null,null,"","",null,null,"山羊の筋肉（冷凍）","ビチオノール"]
[null,null,null,null,null,null,null,null,null,null,null,null,null,null,"","",null,null,"その他の陸棲哺乳類に属する動物の筋肉","ビテルタノール"]
[null,null,null,null,null,null,null,null,null,null,null,null,null,null,"","",null,null,"その他の肉","ヒドラメチルノン"]
[null,null,null,null,null,null,null,null,null,null,null,null,null,null,"","",null,null,"いのしし肉","ヒドロキシイソキサゾール"]
[null,null,null,null,null,null,null,null,null,null,null,null,null,null,"","",null,null,"イノシシ肉","ヒドロコルチゾン"]
[null,null,null,null,null,null,null,null,null,null,null,null,null,null,"","",null,null,"猪肉","ビナパクリル"]
[null,null,null,null,null,null,null,null,null,null,null,null,null,null,"","",null,null,"うさぎ肉","ピノキサデン"]
[null,null,null,null,null,null,null,null,null,null,null,null,null,null,"","",null,null,"ウサギ肉","ビフェナゼート"]
[null,null,null,null,null,null,null,null,null,null,null,null,null,null,"","",null,null,"その他の陸棲哺乳類に属する動物の筋肉（冷凍）","ビフェノックス"]
[null,null,null,null,null,null,null,null,null,null,null,null,null,null,"","",null,null,"猪の筋肉","ビフェントリン"]
[null,null,null,null,null,null,null,null,null,null,null,null,null,null,"","",null,null,"猪の筋肉（冷凍）","ピフルブミド"]
[null,null,null,null,null,null,null,null,null,null,null,null,null,null,"","",null,null,"うさぎの筋肉","ピペラジン"]
[null,null,null,null,null,null,null,null,null,null,null,null,null,null,"","",null,null,"うさぎの筋肉（冷凍）","ピペロニルブトキシド"]
[null,null,null,null,null,null,null,null,null,null,null,null,null,null,"","",null,null,"牛の脂肪","ピペロホス"]
[null,null,null,null,null,null,null,null,null,null,null,null,null,null,"","",null,null,"牛脂肪","ヒメキサゾール"]
[null,null,null,null,null,null,null,null,null,null,null,null,null,null,"","",null,null,"豚の脂肪","ピメトロジン"]
[null,null,null,null,null,null,null,null,null,null,null,null,null,null,"","",null,null,"豚脂肪","ピラクロストロビン"]
[null,null,null,null,null,null,null,null,null,null,null,null,null,null,"","",null,null,"羊の脂肪","ピラクロニル"]
[null,null,null,null,null,null,null,null,null,null,null,null,null,null,"","",null,null,"羊脂肪","ピラクロホス"]
[null,null,null,null,null,null,null,null,null,null,null,null,null,null,"","",null,null,"馬の脂肪","ピラジフルミド"]
[null,null,null,null,null,null,null,null,null,null,null,null,null,null,"","",null,null,"馬脂肪","ピラスルホトール"]
[null,null,null,null,null,null,null,null,null,null,null,null,null,null,"","",null,null,"鹿の脂肪","ピラゾキシフェン"]
[null,null,null,null,null,null,null,null,null,null,null,null,null,null,"","",null,null,"鹿脂肪","ピラゾスルフロンエチル"]
[null,null,null,null,null,null,null,null,null,null,null,null,null,null,"","",null,null,"山羊の脂肪","ピラゾホス"]
[null,null,null,null,null,null,null,null,null,null,null,null,null,null,"","",null,null,"山羊脂肪","ピラゾリネート"]
[null,null,null,null,null,null,null,null,null,null,null,null,null,null,"","",null,null,"その他の陸棲哺乳類に属する動物の脂肪","ピラゾン"]
[null,null,null,null,null,null,null,null,null,null,null,null,null,null,"","",null,null,"その他の脂肪","ピラフルフェンエチル"]
[null,null,null,null,null,null,null,null,null,null,null,null,null,null,"","",null,null,"牛の肝臓","ピランテル"]
[null,null,null,null,null,null,null,null,null,null,null,null,null,null,"","",null,null,"牛肝臓","ピランテル及びモランテル"]
[null,null,null,null,null,null,null,null,null,null,null,null,null,null,"","",null,null,"牛の肝臓（冷凍）","ピリオフェノン"]
[null,null,null,null,null,null,null,null,null,null,null,null,null,null,"","",null,null,"豚の肝臓","ピリジニトリル"]
[null,null,null,null,null,null,null,null,null,null,null,null,null,null,"","",null,null,"豚肝臓","ピリダクロメチル"]
[null,null,null,null,null,null,null,null,null,null,null,null,null,null,"","",null,null,"豚の肝臓（冷凍）","ピリダフェンチオン"]
[null,null,null,null,null,null,null,null,null,null,null,null,null,null,"","",null,null,"羊の肝臓","ピリダベン"]
[null,null,null,null,null,null,null,null,null,null,null,null,null,null,"","",null,null,"羊肝臓","ピリダリル"]
[null,null,null,null,null,null,null,null,null,null,null,null,null,null,"","",null,null,"羊の肝臓（冷凍）","ピリチオバックナトリウム塩"]
[null,null,null,null,null,null,null,null,null,null,null,null,null,null,"","",null,null,"馬の肝臓","ピリデート"]
[null,null,null,null,null,null,null,null,null,null,null,null,null,null,"","",null,null,"馬肝臓","ピリフェノックス"]
[null,null,null,null,null,null,null,null,null,null,null,null,null,null,"","",null,null,"馬の肝臓（冷凍）","ピリフタリド"]
[null,null,null,null,null,null,null,null,null,null,null,null,null,null,"","",null,null,"鹿の肝臓","ピリブチカルブ"]
[null,null,null,null,null,null,null,null,null,null,null,null,null,null,"","",null,null,"鹿肝臓","ピリフルキナゾン"]
[null,null,null,null,null,null,null,null,null,null,null,null,null,null,"","",null,null,"鹿の肝臓（冷凍）","ピリプロキシフェン"]
[null,null,null,null,null,null,null,null,null,null,null,null,null,null,"","",null,null,"山羊の肝臓","ピリベンカルブ"]
[null,null,null,null,null,null,null,null,null,null,null,null,null,null,"","",null,null,"山羊肝臓","ピリミカーブ"]
[null,null,null,null,null,null,null,null,null,null,null,null,null,null,"","",null,null,"山羊の肝臓（冷凍）","ピリミジフェン"]
[null,null,null,null,null,null,null,null,null,null,null,null,null,null,"","",null,null,"その他の陸棲哺乳類に属する動物の肝臓","ピリミスルファン"]
[null,null,null,null,null,null,null,null,null,null,null,null,null,null,"","",null,null,"その他の肝臓","ピリミスルフロンメチル"]
[null,null,null,null,null,null,null,null,null,null,null,null,null,null,"","",null,null,"その他の陸棲哺乳類に属する動物の肝臓（冷凍）","ピリミニール"]
[null,null,null,null,null,null,null,null,null,null,null,null,null,null,"","",null,null,"牛の腎臓","ピリミノバックメチル"]
[null,null,null,null,null,null,null,null,null,null,null,null,null,null,"","",null,null,"牛腎臓","ピリミホスエチル"]
[null,null,null,null,null,null,null,null,null,null,null,null,null,null,{"$f":"IF(D899=\"\",\"\",MATCH(D899,$S$2:$S$2488,0))","v":""},{"$f":"IF(H899=\"\",\"\",MATCH(H899,$T$2:$T$2472,0))","v":""},null,null,"牛の腎臓（冷凍）","ピリミホスメチル"]
[null,null,null,null,null,null,null,null,null,null,null,null,null,null,"","",null,null,"豚の腎臓","ピリメタニル"]
[null,null,null,null,null,null,null,null,null,null,null,null,null,null,"","",null,null,"豚腎臓","ピリメタミン"]
[null,null,null,null,null,null,null,null,null,null,null,null,null,null,"","",null,null,"豚の腎臓（冷凍）","ピルリマイシン"]
[null,null,null,null,null,null,null,null,null,null,null,null,null,null,"","",null,null,"羊の腎臓","ピレトリン"]
[null,null,null,null,null,null,null,null,null,null,null,null,null,null,"","",null,null,"羊腎臓","ピロキサスルホン"]
[null,null,null,null,null,null,null,null,null,null,null,null,null,null,"","",null,null,"羊の腎臓（冷凍）","ピロキロン"]
[null,null,null,null,null,null,null,null,null,null,null,null,null,null,"","",null,null,"馬の腎臓","ピロミド酸"]
[null,null,null,null,null,null,null,null,null,null,null,null,null,null,"","",null,null,"馬腎臓","ビンクロゾリン"]
[null,null,null,null,null,null,null,null,null,null,null,null,null,null,"","",null,null,"馬の腎臓（冷凍）","ピンドン"]
[null,null,null,null,null,null,null,null,null,null,null,null,null,null,"","",null,null,"鹿の腎臓","ヒ素"]
[null,null,null,null,null,null,null,null,null,null,null,null,null,null,"","",null,null,"鹿腎臓","ファーバム"]
[null,null,null,null,null,null,null,null,null,null,null,null,null,null,"","",null,null,"鹿の腎臓（冷凍）","ファムフール"]
[null,null,null,null,null,null,null,null,null,null,null,null,null,null,"","",null,null,"山羊の腎臓","ファモキサドン"]
[null,null,null,null,null,null,null,null,null,null,null,null,null,null,"","",null,null,"山羊腎臓","フィプロニル"]
[null,null,null,null,null,null,null,null,null,null,null,null,null,null,"","",null,null,"山羊の腎臓（冷凍）","フェナザキン"]
[null,null,null,null,null,null,null,null,null,null,null,null,null,null,"","",null,null,"その他の陸棲哺乳類に属する動物の腎臓","フェナザフロル"]
[null,null,null,null,null,null,null,null,null,null,null,null,null,null,"","",null,null,"その他の腎臓","フェナミノスルフ"]
[null,null,null,null,null,null,null,null,null,null,null,null,null,null,"","",null,null,"その他の陸棲哺乳類に属する動物の腎臓（冷凍）","フェナミホス"]
[null,null,null,null,null,null,null,null,null,null,null,null,null,null,"","",null,null,"牛の食用部分","フェナリモル"]
[null,null,null,null,null,null,null,null,null,null,null,null,null,null,"","",null,null,"牛の食用部分（冷凍）","フェニトロチオン"]
[null,null,null,null,null,null,null,null,null,null,null,null,null,null,"","",null,null,"豚の食用部分","フェニトロチオンオキソン"]
[null,null,null,null,null,null,null,null,null,null,null,null,null,null,"","",null,null,"豚の食用部分（冷凍）","フェネチシリン"]
[null,null,null,null,null,null,null,null,null,null,null,null,null,null,"","",null,null,"羊の食用部分","フェノキサスルホン"]
[null,null,null,null,null,null,null,null,null,null,null,null,null,null,"","",null,null,"羊の食用部分（冷凍）","フェノキサニル"]
[null,null,null,null,null,null,null,null,null,null,null,null,null,null,"","",null,null,"馬の食用部分","フェノキサプロップエチル"]
[null,null,null,null,null,null,null,null,null,null,null,null,null,null,"","",null,null,"馬の食用部分（冷凍）","フェノキシエタノール"]
[null,null,null,null,null,null,null,null,null,null,null,null,null,null,"","",null,null,"鹿の食用部分","フェノキシカルブ"]
[null,null,null,null,null,null,null,null,null,null,null,null,null,null,"","",null,null,"鹿の食用部分（冷凍）","フェノキシメチルペニシリン"]
[null,null,null,null,null,null,null,null,null,null,null,null,null,null,"","",null,null,"山羊の食用部分","フェノチオール"]
[null,null,null,null,null,null,null,null,null,null,null,null,null,null,"","",null,null,"山羊の食用部分（冷凍）","フェノチオカルブ"]
[null,null,null,null,null,null,null,null,null,null,null,null,null,null,"","",null,null,"その他の陸棲哺乳類に属する動物の食用部分","フェノトリン"]
[null,null,null,null,null,null,null,null,null,null,null,null,null,null,"","",null,null,"その他の陸棲哺乳類に属する動物の食用部分（冷凍）","フェノブカルブ"]
[null,null,null,null,null,null,null,null,null,null,null,null,null,null,"","",null,null,"乳","フェノプロップ"]
[null,null,null,null,null,null,null,null,null,null,null,null,null,null,"","",null,null,"生乳","フェバンテル"]
[null,null,null,null,null,null,null,null,null,null,null,null,null,null,"","",null,null,"牛乳","フェリムゾン"]
[null,null,null,null,null,null,null,null,null,null,null,null,null,null,"","",null,null,"鶏の筋肉","フェンアミドン"]
[null,null,null,null,null,null,null,null,null,null,null,null,null,null,"","",null,null,"鶏肉","フェンカプトン"]
[null,null,null,null,null,null,null,null,null,null,null,null,null,null,"","",null,null,"鶏の筋肉（冷凍）","フェンキノトリオン"]
[null,null,null,null,null,null,null,null,null,null,null,null,null,null,"","",null,null,"あひるの筋肉","フェンクロラゾールエチル"]
[null,null,null,null,null,null,null,null,null,null,null,null,null,null,"","",null,null,"あひる肉","フェンクロルホス"]
[null,null,null,null,null,null,null,null,null,null,null,null,null,null,"","",null,null,"あひるの筋肉（冷凍）","フェンスルホチオン"]
[null,null,null,null,null,null,null,null,null,null,null,null,null,null,"","",null,null,"七面鳥の筋肉","フェンチアゾン"]
[null,null,null,null,null,null,null,null,null,null,null,null,null,null,"","",null,null,"七面鳥肉","フェンチオン"]
[null,null,null,null,null,null,null,null,null,null,null,null,null,null,"","",null,null,"七面鳥の筋肉（冷凍）","フェンチン"]
[null,null,null,null,null,null,null,null,null,null,null,null,null,null,"","",null,null,"その他の家きんの筋肉","フェンチンアセテート"]
[null,null,null,null,null,null,null,null,null,null,null,null,null,null,"","",null,null,"あいがも肉","フェンチンヒドロキシド"]
[null,null,null,null,null,null,null,null,null,null,null,null,null,null,"","",null,null,"うずら肉","フェントエート"]
[null,null,null,null,null,null,null,null,null,null,null,null,null,null,"","",null,null,"鴨肉","フェントラザミド"]
[null,null,null,null,null,null,null,null,null,null,null,null,null,null,"","",null,null,"かも肉","フェンバレレート"]
[null,null,null,null,null,null,null,null,null,null,null,null,null,null,"","",null,null,"きじ肉","フェンピクロニル"]
[null,null,null,null,null,null,null,null,null,null,null,null,null,null,"","",null,null,"鳩肉","フェンピコキサミド"]
[null,null,null,null,null,null,null,null,null,null,null,null,null,null,"","",null,null,"はと肉","フェンピラザミン"]
[null,null,null,null,null,null,null,null,null,null,null,null,null,null,"","",null,null,"ホロホロ鳥肉","フェンピロキシメート"]
[null,null,null,null,null,null,null,null,null,null,null,null,null,null,"","",null,null,"ほろほろ鳥肉","フェンブコナゾール"]
[null,null,null,null,null,null,null,null,null,null,null,null,null,null,"","",null,null,"うずら肉（冷凍）","フェンフラム"]
[null,null,null,null,null,null,null,null,null,null,null,null,null,null,"","",null,null,"ガチョウ肉","フェンプロスタレン"]
[null,null,null,null,null,null,null,null,null,null,null,null,null,null,"","",null,null,"ガチョウ肉（冷凍）","フェンプロパトリン"]
[null,null,null,null,null,null,null,null,null,null,null,null,null,null,"","",null,null,"きじ肉（冷凍）","フェンプロピジン"]
[null,null,null,null,null,null,null,null,null,null,null,null,null,null,"","",null,null,"その他の家きんの筋肉（冷凍）","フェンプロピモルフ"]
[null,null,null,null,null,null,null,null,null,null,null,null,null,null,"","",null,null,"はと肉（冷凍）","フェンヘキサミド"]
[null,null,null,null,null,null,null,null,null,null,null,null,null,null,"","",null,null,"ほろほろ鳥肉（冷凍）","フェンベンダゾール"]
[null,null,null,null,null,null,null,null,null,null,null,null,null,null,"","",null,null,"鶏の脂肪","フェンメディファム"]
[null,null,null,null,null,null,null,null,null,null,null,null,null,null,"","",null,null,"鶏脂肪","フサライド"]
[null,null,null,null,null,null,null,null,null,null,null,null,null,null,{"$f":"IF(D963=\"\",\"\",MATCH(D963,$S$2:$S$2488,0))","v":""},{"$f":"IF(H963=\"\",\"\",MATCH(H963,$T$2:$T$2472,0))","v":""},null,null,"あひるの脂肪","フジチオン"]
[null,null,null,null,null,null,null,null,null,null,null,null,null,null,"","",null,null,"七面鳥の脂肪","ブタクロール"]
[null,null,null,null,null,null,null,null,null,null,null,null,null,null,"","",null,null,"その他の家きんの脂肪","ブタフェナシル"]
[null,null,null,null,null,null,null,null,null,null,null,null,null,null,"","",null,null,"鶏の肝臓","ブタミホス"]
[null,null,null,null,null,null,null,null,null,null,null,null,null,null,"","",null,null,"鶏肝臓","ｓｅｃ－ブチルアミン"]
[null,null,null,null,null,null,null,null,null,null,null,null,null,null,"","",null,null,"鶏の肝臓（冷凍）","ブチルヒドロキシアニソール"]
[null,null,null,null,null,null,null,null,null,null,null,null,null,null,"","",null,null,"あひるの肝臓","ブチレート"]
[null,null,null,null,null,null,null,null,null,null,null,null,null,null,"","",null,null,"あひるの肝臓（冷凍）","フッ化スルフリル"]
[null,null,null,null,null,null,null,null,null,null,null,null,null,null,"","",null,null,"七面鳥の肝臓","ブトカルボキシム"]
[null,null,null,null,null,null,null,null,null,null,null,null,null,null,"","",null,null,"七面鳥の肝臓（冷凍）","ブトカルボキシムスルホキシド"]
[null,null,null,null,null,null,null,null,null,null,null,null,null,null,"","",null,null,"その他の家きんの肝臓","ブトキシカルボキシム"]
[null,null,null,null,null,null,null,null,null,null,null,null,null,null,"","",null,null,"その他の家きんの肝臓（冷凍）","ブトラリン"]
[null,null,null,null,null,null,null,null,null,null,null,null,null,null,"","",null,null,"鶏の腎臓","ブトロキシジム"]
[null,null,null,null,null,null,null,null,null,null,null,null,null,null,"","",null,null,"鶏腎臓","ブピリメート"]
[null,null,null,null,null,null,null,null,null,null,null,null,null,null,"","",null,null,"鶏の腎臓（冷凍）","ブフェンカルブ"]
[null,null,null,null,null,null,null,null,null,null,null,null,null,null,"","",null,null,"あひるの腎臓","ブプロフェジン"]
[null,null,null,null,null,null,null,null,null,null,null,null,null,null,"","",null,null,"あひるの腎臓（冷凍）","フベリダゾール"]
[null,null,null,null,null,null,null,null,null,null,null,null,null,null,"","",null,null,"七面鳥の腎臓","フラザスルフロン"]
[null,null,null,null,null,null,null,null,null,null,null,null,null,null,"","",null,null,"七面鳥の腎臓（冷凍）","フラジオマイシン"]
[null,null,null,null,null,null,null,null,null,null,null,null,null,null,"","",null,null,"その他の家きんの腎臓","プラジクアンテル"]
[null,null,null,null,null,null,null,null,null,null,null,null,null,null,"","",null,null,"その他の家きんの腎臓（冷凍）","ブラストサイジンＳ"]
[null,null,null,null,null,null,null,null,null,null,null,null,null,null,"","",null,null,"鶏の食用部分","フラゾリドン"]
[null,null,null,null,null,null,null,null,null,null,null,null,null,null,"","",null,null,"鶏の食用部分（冷凍）","フラチオカルブ"]
[null,null,null,null,null,null,null,null,null,null,null,null,null,null,"","",null,null,"七面鳥の食用部分","フラボフォスフォリポール"]
[null,null,null,null,null,null,null,null,null,null,null,null,null,null,"","",null,null,"七面鳥の食用部分（冷凍）","フラミゾール"]
[null,null,null,null,null,null,null,null,null,null,null,null,null,null,"","",null,null,"その他の家きんの食用部分","フラムプロップエチル"]
[null,null,null,null,null,null,null,null,null,null,null,null,null,null,"","",null,null,"その他の家きんの食用部分（冷凍）","フラムプロップメチル"]
[null,null,null,null,null,null,null,null,null,null,null,null,null,null,"","",null,null,"鶏の卵","フラメトピル"]
[null,null,null,null,null,null,null,null,null,null,null,null,null,null,"","",null,null,"鶏卵","フラメトピルヒドロキシ体"]
[null,null,null,null,null,null,null,null,null,null,null,null,null,null,"","",null,null,"卵","フラルタドン"]
[null,null,null,null,null,null,null,null,null,null,null,null,null,null,"","",null,null,"その他の家きんの卵","プリフィニウム"]
[null,null,null,null,null,null,null,null,null,null,null,null,null,null,"","",null,null,"うずら卵","プリミスルフロンエチル"]
[null,null,null,null,null,null,null,null,null,null,null,null,null,null,"","",null,null,"魚介類（さけ目）","プリミスルフロンメチル"]
[null,null,null,null,null,null,null,null,null,null,null,null,null,null,"","",null,null,"あまご","フリラゾール"]
[null,null,null,null,null,null,null,null,null,null,null,null,null,null,"","",null,null,"あめご","ブリリアントグリーン"]
[null,null,null,null,null,null,null,null,null,null,null,null,null,null,"","",null,null,"いわな","フルアクリピリム"]
[null,null,null,null,null,null,null,null,null,null,null,null,null,null,"","",null,null,"キングサーモン","フルアジナム"]
[null,null,null,null,null,null,null,null,null,null,null,null,null,null,"","",null,null,"銀ざけ","フルアジホップブチル"]
[null,null,null,null,null,null,null,null,null,null,null,null,null,null,"","",null,null,"さけ","フルアズロン"]
[null,null,null,null,null,null,null,null,null,null,null,null,null,null,"","",null,null,"大西洋さけ","フルエンスルホン"]
[null,null,null,null,null,null,null,null,null,null,null,null,null,null,"","",null,null,"しろうお","フルオキサストロビン"]
[null,null,null,null,null,null,null,null,null,null,null,null,null,null,"","",null,null,"にじます","フルオピコリド"]
[null,null,null,null,null,null,null,null,null,null,null,null,null,null,"","",null,null,"べにざけ","フルオピラム"]
[null,null,null,null,null,null,null,null,null,null,null,null,null,null,"","",null,null,"ます","フルオベンシド"]
[null,null,null,null,null,null,null,null,null,null,null,null,null,null,"","",null,null,"ますのすけ","フルオメツロン"]
[null,null,null,null,null,null,null,null,null,null,null,null,null,null,"","",null,null,"やまめ","フルオリン"]
[null,null,null,null,null,null,null,null,null,null,null,null,null,null,"","",null,null,"しろうお（冷凍）","フルオルイミド"]
[null,null,null,null,null,null,null,null,null,null,null,null,null,null,"","",null,null,"魚介類（さけ目）（冷凍）","フルオロジフェン"]
[null,null,null,null,null,null,null,null,null,null,null,null,null,null,"","",null,null,"魚介類（うなぎ目）","フルカルバゾンナトリウム塩"]
[null,null,null,null,null,null,null,null,null,null,null,null,null,null,"","",null,null,"あなご","フルキサピロキサド"]
[null,null,null,null,null,null,null,null,null,null,null,null,null,null,"","",null,null,"うなぎ","フルキサメタミド"]
[null,null,null,null,null,null,null,null,null,null,null,null,null,null,"","",null,null,"はも","フルキンコナゾール"]
[null,null,null,null,null,null,null,null,null,null,null,null,null,null,"","",null,null,"まあなご","フルクロラリン"]
[null,null,null,null,null,null,null,null,null,null,null,null,null,null,"","",null,null,"うなぎ（冷凍）","フルジオキソニル"]
[null,null,null,null,null,null,null,null,null,null,null,null,null,null,"","",null,null,"魚介類（うなぎ目）（冷凍）","フルシトリネート"]
[null,null,null,null,null,null,null,null,null,null,null,null,null,null,"","",null,null,"あなご（冷凍）","フルシラゾール"]
[null,null,null,null,null,null,null,null,null,null,null,null,null,null,"","",null,null,"はも（冷凍）","フルスルファミド"]
[null,null,null,null,null,null,null,null,null,null,null,null,null,null,"","",null,null,"魚介類（すずき目）","フルセトスルフロン"]
[null,null,null,null,null,null,null,null,null,null,null,null,null,null,"","",null,null,"あかかます","フルチアセットメチル"]
[null,null,null,null,null,null,null,null,null,null,null,null,null,null,"","",null,null,"あじ","フルチアニル"]
[null,null,null,null,null,null,null,null,null,null,null,null,null,null,"","",null,null,"あまだい","フルトラニル"]
[null,null,null,null,null,null,null,null,null,null,null,null,null,null,"","",null,null,"いさき","フルトリアホール"]
[null,null,null,null,null,null,null,null,null,null,null,null,null,null,"","",null,null,"いしがきだい","フルニキシン"]
[null,null,null,null,null,null,null,null,null,null,null,null,null,null,"","",null,null,"いしもち","フルバリネート"]
[null,null,null,null,null,null,null,null,null,null,null,null,null,null,{"$f":"IF(D1027=\"\",\"\",MATCH(D1027,$S$2:$S$2488,0))","v":""},{"$f":"IF(H1027=\"\",\"\",MATCH(H1027,$T$2:$T$2472,0))","v":""},null,null,"いとよりだい","フルピラジフロン"]
[null,null,null,null,null,null,null,null,null,null,null,null,null,null,"","",null,null,"いぼだい","フルピリミン"]
[null,null,null,null,null,null,null,null,null,null,null,null,null,null,"","",null,null,"かじき","フルフェナセット"]
[null,null,null,null,null,null,null,null,null,null,null,null,null,null,"","",null,null,"かつお","フルフェノクスロン"]
[null,null,null,null,null,null,null,null,null,null,null,null,null,null,"","",null,null,"かます","フルフェンピルエチル"]
[null,null,null,null,null,null,null,null,null,null,null,null,null,null,"","",null,null,"かんぱち","フルプロパネート"]
[null,null,null,null,null,null,null,null,null,null,null,null,null,null,"","",null,null,"きす","フルベンジアミド"]
[null,null,null,null,null,null,null,null,null,null,null,null,null,null,"","",null,null,"きだい","フルベンダゾール"]
[null,null,null,null,null,null,null,null,null,null,null,null,null,null,"","",null,null,"くえ","フルミオキサジン"]
[null,null,null,null,null,null,null,null,null,null,null,null,null,null,"","",null,null,"くろそい","フルミクロラックペンチル"]
[null,null,null,null,null,null,null,null,null,null,null,null,null,null,"","",null,null,"くろだい","フルメキン"]
[null,null,null,null,null,null,null,null,null,null,null,null,null,null,"","",null,null,"さば","フルメツラム"]
[null,null,null,null,null,null,null,null,null,null,null,null,null,null,"","",null,null,"さわら","フルメトリン"]
[null,null,null,null,null,null,null,null,null,null,null,null,null,null,"","",null,null,"しまあじ","フルララネル"]
[null,null,null,null,null,null,null,null,null,null,null,null,null,null,"","",null,null,"シルバー","フルリドン"]
[null,null,null,null,null,null,null,null,null,null,null,null,null,null,"","",null,null,"しろぐち","フルロキシピル"]
[null,null,null,null,null,null,null,null,null,null,null,null,null,null,"","",null,null,"すずき","プレチラクロール"]
[null,null,null,null,null,null,null,null,null,null,null,null,null,null,"","",null,null,"そうだかつお","プレドニゾロン"]
[null,null,null,null,null,null,null,null,null,null,null,null,null,null,"","",null,null,"たい","プロカイン"]
[null,null,null,null,null,null,null,null,null,null,null,null,null,null,"","",null,null,"たかべ","プロクロノール"]
[null,null,null,null,null,null,null,null,null,null,null,null,null,null,"","",null,null,"たちうお","プロクロラズ"]
[null,null,null,null,null,null,null,null,null,null,null,null,null,null,"","",null,null,"ちだい","プロゲステロン"]
[null,null,null,null,null,null,null,null,null,null,null,null,null,null,"","",null,null,"にべ","プロシミドン"]
[null,null,null,null,null,null,null,null,null,null,null,null,null,null,"","",null,null,"ティラピア","プロスルフロン"]
[null,null,null,null,null,null,null,null,null,null,null,null,null,null,"","",null,null,"はぜ","プロスルホカルブ"]
[null,null,null,null,null,null,null,null,null,null,null,null,null,null,"","",null,null,"はたはた","プロチオコナゾール"]
[null,null,null,null,null,null,null,null,null,null,null,null,null,null,"","",null,null,"はまち","プロチオホス"]
[null,null,null,null,null,null,null,null,null,null,null,null,null,null,"","",null,null,"ひらまさ","プロチオホスオキソン"]
[null,null,null,null,null,null,null,null,null,null,null,null,null,null,"","",null,null,"ぶり","ブロチゾラム"]
[null,null,null,null,null,null,null,null,null,null,null,null,null,null,"","",null,null,"べら","ブロディファコウム"]
[null,null,null,null,null,null,null,null,null,null,null,null,null,null,"","",null,null,"まあじ","プロトエート"]
[null,null,null,null,null,null,null,null,null,null,null,null,null,null,"","",null,null,"まぐろ","フロニカミド"]
[null,null,null,null,null,null,null,null,null,null,null,null,null,null,"","",null,null,"きはだまぐろ","プロパキザホップ"]
[null,null,null,null,null,null,null,null,null,null,null,null,null,null,"","",null,null,"くろまぐろ","プロパクロール"]
[null,null,null,null,null,null,null,null,null,null,null,null,null,null,"","",null,null,"めばちまぐろ","プロパジン"]
[null,null,null,null,null,null,null,null,null,null,null,null,null,null,"","",null,null,"まながつお","プロパニル"]
[null,null,null,null,null,null,null,null,null,null,null,null,null,null,"","",null,null,"まはた","プロパホス"]
[null,null,null,null,null,null,null,null,null,null,null,null,null,null,"","",null,null,"まるあじ","プロパモカルブ"]
[null,null,null,null,null,null,null,null,null,null,null,null,null,null,"","",null,null,"まだい","プロパルギット"]
[null,null,null,null,null,null,null,null,null,null,null,null,null,null,"","",null,null,"めばる","プロピケル"]
[null,null,null,null,null,null,null,null,null,null,null,null,null,null,"","",null,null,"魚介類（すずき目）（冷凍）","プロピコナゾール"]
[null,null,null,null,null,null,null,null,null,null,null,null,null,null,"","",null,null,"かじき（冷凍）","プロピザミド"]
[null,null,null,null,null,null,null,null,null,null,null,null,null,null,"","",null,null,"かつお（冷凍）","プロヒドロジャスモン"]
[null,null,null,null,null,null,null,null,null,null,null,null,null,null,"","",null,null,"さば（冷凍）","プロピネブ"]
[null,null,null,null,null,null,null,null,null,null,null,null,null,null,"","",null,null,"さわら（冷凍）","プロピリスルフロン"]
[null,null,null,null,null,null,null,null,null,null,null,null,null,null,"","",null,null,"たちうお（冷凍）","プロファム"]
[null,null,null,null,null,null,null,null,null,null,null,null,null,null,"","",null,null,"まぐろ（冷凍）","プロフェノホス"]
[null,null,null,null,null,null,null,null,null,null,null,null,null,null,"","",null,null,"あじ（冷凍）","ブロフラニリド"]
[null,null,null,null,null,null,null,null,null,null,null,null,null,null,"","",null,null,"いぼだい（冷凍）","プロフルトリン"]
[null,null,null,null,null,null,null,null,null,null,null,null,null,null,"","",null,null,"ぶり（冷凍）","プロヘキサジオンカルシウム塩"]
[null,null,null,null,null,null,null,null,null,null,null,null,null,null,"","",null,null,"まながつお（冷凍）","プロペタンホス"]
[null,null,null,null,null,null,null,null,null,null,null,null,null,null,"","",null,null,"かんぱち（冷凍）","プロベナゾール"]
[null,null,null,null,null,null,null,null,null,null,null,null,null,null,"","",null,null,"いさき（冷凍）","プロポキシカルバゾン"]
[null,null,null,null,null,null,null,null,null,null,null,null,null,null,"","",null,null,"いとよりだい（冷凍）","プロポキスル"]
[null,null,null,null,null,null,null,null,null,null,null,null,null,null,"","",null,null,"すずき（冷凍）","ブロマジオロン"]
[null,null,null,null,null,null,null,null,null,null,null,null,null,null,"","",null,null,"たい（冷凍）","ブロマシル"]
[null,null,null,null,null,null,null,null,null,null,null,null,null,null,"","",null,null,"にべ（冷凍）","ブロムコナゾール"]
[null,null,null,null,null,null,null,null,null,null,null,null,null,null,"","",null,null,"めばる（冷凍）","ブロムフェノホス"]
[null,null,null,null,null,null,null,null,null,null,null,null,null,null,"","",null,null,"くえ（冷凍）","プロメカルブ"]
[null,null,null,null,null,null,null,null,null,null,null,null,null,null,"","",null,null,"あかかます（冷凍）","フロメトキン"]
[null,null,null,null,null,null,null,null,null,null,null,null,null,null,"","",null,null,"かます（冷凍）","プロメトリン"]
[null,null,null,null,null,null,null,null,null,null,null,null,null,null,"","",null,null,"あまだい（冷凍）","プロメトン"]
[null,null,null,null,null,null,null,null,null,null,null,null,null,null,"","",null,null,"はたはた（冷凍）","ブロモキシニル"]
[null,null,null,null,null,null,null,null,null,null,null,null,null,null,"","",null,null,"魚介類(ふぐ目魚類)","ブロモフェノホス"]
[null,null,null,null,null,null,null,null,null,null,null,null,null,null,{"$f":"IF(D1091=\"\",\"\",MATCH(D1091,$S$2:$S$2488,0))","v":""},{"$f":"IF(H1091=\"\",\"\",MATCH(H1091,$T$2:$T$2472,0))","v":""},null,null,"魚介類（その他の魚類）","ブロモブチド"]
[null,null,null,null,null,null,null,null,null,null,null,null,null,null,"","",null,null,"あいなめ","ブロモプロピレート"]
[null,null,null,null,null,null,null,null,null,null,null,null,null,null,"","",null,null,"あこうだい","ブロモホス"]
[null,null,null,null,null,null,null,null,null,null,null,null,null,null,"","",null,null,"あかうお","ブロモホスエチル"]
[null,null,null,null,null,null,null,null,null,null,null,null,null,null,"","",null,null,"あゆ","ブロモホスメチル"]
[null,null,null,null,null,null,null,null,null,null,null,null,null,null,"","",null,null,"あんこう","フロラスラム"]
[null,null,null,null,null,null,null,null,null,null,null,null,null,null,"","",null,null,"いわし","フロルピラウキシフェンベンジル"]
[null,null,null,null,null,null,null,null,null,null,null,null,null,null,"","",null,null,"うるめいわし","フロルフェニコール"]
[null,null,null,null,null,null,null,null,null,null,null,null,null,null,"","",null,null,"かたくちいわし","ヘキサクロロベンゼン"]
[null,null,null,null,null,null,null,null,null,null,null,null,null,null,"","",null,null,"まいわし","ヘキサコナゾール"]
[null,null,null,null,null,null,null,null,null,null,null,null,null,null,"","",null,null,"うぐい","ヘキサジノン"]
[null,null,null,null,null,null,null,null,null,null,null,null,null,null,"","",null,null,"えぞあいなめ","ヘキサフルムロン"]
[null,null,null,null,null,null,null,null,null,null,null,null,null,null,"","",null,null,"おこぜ","ヘキシチアゾクス"]
[null,null,null,null,null,null,null,null,null,null,null,null,null,null,"","",null,null,"かれい","ベダプロフェン"]
[null,null,null,null,null,null,null,null,null,null,null,null,null,null,"","",null,null,"かわはぎ","ベタメタゾン"]
[null,null,null,null,null,null,null,null,null,null,null,null,null,null,"","",null,null,"このしろ","ベナラキシル"]
[null,null,null,null,null,null,null,null,null,null,null,null,null,null,"","",null,null,"さより","ペニシリン"]
[null,null,null,null,null,null,null,null,null,null,null,null,null,null,"","",null,null,"すけとうだら","ペニシリン酸"]
[null,null,null,null,null,null,null,null,null,null,null,null,null,null,"","",null,null,"ぎんだら","ペネタメート"]
[null,null,null,null,null,null,null,null,null,null,null,null,null,null,"","",null,null,"きんめだい","ベノキサコール"]
[null,null,null,null,null,null,null,null,null,null,null,null,null,null,"","",null,null,"こい","ペノキススラム"]
[null,null,null,null,null,null,null,null,null,null,null,null,null,null,"","",null,null,"さんま","ベノフロキサシン"]
[null,null,null,null,null,null,null,null,null,null,null,null,null,null,"","",null,null,"ししゃも","ベノミル"]
[null,null,null,null,null,null,null,null,null,null,null,null,null,null,"","",null,null,"したびらめ","ヘプタクロル"]
[null,null,null,null,null,null,null,null,null,null,null,null,null,null,"","",null,null,"たら","ベブフロキサシン"]
[null,null,null,null,null,null,null,null,null,null,null,null,null,null,"","",null,null,"どじょう","ペフラゾエート"]
[null,null,null,null,null,null,null,null,null,null,null,null,null,null,"","",null,null,"とびうお","ペブレート"]
[null,null,null,null,null,null,null,null,null,null,null,null,null,null,"","",null,null,"とらふぐ","ペルタン"]
[null,null,null,null,null,null,null,null,null,null,null,null,null,null,"","",null,null,"なまず","ペルメトリン"]
[null,null,null,null,null,null,null,null,null,null,null,null,null,null,"","",null,null,"にしん","ペンコナゾール"]
[null,null,null,null,null,null,null,null,null,null,null,null,null,null,"","",null,null,"ひらめ","ペンシクロン"]
[null,null,null,null,null,null,null,null,null,null,null,null,null,null,"","",null,null,"ふぐ","ベンジルアデニン"]
[null,null,null,null,null,null,null,null,null,null,null,null,null,null,"","",null,null,"ふな","ベンジルペニシリン"]
[null,null,null,null,null,null,null,null,null,null,null,null,null,null,"","",null,null,"ほうぼう","ベンズピリモキサン"]
[null,null,null,null,null,null,null,null,null,null,null,null,null,null,"","",null,null,"ぼら","ベンスリド"]
[null,null,null,null,null,null,null,null,null,null,null,null,null,null,"","",null,null,"ほっけ","ベンスルタップ"]
[null,null,null,null,null,null,null,null,null,null,null,null,null,null,"","",null,null,"ほき","ベンスルフロンメチル"]
[null,null,null,null,null,null,null,null,null,null,null,null,null,null,"","",null,null,"ほんもろこ","ベンゾカイン"]
[null,null,null,null,null,null,null,null,null,null,null,null,null,null,"","",null,null,"まだら","ベンゾキシメート"]
[null,null,null,null,null,null,null,null,null,null,null,null,null,null,"","",null,null,"メルルーサ","ベンゾビシクロン"]
[null,null,null,null,null,null,null,null,null,null,null,null,null,null,"","",null,null,"わかさぎ","ベンゾビンジフルピル"]
[null,null,null,null,null,null,null,null,null,null,null,null,null,null,"","",null,null,"あゆ（冷凍）","ベンゾフェナップ"]
[null,null,null,null,null,null,null,null,null,null,null,null,null,null,"","",null,null,"どじょう（冷凍）","ベンゾメート"]
[null,null,null,null,null,null,null,null,null,null,null,null,null,null,"","",null,null,"なまず（冷凍）","ベンダイオカルブ"]
[null,null,null,null,null,null,null,null,null,null,null,null,null,null,"","",null,null,"わかさぎ（冷凍）","ペンタクロロフェノール"]
[null,null,null,null,null,null,null,null,null,null,null,null,null,null,"","",null,null,"ふな（冷凍）","ベンタゾン"]
[null,null,null,null,null,null,null,null,null,null,null,null,null,null,"","",null,null,"魚介類（その他の魚類）（冷凍）","ペンタノクロール"]
[null,null,null,null,null,null,null,null,null,null,null,null,null,null,"","",null,null,"おこぜ（冷凍）","ベンチアゾール"]
[null,null,null,null,null,null,null,null,null,null,null,null,null,null,"","",null,null,"いわし（冷凍）","ベンチアバリカルブイソプロピル"]
[null,null,null,null,null,null,null,null,null,null,null,null,null,null,"","",null,null,"にしん（冷凍）","ペンチオピラド"]
[null,null,null,null,null,null,null,null,null,null,null,null,null,null,"","",null,null,"すけとうだら（冷凍）","ペンディメタリン"]
[null,null,null,null,null,null,null,null,null,null,null,null,null,null,"","",null,null,"たら（冷凍）","ペントキサゾン"]
[null,null,null,null,null,null,null,null,null,null,null,null,null,null,"","",null,null,"メルルーサ（冷凍）","ベンフラカルブ"]
[null,null,null,null,null,null,null,null,null,null,null,null,null,null,"","",null,null,"したびらめ（冷凍）","ペンフルフェン"]
[null,null,null,null,null,null,null,null,null,null,null,null,null,null,"","",null,null,"かれい（冷凍）","ベンフルラリン"]
[null,null,null,null,null,null,null,null,null,null,null,null,null,null,"","",null,null,"ひらめ（冷凍）","ベンフレセート"]
[null,null,null,null,null,null,null,null,null,null,null,null,null,null,"","",null,null,"ふぐ（冷凍）","ホキシム"]
[null,null,null,null,null,null,null,null,null,null,null,null,null,null,"","",null,null,"とらふぐ（冷凍）","ホサロン"]
[null,null,null,null,null,null,null,null,null,null,null,null,null,null,"","",null,null,"あいなめ（冷凍）","ボスカリド"]
[null,null,null,null,null,null,null,null,null,null,null,null,null,null,"","",null,null,"あんこう（冷凍）","ホスダイフェン"]
[null,null,null,null,null,null,null,null,null,null,null,null,null,null,"","",null,null,"かわはぎ（冷凍）","ホスチアゼート"]
[null,null,null,null,null,null,null,null,null,null,null,null,null,null,"","",null,null,"さより（冷凍）","ホスファミドン"]
[null,null,null,null,null,null,null,null,null,null,null,null,null,null,"","",null,null,"さんま（冷凍）","ホスホマイシン"]
[null,null,null,null,null,null,null,null,null,null,null,null,null,null,"","",null,null,"ほうぼう（冷凍）","ホスメット"]
[null,null,null,null,null,null,null,null,null,null,null,null,null,null,{"$f":"IF(D1155=\"\",\"\",MATCH(D1155,$S$2:$S$2488,0))","v":""},{"$f":"IF(H1155=\"\",\"\",MATCH(H1155,$T$2:$T$2472,0))","v":""},null,null,"ほっけ（冷凍）","ホセチル"]
[null,null,null,null,null,null,null,null,null,null,null,null,null,null,"","",null,null,"魚介類（貝類）","ホノホス"]
[null,null,null,null,null,null,null,null,null,null,null,null,null,null,"","",null,null,"あかがい","ホメサフェン"]
[null,null,null,null,null,null,null,null,null,null,null,null,null,null,"","",null,null,"あさり","ホラムスルフロン"]
[null,null,null,null,null,null,null,null,null,null,null,null,null,null,"","",null,null,"あわび","ポリオキシンＤ亜鉛塩"]
[null,null,null,null,null,null,null,null,null,null,null,null,null,null,"","",null,null,"イガイ","ポリオキシン複合体"]
[null,null,null,null,null,null,null,null,null,null,null,null,null,null,"","",null,null,"しじみ","ポリナクチン"]
[null,null,null,null,null,null,null,null,null,null,null,null,null,null,"","",null,null,"さざえ","ポリミキシンＢ"]
[null,null,null,null,null,null,null,null,null,null,null,null,null,null,"","",null,null,"とりがい","ホルクロルフェニュロン"]
[null,null,null,null,null,null,null,null,null,null,null,null,null,null,"","",null,null,"ばかがい","ホルペット"]
[null,null,null,null,null,null,null,null,null,null,null,null,null,null,"","",null,null,"はまぐり","ホルペット代謝物"]
[null,null,null,null,null,null,null,null,null,null,null,null,null,null,"","",null,null,"ほたてがい","ホルモチオン"]
[null,null,null,null,null,null,null,null,null,null,null,null,null,null,"","",null,null,"ほっきがい","ホレート"]
[null,null,null,null,null,null,null,null,null,null,null,null,null,null,"","",null,null,"たいらぎがい","マイレックス"]
[null,null,null,null,null,null,null,null,null,null,null,null,null,null,"","",null,null,"とこぶし","マカルボマイシン"]
[null,null,null,null,null,null,null,null,null,null,null,null,null,null,"","",null,null,"牡蛎","マデュラマイシン"]
[null,null,null,null,null,null,null,null,null,null,null,null,null,null,"","",null,null,"岩牡蛎","マホプラジン"]
[null,null,null,null,null,null,null,null,null,null,null,null,null,null,"","",null,null,"みるがい","マラカイトグリーン"]
[null,null,null,null,null,null,null,null,null,null,null,null,null,null,"","",null,null,"むらさきいがい","マラチオン"]
[null,null,null,null,null,null,null,null,null,null,null,null,null,null,"","",null,null,"あかがい（冷凍）","マルボフロキサシン"]
[null,null,null,null,null,null,null,null,null,null,null,null,null,null,"","",null,null,"あさり（冷凍）","マレイン酸ヒドラジド"]
[null,null,null,null,null,null,null,null,null,null,null,null,null,null,"","",null,null,"魚介類（貝類）（冷凍）","マンジプロパミド"]
[null,null,null,null,null,null,null,null,null,null,null,null,null,null,"","",null,null,"牡蛎（冷凍）","マンゼブ"]
[null,null,null,null,null,null,null,null,null,null,null,null,null,null,"","",null,null,"しじみ（冷凍）","マンデストロビン"]
[null,null,null,null,null,null,null,null,null,null,null,null,null,null,"","",null,null,"とりがい（冷凍）","マンネブ"]
[null,null,null,null,null,null,null,null,null,null,null,null,null,null,"","",null,null,"ばかがい（冷凍）","ミクロブタニル"]
[null,null,null,null,null,null,null,null,null,null,null,null,null,null,"","",null,null,"はまぐり（冷凍）","ミルジオマイシン"]
[null,null,null,null,null,null,null,null,null,null,null,null,null,null,"","",null,null,"ほたてがい（冷凍）","ミルネブ"]
[null,null,null,null,null,null,null,null,null,null,null,null,null,null,"","",null,null,"ほっきがい（冷凍）","ミルベメクチン"]
[null,null,null,null,null,null,null,null,null,null,null,null,null,null,"","",null,null,"むらさきいがい（冷凍）","ミロキサシン"]
[null,null,null,null,null,null,null,null,null,null,null,null,null,null,"","",null,null,"たいらぎがい（冷凍）","ミロサマイシン"]
[null,null,null,null,null,null,null,null,null,null,null,null,null,null,"","",null,null,"あわび（冷凍）","メカルバム"]
[null,null,null,null,null,null,null,null,null,null,null,null,null,null,"","",null,null,"さざえ（冷凍）","メコプロップ"]
[null,null,null,null,null,null,null,null,null,null,null,null,null,null,"","",null,null,"とこぶし（冷凍）","メシリナム"]
[null,null,null,null,null,null,null,null,null,null,null,null,null,null,"","",null,null,"魚介類（甲殻類）","メスルフェンホス"]
[null,null,null,null,null,null,null,null,null,null,null,null,null,null,"","",null,null,"いせえび","メソスルフロンメチル"]
[null,null,null,null,null,null,null,null,null,null,null,null,null,null,"","",null,null,"えび","メソトリオン"]
[null,null,null,null,null,null,null,null,null,null,null,null,null,null,"","",null,null,"あまえび","メソミル"]
[null,null,null,null,null,null,null,null,null,null,null,null,null,null,"","",null,null,"くるまえび","メタアルデヒド"]
[null,null,null,null,null,null,null,null,null,null,null,null,null,null,"","",null,null,"さくらえび","メタクリホス"]
[null,null,null,null,null,null,null,null,null,null,null,null,null,null,"","",null,null,"バナメイえび","メタスルホカルブ"]
[null,null,null,null,null,null,null,null,null,null,null,null,null,null,"","",null,null,"ざりがに","メタゾール"]
[null,null,null,null,null,null,null,null,null,null,null,null,null,null,"","",null,null,"かに","メタゾスルフロン"]
[null,null,null,null,null,null,null,null,null,null,null,null,null,null,"","",null,null,"がざみ","メタフルミゾン"]
[null,null,null,null,null,null,null,null,null,null,null,null,null,null,"","",null,null,"けがに","メタベンズチアズロン"]
[null,null,null,null,null,null,null,null,null,null,null,null,null,null,"","",null,null,"ずわいがに","メタミドホス"]
[null,null,null,null,null,null,null,null,null,null,null,null,null,null,"","",null,null,"たらばがに","メタミトロン"]
[null,null,null,null,null,null,null,null,null,null,null,null,null,null,"","",null,null,"はなさきがに","メタミホップ"]
[null,null,null,null,null,null,null,null,null,null,null,null,null,null,"","",null,null,"ロブスター","メタム"]
[null,null,null,null,null,null,null,null,null,null,null,null,null,null,"","",null,null,"わたりがに","メタラキシル"]
[null,null,null,null,null,null,null,null,null,null,null,null,null,null,"","",null,null,"いせえび（冷凍）","メタラキシル及びメフェノキサム"]
[null,null,null,null,null,null,null,null,null,null,null,null,null,null,"","",null,null,"えび（冷凍）","メチオカルブ"]
[null,null,null,null,null,null,null,null,null,null,null,null,null,null,"","",null,null,"ざりがに（冷凍）","メチダチオン"]
[null,null,null,null,null,null,null,null,null,null,null,null,null,null,"","",null,null,"ロブスター（冷凍）","メチラム"]
[null,null,null,null,null,null,null,null,null,null,null,null,null,null,"","",null,null,"がざみ（冷凍）","メチルイソチオシアネート"]
[null,null,null,null,null,null,null,null,null,null,null,null,null,null,"","",null,null,"けがに（冷凍）","メチルオイゲノール"]
[null,null,null,null,null,null,null,null,null,null,null,null,null,null,"","",null,null,"ずわいがに（冷凍）","1-メチルシクロプロペン"]
[null,null,null,null,null,null,null,null,null,null,null,null,null,null,"","",null,null,"かに（冷凍）","メチルジメトン"]
[null,null,null,null,null,null,null,null,null,null,null,null,null,null,"","",null,null,"たらばがに（冷凍）","メチルダイムロン"]
[null,null,null,null,null,null,null,null,null,null,null,null,null,null,"","",null,null,"はなさきがに（冷凍）","メチルテトラプロール"]
[null,null,null,null,null,null,null,null,null,null,null,null,null,null,"","",null,null,"魚介類（甲殻類）（冷凍）","メチルプレドニゾロン"]
[null,null,null,null,null,null,null,null,null,null,null,null,null,null,"","",null,null,"その他の魚介類","メチルベンゾクエート"]
[null,null,null,null,null,null,null,null,null,null,null,null,null,null,"","",null,null,"うに","メチレンブルー"]
[null,null,null,null,null,null,null,null,null,null,null,null,null,null,"","",null,null,"たこ","メトキシクロール"]
[null,null,null,null,null,null,null,null,null,null,null,null,null,null,{"$f":"IF(D1219=\"\",\"\",MATCH(D1219,$S$2:$S$2488,0))","v":""},{"$f":"IF(H1219=\"\",\"\",MATCH(H1219,$T$2:$T$2472,0))","v":""},null,null,"いいだこ","メトキシフェノジド"]
[null,null,null,null,null,null,null,null,null,null,null,null,null,null,"","",null,null,"いか","メトクスロン"]
[null,null,null,null,null,null,null,null,null,null,null,null,null,null,"","",null,null,"あおりいか","メトクロプラミド"]
[null,null,null,null,null,null,null,null,null,null,null,null,null,null,"","",null,null,"やりいか","メトコナゾール"]
[null,null,null,null,null,null,null,null,null,null,null,null,null,null,"","",null,null,"もんごういか","メトスラム"]
[null,null,null,null,null,null,null,null,null,null,null,null,null,null,"","",null,null,"ほや","メトスルフロンメチル"]
[null,null,null,null,null,null,null,null,null,null,null,null,null,null,"","",null,null,"いか（冷凍）","メトプレン"]
[null,null,null,null,null,null,null,null,null,null,null,null,null,null,"","",null,null,"うに（冷凍）","メトプロトリン"]
[null,null,null,null,null,null,null,null,null,null,null,null,null,null,"","",null,null,"その他の魚介類（冷凍）","メトブロムロン"]
[null,null,null,null,null,null,null,null,null,null,null,null,null,null,"","",null,null,"たこ（冷凍）","メトミノストロビン"]
[null,null,null,null,null,null,null,null,null,null,null,null,null,null,"","",null,null,"ほや（冷凍）","メトラクロール"]
[null,null,null,null,null,null,null,null,null,null,null,null,null,null,"","",null,null,"はちみつ","メトラフェノン"]
[null,null,null,null,null,null,null,null,null,null,null,null,null,null,"","",null,null,"ローヤルゼリー","メトリブジン"]
[null,null,null,null,null,null,null,null,null,null,null,null,null,null,"","",null,null,"かえる","メトルカルブ"]
[null,null,null,null,null,null,null,null,null,null,null,null,null,null,"","",null,null,"かめ","メトロニダゾール"]
[null,null,null,null,null,null,null,null,null,null,null,null,null,null,"","",null,null,"かたつむり","メパニピリム"]
[null,null,null,null,null,null,null,null,null,null,null,null,null,null,"","",null,null,"昆虫","メパニピリムプロパノール体"]
[null,null,null,null,null,null,null,null,null,null,null,null,null,null,"","",null,null,"すっぽん","メピコートクロリド"]
[null,null,null,null,null,null,null,null,null,null,null,null,null,null,"","",null,null,"くじら","メビンホス"]
[null,null,null,null,null,null,null,null,null,null,null,null,null,null,"","",null,null,"かめ（冷凍）","メフェナセット"]
[null,null,null,null,null,null,null,null,null,null,null,null,null,null,"","",null,null,"かえる（冷凍）","メフェノキサム"]
[null,null,null,null,null,null,null,null,null,null,null,null,null,null,"","",null,null,"くじら（冷凍）","メフェントリフルコナゾール"]
[null,null,null,null,null,null,null,null,null,null,null,null,null,null,"","",null,null,"すっぽん（冷凍）","メフェンピルジエチル"]
[null,null,null,null,null,null,null,null,null,null,null,null,null,null,"","",null,null,"プロポリス","メフルイジド"]
[null,null,null,null,null,null,null,null,null,null,null,null,null,null,"","",null,null,"海藻","メプロニル"]
[null,null,null,null,null,null,null,null,null,null,null,null,null,null,"","",null,null,"こんぶ","メベンダゾール"]
[null,null,null,null,null,null,null,null,null,null,null,null,null,null,"","",null,null,"てんぐさ","メロキシカム"]
[null,null,null,null,null,null,null,null,null,null,null,null,null,null,"","",null,null,"わかめ","メンブトン"]
[null,null,null,null,null,null,null,null,null,null,null,null,null,null,"","",null,null,"こんぶ（冷凍）","モキシデクチン"]
[null,null,null,null,null,null,null,null,null,null,null,null,null,null,"","",null,null,"海藻（冷凍）","モサプリド"]
[null,null,null,null,null,null,null,null,null,null,null,null,null,null,"","",null,null,"わかめ（冷凍）","モネパンテル"]
[null,null,null,null,null,null,null,null,null,null,null,null,null,null,"","",null,null,"その他の一般食品","モネンシン"]
[null,null,null,null,null,null,null,null,null,null,null,null,null,null,"","",null,null,"その他の一般食品（冷凍）","モノクロトホス"]
[null,null,null,null,null,null,null,null,null,null,null,null,null,null,"","",null,null,"米ぬか","［モノ，ビス（塩化トリメチルアンモニウムメチレン）］－アルキルトルエン"]
[null,null,null,null,null,null,null,null,null,null,null,null,null,null,"","",null,null,"精米","モノリニュロン"]
[null,null,null,null,null,null,null,null,null,null,null,null,null,null,"","",null,null,"小麦粉","モランテル"]
[null,null,null,null,null,null,null,null,null,null,null,null,null,null,"","",null,null,"小麦はい芽","モリネート"]
[null,null,null,null,null,null,null,null,null,null,null,null,null,null,"","",null,null,"小麦ふすま","２－ケトモリネート"]
[null,null,null,null,null,null,null,null,null,null,null,null,null,null,"","",null,null,"ライ麦粉（全粉粒）","モルファムコート"]
[null,null,null,null,null,null,null,null,null,null,null,null,null,null,"","",null,null,"ライ麦粉","モルホチオン"]
[null,null,null,null,null,null,null,null,null,null,null,null,null,null,"","",null,null,"ライ麦ふすま","ヨウ化メチル"]
[null,null,null,null,null,null,null,null,null,null,null,null,null,null,"","",null,null,"とうもろこし粉","ライドロマイシン"]
[null,null,null,null,null,null,null,null,null,null,null,null,null,null,"","",null,null,"とうもろこし油","ラクトパミン"]
[null,null,null,null,null,null,null,null,null,null,null,null,null,null,"","",null,null,"大豆油","ラクトフェン"]
[null,null,null,null,null,null,null,null,null,null,null,null,null,null,"","",null,null,"らっかせい油","ラサロシド"]
[null,null,null,null,null,null,null,null,null,null,null,null,null,null,"","",null,null,"ポテトフレーク","ラフォキサニド"]
[null,null,null,null,null,null,null,null,null,null,null,null,null,null,"","",null,null,"乾燥にら","ランコトリオンナトリウム塩"]
[null,null,null,null,null,null,null,null,null,null,null,null,null,null,"","",null,null,"トマトジュース","リトルア"]
[null,null,null,null,null,null,null,null,null,null,null,null,null,null,"","",null,null,"トマトピューレー","リニュロン"]
[null,null,null,null,null,null,null,null,null,null,null,null,null,null,"","",null,null,"トマトペースト","リバビリン"]
[null,null,null,null,null,null,null,null,null,null,null,null,null,null,"","",null,null,"乾燥とうがらし","リファキシミン"]
[null,null,null,null,null,null,null,null,null,null,null,null,null,null,"","",null,null,"乾燥野菜","リムスルフロン"]
[null,null,null,null,null,null,null,null,null,null,null,null,null,null,"","",null,null,"オレンジジュース","硫化カルボニル"]
[null,null,null,null,null,null,null,null,null,null,null,null,null,null,"","",null,null,"かんきつ類果実ジュース","リン化水素"]
[null,null,null,null,null,null,null,null,null,null,null,null,null,null,"","",null,null,"グレープフルーツジュース","リンコマイシン"]
[null,null,null,null,null,null,null,null,null,null,null,null,null,null,"","",null,null,"レモンジュース","ルバベグロン"]
[null,null,null,null,null,null,null,null,null,null,null,null,null,null,"","",null,null,"りんごジュース","ルフェヌロン"]
[null,null,null,null,null,null,null,null,null,null,null,null,null,null,"","",null,null,"もも（乾燥させたもの）","レスメトリン"]
[null,null,null,null,null,null,null,null,null,null,null,null,null,null,"","",null,null,"乾燥もも","レナシル"]
[null,null,null,null,null,null,null,null,null,null,null,null,null,null,"","",null,null,"乾燥すもも","レバミゾール"]
[null,null,null,null,null,null,null,null,null,null,null,null,null,null,"","",null,null,"もも（乾燥）","レピメクチン"]
[null,null,null,null,null,null,null,null,null,null,null,null,null,null,"","",null,null,"すもも（乾燥）","レプトホス"]
[null,null,null,null,null,null,null,null,null,null,null,null,null,null,"","",null,null,"乾燥いちじく","ロイコマラカイトグリーン"]
[null,null,null,null,null,null,null,null,null,null,null,null,null,null,"","",null,null,"ぶどうジュース","ロキサルソン"]
[null,null,null,null,null,null,null,null,null,null,null,null,null,null,{"$f":"IF(D1283=\"\",\"\",MATCH(D1283,$S$2:$S$2488,0))","v":""},{"$f":"IF(H1283=\"\",\"\",MATCH(H1283,$T$2:$T$2472,0))","v":""},null,null,"干しぶどう","ロニダゾール"]
[null,null,null,null,null,null,null,null,null,null,null,null,null,null,"","",null,null,"乾燥なつめやし","ロベニジン"]
[null,null,null,null,null,null,null,null,null,null,null,null,null,null,"","",null,null,"コーヒー豆(焙煎したもの)","ロメフロキサシン"]
[null,null,null,null,null,null,null,null,null,null,null,null,null,null,"","",null,null,"オリーブ油","ワルファリン"]
[null,null,null,null,null,null,null,null,null,null,null,null,null,null,"","",null,null,"乾燥マンゴー","ＰＣＢ"]
[null,null,null,null,null,null,null,null,null,null,null,null,null,null,"","",null,null,"乾燥果実","亜鉛"]
[null,null,null,null,null,null,null,null,null,null,null,null,null,null,"","",null,null,"あんず（乾燥）","亜塩素酸"]
[null,null,null,null,null,null,null,null,null,null,null,null,null,null,"","",null,null,"うめ（乾燥）","亜硝酸"]
[null,null,null,null,null,null,null,null,null,null,null,null,null,null,"","",null,null,"りんご（乾燥）","亜硝酸性窒素"]
[null,null,null,null,null,null,null,null,null,null,null,null,null,null,"","",null,null,"パイナップル（乾燥）","総アフラトキシン"]
[null,null,null,null,null,null,null,null,null,null,null,null,null,null,"","",null,null,"バナナ（乾燥）","アフラトキシンＢ１"]
[null,null,null,null,null,null,null,null,null,null,null,null,null,null,"","",null,null,"マンゴー（乾燥）","アフラトキシンＢ２"]
[null,null,null,null,null,null,null,null,null,null,null,null,null,null,"","",null,null,"なつめやし（乾燥）","アフラトキシンＧ１"]
[null,null,null,null,null,null,null,null,null,null,null,null,null,null,"","",null,null,"パパイヤ（乾燥）","アフラトキシンＧ２"]
[null,null,null,null,null,null,null,null,null,null,null,null,null,null,"","",null,null,"ココナッツ（乾燥）","アフラトキシンＭ１"]
[null,null,null,null,null,null,null,null,null,null,null,null,null,null,"","",null,null,"ぶどう（乾燥）","アフラトキシンＭ２"]
[null,null,null,null,null,null,null,null,null,null,null,null,null,null,"","",null,null,"かき（乾燥）","アミグダリン"]
[null,null,null,null,null,null,null,null,null,null,null,null,null,null,"","",null,null,"くこの実（乾燥）","アルミニウム"]
[null,null,null,null,null,null,null,null,null,null,null,null,null,null,"","",null,null,"果実（乾燥）","アンチモン"]
[null,null,null,null,null,null,null,null,null,null,null,null,null,null,"","",null,null,"ドリアン（乾燥）","塩化ジブチルスズ"]
[null,null,null,null,null,null,null,null,null,null,null,null,null,null,"","",null,null,"ひまわり油","塩化トリフェニルスズ"]
[null,null,null,null,null,null,null,null,null,null,null,null,null,null,"","",null,null,"綿実油","塩化トリブチルスズ"]
[null,null,null,null,null,null,null,null,null,null,null,null,null,null,"","",null,null,"亜麻仁油","塩素酸"]
[null,null,null,null,null,null,null,null,null,null,null,null,null,null,"","",null,null,"なたね油","オカダ酸"]
[null,null,null,null,null,null,null,null,null,null,null,null,null,null,"","",null,null,"植物油","オクラトキシンＡ"]
[null,null,null,null,null,null,null,null,null,null,null,null,null,null,"","",null,null,"ごま油","オクラトキシンＢ"]
[null,null,null,null,null,null,null,null,null,null,null,null,null,null,"","",null,null,"米油","カダベリン"]
[null,null,null,null,null,null,null,null,null,null,null,null,null,null,"","",null,null,"乾燥させたその他のスパイス","カドミウム"]
[null,null,null,null,null,null,null,null,null,null,null,null,null,null,"","",null,null,"乾燥させたその他のスパイス（果実）","カルバミン酸エチル"]
[null,null,null,null,null,null,null,null,null,null,null,null,null,null,"","",null,null,"乾燥させたその他のスパイス（種子）","ククルビタシン"]
[null,null,null,null,null,null,null,null,null,null,null,null,null,null,"","",null,null,"乾燥させたその他のスパイス（根又は根茎）","クレゾール"]
[null,null,null,null,null,null,null,null,null,null,null,null,null,null,"","",null,null,"乾燥バジル","クロム"]
[null,null,null,null,null,null,null,null,null,null,null,null,null,null,"","",null,null,"乾燥ハーブ","クロム（６価）"]
[null,null,null,null,null,null,null,null,null,null,null,null,null,null,"","",null,null,"その他の乾燥ハーブ","クロロ酢酸"]
[null,null,null,null,null,null,null,null,null,null,null,null,null,null,"","",null,null,"いくら","クロロホルム"]
[null,null,null,null,null,null,null,null,null,null,null,null,null,null,"","",null,null,"すじこ","下痢性貝毒"]
[null,null,null,null,null,null,null,null,null,null,null,null,null,null,"","",null,null,"野菜加工品","コバルト"]
[null,null,null,null,null,null,null,null,null,null,null,null,null,null,"","",null,null,"野菜（加工冷凍）","残留塩素"]
[null,null,null,null,null,null,null,null,null,null,null,null,null,null,"","",null,null,"スイートコーン（加工冷凍）","酢酸トリブチルスズ"]
[null,null,null,null,null,null,null,null,null,null,null,null,null,null,"","",null,null,"ばれいしょ（加工冷凍）","シアン"]
[null,null,null,null,null,null,null,null,null,null,null,null,null,null,"","",null,null,"さといも（加工冷凍）","シアン化合物"]
[null,null,null,null,null,null,null,null,null,null,null,null,null,null,"","",null,null,"だいこん（加工冷凍）","ジエチレングリコール"]
[null,null,null,null,null,null,null,null,null,null,null,null,null,null,"","",null,null,"こまつな（加工冷凍）","四塩化炭素"]
[null,null,null,null,null,null,null,null,null,null,null,null,null,null,"","",null,null,"チンゲンサイ（加工冷凍）","１，４－ジオキサン"]
[null,null,null,null,null,null,null,null,null,null,null,null,null,null,"","",null,null,"カリフラワー（加工冷凍）","シガトキシン"]
[null,null,null,null,null,null,null,null,null,null,null,null,null,null,"","",null,null,"ブロッコリー（加工冷凍）","ジクロロアセトニトリル"]
[null,null,null,null,null,null,null,null,null,null,null,null,null,null,"","",null,null,"菜の花（加工冷凍）","ジクロロ酢酸"]
[null,null,null,null,null,null,null,null,null,null,null,null,null,null,"","",null,null,"にんにくの茎（加工冷凍）","２，４－ジクロロアニリン"]
[null,null,null,null,null,null,null,null,null,null,null,null,null,null,"","",null,null,"にんじん（加工冷凍）","１，２－ジクロロエタン"]
[null,null,null,null,null,null,null,null,null,null,null,null,null,null,"","",null,null,"ピーマン（加工冷凍）","１，２－ジクロロエチレン"]
[null,null,null,null,null,null,null,null,null,null,null,null,null,null,"","",null,null,"カラーピーマン（加工冷凍）","ジクロロメタン"]
[null,null,null,null,null,null,null,null,null,null,null,null,null,null,"","",null,null,"かぼちゃ（加工冷凍）","ジクロロモノブロモメタン"]
[null,null,null,null,null,null,null,null,null,null,null,null,null,null,"","",null,null,"ほうれんそう（加工冷凍）","シス－１，２－ジクロロエチレン及びトランス－１，２－ジクロロエチレン"]
[null,null,null,null,null,null,null,null,null,null,null,null,null,null,"","",null,null,"オクラ（加工冷凍）","シトリニン"]
[null,null,null,null,null,null,null,null,null,null,null,null,null,null,"","",null,null,"未成熟えんどう（加工冷凍）","ジノフィシストキシン１"]
[null,null,null,null,null,null,null,null,null,null,null,null,null,null,"","",null,null,"グリーンピース（加工冷凍）","ジノフィシストキシン２"]
[null,null,null,null,null,null,null,null,null,null,null,null,null,null,"","",null,null,"未成熟いんげん（加工冷凍）","ジブチルスズ"]
[null,null,null,null,null,null,null,null,null,null,null,null,null,null,"","",null,null,"えだまめ（加工冷凍）","ジブロモクロロメタン"]
[null,null,null,null,null,null,null,null,null,null,null,null,null,null,"","",null,null,"しいたけ（加工冷凍）","ジブロモモノクロロメタン"]
[null,null,null,null,null,null,null,null,null,null,null,null,null,null,"","",null,null,"きのこ（加工冷凍）","臭素酸"]
[null,null,null,null,null,null,null,null,null,null,null,null,null,null,"","",null,null,"未成熟そら豆（加工冷凍）","硝酸"]
[null,null,null,null,null,null,null,null,null,null,null,null,null,null,"","",null,null,"未成熟ふじ豆（加工冷凍）","硝酸性窒素及び亜硝酸性窒素"]
[null,null,null,null,null,null,null,null,null,null,null,null,null,null,"","",null,null,"れんこん（加工冷凍）","水銀"]
[null,null,null,null,null,null,null,null,null,null,null,null,null,null,"","",null,null,"こんにゃくいも（乾燥）","スズ"]
[null,null,null,null,null,null,null,null,null,null,null,null,null,null,{"$f":"IF(D1347=\"\",\"\",MATCH(D1347,$S$2:$S$2488,0))","v":""},{"$f":"IF(H1347=\"\",\"\",MATCH(H1347,$T$2:$T$2472,0))","v":""},null,null,"かんしょ（乾燥）","スペルミジン"]
[null,null,null,null,null,null,null,null,null,null,null,null,null,null,"","",null,null,"キャッサバ（乾燥）","ゼアラレノン"]
[null,null,null,null,null,null,null,null,null,null,null,null,null,null,"","",null,null,"いも類（乾燥）","セレン"]
[null,null,null,null,null,null,null,null,null,null,null,null,null,null,"","",null,null,"かぼちゃ（乾燥）","全有機炭素"]
[null,null,null,null,null,null,null,null,null,null,null,null,null,null,"","",null,null,"かんぴょう（乾燥）","総トリハロメタン"]
[null,null,null,null,null,null,null,null,null,null,null,null,null,null,"","",null,null,"キャベツ（乾燥）","チラミン"]
[null,null,null,null,null,null,null,null,null,null,null,null,null,null,"","",null,null,"野菜（乾燥）","デオキシニバレノール"]
[null,null,null,null,null,null,null,null,null,null,null,null,null,null,"","",null,null,"しょうが（乾燥）","鉄"]
[null,null,null,null,null,null,null,null,null,null,null,null,null,null,"","",null,null,"ぜんまい（乾燥）","テトラクロロエチレン"]
[null,null,null,null,null,null,null,null,null,null,null,null,null,null,"","",null,null,"だいこんの根（乾燥）","テトラミン"]
[null,null,null,null,null,null,null,null,null,null,null,null,null,null,"","",null,null,"たけのこ（乾燥）","テトロドトキシン"]
[null,null,null,null,null,null,null,null,null,null,null,null,null,null,"","",null,null,"たまねぎ（乾燥）","銅"]
[null,null,null,null,null,null,null,null,null,null,null,null,null,null,"","",null,null,"朝鮮にんじん（乾燥）","トリクロロエチレン"]
[null,null,null,null,null,null,null,null,null,null,null,null,null,null,"","",null,null,"にんじん（乾燥）","トリクロロ酢酸"]
[null,null,null,null,null,null,null,null,null,null,null,null,null,null,"","",null,null,"にんにく（乾燥）","トリクロロダイオキシン"]
[null,null,null,null,null,null,null,null,null,null,null,null,null,null,"","",null,null,"ねぎ（乾燥）","トリフェニルスズ"]
[null,null,null,null,null,null,null,null,null,null,null,null,null,null,"","",null,null,"パセリ（乾燥）","トリブチルスズ"]
[null,null,null,null,null,null,null,null,null,null,null,null,null,null,"","",null,null,"ほうれんそう（乾燥）","トルエン"]
[null,null,null,null,null,null,null,null,null,null,null,null,null,null,"","",null,null,"わさび（乾燥）","ニッケル"]
[null,null,null,null,null,null,null,null,null,null,null,null,null,null,"","",null,null,"わらび（乾燥）","ニバレノール"]
[null,null,null,null,null,null,null,null,null,null,null,null,null,null,"","",null,null,"よもぎ（乾燥）","パツリン"]
[null,null,null,null,null,null,null,null,null,null,null,null,null,null,"","",null,null,"わけぎ（乾燥）","バリウム"]
[null,null,null,null,null,null,null,null,null,null,null,null,null,null,"","",null,null,"にんじん（水煮）","ヒスタミン"]
[null,null,null,null,null,null,null,null,null,null,null,null,null,null,"","",null,null,"たけのこ（水煮）","フェオフォルバイド"]
[null,null,null,null,null,null,null,null,null,null,null,null,null,null,"","",null,null,"ぜんまい（水煮）","フタル酸ジ（２－エチルヘキシル）"]
[null,null,null,null,null,null,null,null,null,null,null,null,null,null,"","",null,null,"れんこん（水煮）","フッ素"]
[null,null,null,null,null,null,null,null,null,null,null,null,null,null,"","",null,null,"アーティチョーク（水煮）","プトレシン"]
[null,null,null,null,null,null,null,null,null,null,null,null,null,null,"","",null,null,"グリーンピース（水煮）","フモニシン"]
[null,null,null,null,null,null,null,null,null,null,null,null,null,null,"","",null,null,"トマト（水煮）","ブロモジクロロメタン"]
[null,null,null,null,null,null,null,null,null,null,null,null,null,null,"","",null,null,"ピメント（水煮）","ブロモホルム"]
[null,null,null,null,null,null,null,null,null,null,null,null,null,null,"","",null,null,"ヤングコーン（水煮）","ベンゼン"]
[null,null,null,null,null,null,null,null,null,null,null,null,null,null,"","",null,null,"キャッサバ（水煮）","ホウ素"]
[null,null,null,null,null,null,null,null,null,null,null,null,null,null,"","",null,null,"スイートコーン（水煮）","ホルムアルデヒド"]
[null,null,null,null,null,null,null,null,null,null,null,null,null,null,"","",null,null,"アスパラガス（水煮）","マンガン"]
[null,null,null,null,null,null,null,null,null,null,null,null,null,null,"","",null,null,"野菜（水煮）","メタノール"]
[null,null,null,null,null,null,null,null,null,null,null,null,null,null,"","",null,null,"あんず（シロップ漬け）","メチル水銀"]
[null,null,null,null,null,null,null,null,null,null,null,null,null,null,"","",null,null,"おうとう（シロップ漬け）","有機スズ"]
[null,null,null,null,null,null,null,null,null,null,null,null,null,null,"","",null,null,"グレープフルーツ（シロップ漬け）","リン酸"]
[null,null,null,null,null,null,null,null,null,null,null,null,null,null,"","",null,null,"すもも（シロップ漬け）","その他"]
[null,null,null,null,null,null,null,null,null,null,null,null,null,null,"","",null,null,"なし（シロップ漬け）"]
[null,null,null,null,null,null,null,null,null,null,null,null,null,null,"","",null,null,"なつめやし（シロップ漬け）"]
[null,null,null,null,null,null,null,null,null,null,null,null,null,null,"","",null,null,"パイナップル（シロップ漬け）"]
[null,null,null,null,null,null,null,null,null,null,null,null,null,null,"","",null,null,"ぶどう（シロップ漬け）"]
[null,null,null,null,null,null,null,null,null,null,null,null,null,null,"","",null,null,"ベリー類（シロップ漬け）"]
[null,null,null,null,null,null,null,null,null,null,null,null,null,null,"","",null,null,"みかん（シロップ漬け）"]
[null,null,null,null,null,null,null,null,null,null,null,null,null,null,"","",null,null,"もも（シロップ漬け）"]
[null,null,null,null,null,null,null,null,null,null,null,null,null,null,"","",null,null,"りんご（シロップ漬け）"]
[null,null,null,null,null,null,null,null,null,null,null,null,null,null,"","",null,null,"ライチ（シロップ漬け）"]
[null,null,null,null,null,null,null,null,null,null,null,null,null,null,"","",null,null,"果実（シロップ漬け）"]
[null,null,null,null,null,null,null,null,null,null,null,null,null,null,"","",null,null,"あんず（ジャム）"]
[null,null,null,null,null,null,null,null,null,null,null,null,null,null,"","",null,null,"いちご（ジャム）"]
[null,null,null,null,null,null,null,null,null,null,null,null,null,null,"","",null,null,"ブルーベリー（ジャム）"]
[null,null,null,null,null,null,null,null,null,null,null,null,null,null,"","",null,null,"ラズベリー（ジャム）"]
[null,null,null,null,null,null,null,null,null,null,null,null,null,null,"","",null,null,"オレンジ（マーマレード）"]
[null,null,null,null,null,null,null,null,null,null,null,null,null,null,"","",null,null,"レモン（マーマレード）"]
[null,null,null,null,null,null,null,null,null,null,null,null,null,null,"","",null,null,"果実加工品（マーマレード）"]
[null,null,null,null,null,null,null,null,null,null,null,null,null,null,"","",null,null,"果実加工品（ペースト）"]
[null,null,null,null,null,null,null,null,null,null,null,null,null,null,"","",null,null,"マンゴー（加工冷凍）"]
[null,null,null,null,null,null,null,null,null,null,null,null,null,null,"","",null,null,"ライチ（加工冷凍）"]
[null,null,null,null,null,null,null,null,null,null,null,null,null,null,"","",null,null,"マンゴスチン（加工冷凍）"]
[null,null,null,null,null,null,null,null,null,null,null,null,null,null,"","",null,null,"果実加工品"]
[null,null,null,null,null,null,null,null,null,null,null,null,null,null,"","",null,null,"果実（加工冷凍）"]
[null,null,null,null,null,null,null,null,null,null,null,null,null,null,"","",null,null,"ラズベリー（加工冷凍）"]
[null,null,null,null,null,null,null,null,null,null,null,null,null,null,"","",null,null,"ブルーベリー（加工冷凍）"]
[null,null,null,null,null,null,null,null,null,null,null,null,null,null,{"$f":"IF(D1411=\"\",\"\",MATCH(D1411,$S$2:$S$2488,0))","v":""},{"$f":"IF(H1411=\"\",\"\",MATCH(H1411,$T$2:$T$2472,0))","v":""},null,null,"その他の果実（加工冷凍）"]
[null,null,null,null,null,null,null,null,null,null,null,null,null,null,"","",null,null,"果実加工品（ジャム）"]
[null,null,null,null,null,null,null,null,null,null,null,null,null,null,"","",null,null,"果実加工品（シロップ漬け）"]
[null,null,null,null,null,null,null,null,null,null,null,null,null,null,"","",null,null,"くり加工品"]
[null,null,null,null,null,null,null,null,null,null,null,null,null,null,"","",null,null,"くるみ加工品"]
[null,null,null,null,null,null,null,null,null,null,null,null,null,null,"","",null,null,"ぎんなん加工品"]
[null,null,null,null,null,null,null,null,null,null,null,null,null,null,"","",null,null,"アーモンド加工品"]
[null,null,null,null,null,null,null,null,null,null,null,null,null,null,"","",null,null,"カシューナッツ加工品"]
[null,null,null,null,null,null,null,null,null,null,null,null,null,null,"","",null,null,"ピスタチオナッツ加工品"]
[null,null,null,null,null,null,null,null,null,null,null,null,null,null,"","",null,null,"マカダミアナッツ加工品"]
[null,null,null,null,null,null,null,null,null,null,null,null,null,null,"","",null,null,"ヘーゼルナッツ加工品"]
[null,null,null,null,null,null,null,null,null,null,null,null,null,null,"","",null,null,"ブラジルナッツ加工品"]
[null,null,null,null,null,null,null,null,null,null,null,null,null,null,"","",null,null,"ペカンナッツ加工品"]
[null,null,null,null,null,null,null,null,null,null,null,null,null,null,"","",null,null,"すいかの種子加工品"]
[null,null,null,null,null,null,null,null,null,null,null,null,null,null,"","",null,null,"ごまの種子加工品"]
[null,null,null,null,null,null,null,null,null,null,null,null,null,null,"","",null,null,"かぼちゃの種子加工品"]
[null,null,null,null,null,null,null,null,null,null,null,null,null,null,"","",null,null,"ひまわりの種子加工品"]
[null,null,null,null,null,null,null,null,null,null,null,null,null,null,"","",null,null,"亜麻仁加工品"]
[null,null,null,null,null,null,null,null,null,null,null,null,null,null,"","",null,null,"はすの種子加工品"]
[null,null,null,null,null,null,null,null,null,null,null,null,null,null,"","",null,null,"くり加工品（ペースト）"]
[null,null,null,null,null,null,null,null,null,null,null,null,null,null,"","",null,null,"アーモンド加工品（ペースト）"]
[null,null,null,null,null,null,null,null,null,null,null,null,null,null,"","",null,null,"ピスタチオ加工品（ペースト）"]
[null,null,null,null,null,null,null,null,null,null,null,null,null,null,"","",null,null,"くり（シロップ漬け）"]
[null,null,null,null,null,null,null,null,null,null,null,null,null,null,"","",null,null,"ナッツ（シロップ漬け）"]
[null,null,null,null,null,null,null,null,null,null,null,null,null,null,"","",null,null,"ナッツ（加工冷凍）"]
[null,null,null,null,null,null,null,null,null,null,null,null,null,null,"","",null,null,"くり（加工冷凍）"]
[null,null,null,null,null,null,null,null,null,null,null,null,null,null,"","",null,null,"野菜加工品（トマト）"]
[null,null,null,null,null,null,null,null,null,null,null,null,null,null,"","",null,null,"野菜加工品（ケチャップ）"]
[null,null,null,null,null,null,null,null,null,null,null,null,null,null,"","",null,null,"漬物"]
[null,null,null,null,null,null,null,null,null,null,null,null,null,null,"","",null,null,"キムチ"]
[null,null,null,null,null,null,null,null,null,null,null,null,null,null,"","",null,null,"サワークラウト"]
[null,null,null,null,null,null,null,null,null,null,null,null,null,null,"","",null,null,"野菜加工品（かんぴょう）"]
[null,null,null,null,null,null,null,null,null,null,null,null,null,null,"","",null,null,"いも加工品"]
[null,null,null,null,null,null,null,null,null,null,null,null,null,null,"","",null,null,"いも加工品（フライドポテト）"]
[null,null,null,null,null,null,null,null,null,null,null,null,null,null,"","",null,null,"いも加工品（ポテトチップス）"]
[null,null,null,null,null,null,null,null,null,null,null,null,null,null,"","",null,null,"いも加工品（ほしいも）"]
[null,null,null,null,null,null,null,null,null,null,null,null,null,null,"","",null,null,"いも加工品（冷凍）"]
[null,null,null,null,null,null,null,null,null,null,null,null,null,null,"","",null,null,"いも加工品（冷凍フライドポテト）"]
[null,null,null,null,null,null,null,null,null,null,null,null,null,null,"","",null,null,"穀類加工品"]
[null,null,null,null,null,null,null,null,null,null,null,null,null,null,"","",null,null,"穀類加工品（米飯）"]
[null,null,null,null,null,null,null,null,null,null,null,null,null,null,"","",null,null,"穀類加工品（もち）"]
[null,null,null,null,null,null,null,null,null,null,null,null,null,null,"","",null,null,"穀類加工品（乾めん）"]
[null,null,null,null,null,null,null,null,null,null,null,null,null,null,"","",null,null,"穀類加工品（生めん）"]
[null,null,null,null,null,null,null,null,null,null,null,null,null,null,"","",null,null,"穀類加工品（即席めん）"]
[null,null,null,null,null,null,null,null,null,null,null,null,null,null,"","",null,null,"穀類加工品（パスタ）"]
[null,null,null,null,null,null,null,null,null,null,null,null,null,null,"","",null,null,"穀類加工品（パン）"]
[null,null,null,null,null,null,null,null,null,null,null,null,null,null,"","",null,null,"はるさめ"]
[null,null,null,null,null,null,null,null,null,null,null,null,null,null,"","",null,null,"とうもろこし加工品"]
[null,null,null,null,null,null,null,null,null,null,null,null,null,null,"","",null,null,"きのこ加工品"]
[null,null,null,null,null,null,null,null,null,null,null,null,null,null,"","",null,null,"豆加工品"]
[null,null,null,null,null,null,null,null,null,null,null,null,null,null,"","",null,null,"豆乳"]
[null,null,null,null,null,null,null,null,null,null,null,null,null,null,"","",null,null,"とうふ"]
[null,null,null,null,null,null,null,null,null,null,null,null,null,null,"","",null,null,"あん"]
[null,null,null,null,null,null,null,null,null,null,null,null,null,null,"","",null,null,"大豆加工品"]
[null,null,null,null,null,null,null,null,null,null,null,null,null,null,"","",null,null,"大豆（水煮）"]
[null,null,null,null,null,null,null,null,null,null,null,null,null,null,"","",null,null,"ナッツ加工品"]
[null,null,null,null,null,null,null,null,null,null,null,null,null,null,"","",null,null,"ナッツ加工品（くり）"]
[null,null,null,null,null,null,null,null,null,null,null,null,null,null,"","",null,null,"ピーナッツ加工品"]
[null,null,null,null,null,null,null,null,null,null,null,null,null,null,"","",null,null,"オイルシード加工品"]
[null,null,null,null,null,null,null,null,null,null,null,null,null,null,"","",null,null,"果汁（冷凍）"]
[null,null,null,null,null,null,null,null,null,null,null,null,null,null,"","",null,null,"惣菜"]
[null,null,null,null,null,null,null,null,null,null,null,null,null,null,"","",null,null,"惣菜（冷凍）"]
[null,null,null,null,null,null,null,null,null,null,null,null,null,null,"","",null,null,"調味料"]
[null,null,null,null,null,null,null,null,null,null,null,null,null,null,"","",null,null,"砂糖"]
[null,null,null,null,null,null,null,null,null,null,null,null,null,null,{"$f":"IF(D1475=\"\",\"\",MATCH(D1475,$S$2:$S$2488,0))","v":""},{"$f":"IF(H1475=\"\",\"\",MATCH(H1475,$T$2:$T$2472,0))","v":""},null,null,"食塩"]
[null,null,null,null,null,null,null,null,null,null,null,null,null,null,"","",null,null,"酢"]
[null,null,null,null,null,null,null,null,null,null,null,null,null,null,"","",null,null,"しょうゆ"]
[null,null,null,null,null,null,null,null,null,null,null,null,null,null,"","",null,null,"みそ"]
[null,null,null,null,null,null,null,null,null,null,null,null,null,null,"","",null,null,"油脂加工品"]
[null,null,null,null,null,null,null,null,null,null,null,null,null,null,"","",null,null,"魚加工品"]
[null,null,null,null,null,null,null,null,null,null,null,null,null,null,"","",null,null,"うなぎ蒲焼"]
[null,null,null,null,null,null,null,null,null,null,null,null,null,null,"","",null,null,"うなぎ蒲焼（冷凍）"]
[null,null,null,null,null,null,null,null,null,null,null,null,null,null,"","",null,null,"うなぎ白焼"]
[null,null,null,null,null,null,null,null,null,null,null,null,null,null,"","",null,null,"うなぎ白焼（冷凍）"]
[null,null,null,null,null,null,null,null,null,null,null,null,null,null,"","",null,null,"しらす"]
[null,null,null,null,null,null,null,null,null,null,null,null,null,null,"","",null,null,"ちりめん"]
[null,null,null,null,null,null,null,null,null,null,null,null,null,null,"","",null,null,"魚加工品（冷凍）"]
[null,null,null,null,null,null,null,null,null,null,null,null,null,null,"","",null,null,"魚油"]
[null,null,null,null,null,null,null,null,null,null,null,null,null,null,"","",null,null,"水産動物油脂"]
[null,null,null,null,null,null,null,null,null,null,null,null,null,null,"","",null,null,"魚卵加工品"]
[null,null,null,null,null,null,null,null,null,null,null,null,null,null,"","",null,null,"たらこ"]
[null,null,null,null,null,null,null,null,null,null,null,null,null,null,"","",null,null,"かずのこ"]
[null,null,null,null,null,null,null,null,null,null,null,null,null,null,"","",null,null,"肉加工品"]
[null,null,null,null,null,null,null,null,null,null,null,null,null,null,"","",null,null,"ハム"]
[null,null,null,null,null,null,null,null,null,null,null,null,null,null,"","",null,null,"ソーセージ"]
[null,null,null,null,null,null,null,null,null,null,null,null,null,null,"","",null,null,"ベーコン"]
[null,null,null,null,null,null,null,null,null,null,null,null,null,null,"","",null,null,"肉加工品（冷凍）"]
[null,null,null,null,null,null,null,null,null,null,null,null,null,null,"","",null,null,"卵加工品"]
[null,null,null,null,null,null,null,null,null,null,null,null,null,null,"","",null,null,"卵加工品（液卵）"]
[null,null,null,null,null,null,null,null,null,null,null,null,null,null,"","",null,null,"魚介類加工品"]
[null,null,null,null,null,null,null,null,null,null,null,null,null,null,"","",null,null,"貝（むき身・むき身冷凍）"]
[null,null,null,null,null,null,null,null,null,null,null,null,null,null,"","",null,null,"魚介類加工品（えび）"]
[null,null,null,null,null,null,null,null,null,null,null,null,null,null,"","",null,null,"魚介類加工品（いか）"]
[null,null,null,null,null,null,null,null,null,null,null,null,null,null,"","",null,null,"魚介類加工品（貝）"]
[null,null,null,null,null,null,null,null,null,null,null,null,null,null,"","",null,null,"魚介類加工品（水煮）"]
[null,null,null,null,null,null,null,null,null,null,null,null,null,null,"","",null,null,"菓子"]
[null,null,null,null,null,null,null,null,null,null,null,null,null,null,"","",null,null,"菓子（焼き菓子）"]
[null,null,null,null,null,null,null,null,null,null,null,null,null,null,"","",null,null,"菓子（キャンディ）"]
[null,null,null,null,null,null,null,null,null,null,null,null,null,null,"","",null,null,"菓子（チョコレート）"]
[null,null,null,null,null,null,null,null,null,null,null,null,null,null,"","",null,null,"菓子（洋菓子）"]
[null,null,null,null,null,null,null,null,null,null,null,null,null,null,"","",null,null,"菓子（冷凍）"]
[null,null,null,null,null,null,null,null,null,null,null,null,null,null,"","",null,null,"はちみつ加工品"]
[null,null,null,null,null,null,null,null,null,null,null,null,null,null,"","",null,null,"プロポリス加工品"]
[null,null,null,null,null,null,null,null,null,null,null,null,null,null,"","",null,null,"ローヤルゼリー加工品"]
[null,null,null,null,null,null,null,null,null,null,null,null,null,null,"","",null,null,"ギムネマ茶"]
[null,null,null,null,null,null,null,null,null,null,null,null,null,null,"","",null,null,"チャパラル茶"]
[null,null,null,null,null,null,null,null,null,null,null,null,null,null,"","",null,null,"トチュウ茶"]
[null,null,null,null,null,null,null,null,null,null,null,null,null,null,"","",null,null,"マテ茶"]
[null,null,null,null,null,null,null,null,null,null,null,null,null,null,"","",null,null,"柿の葉茶"]
[null,null,null,null,null,null,null,null,null,null,null,null,null,null,"","",null,null,"その他の茶の代用品"]
[null,null,null,null,null,null,null,null,null,null,null,null,null,null,"","",null,null,"その他の加工食品"]
[null,null,null,null,null,null,null,null,null,null,null,null,null,null,"","",null,null,"でんぷん"]
[null,null,null,null,null,null,null,null,null,null,null,null,null,null,"","",null,null,"植物性たんぱく"]
[null,null,null,null,null,null,null,null,null,null,null,null,null,null,"","",null,null,"健康食品"]
[null,null,null,null,null,null,null,null,null,null,null,null,null,null,"","",null,null,"あじ（切り身）"]
[null,null,null,null,null,null,null,null,null,null,null,null,null,null,"","",null,null,"ティラピア（切り身）"]
[null,null,null,null,null,null,null,null,null,null,null,null,null,null,"","",null,null,"かれい（切り身）"]
[null,null,null,null,null,null,null,null,null,null,null,null,null,null,"","",null,null,"魚介類（さけ目）（切り身）"]
[null,null,null,null,null,null,null,null,null,null,null,null,null,null,"","",null,null,"さば（切り身）"]
[null,null,null,null,null,null,null,null,null,null,null,null,null,null,"","",null,null,"まぐろ（切り身）"]
[null,null,null,null,null,null,null,null,null,null,null,null,null,null,"","",null,null,"ひらめ（切り身）"]
[null,null,null,null,null,null,null,null,null,null,null,null,null,null,"","",null,null,"かんぱち（切り身）"]
[null,null,null,null,null,null,null,null,null,null,null,null,null,null,"","",null,null,"いとよりだい（切り身）"]
[null,null,null,null,null,null,null,null,null,null,null,null,null,null,"","",null,null,"魚介類（その他の魚類）（切り身）"]
[null,null,null,null,null,null,null,null,null,null,null,null,null,null,"","",null,null,"かつお（切り身）"]
[null,null,null,null,null,null,null,null,null,null,null,null,null,null,"","",null,null,"きす（切り身）"]
[null,null,null,null,null,null,null,null,null,null,null,null,null,null,"","",null,null,"どじょう（切り身）"]
[null,null,null,null,null,null,null,null,null,null,null,null,null,null,"","",null,null,"なまず（切り身）"]
[null,null,null,null,null,null,null,null,null,null,null,null,null,null,{"$f":"IF(D1539=\"\",\"\",MATCH(D1539,$S$2:$S$2488,0))","v":""},{"$f":"IF(H1539=\"\",\"\",MATCH(H1539,$T$2:$T$2472,0))","v":""},null,null,"はも（切り身）"]
[null,null,null,null,null,null,null,null,null,null,null,null,null,null,"","",null,null,"かわはぎ（切り身）"]
[null,null,null,null,null,null,null,null,null,null,null,null,null,null,"","",null,null,"あじ（切り身冷凍）"]
[null,null,null,null,null,null,null,null,null,null,null,null,null,null,"","",null,null,"ティラピア（切り身冷凍）"]
[null,null,null,null,null,null,null,null,null,null,null,null,null,null,"","",null,null,"かれい（切り身冷凍）"]
[null,null,null,null,null,null,null,null,null,null,null,null,null,null,"","",null,null,"魚介類（さけ目）（切り身冷凍）"]
[null,null,null,null,null,null,null,null,null,null,null,null,null,null,"","",null,null,"さば（切り身冷凍）"]
[null,null,null,null,null,null,null,null,null,null,null,null,null,null,"","",null,null,"まぐろ（切り身冷凍）"]
[null,null,null,null,null,null,null,null,null,null,null,null,null,null,"","",null,null,"ひらめ（切り身冷凍）"]
[null,null,null,null,null,null,null,null,null,null,null,null,null,null,"","",null,null,"いとよりだい（切り身冷凍）"]
[null,null,null,null,null,null,null,null,null,null,null,null,null,null,"","",null,null,"魚介類（その他の魚類）（切り身冷凍）"]
[null,null,null,null,null,null,null,null,null,null,null,null,null,null,"","",null,null,"かつお（切り身冷凍）"]
[null,null,null,null,null,null,null,null,null,null,null,null,null,null,"","",null,null,"きす（切り身冷凍）"]
[null,null,null,null,null,null,null,null,null,null,null,null,null,null,"","",null,null,"どじょう（切り身冷凍）"]
[null,null,null,null,null,null,null,null,null,null,null,null,null,null,"","",null,null,"なまず（切り身冷凍）"]
[null,null,null,null,null,null,null,null,null,null,null,null,null,null,"","",null,null,"はも（切り身冷凍）"]
[null,null,null,null,null,null,null,null,null,null,null,null,null,null,"","",null,null,"かわはぎ（切り身冷凍）"]
[null,null,null,null,null,null,null,null,null,null,null,null,null,null,"","",null,null,"さば加工品（冷凍）"]
[null,null,null,null,null,null,null,null,null,null,null,null,null,null,"","",null,null,"うなぎ加工品（冷凍）"]
[null,null,null,null,null,null,null,null,null,null,null,null,null,null,"","",null,null,"あなご加工品（冷凍）"]
[null,null,null,null,null,null,null,null,null,null,null,null,null,null,"","",null,null,"なまず加工品（冷凍）"]
[null,null,null,null,null,null,null,null,null,null,null,null,null,null,"","",null,null,"はも加工品（冷凍）"]
[null,null,null,null,null,null,null,null,null,null,null,null,null,null,"","",null,null,"あじ加工品（冷凍）"]
[null,null,null,null,null,null,null,null,null,null,null,null,null,null,"","",null,null,"きす加工品（冷凍）"]
[null,null,null,null,null,null,null,null,null,null,null,null,null,null,"","",null,null,"たら加工品（冷凍）"]
[null,null,null,null,null,null,null,null,null,null,null,null,null,null,"","",null,null,"あかがい（むき身・むき身冷凍）"]
[null,null,null,null,null,null,null,null,null,null,null,null,null,null,"","",null,null,"牡蛎（むき身・むき身冷凍）"]
[null,null,null,null,null,null,null,null,null,null,null,null,null,null,"","",null,null,"たいらぎがい（むき身・むき身冷凍）"]
[null,null,null,null,null,null,null,null,null,null,null,null,null,null,"","",null,null,"とりがい（むき身・むき身冷凍）"]
[null,null,null,null,null,null,null,null,null,null,null,null,null,null,"","",null,null,"ほたてがい（むき身・むき身冷凍）"]
[null,null,null,null,null,null,null,null,null,null,null,null,null,null,"","",null,null,"あわび（むき身・むき身冷凍）"]
[null,null,null,null,null,null,null,null,null,null,null,null,null,null,"","",null,null,"さざえ（むき身・むき身冷凍）"]
[null,null,null,null,null,null,null,null,null,null,null,null,null,null,"","",null,null,"あさり（むき身・むき身冷凍）"]
[null,null,null,null,null,null,null,null,null,null,null,null,null,null,"","",null,null,"しじみ（むき身・むき身冷凍）"]
[null,null,null,null,null,null,null,null,null,null,null,null,null,null,"","",null,null,"はまぐり（むき身・むき身冷凍）"]
[null,null,null,null,null,null,null,null,null,null,null,null,null,null,"","",null,null,"ほっきがい（むき身・むき身冷凍）"]
[null,null,null,null,null,null,null,null,null,null,null,null,null,null,"","",null,null,"とりがい加工品（冷凍）"]
[null,null,null,null,null,null,null,null,null,null,null,null,null,null,"","",null,null,"ほっきがい加工品（冷凍）"]
[null,null,null,null,null,null,null,null,null,null,null,null,null,null,"","",null,null,"貝加工品（冷凍）"]
[null,null,null,null,null,null,null,null,null,null,null,null,null,null,"","",null,null,"牡蛎加工品（冷凍）"]
[null,null,null,null,null,null,null,null,null,null,null,null,null,null,"","",null,null,"いか（切り身、むき身）"]
[null,null,null,null,null,null,null,null,null,null,null,null,null,null,"","",null,null,"うに（切り身、むき身）"]
[null,null,null,null,null,null,null,null,null,null,null,null,null,null,"","",null,null,"えび（切り身、むき身）"]
[null,null,null,null,null,null,null,null,null,null,null,null,null,null,"","",null,null,"かに（切り身、むき身）"]
[null,null,null,null,null,null,null,null,null,null,null,null,null,null,"","",null,null,"たこ（切り身、むき身）"]
[null,null,null,null,null,null,null,null,null,null,null,null,null,null,"","",null,null,"くじら（切り身）"]
[null,null,null,null,null,null,null,null,null,null,null,null,null,null,"","",null,null,"いか（切り身冷凍）"]
[null,null,null,null,null,null,null,null,null,null,null,null,null,null,"","",null,null,"うに（切り身冷凍）"]
[null,null,null,null,null,null,null,null,null,null,null,null,null,null,"","",null,null,"えび（切り身冷凍）"]
[null,null,null,null,null,null,null,null,null,null,null,null,null,null,"","",null,null,"かに（切り身冷凍）"]
[null,null,null,null,null,null,null,null,null,null,null,null,null,null,"","",null,null,"たこ（切り身冷凍）"]
[null,null,null,null,null,null,null,null,null,null,null,null,null,null,"","",null,null,"くじら（切り身冷凍）"]
[null,null,null,null,null,null,null,null,null,null,null,null,null,null,"","",null,null,"かに加工品（冷凍）"]
[null,null,null,null,null,null,null,null,null,null,null,null,null,null,"","",null,null,"えび加工品（冷凍）"]
[null,null,null,null,null,null,null,null,null,null,null,null,null,null,"","",null,null,"しゃこ加工品（冷凍）"]
[null,null,null,null,null,null,null,null,null,null,null,null,null,null,"","",null,null,"いか加工品（冷凍）"]
[null,null,null,null,null,null,null,null,null,null,null,null,null,null,"","",null,null,"魚介類加工品（冷凍）"]
[null,null,null,null,null,null,null,null,null,null,null,null,null,null,"","",null,null,"魚卵加工品（冷凍）"]
[null,null,null,null,null,null,null,null,null,null,null,null,null,null,"","",null,null,"穀類加工品（パン冷凍）"]
[null,null,null,null,null,null,null,null,null,null,null,null,null,null,"","",null,null,"穀類加工品（めん冷凍）"]
[null,null,null,null,null,null,null,null,null,null,null,null,null,null,"","",null,null,"穀類加工品（冷凍）"]
[null,null,null,null,null,null,null,null,null,null,null,null,null,null,"","",null,null,"穀類加工品（米飯冷凍）"]
[null,null,null,null,null,null,null,null,null,null,null,null,null,null,"","",null,null,"ピーナッツ加工品（冷凍）"]
[null,null,null,null,null,null,null,null,null,null,null,null,null,null,"","",null,null,"豆加工品（冷凍）"]
[null,null,null,null,null,null,null,null,null,null,null,null,null,null,{"$f":"IF(D1603=\"\",\"\",MATCH(D1603,$S$2:$S$2488,0))","v":""},{"$f":"IF(H1603=\"\",\"\",MATCH(H1603,$T$2:$T$2472,0))","v":""},null,null,"こんにゃくいも加工品"]
[null,null,null,null,null,null,null,null,null,null,null,null,null,null,"","",null,null,"ばれいしょ加工品"]
[null,null,null,null,null,null,null,null,null,null,null,null,null,null,"","",null,null,"キャッサバ加工品"]
[null,null,null,null,null,null,null,null,null,null,null,null,null,null,"","",null,null,"たまねぎ加工品"]
[null,null,null,null,null,null,null,null,null,null,null,null,null,null,"","",null,null,"朝鮮にんじん加工品"]
[null,null,null,null,null,null,null,null,null,null,null,null,null,null,"","",null,null,"トマト加工品"]
[null,null,null,null,null,null,null,null,null,null,null,null,null,null,"","",null,null,"にんにく加工品"]
[null,null,null,null,null,null,null,null,null,null,null,null,null,null,"","",null,null,"うり加工品（塩蔵）"]
[null,null,null,null,null,null,null,null,null,null,null,null,null,null,"","",null,null,"きゅうり加工品（塩蔵）"]
[null,null,null,null,null,null,null,null,null,null,null,null,null,null,"","",null,null,"ごぼう加工品（塩蔵）"]
[null,null,null,null,null,null,null,null,null,null,null,null,null,null,"","",null,null,"野菜加工品（塩蔵）"]
[null,null,null,null,null,null,null,null,null,null,null,null,null,null,"","",null,null,"しょうが加工品（塩蔵）"]
[null,null,null,null,null,null,null,null,null,null,null,null,null,null,"","",null,null,"せり加工品（塩蔵）"]
[null,null,null,null,null,null,null,null,null,null,null,null,null,null,"","",null,null,"ぜんまい加工品（塩蔵）"]
[null,null,null,null,null,null,null,null,null,null,null,null,null,null,"","",null,null,"だいこんの根加工品（塩蔵）"]
[null,null,null,null,null,null,null,null,null,null,null,null,null,null,"","",null,null,"たけのこ加工品（塩蔵）"]
[null,null,null,null,null,null,null,null,null,null,null,null,null,null,"","",null,null,"なす加工品（塩蔵）"]
[null,null,null,null,null,null,null,null,null,null,null,null,null,null,"","",null,null,"にんにく加工品（塩蔵）"]
[null,null,null,null,null,null,null,null,null,null,null,null,null,null,"","",null,null,"らっきょう加工品（塩蔵）"]
[null,null,null,null,null,null,null,null,null,null,null,null,null,null,"","",null,null,"わらび加工品（塩蔵）"]
[null,null,null,null,null,null,null,null,null,null,null,null,null,null,"","",null,null,"トマトピューレ"]
[null,null,null,null,null,null,null,null,null,null,null,null,null,null,"","",null,null,"野菜加工品（ペースト）"]
[null,null,null,null,null,null,null,null,null,null,null,null,null,null,"","",null,null,"野菜加工品（冷凍）"]
[null,null,null,null,null,null,null,null,null,null,null,null,null,null,"","",null,null,"モロヘイヤ（加工冷凍）"]
[null,null,null,null,null,null,null,null,null,null,null,null,null,null,"","",null,null,"しゅんぎく（加工冷凍）"]
[null,null,null,null,null,null,null,null,null,null,null,null,null,null,"","",null,null,"にら（加工冷凍）"]
[null,null,null,null,null,null,null,null,null,null,null,null,null,null,"","",null,null,"ゴーヤ（加工冷凍）"]
[null,null,null,null,null,null,null,null,null,null,null,null,null,null,"","",null,null,"未成熟ささげ（加工冷凍）"]
[null,null,null,null,null,null,null,null,null,null,null,null,null,null,"","",null,null,"わけぎ（加工冷凍）"]
[null,null,null,null,null,null,null,null,null,null,null,null,null,null,"","",null,null,"キャッサバ（加工冷凍）"]
[null,null,null,null,null,null,null,null,null,null,null,null,null,null,"","",null,null,"かんしょ（加工冷凍）"]
[null,null,null,null,null,null,null,null,null,null,null,null,null,null,"","",null,null,"ねぎ（加工冷凍）"]
[null,null,null,null,null,null,null,null,null,null,null,null,null,null,"","",null,null,"パプリカ（加工冷凍）"]
[null,null,null,null,null,null,null,null,null,null,null,null,null,null,"","",null,null,"アスパラガス（加工冷凍）"]
[null,null,null,null,null,null,null,null,null,null,null,null,null,null,"","",null,null,"しょうが（加工冷凍）"]
[null,null,null,null,null,null,null,null,null,null,null,null,null,null,"","",null,null,"セロリ（加工冷凍）"]
[null,null,null,null,null,null,null,null,null,null,null,null,null,null,"","",null,null,"たけのこ（加工冷凍）"]
[null,null,null,null,null,null,null,null,null,null,null,null,null,null,"","",null,null,"たまねぎ（加工冷凍）"]
[null,null,null,null,null,null,null,null,null,null,null,null,null,null,"","",null,null,"にんにく（加工冷凍）"]
[null,null,null,null,null,null,null,null,null,null,null,null,null,null,"","",null,null,"ヤングコーン（加工冷凍）"]
[null,null,null,null,null,null,null,null,null,null,null,null,null,null,"","",null,null,"ごぼう（加工冷凍）"]
[null,null,null,null,null,null,null,null,null,null,null,null,null,null,"","",null,null,"マッシュルーム（塩蔵）"]
[null,null,null,null,null,null,null,null,null,null,null,null,null,null,"","",null,null,"まつたけ（塩蔵）"]
[null,null,null,null,null,null,null,null,null,null,null,null,null,null,"","",null,null,"きのこ（塩蔵）"]
[null,null,null,null,null,null,null,null,null,null,null,null,null,null,"","",null,null,"マッシュルーム（水煮）"]
[null,null,null,null,null,null,null,null,null,null,null,null,null,null,"","",null,null,"ひらたけ（水煮）"]
[null,null,null,null,null,null,null,null,null,null,null,null,null,null,"","",null,null,"きのこ（水煮）"]
[null,null,null,null,null,null,null,null,null,null,null,null,null,null,"","",null,null,"きくらげ（水煮）"]
[null,null,null,null,null,null,null,null,null,null,null,null,null,null,"","",null,null,"しめじ（水煮）"]
[null,null,null,null,null,null,null,null,null,null,null,null,null,null,"","",null,null,"きくらげ（加工冷凍）"]
[null,null,null,null,null,null,null,null,null,null,null,null,null,null,"","",null,null,"しめじ（加工冷凍）"]
[null,null,null,null,null,null,null,null,null,null,null,null,null,null,"","",null,null,"うめ加工品"]
[null,null,null,null,null,null,null,null,null,null,null,null,null,null,"","",null,null,"オリーブ加工品"]
[null,null,null,null,null,null,null,null,null,null,null,null,null,null,"","",null,null,"海藻（乾燥）"]
[null,null,null,null,null,null,null,null,null,null,null,null,null,null,"","",null,null,"海藻加工品"]
[null,null,null,null,null,null,null,null,null,null,null,null,null,null,"","",null,null,"清涼飲料"]
[null,null,null,null,null,null,null,null,null,null,null,null,null,null,"","",null,null,"粉末清涼飲料"]
[null,null,null,null,null,null,null,null,null,null,null,null,null,null,"","",null,null,"インスタントコーヒー"]
[null,null,null,null,null,null,null,null,null,null,null,null,null,null,"","",null,null,"ミネラルウォーター"]
[null,null,null,null,null,null,null,null,null,null,null,null,null,null,"","",null,null,"乳飲料"]
[null,null,null,null,null,null,null,null,null,null,null,null,null,null,"","",null,null,"加工乳"]
[null,null,null,null,null,null,null,null,null,null,null,null,null,null,"","",null,null,"果実酒"]
[null,null,null,null,null,null,null,null,null,null,null,null,null,null,"","",null,null,"ワイン"]
[null,null,null,null,null,null,null,null,null,null,null,null,null,null,"","",null,null,"野菜ジュース"]
[null,null,null,null,null,null,null,null,null,null,null,null,null,null,{"$f":"IF(D1667=\"\",\"\",MATCH(D1667,$S$2:$S$2488,0))","v":""},{"$f":"IF(H1667=\"\",\"\",MATCH(H1667,$T$2:$T$2472,0))","v":""},null,null,"果実ジュース"]
[null,null,null,null,null,null,null,null,null,null,null,null,null,null,"","",null,null,"果汁"]
[null,null,null,null,null,null,null,null,null,null,null,null,null,null,"","",null,null,"乳製品"]
[null,null,null,null,null,null,null,null,null,null,null,null,null,null,"","",null,null,"チーズ"]
[null,null,null,null,null,null,null,null,null,null,null,null,null,null,"","",null,null,"バター"]
[null,null,null,null,null,null,null,null,null,null,null,null,null,null,"","",null,null,"発酵乳"]
[null,null,null,null,null,null,null,null,null,null,null,null,null,null,"","",null,null,"調製粉乳"]
[null,null,null,null,null,null,null,null,null,null,null,null,null,null,"","",null,null,"アイスクリーム類"]
[null,null,null,null,null,null,null,null,null,null,null,null,null,null,"","",null,null,"乾燥きのこ"]
[null,null,null,null,null,null,null,null,null,null,null,null,null,null,"","",null,null,"干ししいたけ"]
[null,null,null,null,null,null,null,null,null,null,null,null,null,null,"","",null,null,"マッシュルーム（乾燥）"]
[null,null,null,null,null,null,null,null,null,null,null,null,null,null,"","",null,null,"きくらげ（乾燥）"]
[null,null,null,null,null,null,null,null,null,null,null,null,null,null,"","",null,null,"きのこ（乾燥）"]
[null,null,null,null,null,null,null,null,null,null,null,null,null,null,"","",null,null,"アルコール飲料"]
[null,null,null,null,null,null,null,null,null,null,null,null,null,null,"","",null,null,"マーケットバスケット試料１群"]
[null,null,null,null,null,null,null,null,null,null,null,null,null,null,"","",null,null,"マーケットバスケット試料２群"]
[null,null,null,null,null,null,null,null,null,null,null,null,null,null,"","",null,null,"マーケットバスケット試料３群"]
[null,null,null,null,null,null,null,null,null,null,null,null,null,null,"","",null,null,"マーケットバスケット試料４群"]
[null,null,null,null,null,null,null,null,null,null,null,null,null,null,"","",null,null,"マーケットバスケット試料５群"]
[null,null,null,null,null,null,null,null,null,null,null,null,null,null,"","",null,null,"マーケットバスケット試料６群"]
[null,null,null,null,null,null,null,null,null,null,null,null,null,null,"","",null,null,"マーケットバスケット試料７群"]
[null,null,null,null,null,null,null,null,null,null,null,null,null,null,"","",null,null,"マーケットバスケット試料８群"]
[null,null,null,null,null,null,null,null,null,null,null,null,null,null,"","",null,null,"マーケットバスケット試料９群"]
[null,null,null,null,null,null,null,null,null,null,null,null,null,null,"","",null,null,"マーケットバスケット試料１０群"]
[null,null,null,null,null,null,null,null,null,null,null,null,null,null,"","",null,null,"マーケットバスケット試料１１群"]
[null,null,null,null,null,null,null,null,null,null,null,null,null,null,"","",null,null,"マーケットバスケット試料１２群"]
[null,null,null,null,null,null,null,null,null,null,null,null,null,null,"","",null,null,"マーケットバスケット試料１３群"]
[null,null,null,null,null,null,null,null,null,null,null,null,null,null,"","",null,null,"マーケットバスケット試料１４群"]
[null,null,null,null,null,null,null,null,null,null,null,null,null,null,"","",null,null,"その他"]
[null,null,null,null,null,null,null,null,null,null,null,null,null,null,"",""]
[null,null,null,null,null,null,null,null,null,null,null,null,null,null,"",""]
[null,null,null,null,null,null,null,null,null,null,null,null,null,null,"",""]
[null,null,null,null,null,null,null,null,null,null,null,null,null,null,"",""]
[null,null,null,null,null,null,null,null,null,null,null,null,null,null,"",""]
[null,null,null,null,null,null,null,null,null,null,null,null,null,null,"",""]
[null,null,null,null,null,null,null,null,null,null,null,null,null,null,"",""]
[null,null,null,null,null,null,null,null,null,null,null,null,null,null,"",""]
[null,null,null,null,null,null,null,null,null,null,null,null,null,null,"",""]
[null,null,null,null,null,null,null,null,null,null,null,null,null,null,"",""]
[null,null,null,null,null,null,null,null,null,null,null,null,null,null,"",""]
[null,null,null,null,null,null,null,null,null,null,null,null,null,null,"",""]
[null,null,null,null,null,null,null,null,null,null,null,null,null,null,"",""]
[null,null,null,null,null,null,null,null,null,null,null,null,null,null,"",""]
[null,null,null,null,null,null,null,null,null,null,null,null,null,null,"",""]
[null,null,null,null,null,null,null,null,null,null,null,null,null,null,"",""]
[null,null,null,null,null,null,null,null,null,null,null,null,null,null,"",""]
[null,null,null,null,null,null,null,null,null,null,null,null,null,null,"",""]
[null,null,null,null,null,null,null,null,null,null,null,null,null,null,"",""]
[null,null,null,null,null,null,null,null,null,null,null,null,null,null,"",""]
[null,null,null,null,null,null,null,null,null,null,null,null,null,null,"",""]
[null,null,null,null,null,null,null,null,null,null,null,null,null,null,"",""]
[null,null,null,null,null,null,null,null,null,null,null,null,null,null,"",""]
[null,null,null,null,null,null,null,null,null,null,null,null,null,null,"",""]
[null,null,null,null,null,null,null,null,null,null,null,null,null,null,"",""]
[null,null,null,null,null,null,null,null,null,null,null,null,null,null,"",""]
[null,null,null,null,null,null,null,null,null,null,null,null,null,null,"",""]
[null,null,null,null,null,null,null,null,null,null,null,null,null,null,"",""]
[null,null,null,null,null,null,null,null,null,null,null,null,null,null,"",""]
[null,null,null,null,null,null,null,null,null,null,null,null,null,null,"",""]
[null,null,null,null,null,null,null,null,null,null,null,null,null,null,"",""]
[null,null,null,null,null,null,null,null,null,null,null,null,null,null,"",""]
[null,null,null,null,null,null,null,null,null,null,null,null,null,null,"",""]
[null,null,null,null,null,null,null,null,null,null,null,null,null,null,"",""]
[null,null,null,null,null,null,null,null,null,null,null,null,null,null,"",""]
[null,null,null,null,null,null,null,null,null,null,null,null,null,null,{"$f":"IF(D1731=\"\",\"\",MATCH(D1731,$S$2:$S$2488,0))","v":""},{"$f":"IF(H1731=\"\",\"\",MATCH(H1731,$T$2:$T$2472,0))","v":""}]
[null,null,null,null,null,null,null,null,null,null,null,null,null,null,"",""]
[null,null,null,null,null,null,null,null,null,null,null,null,null,null,"",""]
[null,null,null,null,null,null,null,null,null,null,null,null,null,null,"",""]
[null,null,null,null,null,null,null,null,null,null,null,null,null,null,"",""]
[null,null,null,null,null,null,null,null,null,null,null,null,null,null,"",""]
[null,null,null,null,null,null,null,null,null,null,null,null,null,null,"",""]
[null,null,null,null,null,null,null,null,null,null,null,null,null,null,"",""]
[null,null,null,null,null,null,null,null,null,null,null,null,null,null,"",""]
[null,null,null,null,null,null,null,null,null,null,null,null,null,null,"",""]
[null,null,null,null,null,null,null,null,null,null,null,null,null,null,"",""]
[null,null,null,null,null,null,null,null,null,null,null,null,null,null,"",""]
[null,null,null,null,null,null,null,null,null,null,null,null,null,null,"",""]
[null,null,null,null,null,null,null,null,null,null,null,null,null,null,"",""]
[null,null,null,null,null,null,null,null,null,null,null,null,null,null,"",""]
[null,null,null,null,null,null,null,null,null,null,null,null,null,null,"",""]
[null,null,null,null,null,null,null,null,null,null,null,null,null,null,"",""]
[null,null,null,null,null,null,null,null,null,null,null,null,null,null,"",""]
[null,null,null,null,null,null,null,null,null,null,null,null,null,null,"",""]
[null,null,null,null,null,null,null,null,null,null,null,null,null,null,"",""]
[null,null,null,null,null,null,null,null,null,null,null,null,null,null,"",""]
[null,null,null,null,null,null,null,null,null,null,null,null,null,null,"",""]
[null,null,null,null,null,null,null,null,null,null,null,null,null,null,"",""]
[null,null,null,null,null,null,null,null,null,null,null,null,null,null,"",""]
[null,null,null,null,null,null,null,null,null,null,null,null,null,null,"",""]
[null,null,null,null,null,null,null,null,null,null,null,null,null,null,"",""]
[null,null,null,null,null,null,null,null,null,null,null,null,null,null,"",""]
[null,null,null,null,null,null,null,null,null,null,null,null,null,null,"",""]
[null,null,null,null,null,null,null,null,null,null,null,null,null,null,"",""]
[null,null,null,null,null,null,null,null,null,null,null,null,null,null,"",""]
[null,null,null,null,null,null,null,null,null,null,null,null,null,null,"",""]
[null,null,null,null,null,null,null,null,null,null,null,null,null,null,"",""]
[null,null,null,null,null,null,null,null,null,null,null,null,null,null,"",""]
[null,null,null,null,null,null,null,null,null,null,null,null,null,null,"",""]
[null,null,null,null,null,null,null,null,null,null,null,null,null,null,"",""]
[null,null,null,null,null,null,null,null,null,null,null,null,null,null,"",""]
[null,null,null,null,null,null,null,null,null,null,null,null,null,null,"",""]
[null,null,null,null,null,null,null,null,null,null,null,null,null,null,"",""]
[null,null,null,null,null,null,null,null,null,null,null,null,null,null,"",""]
[null,null,null,null,null,null,null,null,null,null,null,null,null,null,"",""]
[null,null,null,null,null,null,null,null,null,null,null,null,null,null,"",""]
[null,null,null,null,null,null,null,null,null,null,null,null,null,null,"",""]
[null,null,null,null,null,null,null,null,null,null,null,null,null,null,"",""]
[null,null,null,null,null,null,null,null,null,null,null,null,null,null,"",""]
[null,null,null,null,null,null,null,null,null,null,null,null,null,null,"",""]
[null,null,null,null,null,null,null,null,null,null,null,null,null,null,"",""]
[null,null,null,null,null,null,null,null,null,null,null,null,null,null,"",""]
[null,null,null,null,null,null,null,null,null,null,null,null,null,null,"",""]
[null,null,null,null,null,null,null,null,null,null,null,null,null,null,"",""]
[null,null,null,null,null,null,null,null,null,null,null,null,null,null,"",""]
[null,null,null,null,null,null,null,null,null,null,null,null,null,null,"",""]
[null,null,null,null,null,null,null,null,null,null,null,null,null,null,"",""]
[null,null,null,null,null,null,null,null,null,null,null,null,null,null,"",""]
[null,null,null,null,null,null,null,null,null,null,null,null,null,null,"",""]
[null,null,null,null,null,null,null,null,null,null,null,null,null,null,"",""]
[null,null,null,null,null,null,null,null,null,null,null,null,null,null,"",""]
[null,null,null,null,null,null,null,null,null,null,null,null,null,null,"",""]
[null,null,null,null,null,null,null,null,null,null,null,null,null,null,"",""]
[null,null,null,null,null,null,null,null,null,null,null,null,null,null,"",""]
[null,null,null,null,null,null,null,null,null,null,null,null,null,null,"",""]
[null,null,null,null,null,null,null,null,null,null,null,null,null,null,"",""]
[null,null,null,null,null,null,null,null,null,null,null,null,null,null,"",""]
[null,null,null,null,null,null,null,null,null,null,null,null,null,null,"",""]
[null,null,null,null,null,null,null,null,null,null,null,null,null,null,"",""]
[null,null,null,null,null,null,null,null,null,null,null,null,null,null,{"$f":"IF(D1795=\"\",\"\",MATCH(D1795,$S$2:$S$2488,0))","v":""},{"$f":"IF(H1795=\"\",\"\",MATCH(H1795,$T$2:$T$2472,0))","v":""}]
[null,null,null,null,null,null,null,null,null,null,null,null,null,null,"",""]
[null,null,null,null,null,null,null,null,null,null,null,null,null,null,"",""]
[null,null,null,null,null,null,null,null,null,null,null,null,null,null,"",""]
[null,null,null,null,null,null,null,null,null,null,null,null,null,null,"",""]
[null,null,null,null,null,null,null,null,null,null,null,null,null,null,"",""]
[null,null,null,null,null,null,null,null,null,null,null,null,null,null,"",""]
[null,null,null,null,null,null,null,null,null,null,null,null,null,null,"",""]
[null,null,null,null,null,null,null,null,null,null,null,null,null,null,"",""]
[null,null,null,null,null,null,null,null,null,null,null,null,null,null,"",""]
[null,null,null,null,null,null,null,null,null,null,null,null,null,null,"",""]
[null,null,null,null,null,null,null,null,null,null,null,null,null,null,"",""]
[null,null,null,null,null,null,null,null,null,null,null,null,null,null,"",""]
[null,null,null,null,null,null,null,null,null,null,null,null,null,null,"",""]
[null,null,null,null,null,null,null,null,null,null,null,null,null,null,"",""]
[null,null,null,null,null,null,null,null,null,null,null,null,null,null,"",""]
[null,null,null,null,null,null,null,null,null,null,null,null,null,null,"",""]
[null,null,null,null,null,null,null,null,null,null,null,null,null,null,"",""]
[null,null,null,null,null,null,null,null,null,null,null,null,null,null,"",""]
[null,null,null,null,null,null,null,null,null,null,null,null,null,null,"",""]
[null,null,null,null,null,null,null,null,null,null,null,null,null,null,"",""]
[null,null,null,null,null,null,null,null,null,null,null,null,null,null,"",""]
[null,null,null,null,null,null,null,null,null,null,null,null,null,null,"",""]
[null,null,null,null,null,null,null,null,null,null,null,null,null,null,"",""]
[null,null,null,null,null,null,null,null,null,null,null,null,null,null,"",""]
[null,null,null,null,null,null,null,null,null,null,null,null,null,null,"",""]
[null,null,null,null,null,null,null,null,null,null,null,null,null,null,"",""]
[null,null,null,null,null,null,null,null,null,null,null,null,null,null,"",""]
[null,null,null,null,null,null,null,null,null,null,null,null,null,null,"",""]
[null,null,null,null,null,null,null,null,null,null,null,null,null,null,"",""]
[null,null,null,null,null,null,null,null,null,null,null,null,null,null,"",""]
[null,null,null,null,null,null,null,null,null,null,null,null,null,null,"",""]
[null,null,null,null,null,null,null,null,null,null,null,null,null,null,"",""]
[null,null,null,null,null,null,null,null,null,null,null,null,null,null,"",""]
[null,null,null,null,null,null,null,null,null,null,null,null,null,null,"",""]
[null,null,null,null,null,null,null,null,null,null,null,null,null,null,"",""]
[null,null,null,null,null,null,null,null,null,null,null,null,null,null,"",""]
[null,null,null,null,null,null,null,null,null,null,null,null,null,null,"",""]
[null,null,null,null,null,null,null,null,null,null,null,null,null,null,"",""]
[null,null,null,null,null,null,null,null,null,null,null,null,null,null,"",""]
[null,null,null,null,null,null,null,null,null,null,null,null,null,null,"",""]
[null,null,null,null,null,null,null,null,null,null,null,null,null,null,"",""]
[null,null,null,null,null,null,null,null,null,null,null,null,null,null,"",""]
[null,null,null,null,null,null,null,null,null,null,null,null,null,null,"",""]
[null,null,null,null,null,null,null,null,null,null,null,null,null,null,"",""]
[null,null,null,null,null,null,null,null,null,null,null,null,null,null,"",""]
[null,null,null,null,null,null,null,null,null,null,null,null,null,null,"",""]
[null,null,null,null,null,null,null,null,null,null,null,null,null,null,"",""]
[null,null,null,null,null,null,null,null,null,null,null,null,null,null,"",""]
[null,null,null,null,null,null,null,null,null,null,null,null,null,null,"",""]
[null,null,null,null,null,null,null,null,null,null,null,null,null,null,"",""]
[null,null,null,null,null,null,null,null,null,null,null,null,null,null,"",""]
[null,null,null,null,null,null,null,null,null,null,null,null,null,null,"",""]
[null,null,null,null,null,null,null,null,null,null,null,null,null,null,"",""]
[null,null,null,null,null,null,null,null,null,null,null,null,null,null,"",""]
[null,null,null,null,null,null,null,null,null,null,null,null,null,null,"",""]
[null,null,null,null,null,null,null,null,null,null,null,null,null,null,"",""]
[null,null,null,null,null,null,null,null,null,null,null,null,null,null,"",""]
[null,null,null,null,null,null,null,null,null,null,null,null,null,null,"",""]
[null,null,null,null,null,null,null,null,null,null,null,null,null,null,"",""]
[null,null,null,null,null,null,null,null,null,null,null,null,null,null,"",""]
[null,null,null,null,null,null,null,null,null,null,null,null,null,null,"",""]
[null,null,null,null,null,null,null,null,null,null,null,null,null,null,"",""]
[null,null,null,null,null,null,null,null,null,null,null,null,null,null,"",""]
[null,null,null,null,null,null,null,null,null,null,null,null,null,null,{"$f":"IF(D1859=\"\",\"\",MATCH(D1859,$S$2:$S$2488,0))","v":""},{"$f":"IF(H1859=\"\",\"\",MATCH(H1859,$T$2:$T$2472,0))","v":""}]
[null,null,null,null,null,null,null,null,null,null,null,null,null,null,"",""]
[null,null,null,null,null,null,null,null,null,null,null,null,null,null,"",""]
[null,null,null,null,null,null,null,null,null,null,null,null,null,null,"",""]
[null,null,null,null,null,null,null,null,null,null,null,null,null,null,"",""]
[null,null,null,null,null,null,null,null,null,null,null,null,null,null,"",""]
[null,null,null,null,null,null,null,null,null,null,null,null,null,null,"",""]
[null,null,null,null,null,null,null,null,null,null,null,null,null,null,"",""]
[null,null,null,null,null,null,null,null,null,null,null,null,null,null,"",""]
[null,null,null,null,null,null,null,null,null,null,null,null,null,null,"",""]
[null,null,null,null,null,null,null,null,null,null,null,null,null,null,"",""]
[null,null,null,null,null,null,null,null,null,null,null,null,null,null,"",""]
[null,null,null,null,null,null,null,null,null,null,null,null,null,null,"",""]
[null,null,null,null,null,null,null,null,null,null,null,null,null,null,"",""]
[null,null,null,null,null,null,null,null,null,null,null,null,null,null,"",""]
[null,null,null,null,null,null,null,null,null,null,null,null,null,null,"",""]
[null,null,null,null,null,null,null,null,null,null,null,null,null,null,"",""]
[null,null,null,null,null,null,null,null,null,null,null,null,null,null,"",""]
[null,null,null,null,null,null,null,null,null,null,null,null,null,null,"",""]
[null,null,null,null,null,null,null,null,null,null,null,null,null,null,"",""]
[null,null,null,null,null,null,null,null,null,null,null,null,null,null,"",""]
[null,null,null,null,null,null,null,null,null,null,null,null,null,null,"",""]
[null,null,null,null,null,null,null,null,null,null,null,null,null,null,"",""]
[null,null,null,null,null,null,null,null,null,null,null,null,null,null,"",""]
[null,null,null,null,null,null,null,null,null,null,null,null,null,null,"",""]
[null,null,null,null,null,null,null,null,null,null,null,null,null,null,"",""]
[null,null,null,null,null,null,null,null,null,null,null,null,null,null,"",""]
[null,null,null,null,null,null,null,null,null,null,null,null,null,null,"",""]
[null,null,null,null,null,null,null,null,null,null,null,null,null,null,"",""]
[null,null,null,null,null,null,null,null,null,null,null,null,null,null,"",""]
[null,null,null,null,null,null,null,null,null,null,null,null,null,null,"",""]
[null,null,null,null,null,null,null,null,null,null,null,null,null,null,"",""]
[null,null,null,null,null,null,null,null,null,null,null,null,null,null,"",""]
[null,null,null,null,null,null,null,null,null,null,null,null,null,null,"",""]
[null,null,null,null,null,null,null,null,null,null,null,null,null,null,"",""]
[null,null,null,null,null,null,null,null,null,null,null,null,null,null,"",""]
[null,null,null,null,null,null,null,null,null,null,null,null,null,null,"",""]
[null,null,null,null,null,null,null,null,null,null,null,null,null,null,"",""]
[null,null,null,null,null,null,null,null,null,null,null,null,null,null,"",""]
[null,null,null,null,null,null,null,null,null,null,null,null,null,null,"",""]
[null,null,null,null,null,null,null,null,null,null,null,null,null,null,"",""]
[null,null,null,null,null,null,null,null,null,null,null,null,null,null,"",""]
[null,null,null,null,null,null,null,null,null,null,null,null,null,null,"",""]
[null,null,null,null,null,null,null,null,null,null,null,null,null,null,"",""]
[null,null,null,null,null,null,null,null,null,null,null,null,null,null,"",""]
[null,null,null,null,null,null,null,null,null,null,null,null,null,null,"",""]
[null,null,null,null,null,null,null,null,null,null,null,null,null,null,"",""]
[null,null,null,null,null,null,null,null,null,null,null,null,null,null,"",""]
[null,null,null,null,null,null,null,null,null,null,null,null,null,null,"",""]
[null,null,null,null,null,null,null,null,null,null,null,null,null,null,"",""]
[null,null,null,null,null,null,null,null,null,null,null,null,null,null,"",""]
[null,null,null,null,null,null,null,null,null,null,null,null,null,null,"",""]
[null,null,null,null,null,null,null,null,null,null,null,null,null,null,"",""]
[null,null,null,null,null,null,null,null,null,null,null,null,null,null,"",""]
[null,null,null,null,null,null,null,null,null,null,null,null,null,null,"",""]
[null,null,null,null,null,null,null,null,null,null,null,null,null,null,"",""]
[null,null,null,null,null,null,null,null,null,null,null,null,null,null,"",""]
[null,null,null,null,null,null,null,null,null,null,null,null,null,null,"",""]
[null,null,null,null,null,null,null,null,null,null,null,null,null,null,"",""]
[null,null,null,null,null,null,null,null,null,null,null,null,null,null,"",""]
[null,null,null,null,null,null,null,null,null,null,null,null,null,null,"",""]
[null,null,null,null,null,null,null,null,null,null,null,null,null,null,"",""]
[null,null,null,null,null,null,null,null,null,null,null,null,null,null,"",""]
[null,null,null,null,null,null,null,null,null,null,null,null,null,null,"",""]
[null,null,null,null,null,null,null,null,null,null,null,null,null,null,{"$f":"IF(D1923=\"\",\"\",MATCH(D1923,$S$2:$S$2488,0))","v":""},{"$f":"IF(H1923=\"\",\"\",MATCH(H1923,$T$2:$T$2472,0))","v":""}]
[null,null,null,null,null,null,null,null,null,null,null,null,null,null,"",""]
[null,null,null,null,null,null,null,null,null,null,null,null,null,null,"",""]
[null,null,null,null,null,null,null,null,null,null,null,null,null,null,"",""]
[null,null,null,null,null,null,null,null,null,null,null,null,null,null,"",""]
[null,null,null,null,null,null,null,null,null,null,null,null,null,null,"",""]
[null,null,null,null,null,null,null,null,null,null,null,null,null,null,"",""]
[null,null,null,null,null,null,null,null,null,null,null,null,null,null,"",""]
[null,null,null,null,null,null,null,null,null,null,null,null,null,null,"",""]
[null,null,null,null,null,null,null,null,null,null,null,null,null,null,"",""]
[null,null,null,null,null,null,null,null,null,null,null,null,null,null,"",""]
[null,null,null,null,null,null,null,null,null,null,null,null,null,null,"",""]
[null,null,null,null,null,null,null,null,null,null,null,null,null,null,"",""]
[null,null,null,null,null,null,null,null,null,null,null,null,null,null,"",""]
[null,null,null,null,null,null,null,null,null,null,null,null,null,null,"",""]
[null,null,null,null,null,null,null,null,null,null,null,null,null,null,"",""]
[null,null,null,null,null,null,null,null,null,null,null,null,null,null,"",""]
[null,null,null,null,null,null,null,null,null,null,null,null,null,null,"",""]
[null,null,null,null,null,null,null,null,null,null,null,null,null,null,"",""]
[null,null,null,null,null,null,null,null,null,null,null,null,null,null,"",""]
[null,null,null,null,null,null,null,null,null,null,null,null,null,null,"",""]
[null,null,null,null,null,null,null,null,null,null,null,null,null,null,"",""]
[null,null,null,null,null,null,null,null,null,null,null,null,null,null,"",""]
[null,null,null,null,null,null,null,null,null,null,null,null,null,null,"",""]
[null,null,null,null,null,null,null,null,null,null,null,null,null,null,"",""]
[null,null,null,null,null,null,null,null,null,null,null,null,null,null,"",""]
[null,null,null,null,null,null,null,null,null,null,null,null,null,null,"",""]
[null,null,null,null,null,null,null,null,null,null,null,null,null,null,"",""]
[null,null,null,null,null,null,null,null,null,null,null,null,null,null,"",""]
[null,null,null,null,null,null,null,null,null,null,null,null,null,null,"",""]
[null,null,null,null,null,null,null,null,null,null,null,null,null,null,"",""]
[null,null,null,null,null,null,null,null,null,null,null,null,null,null,"",""]
[null,null,null,null,null,null,null,null,null,null,null,null,null,null,"",""]
[null,null,null,null,null,null,null,null,null,null,null,null,null,null,"",""]
[null,null,null,null,null,null,null,null,null,null,null,null,null,null,"",""]
[null,null,null,null,null,null,null,null,null,null,null,null,null,null,"",""]
[null,null,null,null,null,null,null,null,null,null,null,null,null,null,"",""]
[null,null,null,null,null,null,null,null,null,null,null,null,null,null,"",""]
[null,null,null,null,null,null,null,null,null,null,null,null,null,null,"",""]
[null,null,null,null,null,null,null,null,null,null,null,null,null,null,"",""]
[null,null,null,null,null,null,null,null,null,null,null,null,null,null,"",""]
[null,null,null,null,null,null,null,null,null,null,null,null,null,null,"",""]
[null,null,null,null,null,null,null,null,null,null,null,null,null,null,"",""]
[null,null,null,null,null,null,null,null,null,null,null,null,null,null,"",""]
[null,null,null,null,null,null,null,null,null,null,null,null,null,null,"",""]
[null,null,null,null,null,null,null,null,null,null,null,null,null,null,"",""]
[null,null,null,null,null,null,null,null,null,null,null,null,null,null,"",""]
[null,null,null,null,null,null,null,null,null,null,null,null,null,null,"",""]
[null,null,null,null,null,null,null,null,null,null,null,null,null,null,"",""]
[null,null,null,null,null,null,null,null,null,null,null,null,null,null,"",""]
[null,null,null,null,null,null,null,null,null,null,null,null,null,null,"",""]
[null,null,null,null,null,null,null,null,null,null,null,null,null,null,"",""]
[null,null,null,null,null,null,null,null,null,null,null,null,null,null,"",""]
[null,null,null,null,null,null,null,null,null,null,null,null,null,null,"",""]
[null,null,null,null,null,null,null,null,null,null,null,null,null,null,"",""]
[null,null,null,null,null,null,null,null,null,null,null,null,null,null,"",""]
[null,null,null,null,null,null,null,null,null,null,null,null,null,null,"",""]
[null,null,null,null,null,null,null,null,null,null,null,null,null,null,"",""]
[null,null,null,null,null,null,null,null,null,null,null,null,null,null,"",""]
[null,null,null,null,null,null,null,null,null,null,null,null,null,null,"",""]
[null,null,null,null,null,null,null,null,null,null,null,null,null,null,"",""]
[null,null,null,null,null,null,null,null,null,null,null,null,null,null,"",""]
[null,null,null,null,null,null,null,null,null,null,null,null,null,null,"",""]
[null,null,null,null,null,null,null,null,null,null,null,null,null,null,"",""]
[null,null,null,null,null,null,null,null,null,null,null,null,null,null,{"$f":"IF(D1987=\"\",\"\",MATCH(D1987,$S$2:$S$2488,0))","v":""},{"$f":"IF(H1987=\"\",\"\",MATCH(H1987,$T$2:$T$2472,0))","v":""}]
[null,null,null,null,null,null,null,null,null,null,null,null,null,null,"",""]
[null,null,null,null,null,null,null,null,null,null,null,null,null,null,"",""]
[null,null,null,null,null,null,null,null,null,null,null,null,null,null,"",""]
[null,null,null,null,null,null,null,null,null,null,null,null,null,null,"",""]
[null,null,null,null,null,null,null,null,null,null,null,null,null,null,"",""]
[null,null,null,null,null,null,null,null,null,null,null,null,null,null,"",""]
[null,null,null,null,null,null,null,null,null,null,null,null,null,null,"",""]
[null,null,null,null,null,null,null,null,null,null,null,null,null,null,"",""]
[null,null,null,null,null,null,null,null,null,null,null,null,null,null,"",""]
[null,null,null,null,null,null,null,null,null,null,null,null,null,null,"",""]
[null,null,null,null,null,null,null,null,null,null,null,null,null,null,"",""]
[null,null,null,null,null,null,null,null,null,null,null,null,null,null,"",""]
[null,null,null,null,null,null,null,null,null,null,null,null,null,null,"",""]
[null,null,null,null,null,null,null,null,null,null,null,null,null,null,"",""]
[null,null,null,null,null,null,null,null,null,null,null,null,null,null,"",""]
[null,null,null,null,null,null,null,null,null,null,null,null,null,null,"",""]
[null,null,null,null,null,null,null,null,null,null,null,null,null,null,"",""]
[null,null,null,null,null,null,null,null,null,null,null,null,null,null,"",""]
[null,null,null,null,null,null,null,null,null,null,null,null,null,null,"",""]
[null,null,null,null,null,null,null,null,null,null,null,null,null,null,"",""]
[null,null,null,null,null,null,null,null,null,null,null,null,null,null,"",""]
[null,null,null,null,null,null,null,null,null,null,null,null,null,null,"",""]
[null,null,null,null,null,null,null,null,null,null,null,null,null,null,"",""]
[null,null,null,null,null,null,null,null,null,null,null,null,null,null,"",""]
[null,null,null,null,null,null,null,null,null,null,null,null,null,null,"",""]
[null,null,null,null,null,null,null,null,null,null,null,null,null,null,"",""]
[null,null,null,null,null,null,null,null,null,null,null,null,null,null,"",""]
[null,null,null,null,null,null,null,null,null,null,null,null,null,null,"",""]
[null,null,null,null,null,null,null,null,null,null,null,null,null,null,"",""]
[null,null,null,null,null,null,null,null,null,null,null,null,null,null,"",""]
[null,null,null,null,null,null,null,null,null,null,null,null,null,null,"",""]
[null,null,null,null,null,null,null,null,null,null,null,null,null,null,"",""]
[null,null,null,null,null,null,null,null,null,null,null,null,null,null,"",""]
[null,null,null,null,null,null,null,null,null,null,null,null,null,null,"",""]
[null,null,null,null,null,null,null,null,null,null,null,null,null,null,"",""]
[null,null,null,null,null,null,null,null,null,null,null,null,null,null,"",""]
[null,null,null,null,null,null,null,null,null,null,null,null,null,null,"",""]
[null,null,null,null,null,null,null,null,null,null,null,null,null,null,"",""]
[null,null,null,null,null,null,null,null,null,null,null,null,null,null,"",""]
[null,null,null,null,null,null,null,null,null,null,null,null,null,null,"",""]
[null,null,null,null,null,null,null,null,null,null,null,null,null,null,"",""]
[null,null,null,null,null,null,null,null,null,null,null,null,null,null,{"$f":"IF(D2819=\"\",\"\",MATCH(D2819,$S$2:$S$2488,0))","v":""},{"$f":"IF(H2819=\"\",\"\",MATCH(H2819,$T$2:$T$2472,0))","v":""}]
[null,null,null,null,null,null,null,null,null,null,null,null,null,null,"",""]
[null,null,null,null,null,null,null,null,null,null,null,null,null,null,"",""]
[null,null,null,null,null,null,null,null,null,null,null,null,null,null,"",""]
[null,null,null,null,null,null,null,null,null,null,null,null,null,null,"",""]
[null,null,null,null,null,null,null,null,null,null,null,null,null,null,"",""]
[null,null,null,null,null,null,null,null,null,null,null,null,null,null,"",""]
[null,null,null,null,null,null,null,null,null,null,null,null,null,null,"",""]
[null,null,null,null,null,null,null,null,null,null,null,null,null,null,"",""]
[null,null,null,null,null,null,null,null,null,null,null,null,null,null,"",""]
[null,null,null,null,null,null,null,null,null,null,null,null,null,null,"",""]
[null,null,null,null,null,null,null,null,null,null,null,null,null,null,"",""]
[null,null,null,null,null,null,null,null,null,null,null,null,null,null,"",""]
[null,null,null,null,null,null,null,null,null,null,null,null,null,null,"",""]
[null,null,null,null,null,null,null,null,null,null,null,null,null,null,"",""]
[null,null,null,null,null,null,null,null,null,null,null,null,null,null,"",""]
[null,null,null,null,null,null,null,null,null,null,null,null,null,null,"",""]
[null,null,null,null,null,null,null,null,null,null,null,null,null,null,"",""]
[null,null,null,null,null,null,null,null,null,null,null,null,null,null,"",""]
[null,null,null,null,null,null,null,null,null,null,null,null,null,null,"",""]
[null,null,null,null,null,null,null,null,null,null,null,null,null,null,"",""]
[null,null,null,null,null,null,null,null,null,null,null,null,null,null,"",""]
[null,null,null,null,null,null,null,null,null,null,null,null,null,null,"",""]
[null,null,null,null,null,null,null,null,null,null,null,null,null,null,"",""]
[null,null,null,null,null,null,null,null,null,null,null,null,null,null,"",""]
[null,null,null,null,null,null,null,null,null,null,null,null,null,null,"",""]
[null,null,null,null,null,null,null,null,null,null,null,null,null,null,"",""]
[null,null,null,null,null,null,null,null,null,null,null,null,null,null,"",""]
[null,null,null,null,null,null,null,null,null,null,null,null,null,null,"",""]
[null,null,null,null,null,null,null,null,null,null,null,null,null,null,"",""]
[null,null,null,null,null,null,null,null,null,null,null,null,null,null,"",""]
[null,null,null,null,null,null,null,null,null,null,null,null,null,null,"",""]
[null,null,null,null,null,null,null,null,null,null,null,null,null,null,"",""]
[null,null,null,null,null,null,null,null,null,null,null,null,null,null,"",""]
[null,null,null,null,null,null,null,null,null,null,null,null,null,null,"",""]
[null,null,null,null,null,null,null,null,null,null,null,null,null,null,"",""]
[null,null,null,null,null,null,null,null,null,null,null,null,null,null,"",""]
[null,null,null,null,null,null,null,null,null,null,null,null,null,null,"",""]
[null,null,null,null,null,null,null,null,null,null,null,null,null,null,"",""]
[null,null,null,null,null,null,null,null,null,null,null,null,null,null,"",""]
[null,null,null,null,null,null,null,null,null,null,null,null,null,null,"",""]
[null,null,null,null,null,null,null,null,null,null,null,null,null,null,"",""]
[null,null,null,null,null,null,null,null,null,null,null,null,null,null,"",""]
[null,null,null,null,null,null,null,null,null,null,null,null,null,null,"",""]
[null,null,null,null,null,null,null,null,null,null,null,null,null,null,"",""]
[null,null,null,null,null,null,null,null,null,null,null,null,null,null,"",""]
[null,null,null,null,null,null,null,null,null,null,null,null,null,null,"",""]
[null,null,null,null,null,null,null,null,null,null,null,null,null,null,"",""]
[null,null,null,null,null,null,null,null,null,null,null,null,null,null,"",""]
[null,null,null,null,null,null,null,null,null,null,null,null,null,null,"",""]
[null,null,null,null,null,null,null,null,null,null,null,null,null,null,"",""]
[null,null,null,null,null,null,null,null,null,null,null,null,null,null,"",""]
[null,null,null,null,null,null,null,null,null,null,null,null,null,null,"",""]
[null,null,null,null,null,null,null,null,null,null,null,null,null,null,"",""]
[null,null,null,null,null,null,null,null,null,null,null,null,null,null,"",""]
[null,null,null,null,null,null,null,null,null,null,null,null,null,null,"",""]
[null,null,null,null,null,null,null,null,null,null,null,null,null,null,"",""]
[null,null,null,null,null,null,null,null,null,null,null,null,null,null,"",""]
[null,null,null,null,null,null,null,null,null,null,null,null,null,null,"",""]
[null,null,null,null,null,null,null,null,null,null,null,null,null,null,"",""]
[null,null,null,null,null,null,null,null,null,null,null,null,null,null,"",""]
[null,null,null,null,null,null,null,null,null,null,null,null,null,null,"",""]
[null,null,null,null,null,null,null,null,null,null,null,null,null,null,"",""]
[null,null,null,null,null,null,null,null,null,null,null,null,null,null,"",""]
[null,null,null,null,null,null,null,null,null,null,null,null,null,null,"",""]
[null,null,null,null,null,null,null,null,null,null,null,null,null,null,"",""]
[null,null,null,null,null,null,null,null,null,null,null,null,null,null,"",""]
[null,null,null,null,null,null,null,null,null,null,null,null,null,null,"",""]
[null,null,null,null,null,null,null,null,null,null,null,null,null,null,"",""]
[null,null,null,null,null,null,null,null,null,null,null,null,null,null,"",""]
[null,null,null,null,null,null,null,null,null,null,null,null,null,null,"",""]
[null,null,null,null,null,null,null,null,null,null,null,null,null,null,"",""]
[null,null,null,null,null,null,null,null,null,null,null,null,null,null,"",""]
[null,null,null,null,null,null,null,null,null,null,null,null,null,null,"",""]
[null,null,null,null,null,null,null,null,null,null,null,null,null,null,"",""]
[null,null,null,null,null,null,null,null,null,null,null,null,null,null,"",""]
[null,null,null,null,null,null,null,null,null,null,null,null,null,null,"",""]
[null,null,null,null,null,null,null,null,null,null,null,null,null,null,"",""]
[null,null,null,null,null,null,null,null,null,null,null,null,null,null,"",""]
[null,null,null,null,null,null,null,null,null,null,null,null,null,null,"",""]
[null,null,null,null,null,null,null,null,null,null,null,null,null,null,"",""]
[null,null,null,null,null,null,null,null,null,null,null,null,null,null,"",""]
[null,null,null,null,null,null,null,null,null,null,null,null,null,null,"",""]
[null,null,null,null,null,null,null,null,null,null,null,null,null,null,"",""]
[null,null,null,null,null,null,null,null,null,null,null,null,null,null,"",""]
[null,null,null,null,null,null,null,null,null,null,null,null,null,null,"",""]
[null,null,null,null,null,null,null,null,null,null,null,null,null,null,"",""]
[null,null,null,null,null,null,null,null,null,null,null,null,null,null,"",""]
[null,null,null,null,null,null,null,null,null,null,null,null,null,null,"",""]
[null,null,null,null,null,null,null,null,null,null,null,null,null,null,"",""]
[null,null,null,null,null,null,null,null,null,null,null,null,null,null,"",""]
[null,null,null,null,null,null,null,null,null,null,null,null,null,null,"",""]
[null,null,null,null,null,null,null,null,null,null,null,null,null,null,"",""]
[null,null,null,null,null,null,null,null,null,null,null,null,null,null,{"$f":"IF(D5507=\"\",\"\",MATCH(D5507,$S$2:$S$2488,0))","v":""},{"$f":"IF(H5507=\"\",\"\",MATCH(H5507,$T$2:$T$2472,0))","v":""}]
[null,null,null,null,null,null,null,null,null,null,null,null,null,null,"",""]
[null,null,null,null,null,null,null,null,null,null,null,null,null,null,"",""]
[null,null,null,null,null,null,null,null,null,null,null,null,null,null,{"$f":"IF(D5571=\"\",\"\",MATCH(D5571,$S$2:$S$2488,0))","v":""},{"$f":"IF(H5571=\"\",\"\",MATCH(H5571,$T$2:$T$2472,0))","v":""}]
[null,null,null,null,null,null,null,null,null,null,null,null,null,null,"",""]
[null,null,null,null,null,null,null,null,null,null,null,null,null,null,{"$f":"IF(D5635=\"\",\"\",MATCH(D5635,$S$2:$S$2488,0))","v":""},{"$f":"IF(H5635=\"\",\"\",MATCH(H5635,$T$2:$T$2472,0))","v":""}]
[null,null,null,null,null,null,null,null,null,null,null,null,null,null,"",""]
[null,null,null,null,null,null,null,null,null,null,null,null,null,null,"",""]
[null,null,null,null,null,null,null,null,null,null,null,null,null,null,"",""]
[null,null,null,null,null,null,null,null,null,null,null,null,null,null,"",""]
[null,null,null,null,null,null,null,null,null,null,null,null,null,null,"",""]
[null,null,null,null,null,null,null,null,null,null,null,null,null,null,"",""]
[null,null,null,null,null,null,null,null,null,null,null,null,null,null,"",""]
[null,null,null,null,null,null,null,null,null,null,null,null,null,null,"",""]
[null,null,null,null,null,null,null,null,null,null,null,null,null,null,"",""]
[null,null,null,null,null,null,null,null,null,null,null,null,null,null,"",""]
[null,null,null,null,null,null,null,null,null,null,null,null,null,null,"",""]
[null,null,null,null,null,null,null,null,null,null,null,null,null,null,"",""]
[null,null,null,null,null,null,null,null,null,null,null,null,null,null,"",""]
[null,null,null,null,null,null,null,null,null,null,null,null,null,null,"",""]
[null,null,null,null,null,null,null,null,null,null,null,null,null,null,"",""]
[null,null,null,null,null,null,null,null,null,null,null,null,null,null,"",""]
[null,null,null,null,null,null,null,null,null,null,null,null,null,null,"",""]
[null,null,null,null,null,null,null,null,null,null,null,null,null,null,"",""]
[null,null,null,null,null,null,null,null,null,null,null,null,null,null,"",""]
[null,null,null,null,null,null,null,null,null,null,null,null,null,null,"",""]
[null,null,null,null,null,null,null,null,null,null,null,null,null,null,"",""]
[null,null,null,null,null,null,null,null,null,null,null,null,null,null,"",""]
[null,null,null,null,null,null,null,null,null,null,null,null,null,null,"",""]
[null,null,null,null,null,null,null,null,null,null,null,null,null,null,"",""]
[null,null,null,null,null,null,null,null,null,null,null,null,null,null,"",""]
[null,null,null,null,null,null,null,null,null,null,null,null,null,null,"",""]
[null,null,null,null,null,null,null,null,null,null,null,null,null,null,"",""]
[null,null,null,null,null,null,null,null,null,null,null,null,null,null,"",""]
[null,null,null,null,null,null,null,null,null,null,null,null,null,null,"",""]
[null,null,null,null,null,null,null,null,null,null,null,null,null,null,"",""]
[null,null,null,null,null,null,null,null,null,null,null,null,null,null,"",""]
[null,null,null,null,null,null,null,null,null,null,null,null,null,null,"",""]
[null,null,null,null,null,null,null,null,null,null,null,null,null,null,"",""]
[null,null,null,null,null,null,null,null,null,null,null,null,null,null,"",""]
[null,null,null,null,null,null,null,null,null,null,null,null,null,null,"",""]
[null,null,null,null,null,null,null,null,null,null,null,null,null,null,"",""]
[null,null,null,null,null,null,null,null,null,null,null,null,null,null,"",""]
[null,null,null,null,null,null,null,null,null,null,null,null,null,null,"",""]
[null,null,null,null,null,null,null,null,null,null,null,null,null,null,"",""]
[null,null,null,null,null,null,null,null,null,null,null,null,null,null,"",""]
[null,null,null,null,null,null,null,null,null,null,null,null,null,null,"",""]
[null,null,null,null,null,null,null,null,null,null,null,null,null,null,"",""]
[null,null,null,null,null,null,null,null,null,null,null,null,null,null,"",""]
[null,null,null,null,null,null,null,null,null,null,null,null,null,null,"",""]
[null,null,null,null,null,null,null,null,null,null,null,null,null,null,"",""]
[null,null,null,null,null,null,null,null,null,null,null,null,null,null,"",""]
[null,null,null,null,null,null,null,null,null,null,null,null,null,null,"",""]
[null,null,null,null,null,null,null,null,null,null,null,null,null,null,"",""]
[null,null,null,null,null,null,null,null,null,null,null,null,null,null,"",""]
[null,null,null,null,null,null,null,null,null,null,null,null,null,null,"",""]
[null,null,null,null,null,null,null,null,null,null,null,null,null,null,"",""]
[null,null,null,null,null,null,null,null,null,null,null,null,null,null,"",""]
[null,null,null,null,null,null,null,null,null,null,null,null,null,null,"",""]
[null,null,null,null,null,null,null,null,null,null,null,null,null,null,"",""]
[null,null,null,null,null,null,null,null,null,null,null,null,null,null,"",""]
[null,null,null,null,null,null,null,null,null,null,null,null,null,null,"",""]
[null,null,null,null,null,null,null,null,null,null,null,null,null,null,"",""]
[null,null,null,null,null,null,null,null,null,null,null,null,null,null,"",""]
[null,null,null,null,null,null,null,null,null,null,null,null,null,null,"",""]
[null,null,null,null,null,null,null,null,null,null,null,null,null,null,"",""]
[null,null,null,null,null,null,null,null,null,null,null,null,null,null,"",""]
[null,null,null,null,null,null,null,null,null,null,null,null,null,null,"",""]
[null,null,null,null,null,null,null,null,null,null,null,null,null,null,"",""]
[null,null,null,null,null,null,null,null,null,null,null,null,null,null,"",""]
[null,null,null,null,null,null,null,null,null,null,null,null,null,null,"",""]
[null,null,null,null,null,null,null,null,null,null,null,null,null,null,"",""]
[null,null,null,null,null,null,null,null,null,null,null,null,null,null,"",""]
[null,null,null,null,null,null,null,null,null,null,null,null,null,null,"",""]
[null,null,null,null,null,null,null,null,null,null,null,null,null,null,"",""]
[null,null,null,null,null,null,null,null,null,null,null,null,null,null,"",""]
[null,null,null,null,null,null,null,null,null,null,null,null,null,null,"",""]
[null,null,null,null,null,null,null,null,null,null,null,null,null,null,"",""]
[null,null,null,null,null,null,null,null,null,null,null,null,null,null,"",""]
[null,null,null,null,null,null,null,null,null,null,null,null,null,null,"",""]
[null,null,null,null,null,null,null,null,null,null,null,null,null,null,"",""]
[null,null,null,null,null,null,null,null,null,null,null,null,null,null,"",""]
[null,null,null,null,null,null,null,null,null,null,null,null,null,null,"",""]
[null,null,null,null,null,null,null,null,null,null,null,null,null,null,{"$f":"IF(D7875=\"\",\"\",MATCH(D7875,$S$2:$S$2488,0))","v":""},{"$f":"IF(H7875=\"\",\"\",MATCH(H7875,$T$2:$T$2472,0))","v":""}]
[null,null,null,null,null,null,null,null,null,null,null,null,null,null,"",""]
[null,null,null,null,null,null,null,null,null,null,null,null,null,null,"",""]
[null,null,null,null,null,null,null,null,null,null,null,null,null,null,"",""]
[null,null,null,null,null,null,null,null,null,null,null,null,null,null,"",""]
[null,null,null,null,null,null,null,null,null,null,null,null,null,null,"",""]
[null,null,null,null,null,null,null,null,null,null,null,null,null,null,"",""]
[null,null,null,null,null,null,null,null,null,null,null,null,null,null,"",""]
[null,null,null,null,null,null,null,null,null,null,null,null,null,null,"",""]
[null,null,null,null,null,null,null,null,null,null,null,null,null,null,"",""]
[null,null,null,null,null,null,null,null,null,null,null,null,null,null,"",""]
[null,null,null,null,null,null,null,null,null,null,null,null,null,null,"",""]
[null,null,null,null,null,null,null,null,null,null,null,null,null,null,"",""]
[null,null,null,null,null,null,null,null,null,null,null,null,null,null,"",""]
[null,null,null,null,null,null,null,null,null,null,null,null,null,null,"",""]
[null,null,null,null,null,null,null,null,null,null,null,null,null,null,"",""]
[null,null,null,null,null,null,null,null,null,null,null,null,null,null,"",""]
[null,null,null,null,null,null,null,null,null,null,null,null,null,null,"",""]
[null,null,null,null,null,null,null,null,null,null,null,null,null,null,"",""]
[null,null,null,null,null,null,null,null,null,null,null,null,null,null,"",""]
[null,null,null,null,null,null,null,null,null,null,null,null,null,null,"",""]
[null,null,null,null,null,null,null,null,null,null,null,null,null,null,"",""]
[null,null,null,null,null,null,null,null,null,null,null,null,null,null,"",""]
[null,null,null,null,null,null,null,null,null,null,null,null,null,null,"",""]
[null,null,null,null,null,null,null,null,null,null,null,null,null,null,"",""]
[null,null,null,null,null,null,null,null,null,null,null,null,null,null,"",""]
[null,null,null,null,null,null,null,null,null,null,null,null,null,null,"",""]
[null,null,null,null,null,null,null,null,null,null,null,null,null,null,"",""]
[null,null,null,null,null,null,null,null,null,null,null,null,null,null,"",""]
[null,null,null,null,null,null,null,null,null,null,null,null,null,null,"",""]
[null,null,null,null,null,null,null,null,null,null,null,null,null,null,"",""]
[null,null,null,null,null,null,null,null,null,null,null,null,null,null,"",""]
[null,null,null,null,null,null,null,null,null,null,null,null,null,null,"",""]
[null,null,null,null,null,null,null,null,null,null,null,null,null,null,"",""]
[null,null,null,null,null,null,null,null,null,null,null,null,null,null,"",""]
[null,null,null,null,null,null,null,null,null,null,null,null,null,null,"",{"$f":"IF(H8899=\"\",\"\",MATCH(H8899,$T$2:$T$2472,0))","v":""}]
[null,null,null,null,null,null,null,null,null,null,null,null,null,null,"",""]
[null,null,null,null,null,null,null,null,null,null,null,null,null,null,"",""]
[null,null,null,null,null,null,null,null,null,null,null,null,null,null,"",""]
[null,null,null,null,null,null,null,null,null,null,null,null,null,null,"",""]
[null,null,null,null,null,null,null,null,null,null,null,null,null,null,"",""]
[null,null,null,null,null,null,null,null,null,null,null,null,null,null,"",""]
[null,null,null,null,null,null,null,null,null,null,null,null,null,null,"",""]
[null,null,null,null,null,null,null,null,null,null,null,null,null,null,"",""]
[null,null,null,null,null,null,null,null,null,null,null,null,null,null,"",""]
[null,null,null,null,null,null,null,null,null,null,null,null,null,null,"",""]
[null,null,null,null,null,null,null,null,null,null,null,null,null,null,"",""]
[null,null,null,null,null,null,null,null,null,null,null,null,null,null,"",""]
[null,null,null,null,null,null,null,null,null,null,null,null,null,null,"",""]
[null,null,null,null,null,null,null,null,null,null,null,null,null,null,"",""]
[null,null,null,null,null,null,null,null,null,null,null,null,null,null,"",""]
[null,null,null,null,null,null,null,null,null,null,null,null,null,null,"",""]
[null,null,null,null,null,null,null,null,null,null,null,null,null,null,"",""]
[null,null,null,null,null,null,null,null,null,null,null,null,null,null,"",""]
[null,null,null,null,null,null,null,null,null,null,null,null,null,null,"",""]
[null,null,null,null,null,null,null,null,null,null,null,null,null,null,"",""]
[null,null,null,null,null,null,null,null,null,null,null,null,null,null,"",""]
[null,null,null,null,null,null,null,null,null,null,null,null,null,null,"",""]
[null,null,null,null,null,null,null,null,null,null,null,null,null,null,"",""]
[null,null,null,null,null,null,null,null,null,null,null,null,null,null,"",""]
[null,null,null,null,null,null,null,null,null,null,null,null,null,null,"",""]
[null,null,null,null,null,null,null,null,null,null,null,null,null,null,"",""]
[null,null,null,null,null,null,null,null,null,null,null,null,null,null,"",""]
[null,null,null,null,null,null,null,null,null,null,null,null,null,null,"",""]
[null,null,null,null,null,null,null,null,null,null,null,null,null,null,"",""]
[null,null,null,null,null,null,null,null,null,null,null,null,null,null,"",""]
[null,null,null,null,null,null,null,null,null,null,null,null,null,null,"",""]
[null,null,null,null,null,null,null,null,null,null,null,null,null,null,"",""]
[null,null,null,null,null,null,null,null,null,null,null,null,null,null,"",""]
[null,null,null,null,null,null,null,null,null,null,null,null,null,null,"",""]
[null,null,null,null,null,null,null,null,null,null,null,null,null,null,"",""]
[null,null,null,null,null,null,null,null,null,null,null,null,null,null,"",""]
[null,null,null,null,null,null,null,null,null,null,null,null,null,null,"",""]
[null,null,null,null,null,null,null,null,null,null,null,null,null,null,"",""]
[null,null,null,null,null,null,null,null,null,null,null,null,null,null,"",""]
[null,null,null,null,null,null,null,null,null,null,null,null,null,null,"",""]
[null,null,null,null,null,null,null,null,null,null,null,null,null,null,"",""]
[null,null,null,null,null,null,null,null,null,null,null,null,null,null,"",""]
[null,null,null,null,null,null,null,null,null,null,null,null,null,null,"",""]
[null,null,null,null,null,null,null,null,null,null,null,null,null,null,"",""]
[null,null,null,null,null,null,null,null,null,null,null,null,null,null,"",""]
[null,null,null,null,null,null,null,null,null,null,null,null,null,null,"",""]
[null,null,null,null,null,null,null,null,null,null,null,null,null,null,"",""]
[null,null,null,null,null,null,null,null,null,null,null,null,null,null,"",""]
[null,null,null,null,null,null,null,null,null,null,null,null,null,null,"",""]
[null,null,null,null,null,null,null,null,null,null,null,null,null,null,"",""]
[null,null,null,null,null,null,null,null,null,null,null,null,null,null,"",""]
[null,null,null,null,null,null,null,null,null,null,null,null,null,null,"",""]
[null,null,null,null,null,null,null,null,null,null,null,null,null,null,"",""]
[null,null,null,null,null,null,null,null,null,null,null,null,null,null,"",""]
[null,null,null,null,null,null,null,null,null,null,null,null,null,null,"",""]
[null,null,null,null,null,null,null,null,null,null,null,null,null,null,"",""]
[null,null,null,null,null,null,null,null,null,null,null,null,null,null,"",""]
[null,null,null,null,null,null,null,null,null,null,null,null,null,null,"",""]
[null,null,null,null,null,null,null,null,null,null,null,null,null,null,"",""]
[null,null,null,null,null,null,null,null,null,null,null,null,null,null,"",""]
[null,null,null,null,null,null,null,null,null,null,null,null,null,null,"",{"$f":"IF(H10627=\"\",\"\",MATCH(H10627,$T$2:$T$2472,0))","v":""}]
[null,null,null,null,null,null,null,null,null,null,null,null,null,null,"",""]
[null,null,null,null,null,null,null,null,null,null,null,null,null,null,"",""]
[null,null,null,null,null,null,null,null,null,null,null,null,null,null,"",""]
[null,null,null,null,null,null,null,null,null,null,null,null,null,null,"",""]
[null,null,null,null,null,null,null,null,null,null,null,null,null,null,"",""]
[null,null,null,null,null,null,null,null,null,null,null,null,null,null,"",""]
[null,null,null,null,null,null,null,null,null,null,null,null,null,null,"",""]
[null,null,null,null,null,null,null,null,null,null,null,null,null,null,"",""]
[null,null,null,null,null,null,null,null,null,null,null,null,null,null,"",""]
[null,null,null,null,null,null,null,null,null,null,null,null,null,null,{"$f":"IF(D10934=\"\",\"\",MATCH(D10934,$S$2:$S$2488,0))","v":""},""]
[null,null,null,null,null,null,null,null,null,null,null,null,null,null,"",""]
[null,null,null,null,null,null,null,null,null,null,null,null,null,null,"",""]
[null,null,null,null,null,null,null,null,null,null,null,null,null,null,"",""]
[null,null,null,null,null,null,null,null,null,null,null,null,null,null,"",""]
[null,null,null,null,null,null,null,null,null,null,null,null,null,null,{"$f":"IF(D11062=\"\",\"\",MATCH(D11062,$S$2:$S$2488,0))","v":""},""]
[null,null,null,null,null,null,null,null,null,null,null,null,null,null,"",""]
[null,null,null,null,null,null,null,null,null,null,null,null,null,null,"",{"$f":"IF(H11139=\"\",\"\",MATCH(H11139,$T$2:$T$2472,0))","v":""}]
[null,null,null,null,null,null,null,null,null,null,null,null,null,null,"",""]
[null,null,null,null,null,null,null,null,null,null,null,null,null,null,"",""]
[null,null,null,null,null,null,null,null,null,null,null,null,null,null,"",""]
[null,null,null,null,null,null,null,null,null,null,null,null,null,null,"",""]
[null,null,null,null,null,null,null,null,null,null,null,null,null,null,"",""]
[null,null,null,null,null,null,null,null,null,null,null,null,null,null,"",""]
[null,null,null,null,null,null,null,null,null,null,null,null,null,null,"",""]
[null,null,null,null,null,null,null,null,null,null,null,null,null,null,"",""]
[null,null,null,null,null,null,null,null,null,null,null,null,null,null,"",""]
[null,null,null,null,null,null,null,null,null,null,null,null,null,null,"",""]
[null,null,null,null,null,null,null,null,null,null,null,null,null,null,"",""]
[null,null,null,null,null,null,null,null,null,null,null,null,null,null,"",""]
[null,null,null,null,null,null,null,null,null,null,null,null,null,null,"",""]
[null,null,null,null,null,null,null,null,null,null,null,null,null,null,"",""]
[null,null,null,null,null,null,null,null,null,null,null,null,null,null,"",""]
[null,null,null,null,null,null,null,null,null,null,null,null,null,null,"",""]
[null,null,null,null,null,null,null,null,null,null,null,null,null,null,"",""]
[null,null,null,null,null,null,null,null,null,null,null,null,null,null,"",""]
[null,null,null,null,null,null,null,null,null,null,null,null,null,null,"",""]
[null,null,null,null,null,null,null,null,null,null,null,null,null,null,"",""]
[null,null,null,null,null,null,null,null,null,null,null,null,null,null,"",""]
[null,null,null,null,null,null,null,null,null,null,null,null,null,null,"",""]
[null,null,null,null,null,null,null,null,null,null,null,null,null,null,"",""]
[null,null,null,null,null,null,null,null,null,null,null,null,null,null,"",""]
[null,null,null,null,null,null,null,null,null,null,null,null,null,null,"",""]
[null,null,null,null,null,null,null,null,null,null,null,null,null,null,"",""]
[null,null,null,null,null,null,null,null,null,null,null,null,null,null,"",""]
[null,null,null,null,null,null,null,null,null,null,null,null,null,null,"",""]
[null,null,null,null,null,null,null,null,null,null,null,null,null,null,"",""]
[null,null,null,null,null,null,null,null,null,null,null,null,null,null,"",""]
[null,null,null,null,null,null,null,null,null,null,null,null,null,null,"",""]
[null,null,null,null,null,null,null,null,null,null,null,null,null,null,"",""]
[null,null,null,null,null,null,null,null,null,null,null,null,null,null,"",""]
[null,null,null,null,null,null,null,null,null,null,null,null,null,null,"",""]
[null,null,null,null,null,null,null,null,null,null,null,null,null,null,"",""]
[null,null,null,null,null,null,null,null,null,null,null,null,null,null,"",""]
[null,null,null,null,null,null,null,null,null,null,null,null,null,null,"",""]
[null,null,null,null,null,null,null,null,null,null,null,null,null,null,"",""]
[null,null,null,null,null,null,null,null,null,null,null,null,null,null,"",""]
[null,null,null,null,null,null,null,null,null,null,null,null,null,null,"",""]
[null,null,null,null,null,null,null,null,null,null,null,null,null,null,"",""]
[null,null,null,null,null,null,null,null,null,null,null,null,null,null,"",""]
[null,null,null,null,null,null,null,null,null,null,null,null,null,null,"",""]
[null,null,null,null,null,null,null,null,null,null,null,null,null,null,"",""]
[null,null,null,null,null,null,null,null,null,null,null,null,null,null,"",""]
[null,null,null,null,null,null,null,null,null,null,null,null,null,null,"",""]
[null,null,null,null,null,null,null,null,null,null,null,null,null,null,"",""]
[null,null,null,null,null,null,null,null,null,null,null,null,null,null,"",""]
[null,null,null,null,null,null,null,null,null,null,null,null,null,null,"",""]
[null,null,null,null,null,null,null,null,null,null,null,null,null,null,"",""]
[null,null,null,null,null,null,null,null,null,null,null,null,null,null,"",""]
[null,null,null,null,null,null,null,null,null,null,null,null,null,null,"",""]
[null,null,null,null,null,null,null,null,null,null,null,null,null,null,"",""]
[null,null,null,null,null,null,null,null,null,null,null,null,null,null,"",""]
[null,null,null,null,null,null,null,null,null,null,null,null,null,null,"",""]
[null,null,null,null,null,null,null,null,null,null,null,null,null,null,"",""]
[null,null,null,null,null,null,null,null,null,null,null,null,null,null,"",""]
[null,null,null,null,null,null,null,null,null,null,null,null,null,null,"",""]
[null,null,null,null,null,null,null,null,null,null,null,null,null,null,"",""]
[null,null,null,null,null,null,null,null,null,null,null,null,null,null,"",""]
[null,null,null,null,null,null,null,null,null,null,null,null,null,null,"",""]
[null,null,null,null,null,null,null,null,null,null,null,null,null,null,"",""]
[null,null,null,null,null,null,null,null,null,null,null,null,null,null,"",""]
[null,null,null,null,null,null,null,null,null,null,null,null,null,null,"",""]
[null,null,null,null,null,null,null,null,null,null,null,null,null,null,"",""]
[null,null,null,null,null,null,null,null,null,null,null,null,null,null,"",""]
[null,null,null,null,null,null,null,null,null,null,null,null,null,null,"",""]
[null,null,null,null,null,null,null,null,null,null,null,null,null,null,"",""]
[null,null,null,null,null,null,null,null,null,null,null,null,null,null,"",""]
[null,null,null,null,null,null,null,null,null,null,null,null,null,null,"",""]
[null,null,null,null,null,null,null,null,null,null,null,null,null,null,"",""]
[null,null,null,null,null,null,null,null,null,null,null,null,null,null,"",""]
[null,null,null,null,null,null,null,null,null,null,null,null,null,null,"",""]
[null,null,null,null,null,null,null,null,null,null,null,null,null,null,"",""]
[null,null,null,null,null,null,null,null,null,null,null,null,null,null,"",""]
[null,null,null,null,null,null,null,null,null,null,null,null,null,null,{"$f":"IF(D13302=\"\",\"\",MATCH(D13302,$S$2:$S$2488,0))","v":""},""]
[null,null,null,null,null,null,null,null,null,null,null,null,null,null,"",""]
[null,null,null,null,null,null,null,null,null,null,null,null,null,null,"",""]
[null,null,null,null,null,null,null,null,null,null,null,null,null,null,"",""]
[null,null,null,null,null,null,null,null,null,null,null,null,null,null,"",""]
[null,null,null,null,null,null,null,null,null,null,null,null,null,null,"",""]
[null,null,null,null,null,null,null,null,null,null,null,null,null,null,"",""]
[null,null,null,null,null,null,null,null,null,null,null,null,null,null,"",""]
[null,null,null,null,null,null,null,null,null,null,null,null,null,null,"",""]
[null,null,null,null,null,null,null,null,null,null,null,null,null,null,"",""]
[null,null,null,null,null,null,null,null,null,null,null,null,null,null,"",""]
[null,null,null,null,null,null,null,null,null,null,null,null,null,null,"",""]
[null,null,null,null,null,null,null,null,null,null,null,null,null,null,"",""]
[null,null,null,null,null,null,null,null,null,null,null,null,null,null,"",""]
[null,null,null,null,null,null,null,null,null,null,null,null,null,null,"",""]
[null,null,null,null,null,null,null,null,null,null,null,null,null,null,"",""]
[null,null,null,null,null,null,null,null,null,null,null,null,null,null,"",""]
[null,null,null,null,null,null,null,null,null,null,null,null,null,null,"",""]
[null,null,null,null,null,null,null,null,null,null,null,null,null,null,"",""]
[null,null,null,null,null,null,null,null,null,null,null,null,null,null,"",""]
[null,null,null,null,null,null,null,null,null,null,null,null,null,null,"",""]
[null,null,null,null,null,null,null,null,null,null,null,null,null,null,"",""]
[null,null,null,null,null,null,null,null,null,null,null,null,null,null,"",""]
[null,null,null,null,null,null,null,null,null,null,null,null,null,null,"",""]
[null,null,null,null,null,null,null,null,null,null,null,null,null,null,"",""]
[null,null,null,null,null,null,null,null,null,null,null,null,null,null,"",""]
[null,null,null,null,null,null,null,null,null,null,null,null,null,null,"",""]
[null,null,null,null,null,null,null,null,null,null,null,null,null,null,"",""]
[null,null,null,null,null,null,null,null,null,null,null,null,null,null,"",""]
[null,null,null,null,null,null,null,null,null,null,null,null,null,null,"",""]
[null,null,null,null,null,null,null,null,null,null,null,null,null,null,"",""]
[null,null,null,null,null,null,null,null,null,null,null,null,null,null,"",""]
[null,null,null,null,null,null,null,null,null,null,null,null,null,null,"",""]
[null,null,null,null,null,null,null,null,null,null,null,null,null,null,"",""]
[null,null,null,null,null,null,null,null,null,null,null,null,null,null,"",""]
[null,null,null,null,null,null,null,null,null,null,null,null,null,null,"",""]
[null,null,null,null,null,null,null,null,null,null,null,null,null,null,"",""]
[null,null,null,null,null,null,null,null,null,null,null,null,null,null,"",""]
[null,null,null,null,null,null,null,null,null,null,null,null,null,null,"",""]
[null,null,null,null,null,null,null,null,null,null,null,null,null,null,"",""]
[null,null,null,null,null,null,null,null,null,null,null,null,null,null,"",""]
[null,null,null,null,null,null,null,null,null,null,null,null,null,null,"",""]
[null,null,null,null,null,null,null,null,null,null,null,null,null,null,"",{"$f":"IF(H14531=\"\",\"\",MATCH(H14531,$T$2:$T$2472,0))","v":""}]
[null,null,null,null,null,null,null,null,null,null,null,null,null,null,"",""]
[null,null,null,null,null,null,null,null,null,null,null,null,null,null,"",""]
[null,null,null,null,null,null,null,null,null,null,null,null,null,null,"",""]
[null,null,null,null,null,null,null,null,null,null,null,null,null,null,"",""]
[null,null,null,null,null,null,null,null,null,null,null,null,null,null,"",""]
[null,null,null,null,null,null,null,null,null,null,null,null,null,null,"",""]
[null,null,null,null,null,null,null,null,null,null,null,null,null,null,"",""]
[null,null,null,null,null,null,null,null,null,null,null,null,null,null,"",""]
[null,null,null,null,null,null,null,null,null,null,null,null,null,null,"",""]
[null,null,null,null,null,null,null,null,null,null,null,null,null,null,"",""]
[null,null,null,null,null,null,null,null,null,null,null,null,null,null,"",""]
[null,null,null,null,null,null,null,null,null,null,null,null,null,null,"",""]
[null,null,null,null,null,null,null,null,null,null,null,null,null,null,"",""]
[null,null,null,null,null,null,null,null,null,null,null,null,null,null,"",""]
[null,null,null,null,null,null,null,null,null,null,null,null,null,null,"",""]
[null,null,null,null,null,null,null,null,null,null,null,null,null,null,"",""]
[null,null,null,null,null,null,null,null,null,null,null,null,null,null,"",""]
[null,null,null,null,null,null,null,null,null,null,null,null,null,null,"",""]
[null,null,null,null,null,null,null,null,null,null,null,null,null,null,"",""]
[null,null,null,null,null,null,null,null,null,null,null,null,null,null,"",""]
[null,null,null,null,null,null,null,null,null,null,null,null,null,null,"",""]
[null,null,null,null,null,null,null,null,null,null,null,null,null,null,"",""]
[null,null,null,null,null,null,null,null,null,null,null,null,null,null,"",""]
[null,null,null,null,null,null,null,null,null,null,null,null,null,null,"",""]
[null,null,null,null,null,null,null,null,null,null,null,null,null,null,"",""]
[null,null,null,null,null,null,null,null,null,null,null,null,null,null,"",""]
[null,null,null,null,null,null,null,null,null,null,null,null,null,null,"",""]
[null,null,null,null,null,null,null,null,null,null,null,null,null,null,"",""]
[null,null,null,null,null,null,null,null,null,null,null,null,null,null,"",""]
[null,null,null,null,null,null,null,null,null,null,null,null,null,null,"",""]
[null,null,null,null,null,null,null,null,null,null,null,null,null,null,"",""]
[null,null,null,null,null,null,null,null,null,null,null,null,null,null,"",""]
[null,null,null,null,null,null,null,null,null,null,null,null,null,null,"",""]
[null,null,null,null,null,null,null,null,null,null,null,null,null,null,"",""]
[null,null,null,null,null,null,null,null,null,null,null,null,null,null,"",""]
[null,null,null,null,null,null,null,null,null,null,null,null,null,null,"",""]
[null,null,null,null,null,null,null,null,null,null,null,null,null,null,"",""]
[null,null,null,null,null,null,null,null,null,null,null,null,null,null,"",""]
[null,null,null,null,null,null,null,null,null,null,null,null,null,null,"",""]
[null,null,null,null,null,null,null,null,null,null,null,null,null,null,"",""]
[null,null,null,null,null,null,null,null,null,null,null,null,null,null,"",""]
[null,null,null,null,null,null,null,null,null,null,null,null,null,null,"",""]
[null,null,null,null,null,null,null,null,null,null,null,null,null,null,"",""]
[null,null,null,null,null,null,null,null,null,null,null,null,null,null,"",""]
[null,null,null,null,null,null,null,null,null,null,null,null,null,null,"",""]
[null,null,null,null,null,null,null,null,null,null,null,null,null,null,"",""]
[null,null,null,null,null,null,null,null,null,null,null,null,null,null,"",""]
[null,null,null,null,null,null,null,null,null,null,null,null,null,null,"",""]
[null,null,null,null,null,null,null,null,null,null,null,null,null,null,"",""]
[null,null,null,null,null,null,null,null,null,null,null,null,null,null,"",""]
[null,null,null,null,null,null,null,null,null,null,null,null,null,null,"",""]
[null,null,null,null,null,null,null,null,null,null,null,null,null,null,"",""]
[null,null,null,null,null,null,null,null,null,null,null,null,null,null,"",""]
[null,null,null,null,null,null,null,null,null,null,null,null,null,null,"",""]
[null,null,null,null,null,null,null,null,null,null,null,null,null,null,"",""]
[null,null,null,null,null,null,null,null,null,null,null,null,null,null,"",""]
[null,null,null,null,null,null,null,null,null,null,null,null,null,null,"",""]
[null,null,null,null,null,null,null,null,null,null,null,null,null,null,"",""]
[null,null,null,null,null,null,null,null,null,null,null,null,null,null,"",""]
[null,null,null,null,null,null,null,null,null,null,null,null,null,null,"",""]
[null,null,null,null,null,null,null,null,null,null,null,null,null,null,"",""]
[null,null,null,null,null,null,null,null,null,null,null,null,null,null,"",""]
[null,null,null,null,null,null,null,null,null,null,null,null,null,null,"",""]
[null,null,null,null,null,null,null,null,null,null,null,null,null,null,"",""]
[null,null,null,null,null,null,null,null,null,null,null,null,null,null,"",""]
[null,null,null,null,null,null,null,null,null,null,null,null,null,null,"",""]
[null,null,null,null,null,null,null,null,null,null,null,null,null,null,"",""]
[null,null,null,null,null,null,null,null,null,null,null,null,null,null,"",""]
[null,null,null,null,null,null,null,null,null,null,null,null,null,null,"",""]
[null,null,null,null,null,null,null,null,null,null,null,null,null,null,"",""]
[null,null,null,null,null,null,null,null,null,null,null,null,null,null,{"$f":"IF(D16566=\"\",\"\",MATCH(D16566,$S$2:$S$2488,0))","v":""},""]
[null,null,null,null,null,null,null,null,null,null,null,null,null,null,"",""]
[null,null,null,null,null,null,null,null,null,null,null,null,null,null,"",""]
[null,null,null,null,null,null,null,null,null,null,null,null,null,null,"",""]
[null,null,null,null,null,null,null,null,null,null,null,null,null,null,"",""]
[null,null,null,null,null,null,null,null,null,null,null,null,null,null,{"$f":"IF(D16694=\"\",\"\",MATCH(D16694,$S$2:$S$2488,0))","v":""},""]
[null,null,null,null,null,null,null,null,null,null,null,null,null,null,"",""]
[null,null,null,null,null,null,null,null,null,null,null,null,null,null,"",""]
[null,null,null,null,null,null,null,null,null,null,null,null,null,null,"",""]
[null,null,null,null,null,null,null,null,null,null,null,null,null,null,"",""]
[null,null,null,null,null,null,null,null,null,null,null,null,null,null,"",""]
[null,null,null,null,null,null,null,null,null,null,null,null,null,null,"",""]
[null,null,null,null,null,null,null,null,null,null,null,null,null,null,"",""]
[null,null,null,null,null,null,null,null,null,null,null,null,null,null,"",""]
[null,null,null,null,null,null,null,null,null,null,null,null,null,null,"",""]
[null,null,null,null,null,null,null,null,null,null,null,null,null,null,"",""]
[null,null,null,null,null,null,null,null,null,null,null,null,null,null,"",""]
[null,null,null,null,null,null,null,null,null,null,null,null,null,null,"",""]
[null,null,null,null,null,null,null,null,null,null,null,null,null,null,"",""]
[null,null,null,null,null,null,null,null,null,null,null,null,null,null,"",""]
[null,null,null,null,null,null,null,null,null,null,null,null,null,null,"",""]
[null,null,null,null,null,null,null,null,null,null,null,null,null,null,"",""]
[null,null,null,null,null,null,null,null,null,null,null,null,null,null,"",""]
[null,null,null,null,null,null,null,null,null,null,null,null,null,null,"",""]
[null,null,null,null,null,null,null,null,null,null,null,null,null,null,"",""]
[null,null,null,null,null,null,null,null,null,null,null,null,null,null,"",""]
[null,null,null,null,null,null,null,null,null,null,null,null,null,null,"",""]
[null,null,null,null,null,null,null,null,null,null,null,null,null,null,"",""]
[null,null,null,null,null,null,null,null,null,null,null,null,null,null,"",""]
[null,null,null,null,null,null,null,null,null,null,null,null,null,null,"",""]
[null,null,null,null,null,null,null,null,null,null,null,null,null,null,"",""]
[null,null,null,null,null,null,null,null,null,null,null,null,null,null,"",""]
[null,null,null,null,null,null,null,null,null,null,null,null,null,null,"",""]
[null,null,null,null,null,null,null,null,null,null,null,null,null,null,"",""]
[null,null,null,null,null,null,null,null,null,null,null,null,null,null,"",""]
[null,null,null,null,null,null,null,null,null,null,null,null,null,null,"",""]
[null,null,null,null,null,null,null,null,null,null,null,null,null,null,"",""]
[null,null,null,null,null,null,null,null,null,null,null,null,null,null,"",""]
[null,null,null,null,null,null,null,null,null,null,null,null,null,null,"",""]
[null,null,null,null,null,null,null,null,null,null,null,null,null,null,"",""]
[null,null,null,null,null,null,null,null,null,null,null,null,null,null,"",""]
[null,null,null,null,null,null,null,null,null,null,null,null,null,null,"",""]
[null,null,null,null,null,null,null,null,null,null,null,null,null,null,"",""]
[null,null,null,null,null,null,null,null,null,null,null,null,null,null,"",""]
[null,null,null,null,null,null,null,null,null,null,null,null,null,null,"",""]
[null,null,null,null,null,null,null,null,null,null,null,null,null,null,"",""]
[null,null,null,null,null,null,null,null,null,null,null,null,null,null,"",""]
[null,null,null,null,null,null,null,null,null,null,null,null,null,null,"",""]
[null,null,null,null,null,null,null,null,null,null,null,null,null,null,"",""]
[null,null,null,null,null,null,null,null,null,null,null,null,null,null,"",""]
[null,null,null,null,null,null,null,null,null,null,null,null,null,null,"",""]
[null,null,null,null,null,null,null,null,null,null,null,null,null,null,"",""]
[null,null,null,null,null,null,null,null,null,null,null,null,null,null,"",""]
[null,null,null,null,null,null,null,null,null,null,null,null,null,null,"",""]
[null,null,null,null,null,null,null,null,null,null,null,null,null,null,"",""]
[null,null,null,null,null,null,null,null,null,null,null,null,null,null,"",""]
[null,null,null,null,null,null,null,null,null,null,null,null,null,null,"",""]
[null,null,null,null,null,null,null,null,null,null,null,null,null,null,"",""]
[null,null,null,null,null,null,null,null,null,null,null,null,null,null,"",""]
[null,null,null,null,null,null,null,null,null,null,null,null,null,null,"",""]
[null,null,null,null,null,null,null,null,null,null,null,null,null,null,"",""]
[null,null,null,null,null,null,null,null,null,null,null,null,null,null,"",""]
[null,null,null,null,null,null,null,null,null,null,null,null,null,null,"",""]
[null,null,null,null,null,null,null,null,null,null,null,null,null,null,"",""]
[null,null,null,null,null,null,null,null,null,null,null,null,null,null,"",""]
[null,null,null,null,null,null,null,null,null,null,null,null,null,null,"",""]
[null,null,null,null,null,null,null,null,null,null,null,null,null,null,"",""]
[null,null,null,null,null,null,null,null,null,null,null,null,null,null,"",""]
[null,null,null,null,null,null,null,null,null,null,null,null,null,null,"",""]
[null,null,null,null,null,null,null,null,null,null,null,null,null,null,"",""]
[null,null,null,null,null,null,null,null,null,null,null,null,null,null,"",""]
[null,null,null,null,null,null,null,null,null,null,null,null,null,null,"",""]
[null,null,null,null,null,null,null,null,null,null,null,null,null,null,"",""]
[null,null,null,null,null,null,null,null,null,null,null,null,null,null,"",""]
[null,null,null,null,null,null,null,null,null,null,null,null,null,null,"",""]
[null,null,null,null,null,null,null,null,null,null,null,null,null,null,"",""]
[null,null,null,null,null,null,null,null,null,null,null,null,null,null,"",""]
[null,null,null,null,null,null,null,null,null,null,null,null,null,null,"",""]
[null,null,null,null,null,null,null,null,null,null,null,null,null,null,"",""]
[null,null,null,null,null,null,null,null,null,null,null,null,null,null,"",""]
[null,null,null,null,null,null,null,null,null,null,null,null,null,null,"",""]
[null,null,null,null,null,null,null,null,null,null,null,null,null,null,"",""]
[null,null,null,null,null,null,null,null,null,null,null,null,null,null,"",""]
[null,null,null,null,null,null,null,null,null,null,null,null,null,null,"",{"$f":"IF(H18947=\"\",\"\",MATCH(H18947,$T$2:$T$2472,0))","v":""}]
[null,null,null,null,null,null,null,null,null,null,null,null,null,null,"",""]
[null,null,null,null,null,null,null,null,null,null,null,null,null,null,"",""]
[null,null,null,null,null,null,null,null,null,null,null,null,null,null,"",""]
[null,null,null,null,null,null,null,null,null,null,null,null,null,null,"",""]
[null,null,null,null,null,null,null,null,null,null,null,null,null,null,"",""]
[null,null,null,null,null,null,null,null,null,null,null,null,null,null,"",""]
[null,null,null,null,null,null,null,null,null,null,null,null,null,null,"",""]
[null,null,null,null,null,null,null,null,null,null,null,null,null,null,"",""]
[null,null,null,null,null,null,null,null,null,null,null,null,null,null,"",""]
[null,null,null,null,null,null,null,null,null,null,null,null,null,null,"",""]
[null,null,null,null,null,null,null,null,null,null,null,null,null,null,"",""]
[null,null,null,null,null,null,null,null,null,null,null,null,null,null,"",""]
[null,null,null,null,null,null,null,null,null,null,null,null,null,null,"",""]
[null,null,null,null,null,null,null,null,null,null,null,null,null,null,"",""]
[null,null,null,null,null,null,null,null,null,null,null,null,null,null,"",""]
[null,null,null,null,null,null,null,null,null,null,null,null,null,null,"",""]
[null,null,null,null,null,null,null,null,null,null,null,null,null,null,"",""]
[null,null,null,null,null,null,null,null,null,null,null,null,null,null,"",""]
[null,null,null,null,null,null,null,null,null,null,null,null,null,null,"",""]
[null,null,null,null,null,null,null,null,null,null,null,null,null,null,"",""]
[null,null,null,null,null,null,null,null,null,null,null,null,null,null,"",""]
[null,null,null,null,null,null,null,null,null,null,null,null,null,null,"",""]
[null,null,null,null,null,null,null,null,null,null,null,null,null,null,"",""]
[null,null,null,null,null,null,null,null,null,null,null,null,null,null,"",""]
[null,null,null,null,null,null,null,null,null,null,null,null,null,null,"",""]
[null,null,null,null,null,null,null,null,null,null,null,null,null,null,"",""]
[null,null,null,null,null,null,null,null,null,null,null,null,null,null,"",""]
[null,null,null,null,null,null,null,null,null,null,null,null,null,null,"",""]
[null,null,null,null,null,null,null,null,null,null,null,null,null,null,"",""]
[null,null,null,null,null,null,null,null,null,null,null,null,null,null,"",""]
[null,null,null,null,null,null,null,null,null,null,null,null,null,null,"",""]
[null,null,null,null,null,null,null,null,null,null,null,null,null,null,"",""]
[null,null,null,null,null,null,null,null,null,null,null,null,null,null,"",""]
[null,null,null,null,null,null,null,null,null,null,null,null,null,null,"",""]
[null,null,null,null,null,null,null,null,null,null,null,null,null,null,"",""]
[null,null,null,null,null,null,null,null,null,null,null,null,null,null,"",""]
[null,null,null,null,null,null,null,null,null,null,null,null,null,null,"",""]
[null,null,null,null,null,null,null,null,null,null,null,null,null,null,"",""]
[null,null,null,null,null,null,null,null,null,null,null,null,null,null,"",""]
[null,null,null,null,null,null,null,null,null,null,null,null,null,null,"",""]
[null,null,null,null,null,null,null,null,null,null,null,null,null,null,"",""]
[null,null,null,null,null,null,null,null,null,null,null,null,null,null,"",{"$f":"IF(H20163=\"\",\"\",MATCH(H20163,$T$2:$T$2472,0))","v":""}]
[null,null,null,null,null,null,null,null,null,null,null,null,null,null,"",""]
[null,null,null,null,null,null,null,null,null,null,null,null,null,null,"",""]
[null,null,null,null,null,null,null,null,null,null,null,null,null,null,"",""]
[null,null,null,null,null,null,null,null,null,null,null,null,null,null,"",""]
[null,null,null,null,null,null,null,null,null,null,null,null,null,null,"",""]
[null,null,null,null,null,null,null,null,null,null,null,null,null,null,"",""]
[null,null,null,null,null,null,null,null,null,null,null,null,null,null,"",""]
[null,null,null,null,null,null,null,null,null,null,null,null,null,null,"",""]
[null,null,null,null,null,null,null,null,null,null,null,null,null,null,"",""]
[null,null,null,null,null,null,null,null,null,null,null,null,null,null,"",""]
[null,null,null,null,null,null,null,null,null,null,null,null,null,null,"",""]
[null,null,null,null,null,null,null,null,null,null,null,null,null,null,"",""]
[null,null,null,null,null,null,null,null,null,null,null,null,null,null,"",""]
[null,null,null,null,null,null,null,null,null,null,null,null,null,null,"",""]
[null,null,null,null,null,null,null,null,null,null,null,null,null,null,"",""]
[null,null,null,null,null,null,null,null,null,null,null,null,null,null,"",""]
[null,null,null,null,null,null,null,null,null,null,null,null,null,null,"",""]
[null,null,null,null,null,null,null,null,null,null,null,null,null,null,"",""]
[null,null,null,null,null,null,null,null,null,null,null,null,null,null,"",""]
[null,null,null,null,null,null,null,null,null,null,null,null,null,null,"",""]
[null,null,null,null,null,null,null,null,null,null,null,null,null,null,"",""]
[null,null,null,null,null,null,null,null,null,null,null,null,null,null,"",""]
[null,null,null,null,null,null,null,null,null,null,null,null,null,null,"",""]
[null,null,null,null,null,null,null,null,null,null,null,null,null,null,"",""]
[null,null,null,null,null,null,null,null,null,null,null,null,null,null,"",""]
[null,null,null,null,null,null,null,null,null,null,null,null,null,null,"",""]
[null,null,null,null,null,null,null,null,null,null,null,null,null,null,"",""]
[null,null,null,null,null,null,null,null,null,null,null,null,null,null,"",""]
[null,null,null,null,null,null,null,null,null,null,null,null,null,null,"",""]
[null,null,null,null,null,null,null,null,null,null,null,null,null,null,"",""]
[null,null,null,null,null,null,null,null,null,null,null,null,null,null,"",""]
[null,null,null,null,null,null,null,null,null,null,null,null,null,null,"",""]
[null,null,null,null,null,null,null,null,null,null,null,null,null,null,"",""]
[null,null,null,null,null,null,null,null,null,null,null,null,null,null,"",""]
[null,null,null,null,null,null,null,null,null,null,null,null,null,null,"",""]
[null,null,null,null,null,null,null,null,null,null,null,null,null,null,"",""]
[null,null,null,null,null,null,null,null,null,null,null,null,null,null,"",""]
[null,null,null,null,null,null,null,null,null,null,null,null,null,null,"",""]
[null,null,null,null,null,null,null,null,null,null,null,null,null,null,"",""]
[null,null,null,null,null,null,null,null,null,null,null,null,null,null,"",""]
[null,null,null,null,null,null,null,null,null,null,null,null,null,null,"",""]
[null,null,null,null,null,null,null,null,null,null,null,null,null,null,"",""]
[null,null,null,null,null,null,null,null,null,null,null,null,null,null,"",""]
[null,null,null,null,null,null,null,null,null,null,null,null,null,null,"",""]
[null,null,null,null,null,null,null,null,null,null,null,null,null,null,"",""]
[null,null,null,null,null,null,null,null,null,null,null,null,null,null,"",""]
[null,null,null,null,null,null,null,null,null,null,null,null,null,null,"",""]
[null,null,null,null,null,null,null,null,null,null,null,null,null,null,"",""]
[null,null,null,null,null,null,null,null,null,null,null,null,null,null,"",""]
[null,null,null,null,null,null,null,null,null,null,null,null,null,null,"",""]
[null,null,null,null,null,null,null,null,null,null,null,null,null,null,"",""]
[null,null,null,null,null,null,null,null,null,null,null,null,null,null,"",""]
[null,null,null,null,null,null,null,null,null,null,null,null,null,null,"",""]
[null,null,null,null,null,null,null,null,null,null,null,null,null,null,"",""]
[null,null,null,null,null,null,null,null,null,null,null,null,null,null,"",""]
[null,null,null,null,null,null,null,null,null,null,null,null,null,null,"",""]
[null,null,null,null,null,null,null,null,null,null,null,null,null,null,"",""]
[null,null,null,null,null,null,null,null,null,null,null,null,null,null,"",""]
[null,null,null,null,null,null,null,null,null,null,null,null,null,null,"",""]
[null,null,null,null,null,null,null,null,null,null,null,null,null,null,"",""]
[null,null,null,null,null,null,null,null,null,null,null,null,null,null,"",""]
[null,null,null,null,null,null,null,null,null,null,null,null,null,null,"",""]
[null,null,null,null,null,null,null,null,null,null,null,null,null,null,"",""]
[null,null,null,null,null,null,null,null,null,null,null,null,null,null,"",""]
[null,null,null,null,null,null,null,null,null,null,null,null,null,null,"",""]
[null,null,null,null,null,null,null,null,null,null,null,null,null,null,"",""]
[null,null,null,null,null,null,null,null,null,null,null,null,null,null,"",""]
[null,null,null,null,null,null,null,null,null,null,null,null,null,null,"",""]
[null,null,null,null,null,null,null,null,null,null,null,null,null,null,"",""]
[null,null,null,null,null,null,null,null,null,null,null,null,null,null,"",""]
[null,null,null,null,null,null,null,null,null,null,null,null,null,null,{"$f":"IF(D22198=\"\",\"\",MATCH(D22198,$S$2:$S$2488,0))","v":""},""]
[null,null,null,null,null,null,null,null,null,null,null,null,null,null,"",""]
[null,null,null,null,null,null,null,null,null,null,null,null,null,null,"",""]
[null,null,null,null,null,null,null,null,null,null,null,null,null,null,"",""]
[null,null,null,null,null,null,null,null,null,null,null,null,null,null,"",""]
[null,null,null,null,null,null,null,null,null,null,null,null,null,null,"",""]
[null,null,null,null,null,null,null,null,null,null,null,null,null,null,"",""]
[null,null,null,null,null,null,null,null,null,null,null,null,null,null,"",""]
[null,null,null,null,null,null,null,null,null,null,null,null,null,null,"",""]
[null,null,null,null,null,null,null,null,null,null,null,null,null,null,"",""]
[null,null,null,null,null,null,null,null,null,null,null,null,null,null,"",""]
[null,null,null,null,null,null,null,null,null,null,null,null,null,null,"",""]
[null,null,null,null,null,null,null,null,null,null,null,null,null,null,"",""]
[null,null,null,null,null,null,null,null,null,null,null,null,null,null,"",""]
[null,null,null,null,null,null,null,null,null,null,null,null,null,null,"",""]
[null,null,null,null,null,null,null,null,null,null,null,null,null,null,"",""]
[null,null,null,null,null,null,null,null,null,null,null,null,null,null,"",""]
[null,null,null,null,null,null,null,null,null,null,null,null,null,null,"",""]
[null,null,null,null,null,null,null,null,null,null,null,null,null,null,"",""]
[null,null,null,null,null,null,null,null,null,null,null,null,null,null,"",""]
[null,null,null,null,null,null,null,null,null,null,null,null,null,null,"",""]
[null,null,null,null,null,null,null,null,null,null,null,null,null,null,"",""]
[null,null,null,null,null,null,null,null,null,null,null,null,null,null,"",""]
[null,null,null,null,null,null,null,null,null,null,null,null,null,null,"",""]
[null,null,null,null,null,null,null,null,null,null,null,null,null,null,"",""]
[null,null,null,null,null,null,null,null,null,null,null,null,null,null,"",""]
[null,null,null,null,null,null,null,null,null,null,null,null,null,null,"",""]
[null,null,null,null,null,null,null,null,null,null,null,null,null,null,"",""]
[null,null,null,null,null,null,null,null,null,null,null,null,null,null,"",""]
[null,null,null,null,null,null,null,null,null,null,null,null,null,null,"",""]
[null,null,null,null,null,null,null,null,null,null,null,null,null,null,"",""]
[null,null,null,null,null,null,null,null,null,null,null,null,null,null,"",""]
[null,null,null,null,null,null,null,null,null,null,null,null,null,null,"",""]
[null,null,null,null,null,null,null,null,null,null,null,null,null,null,"",""]
[null,null,null,null,null,null,null,null,null,null,null,null,null,null,"",""]
[null,null,null,null,null,null,null,null,null,null,null,null,null,null,"",""]
[null,null,null,null,null,null,null,null,null,null,null,null,null,null,"",""]
[null,null,null,null,null,null,null,null,null,null,null,null,null,null,"",""]
[null,null,null,null,null,null,null,null,null,null,null,null,null,null,"",""]
[null,null,null,null,null,null,null,null,null,null,null,null,null,null,"",""]
[null,null,null,null,null,null,null,null,null,null,null,null,null,null,"",""]
[null,null,null,null,null,null,null,null,null,null,null,null,null,null,"",""]
[null,null,null,null,null,null,null,null,null,null,null,null,null,null,"",""]
[null,null,null,null,null,null,null,null,null,null,null,null,null,null,"",""]
[null,null,null,null,null,null,null,null,null,null,null,null,null,null,"",""]
[null,null,null,null,null,null,null,null,null,null,null,null,null,null,"",""]
[null,null,null,null,null,null,null,null,null,null,null,null,null,null,"",""]
[null,null,null,null,null,null,null,null,null,null,null,null,null,null,"",""]
[null,null,null,null,null,null,null,null,null,null,null,null,null,null,"",""]
[null,null,null,null,null,null,null,null,null,null,null,null,null,null,"",""]
[null,null,null,null,null,null,null,null,null,null,null,null,null,null,"",""]
[null,null,null,null,null,null,null,null,null,null,null,null,null,null,"",""]
[null,null,null,null,null,null,null,null,null,null,null,null,null,null,"",""]
[null,null,null,null,null,null,null,null,null,null,null,null,null,null,"",""]
[null,null,null,null,null,null,null,null,null,null,null,null,null,null,"",""]
[null,null,null,null,null,null,null,null,null,null,null,null,null,null,"",""]
[null,null,null,null,null,null,null,null,null,null,null,null,null,null,"",""]
[null,null,null,null,null,null,null,null,null,null,null,null,null,null,"",""]
[null,null,null,null,null,null,null,null,null,null,null,null,null,null,"",""]
[null,null,null,null,null,null,null,null,null,null,null,null,null,null,"",""]
[null,null,null,null,null,null,null,null,null,null,null,null,null,null,"",""]
[null,null,null,null,null,null,null,null,null,null,null,null,null,null,"",""]
[null,null,null,null,null,null,null,null,null,null,null,null,null,null,"",""]
[null,null,null,null,null,null,null,null,null,null,null,null,null,null,"",""]
[null,null,null,null,null,null,null,null,null,null,null,null,null,null,"",""]
[null,null,null,null,null,null,null,null,null,null,null,null,null,null,"",""]
[null,null,null,null,null,null,null,null,null,null,null,null,null,null,"",""]
[null,null,null,null,null,null,null,null,null,null,null,null,null,null,"",""]
[null,null,null,null,null,null,null,null,null,null,null,null,null,null,"",""]
[null,null,null,null,null,null,null,null,null,null,null,null,null,null,"",""]
[null,null,null,null,null,null,null,null,null,null,null,null,null,null,"",""]
[null,null,null,null,null,null,null,null,null,null,null,null,null,null,"",""]
[null,null,null,null,null,null,null,null,null,null,null,null,null,null,"",""]
[null,null,null,null,null,null,null,null,null,null,null,null,null,null,"",""]
[null,null,null,null,null,null,null,null,null,null,null,null,null,null,"",""]
[null,null,null,null,null,null,null,null,null,null,null,null,null,null,"",""]
[null,null,null,null,null,null,null,null,null,null,null,null,null,null,"",""]
[null,null,null,null,null,null,null,null,null,null,null,null,null,null,"",""]
[null,null,null,null,null,null,null,null,null,null,null,null,null,null,"",""]
[null,null,null,null,null,null,null,null,null,null,null,null,null,null,"",""]
[null,null,null,null,null,null,null,null,null,null,null,null,null,null,"",""]
[null,null,null,null,null,null,null,null,null,null,null,null,null,null,"",""]
[null,null,null,null,null,null,null,null,null,null,null,null,null,null,"",""]
[null,null,null,null,null,null,null,null,null,null,null,null,null,null,"",{"$f":"IF(H24579=\"\",\"\",MATCH(H24579,$T$2:$T$2472,0))","v":""}]
[null,null,null,null,null,null,null,null,null,null,null,null,null,null,"",""]
[null,null,null,null,null,null,null,null,null,null,null,null,null,null,"",""]
[null,null,null,null,null,null,null,null,null,null,null,null,null,null,"",""]
[null,null,null,null,null,null,null,null,null,null,null,null,null,null,"",""]
[null,null,null,null,null,null,null,null,null,null,null,null,null,null,"",""]
[null,null,null,null,null,null,null,null,null,null,null,null,null,null,"",""]
[null,null,null,null,null,null,null,null,null,null,null,null,null,null,"",""]
[null,null,null,null,null,null,null,null,null,null,null,null,null,null,"",""]
[null,null,null,null,null,null,null,null,null,null,null,null,null,null,"",""]
[null,null,null,null,null,null,null,null,null,null,null,null,null,null,"",""]
[null,null,null,null,null,null,null,null,null,null,null,null,null,null,"",""]
[null,null,null,null,null,null,null,null,null,null,null,null,null,null,"",""]
[null,null,null,null,null,null,null,null,null,null,null,null,null,null,"",""]
[null,null,null,null,null,null,null,null,null,null,null,null,null,null,"",""]
[null,null,null,null,null,null,null,null,null,null,null,null,null,null,"",""]
[null,null,null,null,null,null,null,null,null,null,null,null,null,null,"",""]
[null,null,null,null,null,null,null,null,null,null,null,null,null,null,"",""]
[null,null,null,null,null,null,null,null,null,null,null,null,null,null,"",""]
[null,null,null,null,null,null,null,null,null,null,null,null,null,null,"",""]
[null,null,null,null,null,null,null,null,null,null,null,null,null,null,"",""]
[null,null,null,null,null,null,null,null,null,null,null,null,null,null,"",""]
[null,null,null,null,null,null,null,null,null,null,null,null,null,null,"",""]
[null,null,null,null,null,null,null,null,null,null,null,null,null,null,"",""]
[null,null,null,null,null,null,null,null,null,null,null,null,null,null,"",""]
[null,null,null,null,null,null,null,null,null,null,null,null,null,null,"",""]
[null,null,null,null,null,null,null,null,null,null,null,null,null,null,"",""]
[null,null,null,null,null,null,null,null,null,null,null,null,null,null,"",""]
[null,null,null,null,null,null,null,null,null,null,null,null,null,null,"",""]
[null,null,null,null,null,null,null,null,null,null,null,null,null,null,"",""]
[null,null,null,null,null,null,null,null,null,null,null,null,null,null,"",""]
[null,null,null,null,null,null,null,null,null,null,null,null,null,null,"",""]
[null,null,null,null,null,null,null,null,null,null,null,null,null,null,"",""]
[null,null,null,null,null,null,null,null,null,null,null,null,null,null,"",""]
[null,null,null,null,null,null,null,null,null,null,null,null,null,null,"",""]
[null,null,null,null,null,null,null,null,null,null,null,null,null,null,"",""]
[null,null,null,null,null,null,null,null,null,null,null,null,null,null,"",""]
[null,null,null,null,null,null,null,null,null,null,null,null,null,null,"",""]
[null,null,null,null,null,null,null,null,null,null,null,null,null,null,"",""]
[null,null,null,null,null,null,null,null,null,null,null,null,null,null,"",""]
[null,null,null,null,null,null,null,null,null,null,null,null,null,null,"",""]
[null,null,null,null,null,null,null,null,null,null,null,null,null,null,"",""]
[null,null,null,null,null,null,null,null,null,null,null,null,null,null,"",""]
[null,null,null,null,null,null,null,null,null,null,null,null,null,null,"",""]
[null,null,null,null,null,null,null,null,null,null,null,null,null,null,"",""]
[null,null,null,null,null,null,null,null,null,null,null,null,null,null,"",""]
[null,null,null,null,null,null,null,null,null,null,null,null,null,null,"",""]
[null,null,null,null,null,null,null,null,null,null,null,null,null,null,"",""]
[null,null,null,null,null,null,null,null,null,null,null,null,null,null,"",""]
[null,null,null,null,null,null,null,null,null,null,null,null,null,null,"",""]
[null,null,null,null,null,null,null,null,null,null,null,null,null,null,"",""]
[null,null,null,null,null,null,null,null,null,null,null,null,null,null,"",""]
[null,null,null,null,null,null,null,null,null,null,null,null,null,null,"",""]
[null,null,null,null,null,null,null,null,null,null,null,null,null,null,"",""]
[null,null,null,null,null,null,null,null,null,null,null,null,null,null,"",""]
[null,null,null,null,null,null,null,null,null,null,null,null,null,null,"",""]
[null,null,null,null,null,null,null,null,null,null,null,null,null,null,"",""]
[null,null,null,null,null,null,null,null,null,null,null,null,null,null,"",""]
[null,null,null,null,null,null,null,null,null,null,null,null,null,null,"",""]
[null,null,null,null,null,null,null,null,null,null,null,null,null,null,"",""]
[null,null,null,null,null,null,null,null,null,null,null,null,null,null,"",""]
[null,null,null,null,null,null,null,null,null,null,null,null,null,null,"",""]
[null,null,null,null,null,null,null,null,null,null,null,null,null,null,"",""]
[null,null,null,null,null,null,null,null,null,null,null,null,null,null,"",""]
[null,null,null,null,null,null,null,null,null,null,null,null,null,null,"",""]
[null,null,null,null,null,null,null,null,null,null,null,null,null,null,"",""]
[null,null,null,null,null,null,null,null,null,null,null,null,null,null,"",""]
[null,null,null,null,null,null,null,null,null,null,null,null,null,null,"",""]
[null,null,null,null,null,null,null,null,null,null,null,null,null,null,"",""]
[null,null,null,null,null,null,null,null,null,null,null,null,null,null,"",""]
[null,null,null,null,null,null,null,null,null,null,null,null,null,null,"",""]
[null,null,null,null,null,null,null,null,null,null,null,null,null,null,"",""]
[null,null,null,null,null,null,null,null,null,null,null,null,null,null,"",""]
[null,null,null,null,null,null,null,null,null,null,null,null,null,null,"",""]
[null,null,null,null,null,null,null,null,null,null,null,null,null,null,"",""]
[null,null,null,null,null,null,null,null,null,null,null,null,null,null,"",""]
[null,null,null,null,null,null,null,null,null,null,null,null,null,null,"",""]
[null,null,null,null,null,null,null,null,null,null,null,null,null,null,"",""]
[null,null,null,null,null,null,null,null,null,null,null,null,null,null,"",""]
[null,null,null,null,null,null,null,null,null,null,null,null,null,null,"",""]
[null,null,null,null,null,null,null,null,null,null,null,null,null,null,"",""]
[null,null,null,null,null,null,null,null,null,null,null,null,null,null,"",""]
[null,null,null,null,null,null,null,null,null,null,null,null,null,null,"",""]
[null,null,null,null,null,null,null,null,null,null,null,null,null,null,"",""]
[null,null,null,null,null,null,null,null,null,null,null,null,null,null,"",""]
[null,null,null,null,null,null,null,null,null,null,null,null,null,null,"",""]
[null,null,null,null,null,null,null,null,null,null,null,null,null,null,"",""]
[null,null,null,null,null,null,null,null,null,null,null,null,null,null,"",""]
[null,null,null,null,null,null,null,null,null,null,null,null,null,null,"",""]
[null,null,null,null,null,null,null,null,null,null,null,null,null,null,"",""]
[null,null,null,null,null,null,null,null,null,null,null,null,null,null,"",""]
[null,null,null,null,null,null,null,null,null,null,null,null,null,null,"",""]
[null,null,null,null,null,null,null,null,null,null,null,null,null,null,"",""]
[null,null,null,null,null,null,null,null,null,null,null,null,null,null,"",""]
[null,null,null,null,null,null,null,null,null,null,null,null,null,null,"",""]
[null,null,null,null,null,null,null,null,null,null,null,null,null,null,"",""]
[null,null,null,null,null,null,null,null,null,null,null,null,null,null,"",""]
[null,null,null,null,null,null,null,null,null,null,null,null,null,null,"",""]
[null,null,null,null,null,null,null,null,null,null,null,null,null,null,"",""]
[null,null,null,null,null,null,null,null,null,null,null,null,null,null,"",""]
[null,null,null,null,null,null,null,null,null,null,null,null,null,null,"",""]
[null,null,null,null,null,null,null,null,null,null,null,null,null,null,"",""]
[null,null,null,null,null,null,null,null,null,null,null,null,null,null,"",""]
[null,null,null,null,null,null,null,null,null,null,null,null,null,null,"",""]
[null,null,null,null,null,null,null,null,null,null,null,null,null,null,"",""]
[null,null,null,null,null,null,null,null,null,null,null,null,null,null,"",""]
[null,null,null,null,null,null,null,null,null,null,null,null,null,null,"",""]
[null,null,null,null,null,null,null,null,null,null,null,null,null,null,"",""]
[null,null,null,null,null,null,null,null,null,null,null,null,null,null,{"$f":"IF(D27702=\"\",\"\",MATCH(D27702,$S$2:$S$2488,0))","v":""},""]
[null,null,null,null,null,null,null,null,null,null,null,null,null,null,"",""]
[null,null,null,null,null,null,null,null,null,null,null,null,null,null,"",""]
[null,null,null,null,null,null,null,null,null,null,null,null,null,null,"",""]
[null,null,null,null,null,null,null,null,null,null,null,null,null,null,"",""]
[null,null,null,null,null,null,null,null,null,null,null,null,null,null,{"$f":"IF(D27830=\"\",\"\",MATCH(D27830,$S$2:$S$2488,0))","v":""},""]
[null,null,null,null,null,null,null,null,null,null,null,null,null,null,"",""]
[null,null,null,null,null,null,null,null,null,null,null,null,null,null,"",""]
[null,null,null,null,null,null,null,null,null,null,null,null,null,null,"",""]
[null,null,null,null,null,null,null,null,null,null,null,null,null,null,"",""]
[null,null,null,null,null,null,null,null,null,null,null,null,null,null,"",{"$f":"IF(H27971=\"\",\"\",MATCH(H27971,$T$2:$T$2472,0))","v":""}]
[null,null,null,null,null,null,null,null,null,null,null,null,null,null,"",""]
[null,null,null,null,null,null,null,null,null,null,null,null,null,null,"",""]
[null,null,null,null,null,null,null,null,null,null,null,null,null,null,"",""]
[null,null,null,null,null,null,null,null,null,null,null,null,null,null,"",""]
[null,null,null,null,null,null,null,null,null,null,null,null,null,null,"",""]
[null,null,null,null,null,null,null,null,null,null,null,null,null,null,"",""]
[null,null,null,null,null,null,null,null,null,null,null,null,null,null,"",""]
[null,null,null,null,null,null,null,null,null,null,null,null,null,null,"",""]
[null,null,null,null,null,null,null,null,null,null,null,null,null,null,"",""]
[null,null,null,null,null,null,null,null,null,null,null,null,null,null,"",""]
[null,null,null,null,null,null,null,null,null,null,null,null,null,null,"",""]
[null,null,null,null,null,null,null,null,null,null,null,null,null,null,"",""]
[null,null,null,null,null,null,null,null,null,null,null,null,null,null,"",""]
[null,null,null,null,null,null,null,null,null,null,null,null,null,null,"",""]
[null,null,null,null,null,null,null,null,null,null,null,null,null,null,"",""]
[null,null,null,null,null,null,null,null,null,null,null,null,null,null,"",""]
[null,null,null,null,null,null,null,null,null,null,null,null,null,null,"",""]
[null,null,null,null,null,null,null,null,null,null,null,null,null,null,"",""]
[null,null,null,null,null,null,null,null,null,null,null,null,null,null,"",""]
[null,null,null,null,null,null,null,null,null,null,null,null,null,null,"",""]
[null,null,null,null,null,null,null,null,null,null,null,null,null,null,"",""]
[null,null,null,null,null,null,null,null,null,null,null,null,null,null,"",""]
[null,null,null,null,null,null,null,null,null,null,null,null,null,null,"",""]
[null,null,null,null,null,null,null,null,null,null,null,null,null,null,"",""]
[null,null,null,null,null,null,null,null,null,null,null,null,null,null,"",""]
[null,null,null,null,null,null,null,null,null,null,null,null,null,null,"",""]
[null,null,null,null,null,null,null,null,null,null,null,null,null,null,"",""]
[null,null,null,null,null,null,null,null,null,null,null,null,null,null,"",""]
[null,null,null,null,null,null,null,null,null,null,null,null,null,null,"",""]
[null,null,null,null,null,null,null,null,null,null,null,null,null,null,"",""]
[null,null,null,null,null,null,null,null,null,null,null,null,null,null,"",""]
[null,null,null,null,null,null,null,null,null,null,null,null,null,null,"",""]
[null,null,null,null,null,null,null,null,null,null,null,null,null,null,"",""]
[null,null,null,null,null,null,null,null,null,null,null,null,null,null,"",""]
[null,null,null,null,null,null,null,null,null,null,null,null,null,null,"",""]
[null,null,null,null,null,null,null,null,null,null,null,null,null,null,"",""]
[null,null,null,null,null,null,null,null,null,null,null,null,null,null,"",""]
[null,null,null,null,null,null,null,null,null,null,null,null,null,null,"",""]
[null,null,null,null,null,null,null,null,null,null,null,null,null,null,"",""]
[null,null,null,null,null,null,null,null,null,null,null,null,null,null,"",""]
[null,null,null,null,null,null,null,null,null,null,null,null,null,null,"",""]
[null,null,null,null,null,null,null,null,null,null,null,null,null,null,"",""]
[null,null,null,null,null,null,null,null,null,null,null,null,null,null,"",""]
[null,null,null,null,null,null,null,null,null,null,null,null,null,null,"",""]
[null,null,null,null,null,null,null,null,null,null,null,null,null,null,"",""]
[null,null,null,null,null,null,null,null,null,null,null,null,null,null,"",""]
[null,null,null,null,null,null,null,null,null,null,null,null,null,null,"",""]
[null,null,null,null,null,null,null,null,null,null,null,null,null,null,"",""]
[null,null,null,null,null,null,null,null,null,null,null,null,null,null,"",""]
[null,null,null,null,null,null,null,null,null,null,null,null,null,null,"",""]
[null,null,null,null,null,null,null,null,null,null,null,null,null,null,"",""]
[null,null,null,null,null,null,null,null,null,null,null,null,null,null,"",""]
[null,null,null,null,null,null,null,null,null,null,null,null,null,null,"",""]
[null,null,null,null,null,null,null,null,null,null,null,null,null,null,"",""]
[null,null,null,null,null,null,null,null,null,null,null,null,null,null,"",""]
[null,null,null,null,null,null,null,null,null,null,null,null,null,null,"",""]
[null,null,null,null,null,null,null,null,null,null,null,null,null,null,"",""]
[null,null,null,null,null,null,null,null,null,null,null,null,null,null,"",""]
[null,null,null,null,null,null,null,null,null,null,null,null,null,null,"",""]
[null,null,null,null,null,null,null,null,null,null,null,null,null,null,"",""]
[null,null,null,null,null,null,null,null,null,null,null,null,null,null,"",""]
[null,null,null,null,null,null,null,null,null,null,null,null,null,null,"",""]
[null,null,null,null,null,null,null,null,null,null,null,null,null,null,"",""]
[null,null,null,null,null,null,null,null,null,null,null,null,null,null,"",""]
[null,null,null,null,null,null,null,null,null,null,null,null,null,null,"",""]
[null,null,null,null,null,null,null,null,null,null,null,null,null,null,"",""]
[null,null,null,null,null,null,null,null,null,null,null,null,null,null,"",""]
[null,null,null,null,null,null,null,null,null,null,null,null,null,null,"",""]
[null,null,null,null,null,null,null,null,null,null,null,null,null,null,"",""]
[null,null,null,null,null,null,null,null,null,null,null,null,null,null,"",""]
[null,null,null,null,null,null,null,null,null,null,null,null,null,null,"",""]
[null,null,null,null,null,null,null,null,null,null,null,null,null,null,"",""]
[null,null,null,null,null,null,null,null,null,null,null,null,null,null,"",""]
[null,null,null,null,null,null,null,null,null,null,null,null,null,null,"",""]
[null,null,null,null,null,null,null,null,null,null,null,null,null,null,"",""]
[null,null,null,null,null,null,null,null,null,null,null,null,null,null,"",""]
[null,null,null,null,null,null,null,null,null,null,null,null,null,null,"",""]
[null,null,null,null,null,null,null,null,null,null,null,null,null,null,"",{"$f":"IF(H30211=\"\",\"\",MATCH(H30211,$T$2:$T$2472,0))","v":""}]
[null,null,null,null,null,null,null,null,null,null,null,null,null,null,"",""]
[null,null,null,null,null,null,null,null,null,null,null,null,null,null,"",""]
[null,null,null,null,null,null,null,null,null,null,null,null,null,null,"",""]
[null,null,null,null,null,null,null,null,null,null,null,null,null,null,"",""]
[null,null,null,null,null,null,null,null,null,null,null,null,null,null,"",""]
[null,null,null,null,null,null,null,null,null,null,null,null,null,null,"",""]
[null,null,null,null,null,null,null,null,null,null,null,null,null,null,"",""]
[null,null,null,null,null,null,null,null,null,null,null,null,null,null,"",""]
[null,null,null,null,null,null,null,null,null,null,null,null,null,null,"",""]
[null,null,null,null,null,null,null,null,null,null,null,null,null,null,"",""]
[null,null,null,null,null,null,null,null,null,null,null,null,null,null,"",""]
[null,null,null,null,null,null,null,null,null,null,null,null,null,null,"",""]
[null,null,null,null,null,null,null,null,null,null,null,null,null,null,"",""]
[null,null,null,null,null,null,null,null,null,null,null,null,null,null,"",""]
[null,null,null,null,null,null,null,null,null,null,null,null,null,null,"",""]
[null,null,null,null,null,null,null,null,null,null,null,null,null,null,"",""]
[null,null,null,null,null,null,null,null,null,null,null,null,null,null,"",""]
[null,null,null,null,null,null,null,null,null,null,null,null,null,null,"",""]
[null,null,null,null,null,null,null,null,null,null,null,null,null,null,"",""]
[null,null,null,null,null,null,null,null,null,null,null,null,null,null,"",""]
[null,null,null,null,null,null,null,null,null,null,null,null,null,null,"",""]
[null,null,null,null,null,null,null,null,null,null,null,null,null,null,"",""]
[null,null,null,null,null,null,null,null,null,null,null,null,null,null,"",""]
[null,null,null,null,null,null,null,null,null,null,null,null,null,null,"",""]
[null,null,null,null,null,null,null,null,null,null,null,null,null,null,"",""]
[null,null,null,null,null,null,null,null,null,null,null,null,null,null,"",""]
[null,null,null,null,null,null,null,null,null,null,null,null,null,null,"",""]
[null,null,null,null,null,null,null,null,null,null,null,null,null,null,"",""]
[null,null,null,null,null,null,null,null,null,null,null,null,null,null,"",""]
[null,null,null,null,null,null,null,null,null,null,null,null,null,null,{"$f":"IF(D31094=\"\",\"\",MATCH(D31094,$S$2:$S$2488,0))","v":""},""]
[null,null,null,null,null,null,null,null,null,null,null,null,null,null,"",""]
[null,null,null,null,null,null,null,null,null,null,null,null,null,null,"",""]
[null,null,null,null,null,null,null,null,null,null,null,null,null,null,"",""]
[null,null,null,null,null,null,null,null,null,null,null,null,null,null,"",""]
[null,null,null,null,null,null,null,null,null,null,null,null,null,null,"",""]
[null,null,null,null,null,null,null,null,null,null,null,null,null,null,"",""]
[null,null,null,null,null,null,null,null,null,null,null,null,null,null,"",""]
[null,null,null,null,null,null,null,null,null,null,null,null,null,null,"",""]
[null,null,null,null,null,null,null,null,null,null,null,null,null,null,"",""]
[null,null,null,null,null,null,null,null,null,null,null,null,null,null,"",""]
[null,null,null,null,null,null,null,null,null,null,null,null,null,null,"",""]
[null,null,null,null,null,null,null,null,null,null,null,null,null,null,"",""]
[null,null,null,null,null,null,null,null,null,null,null,null,null,null,"",""]
[null,null,null,null,null,null,null,null,null,null,null,null,null,null,"",""]
[null,null,null,null,null,null,null,null,null,null,null,null,null,null,"",""]
[null,null,null,null,null,null,null,null,null,null,null,null,null,null,"",""]
[null,null,null,null,null,null,null,null,null,null,null,null,null,null,"",""]
[null,null,null,null,null,null,null,null,null,null,null,null,null,null,"",""]
[null,null,null,null,null,null,null,null,null,null,null,null,null,null,"",""]
[null,null,null,null,null,null,null,null,null,null,null,null,null,null,"",""]
[null,null,null,null,null,null,null,null,null,null,null,null,null,null,"",""]
[null,null,null,null,null,null,null,null,null,null,null,null,null,null,"",""]
[null,null,null,null,null,null,null,null,null,null,null,null,null,null,"",""]
[null,null,null,null,null,null,null,null,null,null,null,null,null,null,"",""]
[null,null,null,null,null,null,null,null,null,null,null,null,null,null,"",""]
[null,null,null,null,null,null,null,null,null,null,null,null,null,null,"",""]
[null,null,null,null,null,null,null,null,null,null,null,null,null,null,"",""]
[null,null,null,null,null,null,null,null,null,null,null,null,null,null,"",""]
[null,null,null,null,null,null,null,null,null,null,null,null,null,null,{"$f":"IF(D31926=\"\",\"\",MATCH(D31926,$S$2:$S$2488,0))","v":""},""]
[null,null,null,null,null,null,null,null,null,null,null,null,null,null,"",""]
[null,null,null,null,null,null,null,null,null,null,null,null,null,null,"",""]
[null,null,null,null,null,null,null,null,null,null,null,null,null,null,"",""]
[null,null,null,null,null,null,null,null,null,null,null,null,null,null,"",""]
[null,null,null,null,null,null,null,null,null,null,null,null,null,null,"",""]
[null,null,null,null,null,null,null,null,null,null,null,null,null,null,"",""]
[null,null,null,null,null,null,null,null,null,null,null,null,null,null,"",""]
[null,null,null,null,null,null,null,null,null,null,null,null,null,null,"",""]
[null,null,null,null,null,null,null,null,null,null,null,null,null,null,"",""]
[null,null,null,null,null,null,null,null,null,null,null,null,null,null,"",""]
[null,null,null,null,null,null,null,null,null,null,null,null,null,null,"",""]
[null,null,null,null,null,null,null,null,null,null,null,null,null,null,"",""]
[null,null,null,null,null,null,null,null,null,null,null,null,null,null,"",""]
[null,null,null,null,null,null,null,null,null,null,null,null,null,null,"",""]
[null,null,null,null,null,null,null,null,null,null,null,null,null,null,"",""]
[null,null,null,null,null,null,null,null,null,null,null,null,null,null,"",""]
[null,null,null,null,null,null,null,null,null,null,null,null,null,null,"",""]
[null,null,null,null,null,null,null,null,null,null,null,null,null,null,"",""]
[null,null,null,null,null,null,null,null,null,null,null,null,null,null,"",""]
[null,null,null,null,null,null,null,null,null,null,null,null,null,null,"",""]
[null,null,null,null,null,null,null,null,null,null,null,null,null,null,"",""]
[null,null,null,null,null,null,null,null,null,null,null,null,null,null,"",""]
[null,null,null,null,null,null,null,null,null,null,null,null,null,null,"",""]
[null,null,null,null,null,null,null,null,null,null,null,null,null,null,"",""]
[null,null,null,null,null,null,null,null,null,null,null,null,null,null,"",""]
[null,null,null,null,null,null,null,null,null,null,null,null,null,null,"",""]
[null,null,null,null,null,null,null,null,null,null,null,null,null,null,"",""]
[null,null,null,null,null,null,null,null,null,null,null,null,null,null,"",""]
[null,null,null,null,null,null,null,null,null,null,null,null,null,null,"",""]
[null,null,null,null,null,null,null,null,null,null,null,null,null,null,"",""]
[null,null,null,null,null,null,null,null,null,null,null,null,null,null,"",""]
[null,null,null,null,null,null,null,null,null,null,null,null,null,null,"",""]
[null,null,null,null,null,null,null,null,null,null,null,null,null,null,"",""]
[null,null,null,null,null,null,null,null,null,null,null,null,null,null,"",""]
[null,null,null,null,null,null,null,null,null,null,null,null,null,null,"",""]
[null,null,null,null,null,null,null,null,null,null,null,null,null,null,"",""]
[null,null,null,null,null,null,null,null,null,null,null,null,null,null,"",""]
[null,null,null,null,null,null,null,null,null,null,null,null,null,null,"",""]
[null,null,null,null,null,null,null,null,null,null,null,null,null,null,"",""]
[null,null,null,null,null,null,null,null,null,null,null,null,null,null,"",""]
[null,null,null,null,null,null,null,null,null,null,null,null,null,null,"",""]
[null,null,null,null,null,null,null,null,null,null,null,null,null,null,"",""]
[null,null,null,null,null,null,null,null,null,null,null,null,null,null,"",""]
[null,null,null,null,null,null,null,null,null,null,null,null,null,null,"",""]
[null,null,null,null,null,null,null,null,null,null,null,null,null,null,"",""]
[null,null,null,null,null,null,null,null,null,null,null,null,null,null,"",""]
[null,null,null,null,null,null,null,null,null,null,null,null,null,null,"",""]
[null,null,null,null,null,null,null,null,null,null,null,null,null,null,"",""]
[null,null,null,null,null,null,null,null,null,null,null,null,null,null,"",""]
[null,null,null,null,null,null,null,null,null,null,null,null,null,null,"",""]
[null,null,null,null,null,null,null,null,null,null,null,null,null,null,"",""]
[null,null,null,null,null,null,null,null,null,null,null,null,null,null,"",""]
[null,null,null,null,null,null,null,null,null,null,null,null,null,null,"",""]
[null,null,null,null,null,null,null,null,null,null,null,null,null,null,"",{"$f":"IF(H33475=\"\",\"\",MATCH(H33475,$T$2:$T$2472,0))","v":""}]
[null,null,null,null,null,null,null,null,null,null,null,null,null,null,"",""]
[null,null,null,null,null,null,null,null,null,null,null,null,null,null,"",""]
[null,null,null,null,null,null,null,null,null,null,null,null,null,null,"",""]
[null,null,null,null,null,null,null,null,null,null,null,null,null,null,"",""]
[null,null,null,null,null,null,null,null,null,null,null,null,null,null,"",{"$f":"IF(H33603=\"\",\"\",MATCH(H33603,$T$2:$T$2472,0))","v":""}]
[null,null,null,null,null,null,null,null,null,null,null,null,null,null,"",""]
[null,null,null,null,null,null,null,null,null,null,null,null,null,null,"",""]
[null,null,null,null,null,null,null,null,null,null,null,null,null,null,"",""]
[null,null,null,null,null,null,null,null,null,null,null,null,null,null,"",""]
[null,null,null,null,null,null,null,null,null,null,null,null,null,null,"",""]
[null,null,null,null,null,null,null,null,null,null,null,null,null,null,"",""]
[null,null,null,null,null,null,null,null,null,null,null,null,null,null,"",""]
[null,null,null,null,null,null,null,null,null,null,null,null,null,null,"",""]
[null,null,null,null,null,null,null,null,null,null,null,null,null,null,"",""]
[null,null,null,null,null,null,null,null,null,null,null,null,null,null,"",""]
[null,null,null,null,null,null,null,null,null,null,null,null,null,null,"",""]
[null,null,null,null,null,null,null,null,null,null,null,null,null,null,"",""]
[null,null,null,null,null,null,null,null,null,null,null,null,null,null,"",""]
[null,null,null,null,null,null,null,null,null,null,null,null,null,null,"",""]
[null,null,null,null,null,null,null,null,null,null,null,null,null,null,"",""]
[null,null,null,null,null,null,null,null,null,null,null,null,null,null,"",""]
[null,null,null,null,null,null,null,null,null,null,null,null,null,null,"",""]
[null,null,null,null,null,null,null,null,null,null,null,null,null,null,"",""]
[null,null,null,null,null,null,null,null,null,null,null,null,null,null,"",""]
[null,null,null,null,null,null,null,null,null,null,null,null,null,null,"",""]
[null,null,null,null,null,null,null,null,null,null,null,null,null,null,"",""]
[null,null,null,null,null,null,null,null,null,null,null,null,null,null,"",""]
[null,null,null,null,null,null,null,null,null,null,null,null,null,null,"",""]
[null,null,null,null,null,null,null,null,null,null,null,null,null,null,"",""]
[null,null,null,null,null,null,null,null,null,null,null,null,null,null,"",""]
[null,null,null,null,null,null,null,null,null,null,null,null,null,null,"",""]
[null,null,null,null,null,null,null,null,null,null,null,null,null,null,"",""]
[null,null,null,null,null,null,null,null,null,null,null,null,null,null,"",""]
[null,null,null,null,null,null,null,null,null,null,null,null,null,null,"",""]
[null,null,null,null,null,null,null,null,null,null,null,null,null,null,"",""]
[null,null,null,null,null,null,null,null,null,null,null,null,null,null,"",""]
[null,null,null,null,null,null,null,null,null,null,null,null,null,null,"",""]
[null,null,null,null,null,null,null,null,null,null,null,null,null,null,"",""]
[null,null,null,null,null,null,null,null,null,null,null,null,null,null,"",""]
[null,null,null,null,null,null,null,null,null,null,null,null,null,null,"",""]
[null,null,null,null,null,null,null,null,null,null,null,null,null,null,"",""]
[null,null,null,null,null,null,null,null,null,null,null,null,null,null,"",""]
[null,null,null,null,null,null,null,null,null,null,null,null,null,null,"",""]
[null,null,null,null,null,null,null,null,null,null,null,null,null,null,"",""]
[null,null,null,null,null,null,null,null,null,null,null,null,null,null,"",""]
[null,null,null,null,null,null,null,null,null,null,null,null,null,null,"",""]
[null,null,null,null,null,null,null,null,null,null,null,null,null,null,"",""]
[null,null,null,null,null,null,null,null,null,null,null,null,null,null,"",""]
[null,null,null,null,null,null,null,null,null,null,null,null,null,null,"",""]
[null,null,null,null,null,null,null,null,null,null,null,null,null,null,"",""]
[null,null,null,null,null,null,null,null,null,null,null,null,null,null,"",""]
[null,null,null,null,null,null,null,null,null,null,null,null,null,null,"",""]
[null,null,null,null,null,null,null,null,null,null,null,null,null,null,"",""]
[null,null,null,null,null,null,null,null,null,null,null,null,null,null,"",""]
[null,null,null,null,null,null,null,null,null,null,null,null,null,null,"",""]
[null,null,null,null,null,null,null,null,null,null,null,null,null,null,"",""]
[null,null,null,null,null,null,null,null,null,null,null,null,null,null,"",""]
[null,null,null,null,null,null,null,null,null,null,null,null,null,null,"",""]
[null,null,null,null,null,null,null,null,null,null,null,null,null,null,"",""]
[null,null,null,null,null,null,null,null,null,null,null,null,null,null,"",""]
[null,null,null,null,null,null,null,null,null,null,null,null,null,null,"",""]
[null,null,null,null,null,null,null,null,null,null,null,null,null,null,"",""]
[null,null,null,null,null,null,null,null,null,null,null,null,null,null,"",""]
[null,null,null,null,null,null,null,null,null,null,null,null,null,null,"",""]
[null,null,null,null,null,null,null,null,null,null,null,null,null,null,"",""]
[null,null,null,null,null,null,null,null,null,null,null,null,null,null,"",""]
[null,null,null,null,null,null,null,null,null,null,null,null,null,null,"",""]
[null,null,null,null,null,null,null,null,null,null,null,null,null,null,"",""]
[null,null,null,null,null,null,null,null,null,null,null,null,null,null,"",""]
[null,null,null,null,null,null,null,null,null,null,null,null,null,null,"",""]
[null,null,null,null,null,null,null,null,null,null,null,null,null,null,{"$f":"IF(D35510=\"\",\"\",MATCH(D35510,$S$2:$S$2488,0))","v":""},""]
[null,null,null,null,null,null,null,null,null,null,null,null,null,null,"",""]
[null,null,null,null,null,null,null,null,null,null,null,null,null,null,"",""]
[null,null,null,null,null,null,null,null,null,null,null,null,null,null,"",""]
[null,null,null,null,null,null,null,null,null,null,null,null,null,null,"",""]
[null,null,null,null,null,null,null,null,null,null,null,null,null,null,{"$f":"IF(D35638=\"\",\"\",MATCH(D35638,$S$2:$S$2488,0))","v":""},""]
[null,null,null,null,null,null,null,null,null,null,null,null,null,null,"",""]
[null,null,null,null,null,null,null,null,null,null,null,null,null,null,"",""]
[null,null,null,null,null,null,null,null,null,null,null,null,null,null,"",""]
[null,null,null,null,null,null,null,null,null,null,null,null,null,null,"",""]
[null,null,null,null,null,null,null,null,null,null,null,null,null,null,"",""]
[null,null,null,null,null,null,null,null,null,null,null,null,null,null,"",""]
[null,null,null,null,null,null,null,null,null,null,null,null,null,null,"",{"$f":"IF(H35843=\"\",\"\",MATCH(H35843,$T$2:$T$2472,0))","v":""}]
[null,null,null,null,null,null,null,null,null,null,null,null,null,null,"",""]
[null,null,null,null,null,null,null,null,null,null,null,null,null,null,"",""]
[null,null,null,null,null,null,null,null,null,null,null,null,null,null,"",""]
[null,null,null,null,null,null,null,null,null,null,null,null,null,null,"",""]
[null,null,null,null,null,null,null,null,null,null,null,null,null,null,"",""]
[null,null,null,null,null,null,null,null,null,null,null,null,null,null,"",""]
[null,null,null,null,null,null,null,null,null,null,null,null,null,null,"",""]
[null,null,null,null,null,null,null,null,null,null,null,null,null,null,"",""]
[null,null,null,null,null,null,null,null,null,null,null,null,null,null,"",""]
[null,null,null,null,null,null,null,null,null,null,null,null,null,null,"",""]
[null,null,null,null,null,null,null,null,null,null,null,null,null,null,"",""]
[null,null,null,null,null,null,null,null,null,null,null,null,null,null,"",""]
[null,null,null,null,null,null,null,null,null,null,null,null,null,null,"",""]
[null,null,null,null,null,null,null,null,null,null,null,null,null,null,"",""]
[null,null,null,null,null,null,null,null,null,null,null,null,null,null,"",""]
[null,null,null,null,null,null,null,null,null,null,null,null,null,null,"",""]
[null,null,null,null,null,null,null,null,null,null,null,null,null,null,"",""]
[null,null,null,null,null,null,null,null,null,null,null,null,null,null,"",""]
[null,null,null,null,null,null,null,null,null,null,null,null,null,null,"",""]
[null,null,null,null,null,null,null,null,null,null,null,null,null,null,"",""]
[null,null,null,null,null,null,null,null,null,null,null,null,null,null,"",""]
[null,null,null,null,null,null,null,null,null,null,null,null,null,null,"",""]
[null,null,null,null,null,null,null,null,null,null,null,null,null,null,"",""]
[null,null,null,null,null,null,null,null,null,null,null,null,null,null,"",""]
[null,null,null,null,null,null,null,null,null,null,null,null,null,null,"",""]
[null,null,null,null,null,null,null,null,null,null,null,null,null,null,"",""]
[null,null,null,null,null,null,null,null,null,null,null,null,null,null,"",""]
[null,null,null,null,null,null,null,null,null,null,null,null,null,null,"",""]
[null,null,null,null,null,null,null,null,null,null,null,null,null,null,"",""]
[null,null,null,null,null,null,null,null,null,null,null,null,null,null,{"$f":"IF(D36726=\"\",\"\",MATCH(D36726,$S$2:$S$2488,0))","v":""},""]
[null,null,null,null,null,null,null,null,null,null,null,null,null,null,"",""]
[null,null,null,null,null,null,null,null,null,null,null,null,null,null,"",""]
[null,null,null,null,null,null,null,null,null,null,null,null,null,null,"",""]
[null,null,null,null,null,null,null,null,null,null,null,null,null,null,"",""]
[null,null,null,null,null,null,null,null,null,null,null,null,null,null,"",""]
[null,null,null,null,null,null,null,null,null,null,null,null,null,null,"",""]
[null,null,null,null,null,null,null,null,null,null,null,null,null,null,"",""]
[null,null,null,null,null,null,null,null,null,null,null,null,null,null,"",""]
[null,null,null,null,null,null,null,null,null,null,null,null,null,null,{"$f":"IF(D36982=\"\",\"\",MATCH(D36982,$S$2:$S$2488,0))","v":""},""]
[null,null,null,null,null,null,null,null,null,null,null,null,null,null,"",""]
[null,null,null,null,null,null,null,null,null,null,null,null,null,null,"",""]
[null,null,null,null,null,null,null,null,null,null,null,null,null,null,"",""]
[null,null,null,null,null,null,null,null,null,null,null,null,null,null,"",""]
[null,null,null,null,null,null,null,null,null,null,null,null,null,null,"",""]
[null,null,null,null,null,null,null,null,null,null,null,null,null,null,"",""]
[null,null,null,null,null,null,null,null,null,null,null,null,null,null,"",""]
[null,null,null,null,null,null,null,null,null,null,null,null,null,null,"",""]
[null,null,null,null,null,null,null,null,null,null,null,null,null,null,"",""]
[null,null,null,null,null,null,null,null,null,null,null,null,null,null,"",""]
[null,null,null,null,null,null,null,null,null,null,null,null,null,null,"",""]
[null,null,null,null,null,null,null,null,null,null,null,null,null,null,"",""]
[null,null,null,null,null,null,null,null,null,null,null,null,null,null,"",""]
[null,null,null,null,null,null,null,null,null,null,null,null,null,null,"",""]
[null,null,null,null,null,null,null,null,null,null,null,null,null,null,"",""]
[null,null,null,null,null,null,null,null,null,null,null,null,null,null,"",""]
[null,null,null,null,null,null,null,null,null,null,null,null,null,null,"",""]
[null,null,null,null,null,null,null,null,null,null,null,null,null,null,"",""]
[null,null,null,null,null,null,null,null,null,null,null,null,null,null,"",""]
[null,null,null,null,null,null,null,null,null,null,null,null,null,null,"",""]
[null,null,null,null,null,null,null,null,null,null,null,null,null,null,"",""]
[null,null,null,null,null,null,null,null,null,null,null,null,null,null,"",""]
[null,null,null,null,null,null,null,null,null,null,null,null,null,null,"",""]
[null,null,null,null,null,null,null,null,null,null,null,null,null,null,"",""]
[null,null,null,null,null,null,null,null,null,null,null,null,null,null,"",""]
[null,null,null,null,null,null,null,null,null,null,null,null,null,null,"",""]
[null,null,null,null,null,null,null,null,null,null,null,null,null,null,"",""]
[null,null,null,null,null,null,null,null,null,null,null,null,null,null,"",""]
[null,null,null,null,null,null,null,null,null,null,null,null,null,null,"",""]
[null,null,null,null,null,null,null,null,null,null,null,null,null,null,"",""]
[null,null,null,null,null,null,null,null,null,null,null,null,null,null,"",""]
[null,null,null,null,null,null,null,null,null,null,null,null,null,null,"",""]
[null,null,null,null,null,null,null,null,null,null,null,null,null,null,"",""]
[null,null,null,null,null,null,null,null,null,null,null,null,null,null,"",""]
[null,null,null,null,null,null,null,null,null,null,null,null,null,null,"",""]
[null,null,null,null,null,null,null,null,null,null,null,null,null,null,"",""]
[null,null,null,null,null,null,null,null,null,null,null,null,null,null,"",""]
[null,null,null,null,null,null,null,null,null,null,null,null,null,null,"",""]
[null,null,null,null,null,null,null,null,null,null,null,null,null,null,"",""]
[null,null,null,null,null,null,null,null,null,null,null,null,null,null,"",""]
[null,null,null,null,null,null,null,null,null,null,null,null,null,null,"",""]
[null,null,null,null,null,null,null,null,null,null,null,null,null,null,"",""]
[null,null,null,null,null,null,null,null,null,null,null,null,null,null,"",""]
[null,null,null,null,null,null,null,null,null,null,null,null,null,null,"",""]
[null,null,null,null,null,null,null,null,null,null,null,null,null,null,"",""]
[null,null,null,null,null,null,null,null,null,null,null,null,null,null,"",""]
[null,null,null,null,null,null,null,null,null,null,null,null,null,null,"",""]
[null,null,null,null,null,null,null,null,null,null,null,null,null,null,"",""]
[null,null,null,null,null,null,null,null,null,null,null,null,null,null,"",""]
[null,null,null,null,null,null,null,null,null,null,null,null,null,null,"",""]
[null,null,null,null,null,null,null,null,null,null,null,null,null,null,"",""]
[null,null,null,null,null,null,null,null,null,null,null,null,null,null,"",""]
[null,null,null,null,null,null,null,null,null,null,null,null,null,null,"",""]
[null,null,null,null,null,null,null,null,null,null,null,null,null,null,"",""]
[null,null,null,null,null,null,null,null,null,null,null,null,null,null,"",""]
[null,null,null,null,null,null,null,null,null,null,null,null,null,null,"",""]
[null,null,null,null,null,null,null,null,null,null,null,null,null,null,"",""]
[null,null,null,null,null,null,null,null,null,null,null,null,null,null,"",""]
[null,null,null,null,null,null,null,null,null,null,null,null,null,null,"",""]
[null,null,null,null,null,null,null,null,null,null,null,null,null,null,"",""]
[null,null,null,null,null,null,null,null,null,null,null,null,null,null,"",""]
[null,null,null,null,null,null,null,null,null,null,null,null,null,null,"",""]
[null,null,null,null,null,null,null,null,null,null,null,null,null,null,"",""]
[null,null,null,null,null,null,null,null,null,null,null,null,null,null,"",""]
[null,null,null,null,null,null,null,null,null,null,null,null,null,null,"",""]
[null,null,null,null,null,null,null,null,null,null,null,null,null,null,"",""]
[null,null,null,null,null,null,null,null,null,null,null,null,null,null,"",""]
[null,null,null,null,null,null,null,null,null,null,null,null,null,null,"",""]
[null,null,null,null,null,null,null,null,null,null,null,null,null,null,"",""]
[null,null,null,null,null,null,null,null,null,null,null,null,null,null,"",""]
[null,null,null,null,null,null,null,null,null,null,null,null,null,null,"",""]
[null,null,null,null,null,null,null,null,null,null,null,null,null,null,"",""]
[null,null,null,null,null,null,null,null,null,null,null,null,null,null,"",""]
[null,null,null,null,null,null,null,null,null,null,null,null,null,null,"",{"$f":"IF(H39107=\"\",\"\",MATCH(H39107,$T$2:$T$2472,0))","v":""}]
[null,null,null,null,null,null,null,null,null,null,null,null,null,null,"",""]
[null,null,null,null,null,null,null,null,null,null,null,null,null,null,"",""]
[null,null,null,null,null,null,null,null,null,null,null,null,null,null,"",""]
[null,null,null,null,null,null,null,null,null,null,null,null,null,null,"",""]
[null,null,null,null,null,null,null,null,null,null,null,null,null,null,"",{"$f":"IF(H39235=\"\",\"\",MATCH(H39235,$T$2:$T$2472,0))","v":""}]
[null,null,null,null,null,null,null,null,null,null,null,null,null,null,"",""]
[null,null,null,null,null,null,null,null,null,null,null,null,null,null,"",""]
[null,null,null,null,null,null,null,null,null,null,null,null,null,null,"",""]
[null,null,null,null,null,null,null,null,null,null,null,null,null,null,"",""]
[null,null,null,null,null,null,null,null,null,null,null,null,null,null,"",""]
[null,null,null,null,null,null,null,null,null,null,null,null,null,null,"",""]
[null,null,null,null,null,null,null,null,null,null,null,null,null,null,"",""]
[null,null,null,null,null,null,null,null,null,null,null,null,null,null,"",""]
[null,null,null,null,null,null,null,null,null,null,null,null,null,null,"",""]
[null,null,null,null,null,null,null,null,null,null,null,null,null,null,"",""]
[null,null,null,null,null,null,null,null,null,null,null,null,null,null,"",""]
[null,null,null,null,null,null,null,null,null,null,null,null,null,null,"",""]
[null,null,null,null,null,null,null,null,null,null,null,null,null,null,"",""]
[null,null,null,null,null,null,null,null,null,null,null,null,null,null,"",""]
[null,null,null,null,null,null,null,null,null,null,null,null,null,null,"",""]
[null,null,null,null,null,null,null,null,null,null,null,null,null,null,"",""]
[null,null,null,null,null,null,null,null,null,null,null,null,null,null,{"$f":"IF(D39734=\"\",\"\",MATCH(D39734,$S$2:$S$2488,0))","v":""},""]
[null,null,null,null,null,null,null,null,null,null,null,null,null,null,"",""]
[null,null,null,null,null,null,null,null,null,null,null,null,null,null,"",""]
[null,null,null,null,null,null,null,null,null,null,null,null,null,null,"",""]
[null,null,null,null,null,null,null,null,null,null,null,null,null,null,"",""]
[null,null,null,null,null,null,null,null,null,null,null,null,null,null,"",""]
[null,null,null,null,null,null,null,null,null,null,null,null,null,null,"",""]
[null,null,null,null,null,null,null,null,null,null,null,null,null,null,"",""]
[null,null,null,null,null,null,null,null,null,null,null,null,null,null,"",""]
[null,null,null,null,null,null,null,null,null,null,null,null,null,null,"",""]
[null,null,null,null,null,null,null,null,null,null,null,null,null,null,"",""]
[null,null,null,null,null,null,null,null,null,null,null,null,null,null,"",""]
[null,null,null,null,null,null,null,null,null,null,null,null,null,null,"",""]
[null,null,null,null,null,null,null,null,null,null,null,null,null,null,"",""]
[null,null,null,null,null,null,null,null,null,null,null,null,null,null,"",""]
[null,null,null,null,null,null,null,null,null,null,null,null,null,null,"",""]
[null,null,null,null,null,null,null,null,null,null,null,null,null,null,"",""]
[null,null,null,null,null,null,null,null,null,null,null,null,null,null,"",""]
[null,null,null,null,null,null,null,null,null,null,null,null,null,null,"",""]
[null,null,null,null,null,null,null,null,null,null,null,null,null,null,"",""]
[null,null,null,null,null,null,null,null,null,null,null,null,null,null,"",""]
[null,null,null,null,null,null,null,null,null,null,null,null,null,null,"",""]
[null,null,null,null,null,null,null,null,null,null,null,null,null,null,"",""]
[null,null,null,null,null,null,null,null,null,null,null,null,null,null,"",""]
[null,null,null,null,null,null,null,null,null,null,null,null,null,null,"",""]
[null,null,null,null,null,null,null,null,null,null,null,null,null,null,"",""]
[null,null,null,null,null,null,null,null,null,null,null,null,null,null,"",""]
[null,null,null,null,null,null,null,null,null,null,null,null,null,null,"",""]
[null,null,null,null,null,null,null,null,null,null,null,null,null,null,"",""]
[null,null,null,null,null,null,null,null,null,null,null,null,null,null,"",""]
[null,null,null,null,null,null,null,null,null,null,null,null,null,null,"",""]
[null,null,null,null,null,null,null,null,null,null,null,null,null,null,"",""]
[null,null,null,null,null,null,null,null,null,null,null,null,null,null,"",""]
[null,null,null,null,null,null,null,null,null,null,null,null,null,null,"",""]
[null,null,null,null,null,null,null,null,null,null,null,null,null,null,"",""]
[null,null,null,null,null,null,null,null,null,null,null,null,null,null,"",""]
[null,null,null,null,null,null,null,null,null,null,null,null,null,null,"",""]
[null,null,null,null,null,null,null,null,null,null,null,null,null,null,"",""]
[null,null,null,null,null,null,null,null,null,null,null,null,null,null,"",""]
[null,null,null,null,null,null,null,null,null,null,null,null,null,null,"",""]
[null,null,null,null,null,null,null,null,null,null,null,null,null,null,"",""]
[null,null,null,null,null,null,null,null,null,null,null,null,null,null,"",""]
[null,null,null,null,null,null,null,null,null,null,null,null,null,null,"",""]
[null,null,null,null,null,null,null,null,null,null,null,null,null,null,"",""]
[null,null,null,null,null,null,null,null,null,null,null,null,null,null,"",""]
[null,null,null,null,null,null,null,null,null,null,null,null,null,null,"",""]
[null,null,null,null,null,null,null,null,null,null,null,null,null,null,"",""]
[null,null,null,null,null,null,null,null,null,null,null,null,null,null,"",""]
[null,null,null,null,null,null,null,null,null,null,null,null,null,null,"",""]
[null,null,null,null,null,null,null,null,null,null,null,null,null,null,{"$f":"IF(D41142=\"\",\"\",MATCH(D41142,$S$2:$S$2488,0))","v":""},""]
[null,null,null,null,null,null,null,null,null,null,null,null,null,null,"",""]
[null,null,null,null,null,null,null,null,null,null,null,null,null,null,"",""]
[null,null,null,null,null,null,null,null,null,null,null,null,null,null,"",""]
[null,null,null,null,null,null,null,null,null,null,null,null,null,null,"",""]
[null,null,null,null,null,null,null,null,null,null,null,null,null,null,"",""]
[null,null,null,null,null,null,null,null,null,null,null,null,null,null,"",""]
[null,null,null,null,null,null,null,null,null,null,null,null,null,null,"",""]
[null,null,null,null,null,null,null,null,null,null,null,null,null,null,"",""]
[null,null,null,null,null,null,null,null,null,null,null,null,null,null,"",""]
[null,null,null,null,null,null,null,null,null,null,null,null,null,null,"",""]
[null,null,null,null,null,null,null,null,null,null,null,null,null,null,"",""]
[null,null,null,null,null,null,null,null,null,null,null,null,null,null,"",{"$f":"IF(H41475=\"\",\"\",MATCH(H41475,$T$2:$T$2472,0))","v":""}]
[null,null,null,null,null,null,null,null,null,null,null,null,null,null,"",""]
[null,null,null,null,null,null,null,null,null,null,null,null,null,null,"",""]
[null,null,null,null,null,null,null,null,null,null,null,null,null,null,"",""]
[null,null,null,null,null,null,null,null,null,null,null,null,null,null,"",""]
[null,null,null,null,null,null,null,null,null,null,null,null,null,null,"",""]
[null,null,null,null,null,null,null,null,null,null,null,null,null,null,"",""]
[null,null,null,null,null,null,null,null,null,null,null,null,null,null,"",""]
[null,null,null,null,null,null,null,null,null,null,null,null,null,null,"",""]
[null,null,null,null,null,null,null,null,null,null,null,null,null,null,"",""]
[null,null,null,null,null,null,null,null,null,null,null,null,null,null,"",""]
[null,null,null,null,null,null,null,null,null,null,null,null,null,null,"",""]
[null,null,null,null,null,null,null,null,null,null,null,null,null,null,"",""]
[null,null,null,null,null,null,null,null,null,null,null,null,null,null,"",""]
[null,null,null,null,null,null,null,null,null,null,null,null,null,null,"",""]
[null,null,null,null,null,null,null,null,null,null,null,null,null,null,"",""]
[null,null,null,null,null,null,null,null,null,null,null,null,null,null,"",""]
[null,null,null,null,null,null,null,null,null,null,null,null,null,null,"",""]
[null,null,null,null,null,null,null,null,null,null,null,null,null,null,"",""]
[null,null,null,null,null,null,null,null,null,null,null,null,null,null,{"$f":"IF(D42038=\"\",\"\",MATCH(D42038,$S$2:$S$2488,0))","v":""},""]
[null,null,null,null,null,null,null,null,null,null,null,null,null,null,"",""]
[null,null,null,null,null,null,null,null,null,null,null,null,null,null,"",""]
[null,null,null,null,null,null,null,null,null,null,null,null,null,null,"",""]
[null,null,null,null,null,null,null,null,null,null,null,null,null,null,"",""]
[null,null,null,null,null,null,null,null,null,null,null,null,null,null,"",""]
[null,null,null,null,null,null,null,null,null,null,null,null,null,null,"",""]
[null,null,null,null,null,null,null,null,null,null,null,null,null,null,"",""]
[null,null,null,null,null,null,null,null,null,null,null,null,null,null,"",""]
[null,null,null,null,null,null,null,null,null,null,null,null,null,null,"",""]
[null,null,null,null,null,null,null,null,null,null,null,null,null,null,"",""]
[null,null,null,null,null,null,null,null,null,null,null,null,null,null,"",""]
[null,null,null,null,null,null,null,null,null,null,null,null,null,null,"",""]
[null,null,null,null,null,null,null,null,null,null,null,null,null,null,"",""]
[null,null,null,null,null,null,null,null,null,null,null,null,null,null,"",""]
[null,null,null,null,null,null,null,null,null,null,null,null,null,null,"",""]
[null,null,null,null,null,null,null,null,null,null,null,null,null,null,"",""]
[null,null,null,null,null,null,null,null,null,null,null,null,null,null,"",""]
[null,null,null,null,null,null,null,null,null,null,null,null,null,null,"",""]
[null,null,null,null,null,null,null,null,null,null,null,null,null,null,"",""]
[null,null,null,null,null,null,null,null,null,null,null,null,null,null,"",""]
[null,null,null,null,null,null,null,null,null,null,null,null,null,null,"",""]
[null,null,null,null,null,null,null,null,null,null,null,null,null,null,"",""]
[null,null,null,null,null,null,null,null,null,null,null,null,null,null,"",""]
[null,null,null,null,null,null,null,null,null,null,null,null,null,null,"",""]
[null,null,null,null,null,null,null,null,null,null,null,null,null,null,"",""]
[null,null,null,null,null,null,null,null,null,null,null,null,null,null,"",""]
[null,null,null,null,null,null,null,null,null,null,null,null,null,null,"",""]
[null,null,null,null,null,null,null,null,null,null,null,null,null,null,"",""]
[null,null,null,null,null,null,null,null,null,null,null,null,null,null,"",""]
[null,null,null,null,null,null,null,null,null,null,null,null,null,null,"",""]
[null,null,null,null,null,null,null,null,null,null,null,null,null,null,"",""]
[null,null,null,null,null,null,null,null,null,null,null,null,null,null,"",""]
[null,null,null,null,null,null,null,null,null,null,null,null,null,null,"",""]
[null,null,null,null,null,null,null,null,null,null,null,null,null,null,"",""]
[null,null,null,null,null,null,null,null,null,null,null,null,null,null,"",""]
[null,null,null,null,null,null,null,null,null,null,null,null,null,null,"",""]
[null,null,null,null,null,null,null,null,null,null,null,null,null,null,"",""]
[null,null,null,null,null,null,null,null,null,null,null,null,null,null,"",""]
[null,null,null,null,null,null,null,null,null,null,null,null,null,null,"",""]
[null,null,null,null,null,null,null,null,null,null,null,null,null,null,"",""]
[null,null,null,null,null,null,null,null,null,null,null,null,null,null,"",""]
[null,null,null,null,null,null,null,null,null,null,null,null,null,null,"",""]
[null,null,null,null,null,null,null,null,null,null,null,null,null,null,"",""]
[null,null,null,null,null,null,null,null,null,null,null,null,null,null,"",""]
[null,null,null,null,null,null,null,null,null,null,null,null,null,null,"",""]
[null,null,null,null,null,null,null,null,null,null,null,null,null,null,"",""]
[null,null,null,null,null,null,null,null,null,null,null,null,null,null,"",""]
[null,null,null,null,null,null,null,null,null,null,null,null,null,null,"",""]
[null,null,null,null,null,null,null,null,null,null,null,null,null,null,"",""]
[null,null,null,null,null,null,null,null,null,null,null,null,null,null,"",""]
[null,null,null,null,null,null,null,null,null,null,null,null,null,null,"",""]
[null,null,null,null,null,null,null,null,null,null,null,null,null,null,"",""]
[null,null,null,null,null,null,null,null,null,null,null,null,null,null,"",""]
[null,null,null,null,null,null,null,null,null,null,null,null,null,null,"",""]
[null,null,null,null,null,null,null,null,null,null,null,null,null,null,"",""]
[null,null,null,null,null,null,null,null,null,null,null,null,null,null,"",""]
[null,null,null,null,null,null,null,null,null,null,null,null,null,null,"",""]
[null,null,null,null,null,null,null,null,null,null,null,null,null,null,"",""]
[null,null,null,null,null,null,null,null,null,null,null,null,null,null,"",""]
[null,null,null,null,null,null,null,null,null,null,null,null,null,null,"",""]
[null,null,null,null,null,null,null,null,null,null,null,null,null,null,"",""]
[null,null,null,null,null,null,null,null,null,null,null,null,null,null,"",""]
[null,null,null,null,null,null,null,null,null,null,null,null,null,null,"",""]
[null,null,null,null,null,null,null,null,null,null,null,null,null,null,"",""]
[null,null,null,null,null,null,null,null,null,null,null,null,null,null,"",""]
[null,null,null,null,null,null,null,null,null,null,null,null,null,null,"",""]
[null,null,null,null,null,null,null,null,null,null,null,null,null,null,"",""]
[null,null,null,null,null,null,null,null,null,null,null,null,null,null,"",""]
[null,null,null,null,null,null,null,null,null,null,null,null,null,null,"",""]
[null,null,null,null,null,null,null,null,null,null,null,null,null,null,"",""]
[null,null,null,null,null,null,null,null,null,null,null,null,null,null,"",""]
[null,null,null,null,null,null,null,null,null,null,null,null,null,null,"",""]
[null,null,null,null,null,null,null,null,null,null,null,null,null,null,"",""]
[null,null,null,null,null,null,null,null,null,null,null,null,null,null,"",""]
[null,null,null,null,null,null,null,null,null,null,null,null,null,null,"",""]
[null,null,null,null,null,null,null,null,null,null,null,null,null,null,"",""]
[null,null,null,null,null,null,null,null,null,null,null,null,null,null,"",""]
[null,null,null,null,null,null,null,null,null,null,null,null,null,null,"",""]
[null,null,null,null,null,null,null,null,null,null,null,null,null,null,"",""]
[null,null,null,null,null,null,null,null,null,null,null,null,null,null,"",""]
[null,null,null,null,null,null,null,null,null,null,null,null,null,null,"",""]
[null,null,null,null,null,null,null,null,null,null,null,null,null,null,"",""]
[null,null,null,null,null,null,null,null,null,null,null,null,null,null,"",""]
[null,null,null,null,null,null,null,null,null,null,null,null,null,null,"",""]
[null,null,null,null,null,null,null,null,null,null,null,null,null,null,"",""]
[null,null,null,null,null,null,null,null,null,null,null,null,null,null,"",""]
[null,null,null,null,null,null,null,null,null,null,null,null,null,null,{"$f":"IF(D44534=\"\",\"\",MATCH(D44534,$S$2:$S$2488,0))","v":""},""]
[null,null,null,null,null,null,null,null,null,null,null,null,null,null,"",""]
[null,null,null,null,null,null,null,null,null,null,null,null,null,null,"",""]
[null,null,null,null,null,null,null,null,null,null,null,null,null,null,"",""]
[null,null,null,null,null,null,null,null,null,null,null,null,null,null,"",""]
[null,null,null,null,null,null,null,null,null,null,null,null,null,null,"",""]
[null,null,null,null,null,null,null,null,null,null,null,null,null,null,"",""]
[null,null,null,null,null,null,null,null,null,null,null,null,null,null,"",{"$f":"IF(H44739=\"\",\"\",MATCH(H44739,$T$2:$T$2472,0))","v":""}]
[null,null,null,null,null,null,null,null,null,null,null,null,null,null,"",""]
[null,null,null,null,null,null,null,null,null,null,null,null,null,null,{"$f":"IF(D44790=\"\",\"\",MATCH(D44790,$S$2:$S$2488,0))","v":""},""]
[null,null,null,null,null,null,null,null,null,null,null,null,null,null,"",""]
[null,null,null,null,null,null,null,null,null,null,null,null,null,null,"",""]
[null,null,null,null,null,null,null,null,null,null,null,null,null,null,"",{"$f":"IF(H44867=\"\",\"\",MATCH(H44867,$T$2:$T$2472,0))","v":""}]
[null,null,null,null,null,null,null,null,null,null,null,null,null,null,"",""]
[null,null,null,null,null,null,null,null,null,null,null,null,null,null,"",""]
[null,null,null,null,null,null,null,null,null,null,null,null,null,null,"",""]
[null,null,null,null,null,null,null,null,null,null,null,null,null,null,"",""]
[null,null,null,null,null,null,null,null,null,null,null,null,null,null,"",""]
[null,null,null,null,null,null,null,null,null,null,null,null,null,null,"",""]
[null,null,null,null,null,null,null,null,null,null,null,null,null,null,"",""]
[null,null,null,null,null,null,null,null,null,null,null,null,null,null,"",""]
[null,null,null,null,null,null,null,null,null,null,null,null,null,null,"",""]
[null,null,null,null,null,null,null,null,null,null,null,null,null,null,"",""]
[null,null,null,null,null,null,null,null,null,null,null,null,null,null,"",""]
[null,null,null,null,null,null,null,null,null,null,null,null,null,null,"",""]
[null,null,null,null,null,null,null,null,null,null,null,null,null,null,"",""]
[null,null,null,null,null,null,null,null,null,null,null,null,null,null,"",""]
[null,null,null,null,null,null,null,null,null,null,null,null,null,null,"",""]
[null,null,null,null,null,null,null,null,null,null,null,null,null,null,"",""]
[null,null,null,null,null,null,null,null,null,null,null,null,null,null,"",""]
[null,null,null,null,null,null,null,null,null,null,null,null,null,null,"",""]
[null,null,null,null,null,null,null,null,null,null,null,null,null,null,"",""]
[null,null,null,null,null,null,null,null,null,null,null,null,null,null,"",""]
[null,null,null,null,null,null,null,null,null,null,null,null,null,null,"",""]
[null,null,null,null,null,null,null,null,null,null,null,null,null,null,"",""]
[null,null,null,null,null,null,null,null,null,null,null,null,null,null,"",""]
[null,null,null,null,null,null,null,null,null,null,null,null,null,null,"",""]
[null,null,null,null,null,null,null,null,null,null,null,null,null,null,"",""]
[null,null,null,null,null,null,null,null,null,null,null,null,null,null,"",""]
[null,null,null,null,null,null,null,null,null,null,null,null,null,null,"",""]
[null,null,null,null,null,null,null,null,null,null,null,null,null,null,"",""]
[null,null,null,null,null,null,null,null,null,null,null,null,null,null,"",""]
[null,null,null,null,null,null,null,null,null,null,null,null,null,null,"",""]
[null,null,null,null,null,null,null,null,null,null,null,null,null,null,"",""]
[null,null,null,null,null,null,null,null,null,null,null,null,null,null,"",""]
[null,null,null,null,null,null,null,null,null,null,null,null,null,null,"",""]
[null,null,null,null,null,null,null,null,null,null,null,null,null,null,"",""]
[null,null,null,null,null,null,null,null,null,null,null,null,null,null,"",""]
[null,null,null,null,null,null,null,null,null,null,null,null,null,null,"",""]
[null,null,null,null,null,null,null,null,null,null,null,null,null,null,"",""]
[null,null,null,null,null,null,null,null,null,null,null,null,null,null,"",""]
[null,null,null,null,null,null,null,null,null,null,null,null,null,null,"",""]
[null,null,null,null,null,null,null,null,null,null,null,null,null,null,"",""]
[null,null,null,null,null,null,null,null,null,null,null,null,null,null,"",""]
[null,null,null,null,null,null,null,null,null,null,null,null,null,null,"",""]
[null,null,null,null,null,null,null,null,null,null,null,null,null,null,"",""]
[null,null,null,null,null,null,null,null,null,null,null,null,null,null,"",""]
[null,null,null,null,null,null,null,null,null,null,null,null,null,null,"",""]
[null,null,null,null,null,null,null,null,null,null,null,null,null,null,"",""]
[null,null,null,null,null,null,null,null,null,null,null,null,null,null,"",""]
[null,null,null,null,null,null,null,null,null,null,null,null,null,null,"",""]
[null,null,null,null,null,null,null,null,null,null,null,null,null,null,"",""]
[null,null,null,null,null,null,null,null,null,null,null,null,null,null,"",""]
[null,null,null,null,null,null,null,null,null,null,null,null,null,null,"",""]
[null,null,null,null,null,null,null,null,null,null,null,null,null,null,"",""]
[null,null,null,null,null,null,null,null,null,null,null,null,null,null,"",""]
[null,null,null,null,null,null,null,null,null,null,null,null,null,null,"",""]
[null,null,null,null,null,null,null,null,null,null,null,null,null,null,"",""]
[null,null,null,null,null,null,null,null,null,null,null,null,null,null,"",""]
[null,null,null,null,null,null,null,null,null,null,null,null,null,null,"",""]
[null,null,null,null,null,null,null,null,null,null,null,null,null,null,"",""]
[null,null,null,null,null,null,null,null,null,null,null,null,null,null,"",""]
[null,null,null,null,null,null,null,null,null,null,null,null,null,null,"",""]
[null,null,null,null,null,null,null,null,null,null,null,null,null,null,"",""]
[null,null,null,null,null,null,null,null,null,null,null,null,null,null,"",""]
[null,null,null,null,null,null,null,null,null,null,null,null,null,null,"",""]
[null,null,null,null,null,null,null,null,null,null,null,null,null,null,"",""]
[null,null,null,null,null,null,null,null,null,null,null,null,null,null,"",""]
[null,null,null,null,null,null,null,null,null,null,null,null,null,null,{"$f":"IF(D46774=\"\",\"\",MATCH(D46774,$S$2:$S$2488,0))","v":""},""]
[null,null,null,null,null,null,null,null,null,null,null,null,null,null,"",""]
[null,null,null,null,null,null,null,null,null,null,null,null,null,null,"",""]
[null,null,null,null,null,null,null,null,null,null,null,null,null,null,"",""]
[null,null,null,null,null,null,null,null,null,null,null,null,null,null,"",""]
[null,null,null,null,null,null,null,null,null,null,null,null,null,null,"",""]
[null,null,null,null,null,null,null,null,null,null,null,null,null,null,"",""]
[null,null,null,null,null,null,null,null,null,null,null,null,null,null,"",""]
[null,null,null,null,null,null,null,null,null,null,null,null,null,null,"",""]
[null,null,null,null,null,null,null,null,null,null,null,null,null,null,"",""]
[null,null,null,null,null,null,null,null,null,null,null,null,null,null,"",""]
[null,null,null,null,null,null,null,null,null,null,null,null,null,null,{"$f":"IF(D47094=\"\",\"\",MATCH(D47094,$S$2:$S$2488,0))","v":""},""]
[null,null,null,null,null,null,null,null,null,null,null,null,null,null,"",""]
[null,null,null,null,null,null,null,null,null,null,null,null,null,null,"",""]
[null,null,null,null,null,null,null,null,null,null,null,null,null,null,"",""]
[null,null,null,null,null,null,null,null,null,null,null,null,null,null,"",""]
[null,null,null,null,null,null,null,null,null,null,null,null,null,null,"",""]
[null,null,null,null,null,null,null,null,null,null,null,null,null,null,"",""]
[null,null,null,null,null,null,null,null,null,null,null,null,null,null,"",""]
[null,null,null,null,null,null,null,null,null,null,null,null,null,null,"",""]
[null,null,null,null,null,null,null,null,null,null,null,null,null,null,"",""]
[null,null,null,null,null,null,null,null,null,null,null,null,null,null,"",""]
[null,null,null,null,null,null,null,null,null,null,null,null,null,null,"",""]
[null,null,null,null,null,null,null,null,null,null,null,null,null,null,"",""]
[null,null,null,null,null,null,null,null,null,null,null,null,null,null,"",""]
[null,null,null,null,null,null,null,null,null,null,null,null,null,null,"",""]
[null,null,null,null,null,null,null,null,null,null,null,null,null,null,"",""]
[null,null,null,null,null,null,null,null,null,null,null,null,null,null,{"$f":"IF(D47542=\"\",\"\",MATCH(D47542,$S$2:$S$2488,0))","v":""},""]
[null,null,null,null,null,null,null,null,null,null,null,null,null,null,"",""]
[null,null,null,null,null,null,null,null,null,null,null,null,null,null,"",""]
[null,null,null,null,null,null,null,null,null,null,null,null,null,null,"",""]
[null,null,null,null,null,null,null,null,null,null,null,null,null,null,"",""]
[null,null,null,null,null,null,null,null,null,null,null,null,null,null,"",""]
[null,null,null,null,null,null,null,null,null,null,null,null,null,null,"",""]
[null,null,null,null,null,null,null,null,null,null,null,null,null,null,"",""]
[null,null,null,null,null,null,null,null,null,null,null,null,null,null,"",""]
[null,null,null,null,null,null,null,null,null,null,null,null,null,null,"",""]
[null,null,null,null,null,null,null,null,null,null,null,null,null,null,"",""]
[null,null,null,null,null,null,null,null,null,null,null,null,null,null,"",""]
[null,null,null,null,null,null,null,null,null,null,null,null,null,null,"",""]
[null,null,null,null,null,null,null,null,null,null,null,null,null,null,"",""]
[null,null,null,null,null,null,null,null,null,null,null,null,null,null,"",""]
[null,null,null,null,null,null,null,null,null,null,null,null,null,null,"",""]
[null,null,null,null,null,null,null,null,null,null,null,null,null,null,"",""]
[null,null,null,null,null,null,null,null,null,null,null,null,null,null,"",""]
[null,null,null,null,null,null,null,null,null,null,null,null,null,null,"",""]
[null,null,null,null,null,null,null,null,null,null,null,null,null,null,"",""]
[null,null,null,null,null,null,null,null,null,null,null,null,null,null,"",""]
[null,null,null,null,null,null,null,null,null,null,null,null,null,null,"",""]
[null,null,null,null,null,null,null,null,null,null,null,null,null,null,"",""]
[null,null,null,null,null,null,null,null,null,null,null,null,null,null,"",""]
[null,null,null,null,null,null,null,null,null,null,null,null,null,null,"",""]
[null,null,null,null,null,null,null,null,null,null,null,null,null,null,"",""]
[null,null,null,null,null,null,null,null,null,null,null,null,null,null,"",""]
[null,null,null,null,null,null,null,null,null,null,null,null,null,null,"",""]
[null,null,null,null,null,null,null,null,null,null,null,null,null,null,"",""]
[null,null,null,null,null,null,null,null,null,null,null,null,null,null,"",""]
[null,null,null,null,null,null,null,null,null,null,null,null,null,null,"",""]
[null,null,null,null,null,null,null,null,null,null,null,null,null,null,"",""]
[null,null,null,null,null,null,null,null,null,null,null,null,null,null,"",""]
[null,null,null,null,null,null,null,null,null,null,null,null,null,null,"",""]
[null,null,null,null,null,null,null,null,null,null,null,null,null,null,"",""]
[null,null,null,null,null,null,null,null,null,null,null,null,null,null,"",""]
[null,null,null,null,null,null,null,null,null,null,null,null,null,null,"",""]
[null,null,null,null,null,null,null,null,null,null,null,null,null,null,"",""]
[null,null,null,null,null,null,null,null,null,null,null,null,null,null,"",""]
[null,null,null,null,null,null,null,null,null,null,null,null,null,null,"",""]
[null,null,null,null,null,null,null,null,null,null,null,null,null,null,"",""]
[null,null,null,null,null,null,null,null,null,null,null,null,null,null,"",""]
[null,null,null,null,null,null,null,null,null,null,null,null,null,null,"",""]
[null,null,null,null,null,null,null,null,null,null,null,null,null,null,"",""]
[null,null,null,null,null,null,null,null,null,null,null,null,null,null,"",""]
[null,null,null,null,null,null,null,null,null,null,null,null,null,null,"",""]
[null,null,null,null,null,null,null,null,null,null,null,null,null,null,"",""]
[null,null,null,null,null,null,null,null,null,null,null,null,null,null,"",""]
[null,null,null,null,null,null,null,null,null,null,null,null,null,null,"",""]
[null,null,null,null,null,null,null,null,null,null,null,null,null,null,"",""]
[null,null,null,null,null,null,null,null,null,null,null,null,null,null,"",""]
[null,null,null,null,null,null,null,null,null,null,null,null,null,null,"",""]
[null,null,null,null,null,null,null,null,null,null,null,null,null,null,"",""]
[null,null,null,null,null,null,null,null,null,null,null,null,null,null,"",""]
[null,null,null,null,null,null,null,null,null,null,null,null,null,null,"",""]
[null,null,null,null,null,null,null,null,null,null,null,null,null,null,"",""]
[null,null,null,null,null,null,null,null,null,null,null,null,null,null,"",""]
[null,null,null,null,null,null,null,null,null,null,null,null,null,null,"",""]
[null,null,null,null,null,null,null,null,null,null,null,null,null,null,"",""]
[null,null,null,null,null,null,null,null,null,null,null,null,null,null,"",""]
[null,null,null,null,null,null,null,null,null,null,null,null,null,null,"",""]
[null,null,null,null,null,null,null,null,null,null,null,null,null,null,"",""]
[null,null,null,null,null,null,null,null,null,null,null,null,null,null,"",""]
[null,null,null,null,null,null,null,null,null,null,null,null,null,null,"",""]
[null,null,null,null,null,null,null,null,null,null,null,null,null,null,"",""]
[null,null,null,null,null,null,null,null,null,null,null,null,null,null,"",""]
[null,null,null,null,null,null,null,null,null,null,null,null,null,null,"",""]
[null,null,null,null,null,null,null,null,null,null,null,null,null,null,"",""]
[null,null,null,null,null,null,null,null,null,null,null,null,null,null,"",""]
[null,null,null,null,null,null,null,null,null,null,null,null,null,null,"",""]
[null,null,null,null,null,null,null,null,null,null,null,null,null,null,"",""]
[null,null,null,null,null,null,null,null,null,null,null,null,null,null,"",""]
[null,null,null,null,null,null,null,null,null,null,null,null,null,null,"",""]
[null,null,null,null,null,null,null,null,null,null,null,null,null,null,"",""]
[null,null,null,null,null,null,null,null,null,null,null,null,null,null,"",""]
[null,null,null,null,null,null,null,null,null,null,null,null,null,null,"",""]
[null,null,null,null,null,null,null,null,null,null,null,null,null,null,"",""]
[null,null,null,null,null,null,null,null,null,null,null,null,null,null,"",""]
[null,null,null,null,null,null,null,null,null,null,null,null,null,null,"",""]
[null,null,null,null,null,null,null,null,null,null,null,null,null,null,"",""]
[null,null,null,null,null,null,null,null,null,null,null,null,null,null,{"$f":"IF(D49846=\"\",\"\",MATCH(D49846,$S$2:$S$2488,0))","v":""},""]
[null,null,null,null,null,null,null,null,null,null,null,null,null,null,"",""]
[null,null,null,null,null,null,null,null,null,null,null,null,null,null,"",""]
[null,null,null,null,null,null,null,null,null,null,null,null,null,null,"",""]
[null,null,null,null,null,null,null,null,null,null,null,null,null,null,"",""]
[null,null,null,null,null,null,null,null,null,null,null,null,null,null,"",""]
[null,null,null,null,null,null,null,null,null,null,null,null,null,null,{"$f":"IF(D50038=\"\",\"\",MATCH(D50038,$S$2:$S$2488,0))","v":""},""]
[null,null,null,null,null,null,null,null,null,null,null,null,null,null,"",""]
[null,null,null,null,null,null,null,null,null,null,null,null,null,null,"",""]
[null,null,null,null,null,null,null,null,null,null,null,null,null,null,"",""]
[null,null,null,null,null,null,null,null,null,null,null,null,null,null,"",""]
[null,null,null,null,null,null,null,null,null,null,null,null,null,null,{"$f":"IF(D50166=\"\",\"\",MATCH(D50166,$S$2:$S$2488,0))","v":""},""]
[null,null,null,null,null,null,null,null,null,null,null,null,null,null,"",""]
[null,null,null,null,null,null,null,null,null,null,null,null,null,null,"",""]
[null,null,null,null,null,null,null,null,null,null,null,null,null,null,"",""]
[null,null,null,null,null,null,null,null,null,null,null,null,null,null,"",""]
[null,null,null,null,null,null,null,null,null,null,null,null,null,null,"",""]
[null,null,null,null,null,null,null,null,null,null,null,null,null,null,"",""]
[null,null,null,null,null,null,null,null,null,null,null,null,null,null,"",{"$f":"IF(H50371=\"\",\"\",MATCH(H50371,$T$2:$T$2472,0))","v":""}]
[null,null,null,null,null,null,null,null,null,null,null,null,null,null,"",""]
[null,null,null,null,null,null,null,null,null,null,null,null,null,null,"",""]
[null,null,null,null,null,null,null,null,null,null,null,null,null,null,"",""]
[null,null,null,null,null,null,null,null,null,null,null,null,null,null,"",""]
[null,null,null,null,null,null,null,null,null,null,null,null,null,null,"",""]
[null,null,null,null,null,null,null,null,null,null,null,null,null,null,"",""]
[null,null,null,null,null,null,null,null,null,null,null,null,null,null,"",""]
[null,null,null,null,null,null,null,null,null,null,null,null,null,null,"",""]
[null,null,null,null,null,null,null,null,null,null,null,null,null,null,"",""]
[null,null,null,null,null,null,null,null,null,null,null,null,null,null,"",""]
[null,null,null,null,null,null,null,null,null,null,null,null,null,null,"",""]
[null,null,null,null,null,null,null,null,null,null,null,null,null,null,"",""]
[null,null,null,null,null,null,null,null,null,null,null,null,null,null,"",""]
[null,null,null,null,null,null,null,null,null,null,null,null,null,null,"",""]
[null,null,null,null,null,null,null,null,null,null,null,null,null,null,"",""]
[null,null,null,null,null,null,null,null,null,null,null,null,null,null,"",""]
[null,null,null,null,null,null,null,null,null,null,null,null,null,null,"",""]
[null,null,null,null,null,null,null,null,null,null,null,null,null,null,"",""]
[null,null,null,null,null,null,null,null,null,null,null,null,null,null,"",""]
[null,null,null,null,null,null,null,null,null,null,null,null,null,null,"",""]
[null,null,null,null,null,null,null,null,null,null,null,null,null,null,"",""]
[null,null,null,null,null,null,null,null,null,null,null,null,null,null,"",""]
[null,null,null,null,null,null,null,null,null,null,null,null,null,null,"",""]
[null,null,null,null,null,null,null,null,null,null,null,null,null,null,"",""]
[null,null,null,null,null,null,null,null,null,null,null,null,null,null,"",""]
[null,null,null,null,null,null,null,null,null,null,null,null,null,null,"",""]
[null,null,null,null,null,null,null,null,null,null,null,null,null,null,"",""]
[null,null,null,null,null,null,null,null,null,null,null,null,null,null,"",""]
[null,null,null,null,null,null,null,null,null,null,null,null,null,null,"",""]
[null,null,null,null,null,null,null,null,null,null,null,null,null,null,"",""]
[null,null,null,null,null,null,null,null,null,null,null,null,null,null,"",""]
[null,null,null,null,null,null,null,null,null,null,null,null,null,null,"",""]
[null,null,null,null,null,null,null,null,null,null,null,null,null,null,"",""]
[null,null,null,null,null,null,null,null,null,null,null,null,null,null,"",""]
[null,null,null,null,null,null,null,null,null,null,null,null,null,null,"",""]
[null,null,null,null,null,null,null,null,null,null,null,null,null,null,"",""]
[null,null,null,null,null,null,null,null,null,null,null,null,null,null,"",""]
[null,null,null,null,null,null,null,null,null,null,null,null,null,null,"",""]
[null,null,null,null,null,null,null,null,null,null,null,null,null,null,"",""]
[null,null,null,null,null,null,null,null,null,null,null,null,null,null,"",""]
[null,null,null,null,null,null,null,null,null,null,null,null,null,null,"",""]
[null,null,null,null,null,null,null,null,null,null,null,null,null,null,"",""]
[null,null,null,null,null,null,null,null,null,null,null,null,null,null,"",""]
[null,null,null,null,null,null,null,null,null,null,null,null,null,null,"",""]
[null,null,null,null,null,null,null,null,null,null,null,null,null,null,"",""]
[null,null,null,null,null,null,null,null,null,null,null,null,null,null,"",""]
[null,null,null,null,null,null,null,null,null,null,null,null,null,null,"",""]
[null,null,null,null,null,null,null,null,null,null,null,null,null,null,"",""]
[null,null,null,null,null,null,null,null,null,null,null,null,null,null,"",""]
[null,null,null,null,null,null,null,null,null,null,null,null,null,null,"",""]
[null,null,null,null,null,null,null,null,null,null,null,null,null,null,"",""]
[null,null,null,null,null,null,null,null,null,null,null,null,null,null,"",""]
[null,null,null,null,null,null,null,null,null,null,null,null,null,null,"",""]
[null,null,null,null,null,null,null,null,null,null,null,null,null,null,"",""]
[null,null,null,null,null,null,null,null,null,null,null,null,null,null,"",""]
[null,null,null,null,null,null,null,null,null,null,null,null,null,null,"",""]
[null,null,null,null,null,null,null,null,null,null,null,null,null,null,"",""]
[null,null,null,null,null,null,null,null,null,null,null,null,null,null,"",""]
[null,null,null,null,null,null,null,null,null,null,null,null,null,null,"",""]
[null,null,null,null,null,null,null,null,null,null,null,null,null,null,"",""]
[null,null,null,null,null,null,null,null,null,null,null,null,null,null,"",""]
[null,null,null,null,null,null,null,null,null,null,null,null,null,null,"",""]
[null,null,null,null,null,null,null,null,null,null,null,null,null,null,"",""]
[null,null,null,null,null,null,null,null,null,null,null,null,null,null,"",""]
[null,null,null,null,null,null,null,null,null,null,null,null,null,null,"",""]
[null,null,null,null,null,null,null,null,null,null,null,null,null,null,"",""]
[null,null,null,null,null,null,null,null,null,null,null,null,null,null,"",""]
[null,null,null,null,null,null,null,null,null,null,null,null,null,null,"",""]
[null,null,null,null,null,null,null,null,null,null,null,null,null,null,"",""]
[null,null,null,null,null,null,null,null,null,null,null,null,null,null,"",""]
[null,null,null,null,null,null,null,null,null,null,null,null,null,null,{"$f":"IF(D52406=\"\",\"\",MATCH(D52406,$S$2:$S$2488,0))","v":""},""]
[null,null,null,null,null,null,null,null,null,null,null,null,null,null,"",""]
[null,null,null,null,null,null,null,null,null,null,null,null,null,null,"",""]
[null,null,null,null,null,null,null,null,null,null,null,null,null,null,"",""]
[null,null,null,null,null,null,null,null,null,null,null,null,null,null,"",""]
[null,null,null,null,null,null,null,null,null,null,null,null,null,null,"",""]
[null,null,null,null,null,null,null,null,null,null,null,null,null,null,"",""]
[null,null,null,null,null,null,null,null,null,null,null,null,null,null,"",""]
[null,null,null,null,null,null,null,null,null,null,null,null,null,null,"",""]
[null,null,null,null,null,null,null,null,null,null,null,null,null,null,"",""]
[null,null,null,null,null,null,null,null,null,null,null,null,null,null,"",""]
[null,null,null,null,null,null,null,null,null,null,null,null,null,null,"",""]
[null,null,null,null,null,null,null,null,null,null,null,null,null,null,"",""]
[null,null,null,null,null,null,null,null,null,null,null,null,null,null,"",""]
[null,null,null,null,null,null,null,null,null,null,null,null,null,null,"",""]
[null,null,null,null,null,null,null,null,null,null,null,null,null,null,"",""]
[null,null,null,null,null,null,null,null,null,null,null,null,null,null,"",""]
[null,null,null,null,null,null,null,null,null,null,null,null,null,null,"",""]
[null,null,null,null,null,null,null,null,null,null,null,null,null,null,"",""]
[null,null,null,null,null,null,null,null,null,null,null,null,null,null,"",""]
[null,null,null,null,null,null,null,null,null,null,null,null,null,null,"",""]
[null,null,null,null,null,null,null,null,null,null,null,null,null,null,"",""]
[null,null,null,null,null,null,null,null,null,null,null,null,null,null,"",""]
[null,null,null,null,null,null,null,null,null,null,null,null,null,null,"",""]
[null,null,null,null,null,null,null,null,null,null,null,null,null,null,"",""]
[null,null,null,null,null,null,null,null,null,null,null,null,null,null,"",""]
[null,null,null,null,null,null,null,null,null,null,null,null,null,null,"",""]
[null,null,null,null,null,null,null,null,null,null,null,null,null,null,"",""]
[null,null,null,null,null,null,null,null,null,null,null,null,null,null,"",""]
[null,null,null,null,null,null,null,null,null,null,null,null,null,null,"",""]
[null,null,null,null,null,null,null,null,null,null,null,null,null,null,"",""]
[null,null,null,null,null,null,null,null,null,null,null,null,null,null,"",""]
[null,null,null,null,null,null,null,null,null,null,null,null,null,null,"",""]
[null,null,null,null,null,null,null,null,null,null,null,null,null,null,"",""]
[null,null,null,null,null,null,null,null,null,null,null,null,null,null,"",""]
[null,null,null,null,null,null,null,null,null,null,null,null,null,null,"",""]
[null,null,null,null,null,null,null,null,null,null,null,null,null,null,"",""]
[null,null,null,null,null,null,null,null,null,null,null,null,null,null,"",""]
[null,null,null,null,null,null,null,null,null,null,null,null,null,null,"",""]
[null,null,null,null,null,null,null,null,null,null,null,null,null,null,"",""]
[null,null,null,null,null,null,null,null,null,null,null,null,null,null,"",""]
[null,null,null,null,null,null,null,null,null,null,null,null,null,null,"",""]
[null,null,null,null,null,null,null,null,null,null,null,null,null,null,"",{"$f":"IF(H53635=\"\",\"\",MATCH(H53635,$T$2:$T$2472,0))","v":""}]
[null,null,null,null,null,null,null,null,null,null,null,null,null,null,"",""]
[null,null,null,null,null,null,null,null,null,null,null,null,null,null,"",""]
[null,null,null,null,null,null,null,null,null,null,null,null,null,null,"",""]
[null,null,null,null,null,null,null,null,null,null,null,null,null,null,"",""]
[null,null,null,null,null,null,null,null,null,null,null,null,null,null,"",""]
[null,null,null,null,null,null,null,null,null,null,null,null,null,null,"",""]
[null,null,null,null,null,null,null,null,null,null,null,null,null,null,"",""]
[null,null,null,null,null,null,null,null,null,null,null,null,null,null,"",""]
[null,null,null,null,null,null,null,null,null,null,null,null,null,null,"",{"$f":"IF(H53891=\"\",\"\",MATCH(H53891,$T$2:$T$2472,0))","v":""}]
[null,null,null,null,null,null,null,null,null,null,null,null,null,null,"",""]
[null,null,null,null,null,null,null,null,null,null,null,null,null,null,"",""]
[null,null,null,null,null,null,null,null,null,null,null,null,null,null,"",""]
[null,null,null,null,null,null,null,null,null,null,null,null,null,null,"",""]
[null,null,null,null,null,null,null,null,null,null,null,null,null,null,"",""]
[null,null,null,null,null,null,null,null,null,null,null,null,null,null,"",""]
[null,null,null,null,null,null,null,null,null,null,null,null,null,null,"",""]
[null,null,null,null,null,null,null,null,null,null,null,null,null,null,"",""]
[null,null,null,null,null,null,null,null,null,null,null,null,null,null,"",""]
[null,null,null,null,null,null,null,null,null,null,null,null,null,null,"",""]
[null,null,null,null,null,null,null,null,null,null,null,null,null,null,"",""]
[null,null,null,null,null,null,null,null,null,null,null,null,null,null,"",""]
[null,null,null,null,null,null,null,null,null,null,null,null,null,null,"",""]
[null,null,null,null,null,null,null,null,null,null,null,null,null,null,"",""]
[null,null,null,null,null,null,null,null,null,null,null,null,null,null,"",""]
[null,null,null,null,null,null,null,null,null,null,null,null,null,null,"",""]
[null,null,null,null,null,null,null,null,null,null,null,null,null,null,"",""]
[null,null,null,null,null,null,null,null,null,null,null,null,null,null,"",""]
[null,null,null,null,null,null,null,null,null,null,null,null,null,null,"",""]
[null,null,null,null,null,null,null,null,null,null,null,null,null,null,"",""]
[null,null,null,null,null,null,null,null,null,null,null,null,null,null,"",""]
[null,null,null,null,null,null,null,null,null,null,null,null,null,null,"",""]
[null,null,null,null,null,null,null,null,null,null,null,null,null,null,"",""]
[null,null,null,null,null,null,null,null,null,null,null,null,null,null,"",""]
[null,null,null,null,null,null,null,null,null,null,null,null,null,null,"",""]
[null,null,null,null,null,null,null,null,null,null,null,null,null,null,"",""]
[null,null,null,null,null,null,null,null,null,null,null,null,null,null,"",""]
[null,null,null,null,null,null,null,null,null,null,null,null,null,null,"",""]
[null,null,null,null,null,null,null,null,null,null,null,null,null,null,"",""]
[null,null,null,null,null,null,null,null,null,null,null,null,null,null,"",""]
[null,null,null,null,null,null,null,null,null,null,null,null,null,null,"",""]
[null,null,null,null,null,null,null,null,null,null,null,null,null,null,"",""]
[null,null,null,null,null,null,null,null,null,null,null,null,null,null,"",""]
[null,null,null,null,null,null,null,null,null,null,null,null,null,null,"",""]
[null,null,null,null,null,null,null,null,null,null,null,null,null,null,"",""]
[null,null,null,null,null,null,null,null,null,null,null,null,null,null,"",""]
[null,null,null,null,null,null,null,null,null,null,null,null,null,null,"",""]
[null,null,null,null,null,null,null,null,null,null,null,null,null,null,"",""]
[null,null,null,null,null,null,null,null,null,null,null,null,null,null,{"$f":"IF(D54993=\"\",\"\",MATCH(D54993,$S$2:$S$2488,0))","v":""},""]
[null,null,null,null,null,null,null,null,null,null,null,null,null,null,"",""]
[null,null,null,null,null,null,null,null,null,null,null,null,null,null,"",""]
[null,null,null,null,null,null,null,null,null,null,null,null,null,null,"",""]
[null,null,null,null,null,null,null,null,null,null,null,null,null,null,"",""]
[null,null,null,null,null,null,null,null,null,null,null,null,null,null,"",""]
[null,null,null,null,null,null,null,null,null,null,null,null,null,null,"",""]
[null,null,null,null,null,null,null,null,null,null,null,null,null,null,"",""]
[null,null,null,null,null,null,null,null,null,null,null,null,null,null,"",""]
[null,null,null,null,null,null,null,null,null,null,null,null,null,null,"",""]
[null,null,null,null,null,null,null,null,null,null,null,null,null,null,"",""]
[null,null,null,null,null,null,null,null,null,null,null,null,null,null,"",""]
[null,null,null,null,null,null,null,null,null,null,null,null,null,null,"",""]
[null,null,null,null,null,null,null,null,null,null,null,null,null,null,"",""]
[null,null,null,null,null,null,null,null,null,null,null,null,null,null,"",""]
[null,null,null,null,null,null,null,null,null,null,null,null,null,null,"",""]
[null,null,null,null,null,null,null,null,null,null,null,null,null,null,"",""]
[null,null,null,null,null,null,null,null,null,null,null,null,null,null,"",""]
[null,null,null,null,null,null,null,null,null,null,null,null,null,null,"",""]
[null,null,null,null,null,null,null,null,null,null,null,null,null,null,"",""]
[null,null,null,null,null,null,null,null,null,null,null,null,null,null,"",""]
[null,null,null,null,null,null,null,null,null,null,null,null,null,null,"",""]
[null,null,null,null,null,null,null,null,null,null,null,null,null,null,"",""]
[null,null,null,null,null,null,null,null,null,null,null,null,null,null,"",""]
[null,null,null,null,null,null,null,null,null,null,null,null,null,null,"",""]
[null,null,null,null,null,null,null,null,null,null,null,null,null,null,"",""]
[null,null,null,null,null,null,null,null,null,null,null,null,null,null,"",""]
[null,null,null,null,null,null,null,null,null,null,null,null,null,null,"",""]
[null,null,null,null,null,null,null,null,null,null,null,null,null,null,"",""]
[null,null,null,null,null,null,null,null,null,null,null,null,null,null,"",""]
[null,null,null,null,null,null,null,null,null,null,null,null,null,null,"",{"$f":"IF(H55875=\"\",\"\",MATCH(H55875,$T$2:$T$2472,0))","v":""}]
[null,null,null,null,null,null,null,null,null,null,null,null,null,null,"",""]
[null,null,null,null,null,null,null,null,null,null,null,null,null,null,"",""]
[null,null,null,null,null,null,null,null,null,null,null,null,null,null,"",""]
[null,null,null,null,null,null,null,null,null,null,null,null,null,null,"",""]
[null,null,null,null,null,null,null,null,null,null,null,null,null,null,"",{"$f":"IF(H56003=\"\",\"\",MATCH(H56003,$T$2:$T$2472,0))","v":""}]
[null,null,null,null,null,null,null,null,null,null,null,null,null,null,"",""]
[null,null,null,null,null,null,null,null,null,null,null,null,null,null,"",""]
[null,null,null,null,null,null,null,null,null,null,null,null,null,null,"",""]
[null,null,null,null,null,null,null,null,null,null,null,null,null,null,"",""]
[null,null,null,null,null,null,null,null,null,null,null,null,null,null,"",""]
[null,null,null,null,null,null,null,null,null,null,null,null,null,null,"",""]
[null,null,null,null,null,null,null,null,null,null,null,null,null,null,"",""]
[null,null,null,null,null,null,null,null,null,null,null,null,null,null,"",""]
[null,null,null,null,null,null,null,null,null,null,null,null,null,null,"",""]
[null,null,null,null,null,null,null,null,null,null,null,null,null,null,"",""]
[null,null,null,null,null,null,null,null,null,null,null,null,null,null,"",""]
[null,null,null,null,null,null,null,null,null,null,null,null,null,null,"",""]
[null,null,null,null,null,null,null,null,null,null,null,null,null,null,"",""]
[null,null,null,null,null,null,null,null,null,null,null,null,null,null,"",""]
[null,null,null,null,null,null,null,null,null,null,null,null,null,null,"",""]
[null,null,null,null,null,null,null,null,null,null,null,null,null,null,"",""]
[null,null,null,null,null,null,null,null,null,null,null,null,null,null,"",""]
[null,null,null,null,null,null,null,null,null,null,null,null,null,null,"",""]
[null,null,null,null,null,null,null,null,null,null,null,null,null,null,"",""]
[null,null,null,null,null,null,null,null,null,null,null,null,null,null,"",""]
[null,null,null,null,null,null,null,null,null,null,null,null,null,null,"",""]
[null,null,null,null,null,null,null,null,null,null,null,null,null,null,"",""]
[null,null,null,null,null,null,null,null,null,null,null,null,null,null,"",""]
[null,null,null,null,null,null,null,null,null,null,null,null,null,null,"",""]
[null,null,null,null,null,null,null,null,null,null,null,null,null,null,"",""]
[null,null,null,null,null,null,null,null,null,null,null,null,null,null,"",""]
[null,null,null,null,null,null,null,null,null,null,null,null,null,null,"",""]
[null,null,null,null,null,null,null,null,null,null,null,null,null,null,"",""]
[null,null,null,null,null,null,null,null,null,null,null,null,null,null,"",""]
[null,null,null,null,null,null,null,null,null,null,null,null,null,null,"",""]
[null,null,null,null,null,null,null,null,null,null,null,null,null,null,"",""]
[null,null,null,null,null,null,null,null,null,null,null,null,null,null,"",""]
[null,null,null,null,null,null,null,null,null,null,null,null,null,null,"",""]
[null,null,null,null,null,null,null,null,null,null,null,null,null,null,"",""]
[null,null,null,null,null,null,null,null,null,null,null,null,null,null,"",""]
[null,null,null,null,null,null,null,null,null,null,null,null,null,null,"",""]
[null,null,null,null,null,null,null,null,null,null,null,null,null,null,"",""]
[null,null,null,null,null,null,null,null,null,null,null,null,null,null,"",""]
[null,null,null,null,null,null,null,null,null,null,null,null,null,null,"",""]
[null,null,null,null,null,null,null,null,null,null,null,null,null,null,"",""]
[null,null,null,null,null,null,null,null,null,null,null,null,null,null,"",""]
[null,null,null,null,null,null,null,null,null,null,null,null,null,null,"",""]
[null,null,null,null,null,null,null,null,null,null,null,null,null,null,{"$f":"IF(D57233=\"\",\"\",MATCH(D57233,$S$2:$S$2488,0))","v":""},""]
[null,null,null,null,null,null,null,null,null,null,null,null,null,null,"",""]
[null,null,null,null,null,null,null,null,null,null,null,null,null,null,"",""]
[null,null,null,null,null,null,null,null,null,null,null,null,null,null,"",""]
[null,null,null,null,null,null,null,null,null,null,null,null,null,null,"",""]
[null,null,null,null,null,null,null,null,null,null,null,null,null,null,"",""]
[null,null,null,null,null,null,null,null,null,null,null,null,null,null,"",""]
[null,null,null,null,null,null,null,null,null,null,null,null,null,null,"",""]
[null,null,null,null,null,null,null,null,null,null,null,null,null,null,"",""]
[null,null,null,null,null,null,null,null,null,null,null,null,null,null,"",""]
[null,null,null,null,null,null,null,null,null,null,null,null,null,null,"",""]
[null,null,null,null,null,null,null,null,null,null,null,null,null,null,"",""]
[null,null,null,null,null,null,null,null,null,null,null,null,null,null,"",""]
[null,null,null,null,null,null,null,null,null,null,null,null,null,null,"",""]
[null,null,null,null,null,null,null,null,null,null,null,null,null,null,"",""]
[null,null,null,null,null,null,null,null,null,null,null,null,null,null,"",""]
[null,null,null,null,null,null,null,null,null,null,null,null,null,null,"",""]
[null,null,null,null,null,null,null,null,null,null,null,null,null,null,"",""]
[null,null,null,null,null,null,null,null,null,null,null,null,null,null,"",""]
[null,null,null,null,null,null,null,null,null,null,null,null,null,null,"",""]
[null,null,null,null,null,null,null,null,null,null,null,null,null,null,"",""]
[null,null,null,null,null,null,null,null,null,null,null,null,null,null,"",""]
[null,null,null,null,null,null,null,null,null,null,null,null,null,null,"",""]
[null,null,null,null,null,null,null,null,null,null,null,null,null,null,"",""]
[null,null,null,null,null,null,null,null,null,null,null,null,null,null,"",""]
[null,null,null,null,null,null,null,null,null,null,null,null,null,null,"",""]
[null,null,null,null,null,null,null,null,null,null,null,null,null,null,"",""]
[null,null,null,null,null,null,null,null,null,null,null,null,null,null,"",""]
[null,null,null,null,null,null,null,null,null,null,null,null,null,null,"",""]
[null,null,null,null,null,null,null,null,null,null,null,null,null,null,"",""]
[null,null,null,null,null,null,null,null,null,null,null,null,null,null,"",""]
[null,null,null,null,null,null,null,null,null,null,null,null,null,null,"",""]
[null,null,null,null,null,null,null,null,null,null,null,null,null,null,"",""]
[null,null,null,null,null,null,null,null,null,null,null,null,null,null,"",""]
[null,null,null,null,null,null,null,null,null,null,null,null,null,null,"",""]
[null,null,null,null,null,null,null,null,null,null,null,null,null,null,"",""]
[null,null,null,null,null,null,null,null,null,null,null,null,null,null,"",""]
[null,null,null,null,null,null,null,null,null,null,null,null,null,null,"",""]
[null,null,null,null,null,null,null,null,null,null,null,null,null,null,"",""]
[null,null,null,null,null,null,null,null,null,null,null,null,null,null,"",""]
[null,null,null,null,null,null,null,null,null,null,null,null,null,null,"",""]
[null,null,null,null,null,null,null,null,null,null,null,null,null,null,"",""]
[null,null,null,null,null,null,null,null,null,null,null,null,null,null,"",""]
[null,null,null,null,null,null,null,null,null,null,null,null,null,null,"",""]
[null,null,null,null,null,null,null,null,null,null,null,null,null,null,"",""]
[null,null,null,null,null,null,null,null,null,null,null,null,null,null,"",""]
[null,null,null,null,null,null,null,null,null,null,null,null,null,null,"",""]
[null,null,null,null,null,null,null,null,null,null,null,null,null,null,"",""]
[null,null,null,null,null,null,null,null,null,null,null,null,null,null,"",""]
[null,null,null,null,null,null,null,null,null,null,null,null,null,null,"",""]
[null,null,null,null,null,null,null,null,null,null,null,null,null,null,"",""]
[null,null,null,null,null,null,null,null,null,null,null,null,null,null,"",""]
[null,null,null,null,null,null,null,null,null,null,null,null,null,null,"",""]
[null,null,null,null,null,null,null,null,null,null,null,null,null,null,"",""]
[null,null,null,null,null,null,null,null,null,null,null,null,null,null,"",""]
[null,null,null,null,null,null,null,null,null,null,null,null,null,null,"",""]
[null,null,null,null,null,null,null,null,null,null,null,null,null,null,"",""]
[null,null,null,null,null,null,null,null,null,null,null,null,null,null,"",""]
[null,null,null,null,null,null,null,null,null,null,null,null,null,null,"",""]
[null,null,null,null,null,null,null,null,null,null,null,null,null,null,"",{"$f":"IF(H58947=\"\",\"\",MATCH(H58947,$T$2:$T$2472,0))","v":""}]
[null,null,null,null,null,null,null,null,null,null,null,null,null,null,"",""]
[null,null,null,null,null,null,null,null,null,null,null,null,null,null,"",""]
[null,null,null,null,null,null,null,null,null,null,null,null,null,null,"",""]
[null,null,null,null,null,null,null,null,null,null,null,null,null,null,"",""]
[null,null,null,null,null,null,null,null,null,null,null,null,null,null,"",""]
[null,null,null,null,null,null,null,null,null,null,null,null,null,null,"",""]
[null,null,null,null,null,null,null,null,null,null,null,null,null,null,"",""]
[null,null,null,null,null,null,null,null,null,null,null,null,null,null,"",""]
[null,null,null,null,null,null,null,null,null,null,null,null,null,null,"",""]
[null,null,null,null,null,null,null,null,null,null,null,null,null,null,"",""]
[null,null,null,null,null,null,null,null,null,null,null,null,null,null,"",{"$f":"IF(H59267=\"\",\"\",MATCH(H59267,$T$2:$T$2472,0))","v":""}]
[null,null,null,null,null,null,null,null,null,null,null,null,null,null,"",""]
[null,null,null,null,null,null,null,null,null,null,null,null,null,null,"",""]
[null,null,null,null,null,null,null,null,null,null,null,null,null,null,"",""]
[null,null,null,null,null,null,null,null,null,null,null,null,null,null,"",""]
[null,null,null,null,null,null,null,null,null,null,null,null,null,null,"",""]
[null,null,null,null,null,null,null,null,null,null,null,null,null,null,"",""]
[null,null,null,null,null,null,null,null,null,null,null,null,null,null,"",""]
[null,null,null,null,null,null,null,null,null,null,null,null,null,null,"",""]
[null,null,null,null,null,null,null,null,null,null,null,null,null,null,"",""]
[null,null,null,null,null,null,null,null,null,null,null,null,null,null,"",""]
[null,null,null,null,null,null,null,null,null,null,null,null,null,null,"",""]
[null,null,null,null,null,null,null,null,null,null,null,null,null,null,"",""]
[null,null,null,null,null,null,null,null,null,null,null,null,null,null,"",""]
[null,null,null,null,null,null,null,null,null,null,null,null,null,null,"",""]
[null,null,null,null,null,null,null,null,null,null,null,null,null,null,"",""]
[null,null,null,null,null,null,null,null,null,null,null,null,null,null,"",""]
[null,null,null,null,null,null,null,null,null,null,null,null,null,null,"",""]
[null,null,null,null,null,null,null,null,null,null,null,null,null,null,"",""]
[null,null,null,null,null,null,null,null,null,null,null,null,null,null,"",""]
[null,null,null,null,null,null,null,null,null,null,null,null,null,null,"",""]
[null,null,null,null,null,null,null,null,null,null,null,null,null,null,"",""]
[null,null,null,null,null,null,null,null,null,null,null,null,null,null,"",""]
[null,null,null,null,null,null,null,null,null,null,null,null,null,null,"",""]
[null,null,null,null,null,null,null,null,null,null,null,null,null,null,"",""]
[null,null,null,null,null,null,null,null,null,null,null,null,null,null,"",""]
[null,null,null,null,null,null,null,null,null,null,null,null,null,null,"",""]
[null,null,null,null,null,null,null,null,null,null,null,null,null,null,"",""]
[null,null,null,null,null,null,null,null,null,null,null,null,null,null,"",""]
[null,null,null,null,null,null,null,null,null,null,null,null,null,null,"",""]
[null,null,null,null,null,null,null,null,null,null,null,null,null,null,"",""]
[null,null,null,null,null,null,null,null,null,null,null,null,null,null,"",{"$f":"IF(H59523=\"\",\"\",MATCH(H59523,$T$2:$T$2472,0))","v":""}]
[null,null,null,null,null,null,null,null,null,null,null,null,null,null,"",""]
[null,null,null,null,null,null,null,null,null,null,null,null,null,null,"",""]
[null,null,null,null,null,null,null,null,null,null,null,null,null,null,"",""]
[null,null,null,null,null,null,null,null,null,null,null,null,null,null,"",""]
[null,null,null,null,null,null,null,null,null,null,null,null,null,null,"",""]
[null,null,null,null,null,null,null,null,null,null,null,null,null,null,"",""]
[null,null,null,null,null,null,null,null,null,null,null,null,null,null,"",""]
[null,null,null,null,null,null,null,null,null,null,null,null,null,null,"",""]
[null,null,null,null,null,null,null,null,null,null,null,null,null,null,"",""]
[null,null,null,null,null,null,null,null,null,null,null,null,null,null,"",""]
[null,null,null,null,null,null,null,null,null,null,null,null,null,null,"",""]
[null,null,null,null,null,null,null,null,null,null,null,null,null,null,"",""]
[null,null,null,null,null,null,null,null,null,null,null,null,null,null,"",""]
[null,null,null,null,null,null,null,null,null,null,null,null,null,null,{"$f":"IF(D59537=\"\",\"\",MATCH(D59537,$S$2:$S$2488,0))","v":""},""]
[null,null,null,null,null,null,null,null,null,null,null,null,null,null,"",""]
[null,null,null,null,null,null,null,null,null,null,null,null,null,null,"",""]
[null,null,null,null,null,null,null,null,null,null,null,null,null,null,"",""]
[null,null,null,null,null,null,null,null,null,null,null,null,null,null,"",""]
[null,null,null,null,null,null,null,null,null,null,null,null,null,null,"",""]
[null,null,null,null,null,null,null,null,null,null,null,null,null,null,"",""]
[null,null,null,null,null,null,null,null,null,null,null,null,null,null,"",""]
[null,null,null,null,null,null,null,null,null,null,null,null,null,null,"",""]
[null,null,null,null,null,null,null,null,null,null,null,null,null,null,"",""]
[null,null,null,null,null,null,null,null,null,null,null,null,null,null,"",""]
[null,null,null,null,null,null,null,null,null,null,null,null,null,null,"",""]
[null,null,null,null,null,null,null,null,null,null,null,null,null,null,"",""]
[null,null,null,null,null,null,null,null,null,null,null,null,null,null,"",""]
[null,null,null,null,null,null,null,null,null,null,null,null,null,null,"",""]
[null,null,null,null,null,null,null,null,null,null,null,null,null,null,"",""]
[null,null,null,null,null,null,null,null,null,null,null,null,null,null,"",""]
[null,null,null,null,null,null,null,null,null,null,null,null,null,null,"",""]
[null,null,null,null,null,null,null,null,null,null,null,null,null,null,"",""]
[null,null,null,null,null,null,null,null,null,null,null,null,null,null,"",""]
[null,null,null,null,null,null,null,null,null,null,null,null,null,null,"",""]
[null,null,null,null,null,null,null,null,null,null,null,null,null,null,"",""]
[null,null,null,null,null,null,null,null,null,null,null,null,null,null,"",""]
[null,null,null,null,null,null,null,null,null,null,null,null,null,null,"",""]
[null,null,null,null,null,null,null,null,null,null,null,null,null,null,"",""]
[null,null,null,null,null,null,null,null,null,null,null,null,null,null,"",""]
[null,null,null,null,null,null,null,null,null,null,null,null,null,null,"",""]
[null,null,null,null,null,null,null,null,null,null,null,null,null,null,"",""]
[null,null,null,null,null,null,null,null,null,null,null,null,null,null,"",""]
[null,null,null,null,null,null,null,null,null,null,null,null,null,null,"",""]
[null,null,null,null,null,null,null,null,null,null,null,null,null,null,"",""]
[null,null,null,null,null,null,null,null,null,null,null,null,null,null,"",""]
[null,null,null,null,null,null,null,null,null,null,null,null,null,null,"",""]
[null,null,null,null,null,null,null,null,null,null,null,null,null,null,"",""]
[null,null,null,null,null,null,null,null,null,null,null,null,null,null,"",""]
[null,null,null,null,null,null,null,null,null,null,null,null,null,null,"",""]
[null,null,null,null,null,null,null,null,null,null,null,null,null,null,"",""]
[null,null,null,null,null,null,null,null,null,null,null,null,null,null,"",""]
[null,null,null,null,null,null,null,null,null,null,null,null,null,null,"",""]
[null,null,null,null,null,null,null,null,null,null,null,null,null,null,"",""]
[null,null,null,null,null,null,null,null,null,null,null,null,null,null,"",""]
[null,null,null,null,null,null,null,null,null,null,null,null,null,null,"",""]
[null,null,null,null,null,null,null,null,null,null,null,null,null,null,"",""]
[null,null,null,null,null,null,null,null,null,null,null,null,null,null,"",""]
[null,null,null,null,null,null,null,null,null,null,null,null,null,null,"",""]
[null,null,null,null,null,null,null,null,null,null,null,null,null,null,"",""]
[null,null,null,null,null,null,null,null,null,null,null,null,null,null,"",""]
[null,null,null,null,null,null,null,null,null,null,null,null,null,null,"",""]
[null,null,null,null,null,null,null,null,null,null,null,null,null,null,"",""]
[null,null,null,null,null,null,null,null,null,null,null,null,null,null,"",""]
[null,null,null,null,null,null,null,null,null,null,null,null,null,null,"",{"$f":"IF(H59587=\"\",\"\",MATCH(H59587,$T$2:$T$2472,0))","v":""}]
[null,null,null,null,null,null,null,null,null,null,null,null,null,null,"",""]
[null,null,null,null,null,null,null,null,null,null,null,null,null,null,"",""]
[null,null,null,null,null,null,null,null,null,null,null,null,null,null,"",""]
[null,null,null,null,null,null,null,null,null,null,null,null,null,null,"",""]
[null,null,null,null,null,null,null,null,null,null,null,null,null,null,"",""]
[null,null,null,null,null,null,null,null,null,null,null,null,null,null,"",""]
[null,null,null,null,null,null,null,null,null,null,null,null,null,null,"",""]
[null,null,null,null,null,null,null,null,null,null,null,null,null,null,"",""]
[null,null,null,null,null,null,null,null,null,null,null,null,null,null,"",""]
[null,null,null,null,null,null,null,null,null,null,null,null,null,null,"",""]
[null,null,null,null,null,null,null,null,null,null,null,null,null,null,"",""]
[null,null,null,null,null,null,null,null,null,null,null,null,null,null,"",""]
[null,null,null,null,null,null,null,null,null,null,null,null,null,null,"",""]
[null,null,null,null,null,null,null,null,null,null,null,null,null,null,{"$f":"IF(D59601=\"\",\"\",MATCH(D59601,$S$2:$S$2488,0))","v":""},""]
[null,null,null,null,null,null,null,null,null,null,null,null,null,null,"",""]
[null,null,null,null,null,null,null,null,null,null,null,null,null,null,"",""]
[null,null,null,null,null,null,null,null,null,null,null,null,null,null,"",""]
[null,null,null,null,null,null,null,null,null,null,null,null,null,null,"",""]
[null,null,null,null,null,null,null,null,null,null,null,null,null,null,"",""]
[null,null,null,null,null,null,null,null,null,null,null,null,null,null,"",""]
[null,null,null,null,null,null,null,null,null,null,null,null,null,null,"",""]
[null,null,null,null,null,null,null,null,null,null,null,null,null,null,"",""]
[null,null,null,null,null,null,null,null,null,null,null,null,null,null,"",""]
[null,null,null,null,null,null,null,null,null,null,null,null,null,null,"",""]
[null,null,null,null,null,null,null,null,null,null,null,null,null,null,"",""]
[null,null,null,null,null,null,null,null,null,null,null,null,null,null,"",""]
[null,null,null,null,null,null,null,null,null,null,null,null,null,null,"",""]
[null,null,null,null,null,null,null,null,null,null,null,null,null,null,"",""]
[null,null,null,null,null,null,null,null,null,null,null,null,null,null,"",""]
[null,null,null,null,null,null,null,null,null,null,null,null,null,null,"",""]
[null,null,null,null,null,null,null,null,null,null,null,null,null,null,"",""]
[null,null,null,null,null,null,null,null,null,null,null,null,null,null,"",""]
[null,null,null,null,null,null,null,null,null,null,null,null,null,null,"",""]
[null,null,null,null,null,null,null,null,null,null,null,null,null,null,"",""]
[null,null,null,null,null,null,null,null,null,null,null,null,null,null,"",""]
[null,null,null,null,null,null,null,null,null,null,null,null,null,null,"",""]
[null,null,null,null,null,null,null,null,null,null,null,null,null,null,"",""]
[null,null,null,null,null,null,null,null,null,null,null,null,null,null,"",""]
[null,null,null,null,null,null,null,null,null,null,null,null,null,null,"",""]
[null,null,null,null,null,null,null,null,null,null,null,null,null,null,"",""]
[null,null,null,null,null,null,null,null,null,null,null,null,null,null,"",""]
[null,null,null,null,null,null,null,null,null,null,null,null,null,null,"",""]
[null,null,null,null,null,null,null,null,null,null,null,null,null,null,"",""]
[null,null,null,null,null,null,null,null,null,null,null,null,null,null,"",""]
[null,null,null,null,null,null,null,null,null,null,null,null,null,null,"",""]
[null,null,null,null,null,null,null,null,null,null,null,null,null,null,"",""]
[null,null,null,null,null,null,null,null,null,null,null,null,null,null,"",""]
[null,null,null,null,null,null,null,null,null,null,null,null,null,null,"",""]
[null,null,null,null,null,null,null,null,null,null,null,null,null,null,"",""]
[null,null,null,null,null,null,null,null,null,null,null,null,null,null,"",""]
[null,null,null,null,null,null,null,null,null,null,null,null,null,null,"",""]
[null,null,null,null,null,null,null,null,null,null,null,null,null,null,"",""]
[null,null,null,null,null,null,null,null,null,null,null,null,null,null,"",""]
[null,null,null,null,null,null,null,null,null,null,null,null,null,null,"",""]
[null,null,null,null,null,null,null,null,null,null,null,null,null,null,"",""]
[null,null,null,null,null,null,null,null,null,null,null,null,null,null,"",""]
[null,null,null,null,null,null,null,null,null,null,null,null,null,null,"",""]
[null,null,null,null,null,null,null,null,null,null,null,null,null,null,"",""]
[null,null,null,null,null,null,null,null,null,null,null,null,null,null,"",""]
[null,null,null,null,null,null,null,null,null,null,null,null,null,null,"",""]
[null,null,null,null,null,null,null,null,null,null,null,null,null,null,"",""]
[null,null,null,null,null,null,null,null,null,null,null,null,null,null,"",""]
[null,null,null,null,null,null,null,null,null,null,null,null,null,null,"",""]
[null,null,null,null,null,null,null,null,null,null,null,null,null,null,"",{"$f":"IF(H59651=\"\",\"\",MATCH(H59651,$T$2:$T$2472,0))","v":""}]
[null,null,null,null,null,null,null,null,null,null,null,null,null,null,"",""]
[null,null,null,null,null,null,null,null,null,null,null,null,null,null,"",""]
[null,null,null,null,null,null,null,null,null,null,null,null,null,null,"",""]
[null,null,null,null,null,null,null,null,null,null,null,null,null,null,"",""]
[null,null,null,null,null,null,null,null,null,null,null,null,null,null,"",""]
[null,null,null,null,null,null,null,null,null,null,null,null,null,null,"",""]
[null,null,null,null,null,null,null,null,null,null,null,null,null,null,"",""]
[null,null,null,null,null,null,null,null,null,null,null,null,null,null,"",""]
[null,null,null,null,null,null,null,null,null,null,null,null,null,null,"",""]
[null,null,null,null,null,null,null,null,null,null,null,null,null,null,"",""]
[null,null,null,null,null,null,null,null,null,null,null,null,null,null,"",""]
[null,null,null,null,null,null,null,null,null,null,null,null,null,null,"",""]
[null,null,null,null,null,null,null,null,null,null,null,null,null,null,"",""]
[null,null,null,null,null,null,null,null,null,null,null,null,null,null,{"$f":"IF(D59665=\"\",\"\",MATCH(D59665,$S$2:$S$2488,0))","v":""},""]
[null,null,null,null,null,null,null,null,null,null,null,null,null,null,"",""]
[null,null,null,null,null,null,null,null,null,null,null,null,null,null,"",""]
[null,null,null,null,null,null,null,null,null,null,null,null,null,null,"",""]
[null,null,null,null,null,null,null,null,null,null,null,null,null,null,"",""]
[null,null,null,null,null,null,null,null,null,null,null,null,null,null,"",""]
[null,null,null,null,null,null,null,null,null,null,null,null,null,null,"",""]
[null,null,null,null,null,null,null,null,null,null,null,null,null,null,"",""]
[null,null,null,null,null,null,null,null,null,null,null,null,null,null,"",""]
[null,null,null,null,null,null,null,null,null,null,null,null,null,null,"",""]
[null,null,null,null,null,null,null,null,null,null,null,null,null,null,"",""]
[null,null,null,null,null,null,null,null,null,null,null,null,null,null,"",""]
[null,null,null,null,null,null,null,null,null,null,null,null,null,null,"",""]
[null,null,null,null,null,null,null,null,null,null,null,null,null,null,"",""]
[null,null,null,null,null,null,null,null,null,null,null,null,null,null,"",""]
[null,null,null,null,null,null,null,null,null,null,null,null,null,null,"",""]
[null,null,null,null,null,null,null,null,null,null,null,null,null,null,"",""]
[null,null,null,null,null,null,null,null,null,null,null,null,null,null,"",""]
[null,null,null,null,null,null,null,null,null,null,null,null,null,null,"",""]
[null,null,null,null,null,null,null,null,null,null,null,null,null,null,"",""]
[null,null,null,null,null,null,null,null,null,null,null,null,null,null,"",""]
[null,null,null,null,null,null,null,null,null,null,null,null,null,null,"",""]
[null,null,null,null,null,null,null,null,null,null,null,null,null,null,"",""]
[null,null,null,null,null,null,null,null,null,null,null,null,null,null,"",""]
[null,null,null,null,null,null,null,null,null,null,null,null,null,null,"",""]
[null,null,null,null,null,null,null,null,null,null,null,null,null,null,"",""]
[null,null,null,null,null,null,null,null,null,null,null,null,null,null,"",""]
[null,null,null,null,null,null,null,null,null,null,null,null,null,null,"",""]
[null,null,null,null,null,null,null,null,null,null,null,null,null,null,"",""]
[null,null,null,null,null,null,null,null,null,null,null,null,null,null,"",""]
[null,null,null,null,null,null,null,null,null,null,null,null,null,null,"",""]
[null,null,null,null,null,null,null,null,null,null,null,null,null,null,"",""]
[null,null,null,null,null,null,null,null,null,null,null,null,null,null,"",""]
[null,null,null,null,null,null,null,null,null,null,null,null,null,null,"",""]
[null,null,null,null,null,null,null,null,null,null,null,null,null,null,"",""]
[null,null,null,null,null,null,null,null,null,null,null,null,null,null,"",""]
[null,null,null,null,null,null,null,null,null,null,null,null,null,null,"",""]
[null,null,null,null,null,null,null,null,null,null,null,null,null,null,"",""]
[null,null,null,null,null,null,null,null,null,null,null,null,null,null,"",""]
[null,null,null,null,null,null,null,null,null,null,null,null,null,null,"",""]
[null,null,null,null,null,null,null,null,null,null,null,null,null,null,"",""]
[null,null,null,null,null,null,null,null,null,null,null,null,null,null,"",""]
[null,null,null,null,null,null,null,null,null,null,null,null,null,null,"",""]
[null,null,null,null,null,null,null,null,null,null,null,null,null,null,"",""]
[null,null,null,null,null,null,null,null,null,null,null,null,null,null,"",""]
[null,null,null,null,null,null,null,null,null,null,null,null,null,null,"",""]
[null,null,null,null,null,null,null,null,null,null,null,null,null,null,"",""]
[null,null,null,null,null,null,null,null,null,null,null,null,null,null,"",""]
[null,null,null,null,null,null,null,null,null,null,null,null,null,null,"",""]
[null,null,null,null,null,null,null,null,null,null,null,null,null,null,"",""]
[null,null,null,null,null,null,null,null,null,null,null,null,null,null,"",{"$f":"IF(H59715=\"\",\"\",MATCH(H59715,$T$2:$T$2472,0))","v":""}]
[null,null,null,null,null,null,null,null,null,null,null,null,null,null,"",""]
[null,null,null,null,null,null,null,null,null,null,null,null,null,null,"",""]
[null,null,null,null,null,null,null,null,null,null,null,null,null,null,"",""]
[null,null,null,null,null,null,null,null,null,null,null,null,null,null,"",""]
[null,null,null,null,null,null,null,null,null,null,null,null,null,null,"",""]
[null,null,null,null,null,null,null,null,null,null,null,null,null,null,"",""]
[null,null,null,null,null,null,null,null,null,null,null,null,null,null,"",""]
[null,null,null,null,null,null,null,null,null,null,null,null,null,null,"",""]
[null,null,null,null,null,null,null,null,null,null,null,null,null,null,"",""]
[null,null,null,null,null,null,null,null,null,null,null,null,null,null,"",""]
[null,null,null,null,null,null,null,null,null,null,null,null,null,null,"",""]
[null,null,null,null,null,null,null,null,null,null,null,null,null,null,"",""]
[null,null,null,null,null,null,null,null,null,null,null,null,null,null,"",""]
[null,null,null,null,null,null,null,null,null,null,null,null,null,null,{"$f":"IF(D59729=\"\",\"\",MATCH(D59729,$S$2:$S$2488,0))","v":""},""]
[null,null,null,null,null,null,null,null,null,null,null,null,null,null,"",""]
[null,null,null,null,null,null,null,null,null,null,null,null,null,null,"",""]
[null,null,null,null,null,null,null,null,null,null,null,null,null,null,"",""]
[null,null,null,null,null,null,null,null,null,null,null,null,null,null,"",""]
[null,null,null,null,null,null,null,null,null,null,null,null,null,null,"",""]
[null,null,null,null,null,null,null,null,null,null,null,null,null,null,"",""]
[null,null,null,null,null,null,null,null,null,null,null,null,null,null,"",""]
[null,null,null,null,null,null,null,null,null,null,null,null,null,null,"",""]
[null,null,null,null,null,null,null,null,null,null,null,null,null,null,"",""]
[null,null,null,null,null,null,null,null,null,null,null,null,null,null,"",""]
[null,null,null,null,null,null,null,null,null,null,null,null,null,null,"",""]
[null,null,null,null,null,null,null,null,null,null,null,null,null,null,"",""]
[null,null,null,null,null,null,null,null,null,null,null,null,null,null,"",""]
[null,null,null,null,null,null,null,null,null,null,null,null,null,null,"",""]
[null,null,null,null,null,null,null,null,null,null,null,null,null,null,"",""]
[null,null,null,null,null,null,null,null,null,null,null,null,null,null,"",""]
[null,null,null,null,null,null,null,null,null,null,null,null,null,null,"",""]
[null,null,null,null,null,null,null,null,null,null,null,null,null,null,"",""]
[null,null,null,null,null,null,null,null,null,null,null,null,null,null,"",""]
[null,null,null,null,null,null,null,null,null,null,null,null,null,null,"",""]
[null,null,null,null,null,null,null,null,null,null,null,null,null,null,"",""]
[null,null,null,null,null,null,null,null,null,null,null,null,null,null,"",""]
[null,null,null,null,null,null,null,null,null,null,null,null,null,null,"",""]
[null,null,null,null,null,null,null,null,null,null,null,null,null,null,"",""]
[null,null,null,null,null,null,null,null,null,null,null,null,null,null,"",""]
[null,null,null,null,null,null,null,null,null,null,null,null,null,null,"",""]
[null,null,null,null,null,null,null,null,null,null,null,null,null,null,"",""]
[null,null,null,null,null,null,null,null,null,null,null,null,null,null,"",""]
[null,null,null,null,null,null,null,null,null,null,null,null,null,null,"",""]
[null,null,null,null,null,null,null,null,null,null,null,null,null,null,"",""]
[null,null,null,null,null,null,null,null,null,null,null,null,null,null,"",""]
[null,null,null,null,null,null,null,null,null,null,null,null,null,null,"",""]
[null,null,null,null,null,null,null,null,null,null,null,null,null,null,"",""]
[null,null,null,null,null,null,null,null,null,null,null,null,null,null,"",""]
[null,null,null,null,null,null,null,null,null,null,null,null,null,null,"",""]
[null,null,null,null,null,null,null,null,null,null,null,null,null,null,"",""]
[null,null,null,null,null,null,null,null,null,null,null,null,null,null,"",""]
[null,null,null,null,null,null,null,null,null,null,null,null,null,null,"",""]
[null,null,null,null,null,null,null,null,null,null,null,null,null,null,"",""]
[null,null,null,null,null,null,null,null,null,null,null,null,null,null,"",""]
[null,null,null,null,null,null,null,null,null,null,null,null,null,null,"",""]
[null,null,null,null,null,null,null,null,null,null,null,null,null,null,"",""]
[null,null,null,null,null,null,null,null,null,null,null,null,null,null,"",""]
[null,null,null,null,null,null,null,null,null,null,null,null,null,null,"",""]
[null,null,null,null,null,null,null,null,null,null,null,null,null,null,"",""]
[null,null,null,null,null,null,null,null,null,null,null,null,null,null,"",""]
[null,null,null,null,null,null,null,null,null,null,null,null,null,null,"",""]
[null,null,null,null,null,null,null,null,null,null,null,null,null,null,"",""]
[null,null,null,null,null,null,null,null,null,null,null,null,null,null,"",""]
[null,null,null,null,null,null,null,null,null,null,null,null,null,null,"",{"$f":"IF(H59779=\"\",\"\",MATCH(H59779,$T$2:$T$2472,0))","v":""}]
[null,null,null,null,null,null,null,null,null,null,null,null,null,null,"",""]
[null,null,null,null,null,null,null,null,null,null,null,null,null,null,"",""]
[null,null,null,null,null,null,null,null,null,null,null,null,null,null,"",""]
[null,null,null,null,null,null,null,null,null,null,null,null,null,null,"",""]
[null,null,null,null,null,null,null,null,null,null,null,null,null,null,"",""]
[null,null,null,null,null,null,null,null,null,null,null,null,null,null,"",""]
[null,null,null,null,null,null,null,null,null,null,null,null,null,null,"",""]
[null,null,null,null,null,null,null,null,null,null,null,null,null,null,"",""]
[null,null,null,null,null,null,null,null,null,null,null,null,null,null,"",""]
[null,null,null,null,null,null,null,null,null,null,null,null,null,null,"",""]
[null,null,null,null,null,null,null,null,null,null,null,null,null,null,"",""]
[null,null,null,null,null,null,null,null,null,null,null,null,null,null,"",""]
[null,null,null,null,null,null,null,null,null,null,null,null,null,null,"",""]
[null,null,null,null,null,null,null,null,null,null,null,null,null,null,{"$f":"IF(D59793=\"\",\"\",MATCH(D59793,$S$2:$S$2488,0))","v":""},""]
[null,null,null,null,null,null,null,null,null,null,null,null,null,null,"",""]
[null,null,null,null,null,null,null,null,null,null,null,null,null,null,"",""]
[null,null,null,null,null,null,null,null,null,null,null,null,null,null,"",""]
[null,null,null,null,null,null,null,null,null,null,null,null,null,null,"",""]
[null,null,null,null,null,null,null,null,null,null,null,null,null,null,"",""]
[null,null,null,null,null,null,null,null,null,null,null,null,null,null,"",""]
[null,null,null,null,null,null,null,null,null,null,null,null,null,null,"",""]
[null,null,null,null,null,null,null,null,null,null,null,null,null,null,"",""]
[null,null,null,null,null,null,null,null,null,null,null,null,null,null,"",""]
[null,null,null,null,null,null,null,null,null,null,null,null,null,null,"",""]
[null,null,null,null,null,null,null,null,null,null,null,null,null,null,"",""]
[null,null,null,null,null,null,null,null,null,null,null,null,null,null,"",""]
[null,null,null,null,null,null,null,null,null,null,null,null,null,null,"",""]
[null,null,null,null,null,null,null,null,null,null,null,null,null,null,"",""]
[null,null,null,null,null,null,null,null,null,null,null,null,null,null,"",""]
[null,null,null,null,null,null,null,null,null,null,null,null,null,null,"",""]
[null,null,null,null,null,null,null,null,null,null,null,null,null,null,"",""]
[null,null,null,null,null,null,null,null,null,null,null,null,null,null,"",""]
[null,null,null,null,null,null,null,null,null,null,null,null,null,null,"",""]
[null,null,null,null,null,null,null,null,null,null,null,null,null,null,"",""]
[null,null,null,null,null,null,null,null,null,null,null,null,null,null,"",""]
[null,null,null,null,null,null,null,null,null,null,null,null,null,null,"",""]
[null,null,null,null,null,null,null,null,null,null,null,null,null,null,"",""]
[null,null,null,null,null,null,null,null,null,null,null,null,null,null,"",""]
[null,null,null,null,null,null,null,null,null,null,null,null,null,null,"",""]
[null,null,null,null,null,null,null,null,null,null,null,null,null,null,"",""]
[null,null,null,null,null,null,null,null,null,null,null,null,null,null,"",""]
[null,null,null,null,null,null,null,null,null,null,null,null,null,null,"",""]
[null,null,null,null,null,null,null,null,null,null,null,null,null,null,"",""]
[null,null,null,null,null,null,null,null,null,null,null,null,null,null,"",""]
[null,null,null,null,null,null,null,null,null,null,null,null,null,null,"",""]
[null,null,null,null,null,null,null,null,null,null,null,null,null,null,"",""]
[null,null,null,null,null,null,null,null,null,null,null,null,null,null,"",""]
[null,null,null,null,null,null,null,null,null,null,null,null,null,null,"",""]
[null,null,null,null,null,null,null,null,null,null,null,null,null,null,"",""]
[null,null,null,null,null,null,null,null,null,null,null,null,null,null,"",""]
[null,null,null,null,null,null,null,null,null,null,null,null,null,null,"",""]
[null,null,null,null,null,null,null,null,null,null,null,null,null,null,"",""]
[null,null,null,null,null,null,null,null,null,null,null,null,null,null,"",""]
[null,null,null,null,null,null,null,null,null,null,null,null,null,null,"",""]
[null,null,null,null,null,null,null,null,null,null,null,null,null,null,"",""]
[null,null,null,null,null,null,null,null,null,null,null,null,null,null,"",""]
[null,null,null,null,null,null,null,null,null,null,null,null,null,null,"",""]
[null,null,null,null,null,null,null,null,null,null,null,null,null,null,"",""]
[null,null,null,null,null,null,null,null,null,null,null,null,null,null,"",""]
[null,null,null,null,null,null,null,null,null,null,null,null,null,null,"",""]
[null,null,null,null,null,null,null,null,null,null,null,null,null,null,"",""]
[null,null,null,null,null,null,null,null,null,null,null,null,null,null,"",""]
[null,null,null,null,null,null,null,null,null,null,null,null,null,null,"",""]
[null,null,null,null,null,null,null,null,null,null,null,null,null,null,"",{"$f":"IF(H59843=\"\",\"\",MATCH(H59843,$T$2:$T$2472,0))","v":""}]
[null,null,null,null,null,null,null,null,null,null,null,null,null,null,"",""]
[null,null,null,null,null,null,null,null,null,null,null,null,null,null,"",""]
[null,null,null,null,null,null,null,null,null,null,null,null,null,null,"",""]
[null,null,null,null,null,null,null,null,null,null,null,null,null,null,"",""]
[null,null,null,null,null,null,null,null,null,null,null,null,null,null,"",""]
[null,null,null,null,null,null,null,null,null,null,null,null,null,null,"",""]
[null,null,null,null,null,null,null,null,null,null,null,null,null,null,"",""]
[null,null,null,null,null,null,null,null,null,null,null,null,null,null,"",""]
[null,null,null,null,null,null,null,null,null,null,null,null,null,null,"",""]
[null,null,null,null,null,null,null,null,null,null,null,null,null,null,"",""]
[null,null,null,null,null,null,null,null,null,null,null,null,null,null,"",""]
[null,null,null,null,null,null,null,null,null,null,null,null,null,null,"",""]
[null,null,null,null,null,null,null,null,null,null,null,null,null,null,"",""]
[null,null,null,null,null,null,null,null,null,null,null,null,null,null,{"$f":"IF(D59857=\"\",\"\",MATCH(D59857,$S$2:$S$2488,0))","v":""},""]
[null,null,null,null,null,null,null,null,null,null,null,null,null,null,"",""]
[null,null,null,null,null,null,null,null,null,null,null,null,null,null,"",""]
[null,null,null,null,null,null,null,null,null,null,null,null,null,null,"",""]
[null,null,null,null,null,null,null,null,null,null,null,null,null,null,"",""]
[null,null,null,null,null,null,null,null,null,null,null,null,null,null,"",""]
[null,null,null,null,null,null,null,null,null,null,null,null,null,null,"",""]
[null,null,null,null,null,null,null,null,null,null,null,null,null,null,"",""]
[null,null,null,null,null,null,null,null,null,null,null,null,null,null,"",""]
[null,null,null,null,null,null,null,null,null,null,null,null,null,null,"",""]
[null,null,null,null,null,null,null,null,null,null,null,null,null,null,"",""]
[null,null,null,null,null,null,null,null,null,null,null,null,null,null,"",""]
[null,null,null,null,null,null,null,null,null,null,null,null,null,null,"",""]
[null,null,null,null,null,null,null,null,null,null,null,null,null,null,"",""]
[null,null,null,null,null,null,null,null,null,null,null,null,null,null,"",""]
[null,null,null,null,null,null,null,null,null,null,null,null,null,null,"",""]
[null,null,null,null,null,null,null,null,null,null,null,null,null,null,"",""]
[null,null,null,null,null,null,null,null,null,null,null,null,null,null,"",""]
[null,null,null,null,null,null,null,null,null,null,null,null,null,null,"",""]
[null,null,null,null,null,null,null,null,null,null,null,null,null,null,"",""]
[null,null,null,null,null,null,null,null,null,null,null,null,null,null,"",""]
[null,null,null,null,null,null,null,null,null,null,null,null,null,null,"",""]
[null,null,null,null,null,null,null,null,null,null,null,null,null,null,"",""]
[null,null,null,null,null,null,null,null,null,null,null,null,null,null,"",""]
[null,null,null,null,null,null,null,null,null,null,null,null,null,null,"",""]
[null,null,null,null,null,null,null,null,null,null,null,null,null,null,"",""]
[null,null,null,null,null,null,null,null,null,null,null,null,null,null,"",""]
[null,null,null,null,null,null,null,null,null,null,null,null,null,null,"",""]
[null,null,null,null,null,null,null,null,null,null,null,null,null,null,"",""]
[null,null,null,null,null,null,null,null,null,null,null,null,null,null,"",""]
[null,null,null,null,null,null,null,null,null,null,null,null,null,null,"",""]
[null,null,null,null,null,null,null,null,null,null,null,null,null,null,"",""]
[null,null,null,null,null,null,null,null,null,null,null,null,null,null,"",""]
[null,null,null,null,null,null,null,null,null,null,null,null,null,null,"",""]
[null,null,null,null,null,null,null,null,null,null,null,null,null,null,"",""]
[null,null,null,null,null,null,null,null,null,null,null,null,null,null,"",""]
[null,null,null,null,null,null,null,null,null,null,null,null,null,null,"",""]
[null,null,null,null,null,null,null,null,null,null,null,null,null,null,"",""]
[null,null,null,null,null,null,null,null,null,null,null,null,null,null,"",""]
[null,null,null,null,null,null,null,null,null,null,null,null,null,null,"",""]
[null,null,null,null,null,null,null,null,null,null,null,null,null,null,"",""]
[null,null,null,null,null,null,null,null,null,null,null,null,null,null,"",""]
[null,null,null,null,null,null,null,null,null,null,null,null,null,null,"",""]
[null,null,null,null,null,null,null,null,null,null,null,null,null,null,"",""]
[null,null,null,null,null,null,null,null,null,null,null,null,null,null,"",""]
[null,null,null,null,null,null,null,null,null,null,null,null,null,null,"",""]
[null,null,null,null,null,null,null,null,null,null,null,null,null,null,"",""]
[null,null,null,null,null,null,null,null,null,null,null,null,null,null,"",""]
[null,null,null,null,null,null,null,null,null,null,null,null,null,null,"",""]
[null,null,null,null,null,null,null,null,null,null,null,null,null,null,"",""]
[null,null,null,null,null,null,null,null,null,null,null,null,null,null,"",{"$f":"IF(H59907=\"\",\"\",MATCH(H59907,$T$2:$T$2472,0))","v":""}]
[null,null,null,null,null,null,null,null,null,null,null,null,null,null,"",""]
[null,null,null,null,null,null,null,null,null,null,null,null,null,null,"",""]
[null,null,null,null,null,null,null,null,null,null,null,null,null,null,"",""]
[null,null,null,null,null,null,null,null,null,null,null,null,null,null,"",""]
[null,null,null,null,null,null,null,null,null,null,null,null,null,null,"",""]
[null,null,null,null,null,null,null,null,null,null,null,null,null,null,"",""]
[null,null,null,null,null,null,null,null,null,null,null,null,null,null,"",""]
[null,null,null,null,null,null,null,null,null,null,null,null,null,null,"",""]
[null,null,null,null,null,null,null,null,null,null,null,null,null,null,"",""]
[null,null,null,null,null,null,null,null,null,null,null,null,null,null,"",""]
[null,null,null,null,null,null,null,null,null,null,null,null,null,null,"",""]
[null,null,null,null,null,null,null,null,null,null,null,null,null,null,"",""]
[null,null,null,null,null,null,null,null,null,null,null,null,null,null,"",""]
[null,null,null,null,null,null,null,null,null,null,null,null,null,null,{"$f":"IF(D59921=\"\",\"\",MATCH(D59921,$S$2:$S$2488,0))","v":""},""]
[null,null,null,null,null,null,null,null,null,null,null,null,null,null,"",""]
[null,null,null,null,null,null,null,null,null,null,null,null,null,null,"",""]
[null,null,null,null,null,null,null,null,null,null,null,null,null,null,"",""]
[null,null,null,null,null,null,null,null,null,null,null,null,null,null,"",""]
[null,null,null,null,null,null,null,null,null,null,null,null,null,null,"",""]
[null,null,null,null,null,null,null,null,null,null,null,null,null,null,"",""]
[null,null,null,null,null,null,null,null,null,null,null,null,null,null,"",""]
[null,null,null,null,null,null,null,null,null,null,null,null,null,null,"",""]
[null,null,null,null,null,null,null,null,null,null,null,null,null,null,"",""]
[null,null,null,null,null,null,null,null,null,null,null,null,null,null,"",""]
[null,null,null,null,null,null,null,null,null,null,null,null,null,null,"",""]
[null,null,null,null,null,null,null,null,null,null,null,null,null,null,"",""]
[null,null,null,null,null,null,null,null,null,null,null,null,null,null,"",""]
[null,null,null,null,null,null,null,null,null,null,null,null,null,null,"",""]
[null,null,null,null,null,null,null,null,null,null,null,null,null,null,"",""]
[null,null,null,null,null,null,null,null,null,null,null,null,null,null,"",""]
[null,null,null,null,null,null,null,null,null,null,null,null,null,null,"",""]
[null,null,null,null,null,null,null,null,null,null,null,null,null,null,"",""]
[null,null,null,null,null,null,null,null,null,null,null,null,null,null,"",""]
[null,null,null,null,null,null,null,null,null,null,null,null,null,null,"",""]
[null,null,null,null,null,null,null,null,null,null,null,null,null,null,"",""]
[null,null,null,null,null,null,null,null,null,null,null,null,null,null,"",""]
[null,null,null,null,null,null,null,null,null,null,null,null,null,null,"",""]
[null,null,null,null,null,null,null,null,null,null,null,null,null,null,"",""]
[null,null,null,null,null,null,null,null,null,null,null,null,null,null,"",""]
[null,null,null,null,null,null,null,null,null,null,null,null,null,null,"",""]
[null,null,null,null,null,null,null,null,null,null,null,null,null,null,"",""]
[null,null,null,null,null,null,null,null,null,null,null,null,null,null,"",""]
[null,null,null,null,null,null,null,null,null,null,null,null,null,null,"",""]
[null,null,null,null,null,null,null,null,null,null,null,null,null,null,"",""]
[null,null,null,null,null,null,null,null,null,null,null,null,null,null,"",""]
[null,null,null,null,null,null,null,null,null,null,null,null,null,null,"",""]
[null,null,null,null,null,null,null,null,null,null,null,null,null,null,"",""]
[null,null,null,null,null,null,null,null,null,null,null,null,null,null,"",""]
[null,null,null,null,null,null,null,null,null,null,null,null,null,null,"",""]
[null,null,null,null,null,null,null,null,null,null,null,null,null,null,"",""]
[null,null,null,null,null,null,null,null,null,null,null,null,null,null,"",""]
[null,null,null,null,null,null,null,null,null,null,null,null,null,null,"",""]
[null,null,null,null,null,null,null,null,null,null,null,null,null,null,"",""]
[null,null,null,null,null,null,null,null,null,null,null,null,null,null,"",""]
[null,null,null,null,null,null,null,null,null,null,null,null,null,null,"",""]
[null,null,null,null,null,null,null,null,null,null,null,null,null,null,"",""]
[null,null,null,null,null,null,null,null,null,null,null,null,null,null,"",""]
[null,null,null,null,null,null,null,null,null,null,null,null,null,null,"",""]
[null,null,null,null,null,null,null,null,null,null,null,null,null,null,"",""]
[null,null,null,null,null,null,null,null,null,null,null,null,null,null,"",""]
[null,null,null,null,null,null,null,null,null,null,null,null,null,null,"",""]
[null,null,null,null,null,null,null,null,null,null,null,null,null,null,"",""]
[null,null,null,null,null,null,null,null,null,null,null,null,null,null,"",""]
[null,null,null,null,null,null,null,null,null,null,null,null,null,null,"",{"$f":"IF(H59971=\"\",\"\",MATCH(H59971,$T$2:$T$2472,0))","v":""}]
[null,null,null,null,null,null,null,null,null,null,null,null,null,null,"",""]
[null,null,null,null,null,null,null,null,null,null,null,null,null,null,"",""]
[null,null,null,null,null,null,null,null,null,null,null,null,null,null,"",""]
[null,null,null,null,null,null,null,null,null,null,null,null,null,null,"",""]
[null,null,null,null,null,null,null,null,null,null,null,null,null,null,"",""]
[null,null,null,null,null,null,null,null,null,null,null,null,null,null,"",""]
[null,null,null,null,null,null,null,null,null,null,null,null,null,null,"",""]
[null,null,null,null,null,null,null,null,null,null,null,null,null,null,"",""]
[null,null,null,null,null,null,null,null,null,null,null,null,null,null,"",""]
[null,null,null,null,null,null,null,null,null,null,null,null,null,null,"",""]
[null,null,null,null,null,null,null,null,null,null,null,null,null,null,"",""]
[null,null,null,null,null,null,null,null,null,null,null,null,null,null,"",""]
[null,null,null,null,null,null,null,null,null,null,null,null,null,null,"",""]
[null,null,null,null,null,null,null,null,null,null,null,null,null,null,{"$f":"IF(D59985=\"\",\"\",MATCH(D59985,$S$2:$S$2488,0))","v":""},""]
[null,null,null,null,null,null,null,null,null,null,null,null,null,null,"",""]
[null,null,null,null,null,null,null,null,null,null,null,null,null,null,"",""]
[null,null,null,null,null,null,null,null,null,null,null,null,null,null,"",""]
[null,null,null,null,null,null,null,null,null,null,null,null,null,null,"",""]
[null,null,null,null,null,null,null,null,null,null,null,null,null,null,"",""]
[null,null,null,null,null,null,null,null,null,null,null,null,null,null,"",""]
[null,null,null,null,null,null,null,null,null,null,null,null,null,null,"",""]
[null,null,null,null,null,null,null,null,null,null,null,null,null,null,"",""]
[null,null,null,null,null,null,null,null,null,null,null,null,null,null,"",""]
[null,null,null,null,null,null,null,null,null,null,null,null,null,null,"",""]
[null,null,null,null,null,null,null,null,null,null,null,null,null,null,"",""]
[null,null,null,null,null,null,null,null,null,null,null,null,null,null,"",""]
[null,null,null,null,null,null,null,null,null,null,null,null,null,null,"",""]
[null,null,null,null,null,null,null,null,null,null,null,null,null,null,"",""]
[null,null,null,null,null,null,null,null,null,null,null,null,null,null,{"$f":"IF(D60000=\"\",\"\",MATCH(D60000,$S$2:$S$2488,0))","v":""},{"$f":"IF(H60000=\"\",\"\",MATCH(H60000,$T$2:$T$2472,0))","v":""}]

{"sheet":"入力例","index":1,"n_rows":38,"n_cols":14,"rows_kept":38,"cut":false,"hidden":false,"merged":[]}
[]
["自治体名","分析年度\n西暦","試料番号 ","食品名","食品名\n（その他の場合）","国産・輸入","輸出国名","有害物質名","有害物質名（その他の場合）","分析法の妥当性\n未確認-空白\n確認-1","ND-空白　　検出-1","検出限界\n(ppm)","分析値  (ppm)\n検出した時","違反-1"]
["国立医薬品食品衛生研究所",2024,"A","いちご",null,"国産",null,"ＥＰＮ",null,null,null,0.01]
["国立医薬品食品衛生研究所",null,null,null,null,null,null,"ＸＭＣ",null,null,null,0.01]
["国立医薬品食品衛生研究所",null,null,null,null,null,null,"アクリナトリン",null,null,null,0.01]
["国立医薬品食品衛生研究所",null,null,null,null,null,null,"アセトクロール",null,null,null,0.01]
["国立医薬品食品衛生研究所",null,null,null,null,null,null,"アトラジン",null,null,null,0.01]
["国立医薬品食品衛生研究所",null,null,null,null,null,null,"アニロホス",null,null,null,0.01]
["国立医薬品食品衛生研究所",null,null,null,null,null,null,"アラクロール",null,null,null,0.01]
["国立医薬品食品衛生研究所",null,null,null,null,null,null,"イソキサチオン",null,null,null,0.01]
["国立医薬品食品衛生研究所",null,null,null,null,null,null,"イソプロカルブ",null,null,null,0.01]
["国立医薬品食品衛生研究所",null,null,null,null,null,null,"イソプロチオラン",null,null,null,0.01]
["国立医薬品食品衛生研究所",null,null,null,null,null,null,"イプロベンホス",null,null,null,0.01]
["国立医薬品食品衛生研究所",null,null,null,null,null,null,"イミダクロプリド",null,null,null,0.01]
["国立医薬品食品衛生研究所",null,"B","牛の筋肉",null,"国産",null,"エトリムホス",null,null,null,0.01]
["国立医薬品食品衛生研究所",null,null,null,null,null,null,"エンドリン",null,null,null,0.01]
["国立医薬品食品衛生研究所",null,null,null,null,null,null,"キナルホス",null,null,null,0.01]
["国立医薬品食品衛生研究所",null,null,null,null,null,null,"キントゼン",null,null,null,0.01]
["国立医薬品食品衛生研究所",null,null,null,null,null,null,"クマホス",null,null,null,0.01]
["国立医薬品食品衛生研究所",null,null,null,null,null,null,"クロルデン",null,null,null,0.01]
["国立医薬品食品衛生研究所",null,null,null,null,null,null,"クロルピリホス",null,null,null,0.01]
["国立医薬品食品衛生研究所",null,null,null,null,null,null,"クロルピリホスメチル",null,null,null,0.01]
["国立医薬品食品衛生研究所",null,null,null,null,null,null,"クロルフェンビンホス",null,null,null,0.01]
["国立医薬品食品衛生研究所",null,null,null,null,null,null,"クロロベンジレート",null,null,null,0.01]
["国立医薬品食品衛生研究所",null,null,null,null,null,null,"サリチオン",null,null,null,0.01]
["国立医薬品食品衛生研究所",null,null,null,null,null,null,"シアノフェンホス",null,null,null,0.01]
["国立医薬品食品衛生研究所",null,"C","グレープフルーツ",null,"輸入","アメリカ","クロマゾン",null,null,null,3.0000000000000001E-3]
["国立医薬品食品衛生研究所",null,null,null,null,null,null,"クロルエトキシホス",null,null,null,3.0000000000000001E-3]
["国立医薬品食品衛生研究所",null,null,null,null,null,null,"クロルタールジメチル",null,null,null,3.0000000000000001E-3]
["国立医薬品食品衛生研究所",null,null,null,null,null,null,"クロルデン",null,null,null,3.0000000000000001E-3]
["国立医薬品食品衛生研究所",null,null,null,null,null,null,"クロルピリホス",null,null,1,3.0000000000000001E-3,0.02]
["国立医薬品食品衛生研究所",null,null,null,null,null,null,"クロルピリホスメチル",null,null,null,3.0000000000000001E-3]
["国立医薬品食品衛生研究所",null,null,null,null,null,null,"クロルフェナピル",null,null,null,3.0000000000000001E-3]
["国立医薬品食品衛生研究所",null,null,null,null,null,null,"クロルフェンソン",null,null,null,3.0000000000000001E-3]
["国立医薬品食品衛生研究所",null,null,null,null,null,null,"クロルフェンビンホス",null,null,null,3.0000000000000001E-3]
["国立医薬品食品衛生研究所",null,null,null,null,null,null,"クロルブファム",null,null,null,0.01]
["国立医薬品食品衛生研究所",null,null,null,null,null,null,"クロルプロファム",null,null,null,3.0000000000000001E-3]
["国立医薬品食品衛生研究所",null,null,null,null,null,null,"クロルベンシド",null,null,null,3.0000000000000001E-3]

{"sheet":"入力チェック後","index":2,"n_rows":38,"n_cols":14,"rows_kept":38,"cut":false,"hidden":false,"merged":[]}
[null,null,null,{"$f":"IF(ISNA(O1),\"入力エラー\",\"\")","v":""},null,null,null,{"$f":"IF(ISNA(P1),\"入力エラー\",\"\")","v":""}]
["自治体名","分析年度\n西暦","試料番号 ","食品名","食品名\n（その他の場合）","国産・輸入","輸出国名","有害物質名","有害物質名（その他の場合）","分析法の妥当性\n未確認-空白\n確認-1","ND-空白　　検出-1","検出限界\n(ppm)","分析値  (ppm)\n検出した時","違反-1"]
["国立医薬品食品衛生研究所",2024,"A","いちご",null,"国産",null,"ＥＰＮ",null,null,null,0.01,5.0000000000000001E-3]
["国立医薬品食品衛生研究所",2024,"A","いちご",null,"国産",null,"ＸＭＣ",null,null,null,0.01,5.0000000000000001E-3]
["国立医薬品食品衛生研究所",2024,"A","いちご",null,"国産",null,"アクリナトリン",null,null,null,0.01,5.0000000000000001E-3]
["国立医薬品食品衛生研究所",2024,"A","いちご",null,"国産",null,"アセトクロール",null,null,null,0.01,5.0000000000000001E-3]
["国立医薬品食品衛生研究所",2024,"A","いちご",null,"国産",null,"アトラジン",null,null,null,0.01,5.0000000000000001E-3]
["国立医薬品食品衛生研究所",2024,"A","いちご",null,"国産",null,"アニロホス",null,null,null,0.01,5.0000000000000001E-3]
["国立医薬品食品衛生研究所",2024,"A","いちご",null,"国産",null,"アラクロール",null,null,null,0.01,5.0000000000000001E-3]
["国立医薬品食品衛生研究所",2024,"A","いちご",null,"国産",null,"イソキサチオン",null,null,null,0.01,5.0000000000000001E-3]
["国立医薬品食品衛生研究所",2024,"A","いちご",null,"国産",null,"イソプロカルブ",null,null,null,0.01,5.0000000000000001E-3]
["国立医薬品食品衛生研究所",2024,"A","いちご",null,"国産",null,"イソプロチオラン",null,null,null,0.01,5.0000000000000001E-3]
["国立医薬品食品衛生研究所",2024,"A","いちご",null,"国産",null,"イプロベンホス",null,null,null,0.01,5.0000000000000001E-3]
["国立医薬品食品衛生研究所",2024,"A","いちご",null,"国産",null,"イミダクロプリド",null,null,null,0.01,5.0000000000000001E-3]
["国立医薬品食品衛生研究所",2024,"B","牛の筋肉",null,"国産",null,"エトリムホス",null,null,null,0.01,5.0000000000000001E-3]
["国立医薬品食品衛生研究所",2024,"B","牛の筋肉",null,"国産",null,"エンドリン",null,null,null,0.01,5.0000000000000001E-3]
["国立医薬品食品衛生研究所",2024,"B","牛の筋肉",null,"国産",null,"キナルホス",null,null,null,0.01,5.0000000000000001E-3]
["国立医薬品食品衛生研究所",2024,"B","牛の筋肉",null,"国産",null,"キントゼン",null,null,null,0.01,5.0000000000000001E-3]
["国立医薬品食品衛生研究所",2024,"B","牛の筋肉",null,"国産",null,"クマホス",null,null,null,0.01,5.0000000000000001E-3]
["国立医薬品食品衛生研究所",2024,"B","牛の筋肉",null,"国産",null,"クロルデン",null,null,null,0.01,5.0000000000000001E-3]
["国立医薬品食品衛生研究所",2024,"B","牛の筋肉",null,"国産",null,"クロルピリホス",null,null,null,0.01,5.0000000000000001E-3]
["国立医薬品食品衛生研究所",2024,"B","牛の筋肉",null,"国産",null,"クロルピリホスメチル",null,null,null,0.01,5.0000000000000001E-3]
["国立医薬品食品衛生研究所",2024,"B","牛の筋肉",null,"国産",null,"クロルフェンビンホス",null,null,null,0.01,5.0000000000000001E-3]
["国立医薬品食品衛生研究所",2024,"B","牛の筋肉",null,"国産",null,"クロロベンジレート",null,null,null,0.01,5.0000000000000001E-3]
["国立医薬品食品衛生研究所",2024,"B","牛の筋肉",null,"国産",null,"サリチオン",null,null,null,0.01,5.0000000000000001E-3]
["国立医薬品食品衛生研究所",2024,"B","牛の筋肉",null,"国産",null,"シアノフェンホス",null,null,null,0.01,5.0000000000000001E-3]
["国立医薬品食品衛生研究所",2024,"C","グレープフルーツ",null,"輸入","アメリカ","クロマゾン",null,null,null,3.0000000000000001E-3,1.5E-3]
["国立医薬品食品衛生研究所",2024,"C","グレープフルーツ",null,"輸入","アメリカ","クロルエトキシホス",null,null,null,3.0000000000000001E-3,1.5E-3]
["国立医薬品食品衛生研究所",2024,"C","グレープフルーツ",null,"輸入","アメリカ","クロルタールジメチル",null,null,null,3.0000000000000001E-3,1.5E-3]
["国立医薬品食品衛生研究所",2024,"C","グレープフルーツ",null,"輸入","アメリカ","クロルデン",null,null,null,3.0000000000000001E-3,1.5E-3]
["国立医薬品食品衛生研究所",2024,"C","グレープフルーツ",null,"輸入","アメリカ","クロルピリホス",null,null,"1",3.0000000000000001E-3,0.02]
["国立医薬品食品衛生研究所",2024,"C","グレープフルーツ",null,"輸入","アメリカ","クロルピリホスメチル",null,null,null,3.0000000000000001E-3,1.5E-3]
["国立医薬品食品衛生研究所",2024,"C","グレープフルーツ",null,"輸入","アメリカ","クロルフェナピル",null,null,null,3.0000000000000001E-3,1.5E-3]
["国立医薬品食品衛生研究所",2024,"C","グレープフルーツ",null,"輸入","アメリカ","クロルフェンソン",null,null,null,3.0000000000000001E-3,1.5E-3]
["国立医薬品食品衛生研究所",2024,"C","グレープフルーツ",null,"輸入","アメリカ","クロルフェンビンホス",null,null,null,3.0000000000000001E-3,1.5E-3]
["国立医薬品食品衛生研究所",2024,"C","グレープフルーツ",null,"輸入","アメリカ","クロルブファム",null,null,null,0.01,5.0000000000000001E-3]
["国立医薬品食品衛生研究所",2024,"C","グレープフルーツ",null,"輸入","アメリカ","クロルプロファム",null,null,null,3.0000000000000001E-3,1.5E-3]
["国立医薬品食品衛生研究所",2024,"C","グレープフルーツ",null,"輸入","アメリカ","クロルベンシド",null,null,null,3.0000000000000001E-3,1.5E-3]